Workbook

Sheet Notes
A1: LraEma.xlsm; Traders Tip spreadsheet created for the September 2022 Issue
A2: Coded beginning 2022-July-10 by Ronald McAllister (rpmac_xltt@sprynet.com)
A4: This Workbook demonstrates an EXCEL version of the ideas presented
A5: by Vitaly Apirine in an article titled "The Linear Regression-Adjusted Exponential Moving Average", which originally appeared in the September 2022 issue of
A6: "Technical Analysis of Stocks and Commodities" magazine.
A8: Development Notes:
A9: Replicating the Metastock LinearReg() function in EXCEL
A11: Metastock Reference: "Metastock Formula Primer II", copyright 2017, page 37,
A12: Quote:
A13: "The LinearReg() function will return the ending point of a regression line of a set number of periods."
A14: "The LinRegSlope() will give the slope of the same line."
A16: If we choose 20 bars of Close values for our calculation, we can fill in the standard line formula
A17: Y = m * X + b ( Where "m" is slope and "b" is intercept)
A18: parameters using these Metastock functions as follows:
A20: LinearReg(C,20) = LinRegSlope(C,20) * 20 + b ( can solve for "b" if you need it for forward or backward projections of the regression line)
A22: The EXCEL Linest() function performs the linear regression calculations and returns slope (m) and intercept (b) values of the regression line.
A24: Making the corresponding substitutions, we arrive at a derivation of the Metastock LinearReg value using EXCELs Linest function.
A26: LinearReg(C,20) = Linest(C,20){Slope} * 20 + Linest(C,20){Intercept}
A29: * * * * * * * * * * * * * * * *
A30: March 15 2022 - for the May 2022 traders tip
A31: Built an alternative method to show/hide a series on a chart. This is driven by a user check box settings in the
A32: clutter control area and uses the "visible" property of a given series.
A33: Check box labels change on the fly to reflect changes to indicator parameters as the changes happen.
A34: Set up parallel price charts to contrast indicator settings as Mr. Apirine has done in the May 2022 article.
A35: Chart visibilities controlled by check box settings.
A36: Changed chart window shade logic to show all of the Volume Chart or overlay the upper portion of the
A37: volume chart to provide more vertical space for other charts. This partial overlay leaves the volume chart
A38: date labels visible so that no other chart needs to have labels providing more vertical space of actual charting.
A39: Refined my dynamic horizontal Tick interval and Tick Label placement settings logic.
A41: January 18 2022 - Random "Name of Company" Retrieval Errors
A42: For the last couple of months my data retrievals would randomly get a soft error on the company name.
A43: By soft I mean that the HTML Get request for a summary for the InputPriceData tab target symbol would have a good return code but the company name field would contain garbage.
A44: Simply clicking the get data button on the InputPriceData tab to rerun the data retrieval would fix" it.
A45: Remarkably, the historical pricing data is always retrieved and is correct.
A47: Sunday (Jan 16) while working on this spreadsheet, five out of six tries for the same symbol displayed junk in the company name.
A48: So I set a trap to copy the HTML text to disc for the bad return and the good return so that I could compare them.
A49: (for those with a technical bent Notepad++ has a really nice Compare add in)
A50: As it turns out the correct required data is present in both versions.
A51: But the formatting of the new version does not contain the landmarks I was using to parse out what was needed.
A53: I think Yahoo Finance is experimenting with a new/upgraded HTML generator and perhaps does not have it installed on all of their servers.
A54: So the randomness of the "failure" is probably an artifact of which server answered my HTML request.
A56: The result is that I spent the last day and a half comparing the two formats and have come up with a new set of landmarks
A57: that are common to both formats. It requires a few extra steps to ignore minor internal differences in these landmarks and the result is
A58: code that does not care which HTML format is returned.
A60: The fix - What Changed:
A61: Complete rewrite of:
A62: VBA Procedure: ExtractCompanyIdFromSummaryText as found in VBA Module: InputPriceDataLoader
A64: Retrofitting to older Traders Tips spreadsheets:
A65: For those of you with some familiarity with the EXCEL VBA editor, you can try the following copy and paste steps.
A67: First we need to grab a copy of the corrected ExtractCompanyIdFromSummaryText Sub.
A68: Open the VBA editor in this spreadsheet and navigate to module InputPriceDataLoader and then to procedure ExtractCompanyIdFromSummaryText
A69: Copy all of procedure ExtractCompanyIdFromSummaryText from the beginning Sub statement to and including the closing End Sub statement to a new Notepad or Notepad++ text document.
A70: Close this workbook, but do not close the Notepad or Notepad++ document.
A72: Now for the target of your retrofit attempt.
A73: Make a backup copy of this retrofit target spreadsheet in case you have a problem and need to start over with a fresh copy.
A74: Open the retrofit target.
A75: Open the VBA editor in this target spreadsheet and navigate to module InputPriceDataLoader and then to procedure ExtractCompanyIdFromSummaryText
A77: Delete all of the ExtractCompanyIdFromSummaryText procedure starting with the begining Sub statement to and including the closing End Sub statement.
A79: Do not close the VBA editor or the spread sheet.
A81: Navigate (Alt-Tab) to your Notepad or Notepad++ instance and select all of the text (Ctrl-a). Then Copy the selected text (Ctrl-c).
A82: Navigate (Alt-Tab) back to the VBA editor window. The VBA editor cursor should still be on the line where you just deleted the old version of ExtractCompanyIdFromSummaryText.
A83: This is probably a blank line just above a line that reads "Sub FormatPriceHistory(..."
A84: If there is no blank line above the "Sub FormatPriceHistory(..." line then click on the "S" of Sub and press enter to insert a blank line.
A85: Move your mouse cursor to this blank line and left-click to be sure of the VBA cursor location.
A86: Then (Ctrl-v) to paste the new version of ExtractCompanyIdFromSummaryText that you copied from the Notepad or Notepad++ text document.
A88: You are done with the tricky part. Close the VBA editor and save the now retrofitted spreadsheet.
A90: Go to the inputPriceData tab and retrieve some data to verify that nothing is broken.
A91: Easter egg time: (Curious minds want to know...)
A92: If the data retrieval encounters a new format HTML response, the company name this code will display will have an asterisk(*) as a prefix.
A94: Foot Note: Today (Jan 19 2022) I have not encountered a single instance of the new format HTML while testing this spreadsheet for submission to the editors.
A95: So maybe YahooFinance is not test/using the new version right now?
A97: New for May 2021
A98: Upgraded the data download logic to do a better job of catching the common data download errors and provide a more graceful resolution.
A99: This includes better user notification of the nature of the error and some user control over how the error should be handled.
A100: User notification comes in the form of a MSGbox display that includes the (sometimes cryptic) description of the error and offers the user three options.
A102: Abort - If I could customize the title, I would rename this button to "Debug"
A103: This choice places you in Debug mode at the failing VBA statement.
A104: Unless you are feeling good about your VBA (and Network) debugging skills, this is probably not for you.
A106: Retry
A107: Lets the code retry the failed download request.
A108: This is a reasonable option if the download request timed out (similar to video buffering) or your network connection has dropped out..
A109: Probably a good idea to make sure your internet connection is alive and well before you select Retry.
A111: Ignore
A112: Lets the code fall thru to a (hopefully) graceful error completion with the error indicated at the top of the InputPriceData tab
A114: New for August 2020
A115: Restructured my Symbol-Not-Found detection and now stop further processing in the not found case
A117: New with the May 2020 version of my T-Tips template: VBA to implement a "Perpetual" U.S. Markets Closed Holiday Calendar.
A119: Why we need one: The Yahoo Finance recently has begun having occasional filtration problems where bars for U.S. Market Closed Holidays
A120: make their way onto the Historical Data web page and into the Historical Data download.
A122: While testing this May 2020 spreadsheet with different symbols, I found that I sometimes had bars with the text "null" in the price fields.
A123: My code always translates the "null" text price values to zeros.
A124: The resulting zeros cause real problems with indicator computations and the amount of blank space below price candles on the price chart.
A126: "null" price bars can be valid for very lightly traded penny sheet symbols which may not trade every day the markets are open.
A127: But is definitely not normal for symbols on the big boards.
A129: A closer look determined that these "bars" were for holiday dates when the US markets are normally closed.
A130: I found it interesting that some times the next download for the same symbol would not contain any of these "holiday" bars. Weird!
A132: My approach here was to write code to determine if the DATE on a null price values bar falls on one of the 9 market closed U.S. Holidays.
A133: If the bar date corresponds to one of these market closed holidays, I drop the bar before it reaches the InputPriceData tab.
A134: If the date is not a holiday, I let the bar through with the resulting zero values.
A136: No messy tables to update over the years as there are good solid rules that can be used in VBA or any other programming language to determine
A137: the dates for U.S. Market Closed Holidays for any given calendar year.
A139: This workbook contains and uses VBA macros and may take advantage of user defined VBA Class structures.
A140: Input Data:
A141: The data in this workbook is sorted date-descending (most recent date at the top). All cell formulas and
A142: VBA routines are built assuming this date sequence.
A144: ERROR 9 (already fixed in this spreadsheet)
A145: On or about Jan 29, 2020 Yahoo Finance changed the format of the split factor expression used their historical data downloads.
A146: The Split expression went from using "/" as in "New Share Number/Old Share Number",
A147: to using ":" as in "New Share Number:Old Share Number".
A148: This caused the then current version of my VBA code to fail with a "Runtime Error '9': subscript out of range".
A150: Fix for this ERROR 9
A151: For T-Tip spreadsheets from September 2018 up to present:
A152: Selecting the Debug option takes one into the VBA at the code line which causes the failure:
A153: CellArray(C_A_RowNdx, C_A_ColNdx + 1) = SplitFactors(1)
A154: Two lines above the failing VBA line is a line that reads:
A155: SplitFactors = Split(CsvColumns(CsvColNdx), "/")
A156: Change the / to a :
A157: The corrected line should now read
A158: SplitFactors = Split(CsvColumns(CsvColNdx), ":")
A160: If you are fixing several spreadsheets and do not want to use the failure to find the fix location,
A161: you can use VBA’s FIND dialog (Ctrl F) to look for the substring
A162: SplitFactors =
A163: Do include one space and the equal sign in your FIND string
A164: Select the "Current Project" option
A165: There should only be one instance.
A167: T-Tip spreadsheets prior to the September 2018 spreadsheet do not hard fail.
A169: They just get weird results in the split columns of the Input Price Data tab (soft fail).
A170: These older spreadsheets used different data retrieval and formatting logic.
A172: To fix these older spreadsheets:
A173: In the VBA editor, use find (CTRL-F).
A174: Select the "Current Project" option, and search for the following:
A175: OtherChar:="/"
A176: You are looking for a hit in a line reading:
A177: Other:=True, OtherChar:="/", _
A178: This line is part of a multiline block of code starting with a line that reads:
A179: SplitRange.Offset(0, 1).Resize(SpRows, 1).TextToColumns
A180: Change the / to a : so that the line reads
A181: Other:=True, OtherChar:=":", _
A184: 2019-04-04 Finally came up with a mechanism to align the left location and overall length of the cursor scroll bar so that the left most and right most
A185: scroll bar thumb positions visually align reasonably well with the left and right ends of the price chart horizontal axis.
A186: Makes it a little easier to visually align the Thumb and thus the cursor with points of interest on the charts.
A188: Older:
B189: My sincere apologies to our Macintosh based readers: Neither MSXML nor WinHttpRequest are supported in your environment. So as it stands this version of the spreadsheet will not work for you.
B190: See "Why this approach does not work for Macintosh" below.
B191: I am investigating cURL as a non-Querytable based approach for the Macintosh environment.
A193: The new Yahoo Finance history download interface has changed rather radically. The biggest hurdle being a pseudo-security requirement of adding a
B194: crumb character string to any URL requesting any type of history download. That crumb must match up (by way of some sort of hash algorithm) with
B195: the Yahoo Finance cookie that must also be sent with any request to the new Yahoo History down load interface.
B197: A crumb value is returned, buried in the HTML for any of what I call the "entry level" Yahoo Finance web pages (no crumb security requirement for entry level pages).
B198: A crumb may come with other Yahoo Finance pages. A crumb may even accompany some of the secured pages as well. I have not checked.
B200: Entry level pages are the top level pages of the various Yahoo Finance dialogs and include: Quote Lookup, Stock Summary Quote, and any of the pages
B201: with links in the horizontal row with the "Summary" link on the quote summary page such as Options, Historical Data, and the rest.
B203: To date I have found no way to get at this crumb value using any native EXCEL capabilities.
B205: So this crumb requirement effectively shuts out any solution that attempts to exclusively use built-in facilities of EXCEL, which is to say a purely Querytables solution.
B207: The approach built for this Traders Tip spreadsheet uses WINHTTP calls to Load the InputPriceData worksheet.
B209: First I call to get the HTML text for the Yahoo Summary Quote page using the requested symbol. From this HTML text I extract the full company name,
B210: the market it trades, the market status and time stamp, and finally the associated crumb string. There is a bunch of other useful bits buried in this HTML
B211: text that do not necessarily appear on the web page your browser presents. Perhaps some day I will go after and build a worksheet with these other bits.
B213: Next I add the freshly extracted crumb string to the URLs I use in three separate WINHTTP calls to retrieve Price history, Split history, and Dividend history respectively.
B215: From there VBA code proceeds as in the past to fill in the cell formulas and formatting that make the "prettied up" InputPriceData sheet.
A217: Why this approach works for Windows:
B218: WINHTTP maintains a temporary computer memory cache where cookies are maintained for as long as the WINHTTP object is instantiated.
B219: WINHTTP updates this cache any time a "set cookie" header accompanies a web response.
B220: Subsequent WINHTTP calls automatically search this cache for cookies and add any "appropriate" cookies to the headers
B221: of any web requests that get sent out.
B222: This cookie handling automation means that even if the response to our WINHTTP call for the Summary web page includes a new version of
B223: the Yahoo Finance cookie, the imbedded Crumb value will always match the cookie newly installed in the cache!
A226: Why this approach does not work for Macintosh:
B227: For what it is worth, the Macintosh version of the MS Office suite of products do in fact maintain a special, shared amongst themselves only, cookie cache.
B228: They automate cookie handling into and from this cache JUST for the Office products and any Querytable activity they might originate.
B230: This cache is not tied to, nor shared with, any browser that might be installed on the MAC. And I have not found anything with HTTP capabilities similar to
B231: MSXML that can work with that Office product cookie cache.
B233: When working in the MAC EXCEL environment, I have not yet become conversant with a Mac based WINHTTP like capability.
B234: So l currently have no mechanism to replicate the non-Querytable data retrieval process I am using in Windows environments.
B235: A software product called CURL has been suggested as providing this capability in the MAC environment.
B236: A version of CURL is available for the Windows So some day I may explore its capabilities and how to access those capabilities from VBA.
A238: Calculation and Chart Worksheet Usage Comments:
C239: In General, Items in Bolded BLUE are items you may freely change to play what-if games.
C240: Be sure to have a backup copy of the spreadsheet before you alter anything else.
A242: Features carried forward from the June 2016 version of my T-Tips Template
A243: Added a pair of buttons near cell F12 that will allow the user to step the charting window forward or backward one bar for each click.
A244: I find this to be a good way to test my understanding of the author's ideas as I step through the evolution of the price behavior and the indicators.
B246: First: In the "Help! I would like to plot data" area.
B247: Added button to resolve #NA problems by locating the bar in the input data with a slightly more recent date than what the user actually requested.
B248: I find this particularly useful when I have a general idea of where I want to be date wise. Now I can pick a set of dates "out of the air".
B249: If either (or both) of my date specifications fall between dates that are available in the price history,
B250: this button will resolve them to the dates of the nearest, slightly more recent input bars.
B251: I can then refine my data interval search as necessary from there.
B252: Really great when working with Weekly or Monthly studies!
C253: 2016Jun11 - added logic to the "I would like to chart.." button to detect #N/A values and terminate
C254: gracefully with a message instead of blowing up in the charting logic.
B256: Second: In the "Price Chart Windowing Controls" area. (A11 and A12)
B257: When retrieving data for a new symbol or when changing from daily to weekly or monthly data, there was the possibility that the
B258: residual settings in A11 and A12 would fall outside of the number bars available on the input data tab after the new data retrieval.
B259: In certain combinations, this could create a serious error in the chart sizing logic and crash the spreadsheet.
B260: I have taken this opportunity to update the validity checking logic used in the chart sizing macros
B261: to adjust these values as necessary so that they fall within the boundaries of the newly retrieved input data.
A262: Features carried forward from the October 2015 Traders Tips Template
B263: Improved automation: changes to any of the following will automatically initiate calculations appropriate to reflect a change.
C264: Changing either of cells A11 (pan) or A12 (zoom) will automatically initiate the same chart sizing macros that the manual
... 1 more rows

Sheet InputPriceData
A1: Raytheon Technologies Corporation (RTX) -NYSE (Daily)
M2: To retrieve data for symbols traded on non US Exchanges, | II2: 241.79
A3: Request Online Yahoo History for: | F3: Market State == > | G3: At close: | H3: 16:00:00 | I3: EDT | M3: you will need to append the dot-suffix for the exchange to the symbol.
A4: Symbol | B4: RTX | D4: Valid | I4: =OFFSET(I4,-2,0,1,1) -> 0 | M4: The following links provide a description of how to use the exchange suffix
A5: From | B5: 1950-10-01 | D5: Data | M5: along with a list of suffixes for the major world exchanges. | AD5: Trailing 12 Div return (Cur Close)
A6: To | B6: =NOW() -> 2022-07-18T19:18:21.380 | D6: Types | E6: =VLOOKUP(B7,D7:E10,2,FALSE) -> d | M6: https://help.yahoo.com/kb/finance/SLN2310.html
A7: Data Type | B7: Daily | D7: Daily | E7: d | M7: And
A8: Crumb | B8: lVTUmijbvl9 | D8: Weekly | E8: w | M8: https://www.stockmarketeye.com/users-guide/ticker-symbols-and-data-providers/data-providers.html
A9: Available Data | D9: Monthly | E9: m
A10: Bar Count: | B10: 15171 | M10: You may search on “exchange suffixes” for additional discussions | AD10: =OFFSET(AC15,1,0,1,1)/OFFSET(N15,1,0,1,1) -> 0.02186711522
A11: From: | B11: =IF(B10<=0,"",OFFSET(B15,B10,IF(HistReqDataType="v",1,0),1,1)) -> 1962-04-02 | W11: Trailing 12 Month Dividend Returns
A12: To: | B12: =IF(B10<=0,"",IF(HistReqDataType="v",OFFSET(B15,2,1,1,1),OFFSET(B15,1,0,1,1))) -> 2022-07-08 | W12: Raw Close price on Dividend date | X12: Div Year and Month | Y12: Looking for year ago Div Year and Month | Z12: Year ago Div Date we found | AA12: row offset to year ago div Date | AB12: Same month flag | AC12: Trailing 12 Div Total | AD12: Trailing 12 Div return
Q13: Split History | S13: 7 | T13: Running | U13: Dividend History
B14: Raw Data Values | H14: Adjusted | I14: Price Adjust | J14: Vol Adjust | K14: Adjusted Values | P14: Last | Q14: Effective | R14: Shares | T14: Vol Adjust | V14: 240
A15: RelRow | B15: Date | C15: Open | D15: High | E15: Low | F15: Close | G15: Volume | H15: Close | I15: Factor | J15: Factor | K15: Open | L15: High | M15: Low | N15: Close | O15: Volume | P15: Trade | Q15: 44753 | R15: New | S15: Old | T15: 1 | U15: Date | V15: $ / Share
A16: 1 | B16: 2022-07-08 | C16: 94.290001 | D16: 95.720001 | E16: 93.940002 | F16: 95.120003 | G16: 2762700 | H16: 95.120003 | I16: =IF(F16=0,1,H16/F16) -> 1 | J16: =INDEX(OFFSET($T$15,0,0,$S$13+1,1),MATCH(B16,OFFSET($Q$15,0,0,$S$13+1,1),-1)) -> 1 | K16: =ROUND($I16*C16,2) -> 94.29 | L16: =ROUND($I16*D16,2) -> 95.72 | M16: 93.94 | N16: 95.12 | O16: =G16*J16 -> 2762700 | Q16: 2020-04-03 | R16: 15890 | S16: 10000 | T16: 1.589 | U16: 2022-05-19 | V16: 0.55 | W16: =(INDEX(OFFSET($F$15,1,0,$B$10,1),MATCH(U16,OFFSET($B$15,1,0,$B$10,1),-1))) -> 90.25 | X16: =YEAR(U16)&RIGHT("0"&MONTH(U16),2) -> 202205 | Y16: =YEAR(U16)-1&RIGHT("0"&MONTH(U16),2) -> 202105 | Z16: =OFFSET(U15,AA16,0,1,1) -> 2021-05-20 | AA16: =MATCH(Y16,OFFSET($X$15,A16,0,$V$14+1-A16,1),-1) -> 5 | AB16: =IF(OR(AND(YEAR(U16)=YEAR(Z16),MONTH(U16)=MONTH(Z16)),MONTH(U16)=MONTH(Z16)),1,0) -> 1 | AC16: =(V16+IF(AA16-AB16=0,0,IFERROR(SUM(OFFSET(V16,1,0,AA16-AB16-1,1)),0))) -> 2.08 | AD16: =AC16/(INDEX(OFFSET($F$15,1,0,$B$10,1),MATCH(U16,OFFSET($B$15,1,0,$B$10,1),-1))) -> 0.02304709141
A17: 2 | B17: 2022-07-07 | C17: 94.550003 | D17: 95 | E17: 93.809998 | F17: 93.940002 | G17: 3212600 | H17: 93.940002 | I17: =IF(F17=0,1,H17/F17) -> 1 | J17: =INDEX(OFFSET($T$15,0,0,$S$13+1,1),MATCH(B17,OFFSET($Q$15,0,0,$S$13+1,1),-1)) -> 1 | K17: =ROUND($I17*C17,2) -> 94.55 | L17: =ROUND($I17*D17,2) -> 95 | M17: =ROUND($I17*E17,2) -> 93.81 | N17: =ROUND($I17*F17,2) -> 93.94 | O17: =G17*J17 -> 3212600 | Q17: 2005-06-13 | R17: 2 | S17: 1 | T17: 3.178 | U17: 2022-02-24 | V17: 0.51 | W17: =(INDEX(OFFSET($F$15,1,0,$B$10,1),MATCH(U17,OFFSET($B$15,1,0,$B$10,1),-1))) -> 94.25 | X17: =YEAR(U17)&RIGHT("0"&MONTH(U17),2) -> 202202 | Y17: =YEAR(U17)-1&RIGHT("0"&MONTH(U17),2) -> 202102 | Z17: =OFFSET(U16,AA17,0,1,1) -> 2021-02-25 | AA17: =MATCH(Y17,OFFSET($X$15,A17,0,$V$14+1-A17,1),-1) -> 5 | AB17: =IF(OR(AND(YEAR(U17)=YEAR(Z17),MONTH(U17)=MONTH(Z17)),MONTH(U17)=MONTH(Z17)),1,0) -> 1 | AC17: =(V17+IF(AA17-AB17=0,0,IFERROR(SUM(OFFSET(V17,1,0,AA17-AB17-1,1)),0))) -> 2.04 | AD17: =AC17/(INDEX(OFFSET($F$15,1,0,$B$10,1),MATCH(U17,OFFSET($B$15,1,0,$B$10,1),-1))) -> 0.02164456233
A18: 3 | B18: 2022-07-06 | C18: 93 | D18: 94.720001 | E18: 92.239998 | F18: 93.919998 | G18: 4294700 | H18: 93.919998 | I18: 1 | J18: 1 | K18: 93 | L18: 94.72 | M18: 92.24 | N18: 93.92 | O18: 4294700 | Q18: 1999-05-18 | R18: 2 | S18: 1 | T18: 6.356 | U18: 2021-11-18 | V18: 0.51 | W18: 86.910004 | X18: 202111 | Y18: 202011 | Z18: 2020-11-12 | AA18: 5 | AB18: 1 | AC18: 2.005 | AD18: 0.0230698413
A19: 4 | B19: 2022-07-05 | C19: 94.919998 | D19: 95.449997 | E19: 91.410004 | F19: 92.919998 | G19: 4938700 | H19: 92.919998 | I19: 1 | J19: 1 | K19: 94.92 | L19: 95.45 | M19: 91.41 | N19: 92.92 | O19: 4938700 | Q19: 1996-12-11 | R19: 2 | S19: 1 | T19: 12.712 | U19: 2021-08-19 | V19: 0.51 | W19: 83.349998 | X19: 202108 | Y19: 202008 | Z19: 2020-08-13 | AA19: 5 | AB19: 1 | AC19: 1.97 | AD19: 0.02363527351
A20: 5 | B20: 2022-07-01 | C20: 96.050003 | D20: 97.32 | E20: 95.339996 | F20: 97.019997 | G20: 4219900 | H20: 97.019997 | I20: 1 | J20: 1 | K20: 96.05 | L20: 97.32 | M20: 95.34 | N20: 97.02 | O20: 4219900 | Q20: 1984-06-11 | R20: 2 | S20: 1 | T20: 25.424 | U20: 2021-05-20 | V20: 0.51 | W20: 85.230003 | X20: 202105 | Y20: 202005 | Z20: 2020-05-14 | AA20: 5 | AB20: 1 | AC20: 1.935 | AD20: 0.0227032727
A21: 6 | B21: 2022-06-30 | C21: 92.970001 | D21: 96.269997 | E21: 92.709999 | F21: 96.110001 | G21: 6319100 | H21: 96.110001 | I21: 1 | J21: 1 | K21: 92.97 | L21: 96.27 | M21: 92.71 | N21: 96.11 | O21: 6319100 | Q21: 1976-05-19 | R21: 2 | S21: 1 | T21: 50.848 | U21: 2021-02-25 | V21: 0.475 | W21: 73.32 | X21: 202102 | Y21: 202002 | Z21: 2020-02-13 | AA21: 5 | AB21: 1 | AC21: 1.9 | AD21: 0.02591380251
A22: 7 | B22: 2022-06-29 | C22: 94.220001 | D22: 94.300003 | E22: 92.300003 | F22: 93.300003 | G22: 2504100 | H22: 93.300003 | I22: 1 | J22: 1 | K22: 94.22 | L22: 94.3 | M22: 92.3 | N22: 93.3 | O22: 2504100 | Q22: 1965-11-01 | R22: 3 | S22: 2 | T22: 76.272 | U22: 2020-11-12 | V22: 0.475 | W22: 63.990002 | X22: 202011 | Y22: 201911 | Z22: 2019-11-14 | AA22: 5 | AB22: 1 | AC22: 1.887555 | AD22: 0.02949765496
A23: 8 | B23: 2022-06-28 | C23: 95.43 | D23: 96.790001 | E23: 93.68 | F23: 93.779999 | G23: 3358800 | H23: 93.779999 | I23: 1 | J23: 1 | K23: 95.43 | L23: 96.79 | M23: 93.68 | N23: 93.78 | O23: 3358800 | U23: 2020-08-13 | V23: 0.475 | W23: 63.299999 | X23: 202008 | Y23: 201908 | Z23: 2019-08-15 | AA23: 5 | AB23: 1 | AC23: 1.87511 | AD23: 0.02962259131
A24: 9 | B24: 2022-06-27 | C24: 94.440002 | D24: 95.050003 | E24: 93.839996 | F24: 94.809998 | G24: 2942600 | H24: 94.809998 | I24: 1 | J24: 1 | K24: 94.44 | L24: 95.05 | M24: 93.84 | N24: 94.81 | O24: 2942600 | U24: 2020-05-14 | V24: 0.475 | W24: 53.860001 | X24: 202005 | Y24: 201905 | Z24: 2019-05-16 | AA24: 5 | AB24: 1 | AC24: 1.862665 | AD24: 0.03458345647
A25: 10 | B25: 2022-06-24 | C25: 92.5 | D25: 94.370003 | E25: 91.879997 | F25: 94.199997 | G25: 4782200 | H25: 94.199997 | I25: 1 | J25: 1 | K25: 92.5 | L25: 94.37 | M25: 91.88 | N25: 94.2 | O25: 4782200 | U25: 2020-02-13 | V25: 0.462555 | W25: 96.32473 | X25: 202002 | Y25: 201902 | Z25: 2019-02-14 | AA25: 5 | AB25: 1 | AC25: 1.85022 | AD25: 0.01920815143
A26: 11 | B26: 2022-06-23 | C26: 92.5 | D26: 93.32 | E26: 90.769997 | F26: 91.760002 | G26: 3310500 | H26: 91.760002 | I26: 1 | J26: 1 | K26: 92.5 | L26: 93.32 | M26: 90.77 | N26: 91.76 | O26: 3310500 | U26: 2019-11-14 | V26: 0.462555 | W26: 93.209564 | X26: 201911 | Y26: 201811 | Z26: 2018-11-15 | AA26: 5 | AB26: 1 | AC26: 1.85022 | AD26: 0.01985010894
A27: 12 | B27: 2022-06-22 | C27: 91.199997 | D27: 93.82 | E27: 91.080002 | F27: 92.559998 | G27: 4481500 | H27: 92.559998 | I27: 1 | J27: 1 | K27: 91.2 | L27: 93.82 | M27: 91.08 | N27: 92.56 | O27: 4481500 | U27: 2019-08-15 | V27: 0.462555 | W27: 77.872879 | X27: 201908 | Y27: 201808 | Z27: 2018-08-16 | AA27: 5 | AB27: 1 | AC27: 1.85022 | AD27: 0.02375949141
A28: 13 | B28: 2022-06-21 | C28: 90.849998 | D28: 93.349998 | E28: 90.110001 | F28: 92.919998 | G28: 5834200 | H28: 92.919998 | I28: 1 | J28: 1 | K28: 90.85 | L28: 93.35 | M28: 90.11 | N28: 92.92 | O28: 5834200 | U28: 2019-05-16 | V28: 0.462555 | W28: 85.116425 | X28: 201905 | Y28: 201805 | Z28: 2018-05-17 | AA28: 5 | AB28: 1 | AC28: 1.828194 | AD28: 0.02147874514
A29: 14 | B29: 2022-06-17 | C29: 89.459999 | D29: 90.010002 | E29: 87.610001 | F29: 88.879997 | G29: 7576500 | H29: 88.879997 | I29: 1 | J29: 1 | K29: 89.46 | L29: 90.01 | M29: 87.61 | N29: 88.88 | O29: 7576500 | U29: 2019-02-14 | V29: 0.462555 | W29: 78.118317 | X29: 201902 | Y29: 201802 | Z29: 2018-02-15 | AA29: 5 | AB29: 1 | AC29: 1.806168 | AD29: 0.02312092822
A30: 15 | B30: 2022-06-16 | C30: 91.050003 | D30: 91.18 | E30: 89.010002 | F30: 89.519997 | G30: 4517700 | H30: 89.519997 | I30: 1 | J30: 1 | K30: 91.05 | L30: 91.18 | M30: 89.01 | N30: 89.52 | O30: 4517700 | U30: 2018-11-15 | V30: 0.462555 | W30: 81.64254 | X30: 201811 | Y30: 201711 | Z30: 2017-11-16 | AA30: 5 | AB30: 1 | AC30: 1.784142 | AD30: 0.02185309276
A31: 16 | B31: 2022-06-15 | C31: 92.099998 | D31: 93.190002 | E31: 90.800003 | F31: 92.279999 | G31: 4139200 | H31: 92.279999 | I31: 1 | J31: 1 | K31: 92.1 | L31: 93.19 | M31: 90.8 | N31: 92.28 | O31: 4139200 | U31: 2018-08-16 | V31: 0.440529 | W31: 83.895531 | X31: 201808 | Y31: 201708 | Z31: 2017-08-16 | AA31: 5 | AB31: 1 | AC31: 1.762116 | AD31: 0.02100369327
A32: 17 | B32: 2022-06-14 | C32: 92.43 | D32: 92.709999 | E32: 90.730003 | F32: 91.32 | G32: 3977900 | H32: 91.32 | I32: 1 | J32: 1 | K32: 92.43 | L32: 92.71 | M32: 90.73 | N32: 91.32 | O32: 3977900 | U32: 2018-05-17 | V32: 0.440529 | W32: 78.420387 | X32: 201805 | Y32: 201705 | Z32: 2017-05-17 | AA32: 5 | AB32: 1 | AC32: 1.762116 | AD32: 0.0224701263
A33: 18 | B33: 2022-06-13 | C33: 93.489998 | D33: 93.529999 | E33: 91.379997 | F33: 91.949997 | G33: 5419200 | H33: 91.949997 | I33: 1 | J33: 1 | K33: 93.49 | L33: 93.53 | M33: 91.38 | N33: 91.95 | O33: 5419200 | U33: 2018-02-15 | V33: 0.440529 | W33: 81.812462 | X33: 201802 | Y33: 201702 | Z33: 2017-02-15 | AA33: 5 | AB33: 1 | AC33: 1.736943 | AD33: 0.02123078755
A34: 19 | B34: 2022-06-10 | C34: 95.82 | D34: 96.690002 | E34: 94.449997 | F34: 95.489998 | G34: 5615900 | H34: 95.489998 | I34: 1 | J34: 1 | K34: 95.82 | L34: 96.69 | M34: 94.45 | N34: 95.49 | O34: 5615900 | U34: 2017-11-16 | V34: 0.440529 | W34: 74.191315 | X34: 201711 | Y34: 201611 | Z34: 2016-11-16 | AA34: 5 | AB34: 1 | AC34: 1.71177 | AD34: 0.02307237714
A35: 20 | B35: 2022-06-09 | C35: 98.330002 | D35: 99.169998 | E35: 97.32 | F35: 97.379997 | G35: 4566900 | H35: 97.379997 | I35: 1 | J35: 1 | K35: 98.33 | L35: 99.17 | M35: 97.32 | N35: 97.38 | O35: 4566900 | U35: 2017-08-16 | V35: 0.440529 | W35: 74.260544 | X35: 201708 | Y35: 201608 | Z35: 2016-08-17 | AA35: 5 | AB35: 1 | AC35: 1.686597 | AD35: 0.02271188587
A36: 21 | B36: 2022-06-08 | C36: 99.730003 | D36: 100.330002 | E36: 98.959999 | F36: 99.230003 | G36: 6666600 | H36: 99.230003 | I36: 1 | J36: 1 | K36: 99.73 | L36: 100.33 | M36: 98.96 | N36: 99.23 | O36: 6666600 | U36: 2017-05-17 | V36: 0.415356 | W36: 75.254875 | X36: 201705 | Y36: 201605 | Z36: 2016-05-18 | AA36: 5 | AB36: 1 | AC36: 1.661424 | AD36: 0.022077294
A37: 22 | B37: 2022-06-07 | C37: 97.18 | D37: 100.68 | E37: 96.660004 | F37: 100.510002 | G37: 5634600 | H37: 100.510002 | I37: 1 | J37: 1 | K37: 97.18 | L37: 100.68 | M37: 96.66 | N37: 100.51 | O37: 5634600 | U37: 2017-02-15 | V37: 0.415356 | W37: 70.42794 | X37: 201702 | Y37: 201602 | Z37: 2016-02-17 | AA37: 5 | AB37: 1 | AC37: 1.661424 | AD37: 0.02359041028
A38: 23 | B38: 2022-06-06 | C38: 96.989998 | D38: 97.489998 | E38: 96.389999 | F38: 97.209999 | G38: 3080300 | H38: 97.209999 | I38: 1 | J38: 1 | K38: 96.99 | L38: 97.49 | M38: 96.39 | N38: 97.21 | O38: 3080300 | U38: 2016-11-16 | V38: 0.415356 | W38: 67.312775 | X38: 201611 | Y38: 201511 | Z38: 2015-11-10 | AA38: 5 | AB38: 1 | AC38: 1.648837 | AD38: 0.02449515712
A39: 24 | B39: 2022-06-03 | C39: 95.360001 | D39: 96.620003 | E39: 95.290001 | F39: 96.330002 | G39: 2836200 | H39: 96.330002 | I39: 1 | J39: 1 | K39: 95.36 | L39: 96.62 | M39: 95.29 | N39: 96.33 | O39: 2836200 | U39: 2016-08-17 | V39: 0.415356 | W39: 68.558846 | X39: 201608 | Y39: 201508 | Z39: 2015-08-12 | AA39: 5 | AB39: 1 | AC39: 1.63625 | AD39: 0.02386635854
A40: 25 | B40: 2022-06-02 | C40: 95.769997 | D40: 96.309998 | E40: 94.059998 | F40: 96.239998 | G40: 3460300 | H40: 96.239998 | I40: 1 | J40: 1 | K40: 95.77 | L40: 96.31 | M40: 94.06 | N40: 96.24 | O40: 3460300 | U40: 2016-05-18 | V40: 0.415356 | W40: 62.48584 | X40: 201605 | Y40: 201505 | Z40: 2015-05-13 | AA40: 5 | AB40: 1 | AC40: 1.623663 | AD40: 0.02598449505
A41: 26 | B41: 2022-06-01 | C41: 96.010002 | D41: 96.279999 | E41: 94.099998 | F41: 94.809998 | G41: 4245900 | H41: 94.809998 | I41: 1 | J41: 1 | K41: 96.01 | L41: 96.28 | M41: 94.1 | N41: 94.81 | O41: 4245900 | U41: 2016-02-17 | V41: 0.402769 | W41: 55.456261 | X41: 201602 | Y41: 201502 | Z41: 2015-02-11 | AA41: 5 | AB41: 1 | AC41: 1.611076 | AD41: 0.02905129143
A42: 27 | B42: 2022-05-31 | C42: 95.360001 | D42: 95.970001 | E42: 94.629997 | F42: 95.120003 | G42: 6478700 | H42: 95.120003 | I42: 1 | J42: 1 | K42: 95.36 | L42: 95.97 | M42: 94.63 | N42: 95.12 | O42: 6478700 | U42: 2015-11-10 | V42: 0.402769 | W42: 62.101952 | X42: 201511 | Y42: 201411 | Z42: 2014-11-12 | AA42: 5 | AB42: 1 | AC42: 1.611076 | AD42: 0.02594243736
A43: 28 | B43: 2022-05-27 | C43: 95.629997 | D43: 96.720001 | E43: 95.199997 | F43: 96.709999 | G43: 3394200 | H43: 96.709999 | I43: 1 | J43: 1 | K43: 95.63 | L43: 96.72 | M43: 95.2 | N43: 96.71 | O43: 3394200 | U43: 2015-08-12 | V43: 0.402769 | W43: 62.108246 | X43: 201508 | Y43: 201408 | Z43: 2014-08-13 | AA43: 5 | AB43: 1 | AC43: 1.57961 | AD43: 0.02543317678
A44: 29 | B44: 2022-05-26 | C44: 94.519997 | D44: 95.860001 | E44: 94.110001 | F44: 95 | G44: 5545800 | H44: 95 | I44: 1 | J44: 1 | K44: 94.52 | L44: 95.86 | M44: 94.11 | N44: 95 | O44: 5545800 | U44: 2015-05-13 | V44: 0.402769 | W44: 73.864067 | X44: 201505 | Y44: 201405 | Z44: 2014-05-14 | AA44: 5 | AB44: 1 | AC44: 1.548144 | AD44: 0.0209593658
A45: 30 | B45: 2022-05-25 | C45: 93.32 | D45: 94.099998 | E45: 92.589996 | F45: 93.559998 | G45: 3742000 | H45: 93.559998 | I45: 1 | J45: 1 | K45: 93.32 | L45: 94.1 | M45: 92.59 | N45: 93.56 | O45: 3742000 | U45: 2015-02-11 | V45: 0.402769 | W45: 74.694778 | X45: 201502 | Y45: 201402 | Z45: 2014-02-12 | AA45: 5 | AB45: 1 | AC45: 1.516678 | AD45: 0.02030500713
A46: 31 | B46: 2022-05-24 | C46: 91.199997 | D46: 93.419998 | E46: 90.470001 | F46: 93.209999 | G46: 5932000 | H46: 93.209999 | I46: 1 | J46: 1 | K46: 91.2 | L46: 93.42 | M46: 90.47 | N46: 93.21 | O46: 5932000 | U46: 2014-11-12 | V46: 0.371303 | W46: 68.055382 | X46: 201411 | Y46: 201311 | Z46: 2013-11-13 | AA46: 5 | AB46: 1 | AC46: 1.485212 | AD46: 0.02182357892
A47: 32 | B47: 2022-05-23 | C47: 90.599998 | D47: 92.019997 | E47: 90 | F47: 91.830002 | G47: 4701300 | H47: 91.830002 | I47: 1 | J47: 1 | K47: 90.6 | L47: 92.02 | M47: 90 | N47: 91.83 | O47: 4701300 | U47: 2014-08-13 | V47: 0.371303 | W47: 66.431717 | X47: 201408 | Y47: 201308 | Z47: 2013-08-14 | AA47: 5 | AB47: 1 | AC47: 1.485212 | AD47: 0.02235697144
A48: 33 | B48: 2022-05-20 | C48: 90.839996 | D48: 91.169998 | E48: 88.43 | F48: 90.080002 | G48: 6585500 | H48: 90.080002 | I48: 1 | J48: 1 | K48: 90.84 | L48: 91.17 | M48: 88.43 | N48: 90.08 | O48: 6585500 | U48: 2014-05-14 | V48: 0.371303 | W48: 73.832596 | X48: 201405 | Y48: 201305 | Z48: 2013-05-15 | AA48: 5 | AB48: 1 | AC48: 1.450599 | AD48: 0.01964713526
A49: 34 | B49: 2022-05-19 | C49: 91.379997 | D49: 92.459999 | E49: 89.540001 | F49: 90.25 | G49: 5234700 | H49: 90.25 | I49: 1 | J49: 1 | K49: 91.38 | L49: 92.46 | M49: 89.54 | N49: 90.25 | O49: 5234700 | U49: 2014-02-12 | V49: 0.371303 | W49: 70.975456 | X49: 201402 | Y49: 201302 | Z49: 2013-02-13 | AA49: 5 | AB49: 1 | AC49: 1.415986 | AD49: 0.01995036143
A50: 35 | B50: 2022-05-18 | C50: 94.330002 | D50: 95.199997 | E50: 92.279999 | F50: 92.610001 | G50: 5843100 | H50: 92.059998 | I50: 0.9940610842 | J50: 1 | K50: 93.77 | L50: 94.63 | M50: 91.73 | N50: 92.06 | O50: 5843100 | U50: 2013-11-13 | V50: 0.371303 | W50: 67.627441 | X50: 201311 | Y50: 201211 | Z50: 2012-11-14 | AA50: 5 | AB50: 1 | AC50: 1.381373 | AD50: 0.02042622018
A51: 36 | B51: 2022-05-17 | C51: 94.330002 | D51: 95.139999 | E51: 93.5 | F51: 94.949997 | G51: 4447200 | H51: 94.386101 | I51: 0.9940611267 | J51: 1 | K51: 93.77 | L51: 94.57 | M51: 92.94 | N51: 94.39 | O51: 4447200 | U51: 2013-08-14 | V51: 0.33669 | W51: 66.117058 | X51: 201308 | Y51: 201208 | Z51: 2012-08-15 | AA51: 5 | AB51: 1 | AC51: 1.34676 | AD51: 0.02036932738
A52: 37 | B52: 2022-05-16 | C52: 91.849998 | D52: 93.540001 | E52: 91.809998 | F52: 92.480003 | G52: 5158500 | H52: 91.930779 | I52: 0.9940611594 | J52: 1 | K52: 91.3 | L52: 92.98 | M52: 91.26 | N52: 91.93 | O52: 5158500 | U52: 2013-05-15 | V52: 0.33669 | W52: 60.295784 | X52: 201305 | Y52: 201205 | Z52: 2012-05-16 | AA52: 5 | AB52: 1 | AC52: 1.34676 | AD52: 0.02233589002
A53: 38 | B53: 2022-05-13 | C53: 92.050003 | D53: 92.610001 | E53: 91.089996 | F53: 91.919998 | G53: 5465600 | H53: 91.374092 | I53: 0.9940610747 | J53: 1 | K53: 91.5 | L53: 92.06 | M53: 90.55 | N53: 91.37 | O53: 5465600 | U53: 2013-02-13 | V53: 0.33669 | W53: 56.324734 | X53: 201302 | Y53: 201202 | Z53: 2012-02-15 | AA53: 5 | AB53: 1 | AC53: 1.312147 | AD53: 0.02329610647
A54: 39 | B54: 2022-05-12 | C54: 90.849998 | D54: 92.470001 | E54: 89.940002 | F54: 91.480003 | G54: 6356200 | H54: 90.936714 | I54: 0.9940611174 | J54: 1 | K54: 90.31 | L54: 91.92 | M54: 89.41 | N54: 90.94 | O54: 6356200 | U54: 2012-11-14 | V54: 0.33669 | W54: 46.979233 | X54: 201211 | Y54: 201111 | Z54: 2011-11-16 | AA54: 5 | AB54: 1 | AC54: 1.277534 | AD54: 0.02719358998
A55: 40 | B55: 2022-05-11 | C55: 91.269997 | D55: 94.129997 | E55: 90.809998 | F55: 91 | G55: 6493900 | H55: 90.459564 | I55: 0.9940611429 | J55: 1 | K55: 90.73 | L55: 93.57 | M55: 90.27 | N55: 90.46 | O55: 6493900 | U55: 2012-08-15 | V55: 0.33669 | W55: 49.081184 | X55: 201208 | Y55: 201108 | Z55: 2011-08-17 | AA55: 5 | AB55: 1 | AC55: 1.242921 | AD55: 0.02532377785
A56: 41 | B56: 2022-05-10 | C56: 92.440002 | D56: 93.860001 | E56: 91.360001 | F56: 91.690002 | G56: 7526300 | H56: 91.145462 | I56: 0.9940610755 | J56: 1 | K56: 91.89 | L56: 93.3 | M56: 90.82 | N56: 91.15 | O56: 7526300 | U56: 2012-05-16 | V56: 0.302077 | W56: 47.0107 | X56: 201205 | Y56: 201105 | Z56: 2011-05-18 | AA56: 5 | AB56: 1 | AC56: 1.208308 | AD56: 0.02570282936
A57: 42 | B57: 2022-05-09 | C57: 94.529999 | D57: 94.790001 | E57: 91.25 | F57: 91.75 | G57: 6071900 | H57: 91.205109 | I57: 0.9940611335 | J57: 1 | K57: 93.97 | L57: 94.23 | M57: 90.71 | N57: 91.21 | O57: 6071900 | U57: 2012-02-15 | V57: 0.302077 | W57: 51.98238 | X57: 201202 | Y57: 201102 | Z57: 2011-02-16 | AA57: 5 | AB57: 1 | AC57: 1.208308 | AD57: 0.02324456864
A58: 43 | B58: 2022-05-06 | C58: 95.709999 | D58: 96.050003 | E58: 93.720001 | F58: 95.300003 | G58: 5295000 | H58: 94.734024 | I58: 0.994061081 | J58: 1 | K58: 95.14 | L58: 95.48 | M58: 93.16 | N58: 94.73 | O58: 5295000 | U58: 2011-11-16 | V58: 0.302077 | W58: 48.741348 | X58: 201111 | Y58: 201011 | Z58: 2010-11-17 | AA58: 5 | AB58: 1 | AC58: 1.173695 | AD58: 0.02408006853
A59: 44 | B59: 2022-05-05 | C59: 97.800003 | D59: 98.199997 | E59: 95.410004 | F59: 96.32 | G59: 5906500 | H59: 95.747963 | I59: 0.9940610777 | J59: 1 | K59: 97.22 | L59: 97.62 | M59: 94.84 | N59: 95.75 | O59: 5906500 | U59: 2011-08-17 | V59: 0.302077 | W59: 45.342983 | X59: 201108 | Y59: 201008 | Z59: 2010-08-18 | AA59: 5 | AB59: 1 | AC59: 1.139082 | AD59: 0.02512146146
A60: 45 | B60: 2022-05-04 | C60: 94.989998 | D60: 98.019997 | E60: 94.949997 | F60: 97.760002 | G60: 6160800 | H60: 97.179413 | I60: 0.9940610783 | J60: 1 | K60: 94.43 | L60: 97.44 | M60: 94.39 | N60: 97.18 | O60: 6160800 | U60: 2011-05-18 | V60: 0.302077 | W60: 54.845814 | X60: 201105 | Y60: 201005 | Z60: 2010-05-12 | AA60: 5 | AB60: 1 | AC60: 1.104469 | AD60: 0.02013770823
A61: 46 | B61: 2022-05-03 | C61: 95.18 | D61: 96.129997 | E61: 94.32 | F61: 95.400002 | G61: 5612200 | H61: 94.833435 | I61: 0.9940611427 | J61: 1 | K61: 94.61 | L61: 95.56 | M61: 93.76 | N61: 94.83 | O61: 5612200 | U61: 2011-02-16 | V61: 0.267464 | W61: 53.530521 | X61: 201102 | Y61: 201002 | Z61: 2010-02-17 | AA61: 5 | AB61: 1 | AC61: 1.069856 | AD61: 0.01998590673
A62: 47 | B62: 2022-05-02 | C62: 94.510002 | D62: 95.330002 | E62: 92.400002 | F62: 94.220001 | G62: 7870600 | H62: 93.660439 | I62: 0.9940611124 | J62: 1 | K62: 93.95 | L62: 94.76 | M62: 91.85 | N62: 93.66 | O62: 7870600 | U62: 2010-11-17 | V62: 0.267464 | W62: 46.343613 | X62: 201011 | Y62: 200911 | Z62: 2009-11-18 | AA62: 5 | AB62: 1 | AC62: 1.069856 | AD62: 0.02308529549
A63: 48 | B63: 2022-04-29 | C63: 98.470001 | D63: 98.889999 | E63: 94.610001 | F63: 94.910004 | G63: 5883000 | H63: 94.346344 | I63: 0.9940611108 | J63: 1 | K63: 97.89 | L63: 98.3 | M63: 94.05 | N63: 94.35 | O63: 5883000 | U63: 2010-08-18 | V63: 0.267464 | W63: 44.008812 | X63: 201008 | Y63: 200908 | Z63: 2009-08-19 | AA63: 5 | AB63: 1 | AC63: 1.044683 | AD63: 0.02373804137
A64: 49 | B64: 2022-04-28 | C64: 99 | D64: 99.260002 | E64: 96.900002 | F64: 98.080002 | G64: 6544200 | H64: 97.497513 | I64: 0.9940610829 | J64: 1 | K64: 98.41 | L64: 98.67 | M64: 96.32 | N64: 97.5 | O64: 6544200 | U64: 2010-05-12 | V64: 0.267464 | W64: 46.03524 | X64: 201005 | Y64: 200905 | Z64: 2009-05-13 | AA64: 5 | AB64: 1 | AC64: 1.01951 | AD64: 0.02214629488
A65: 50 | B65: 2022-04-27 | C65: 99.220001 | D65: 99.910004 | E65: 97.599998 | F65: 98.839996 | G65: 6632100 | H65: 98.252998 | I65: 0.9940611289 | J65: 1 | K65: 98.63 | L65: 99.32 | M65: 97.02 | N65: 98.25 | O65: 6632100 | U65: 2010-02-17 | V65: 0.267464 | W65: 42.385147 | X65: 201002 | Y65: 200902 | Z65: 2009-02-18 | AA65: 5 | AB65: 1 | AC65: 0.994337 | AD65: 0.02345956238
A66: 51 | B66: 2022-04-26 | C66: 96.900002 | D66: 100.949997 | E66: 96.779999 | F66: 99.190002 | G66: 7199200 | H66: 98.600922 | I66: 0.994061095 | J66: 1 | K66: 96.32 | L66: 100.35 | M66: 96.21 | N66: 98.6 | O66: 7199200 | U66: 2009-11-18 | V66: 0.242291 | W66: 43.303967 | X66: 200911 | Y66: 200811 | Z66: 2008-11-12 | AA66: 5 | AB66: 1 | AC66: 0.969164 | AD66: 0.02238048999
A67: 52 | B67: 2022-04-25 | C67: 99.849998 | D67: 99.919998 | E67: 97.57 | F67: 99.610001 | G67: 5612500 | H67: 99.018425 | I67: 0.9940610783 | J67: 1 | K67: 99.26 | L67: 99.33 | M67: 96.99 | N67: 99.02 | O67: 5612500 | U67: 2009-08-19 | V67: 0.242291 | W67: 35.24229 | X67: 200908 | Y67: 200808 | Z67: 2008-08-13 | AA67: 5 | AB67: 1 | AC67: 0.969164 | AD67: 0.02750002908
A68: 53 | B68: 2022-04-22 | C68: 101.449997 | D68: 102.559998 | E68: 100.370003 | F68: 100.489998 | G68: 4683300 | H68: 99.893196 | I68: 0.9940610806 | J68: 1 | K68: 100.85 | L68: 101.95 | M68: 99.77 | N68: 99.89 | O68: 4683300 | U68: 2009-05-13 | V68: 0.242291 | W68: 31.85022 | X68: 200905 | Y68: 200805 | Z68: 2008-05-14 | AA68: 5 | AB68: 1 | AC68: 0.928258 | AD68: 0.02914447687
A69: 54 | B69: 2022-04-21 | C69: 105.849998 | D69: 106.019997 | E69: 101.400002 | F69: 101.730003 | G69: 5795300 | H69: 101.125839 | I69: 0.9940611031 | J69: 1 | K69: 105.22 | L69: 105.39 | M69: 100.8 | N69: 101.13 | O69: 5795300 | U69: 2009-02-18 | V69: 0.242291 | W69: 28.2253 | X69: 200902 | Y69: 200802 | Z69: 2008-02-13 | AA69: 5 | AB69: 1 | AC69: 0.887352 | AD69: 0.03143817781
A70: 55 | B70: 2022-04-20 | C70: 105.68 | D70: 106.019997 | E70: 104.279999 | F70: 104.970001 | G70: 4232200 | H70: 104.346596 | I70: 0.9940611128 | J70: 1 | K70: 105.05 | L70: 105.39 | M70: 103.66 | N70: 104.35 | O70: 4232200 | U70: 2008-11-12 | V70: 0.242291 | W70: 30.843298 | X70: 200811 | Y70: 200711 | Z70: 2007-11-14 | AA70: 5 | AB70: 1 | AC70: 0.846446 | AD70: 0.02744343358
A71: 56 | B71: 2022-04-19 | C71: 104.440002 | D71: 105.660004 | E71: 104.160004 | F71: 104.550003 | G71: 4572800 | H71: 103.929092 | I71: 0.9940611097 | J71: 1 | K71: 103.82 | L71: 105.03 | M71: 103.54 | N71: 103.93 | O71: 4572800 | U71: 2008-08-13 | V71: 0.201385 | W71: 41.598492 | X71: 200808 | Y71: 200708 | Z71: 2007-08-15 | AA71: 5 | AB71: 1 | AC71: 0.80554 | AD71: 0.01936464428
A72: 57 | B72: 2022-04-18 | C72: 104.260002 | D72: 105.459999 | E72: 103.910004 | F72: 104.300003 | G72: 3873300 | H72: 103.68058 | I72: 0.9940611411 | J72: 1 | K72: 103.64 | L72: 104.83 | M72: 103.29 | N72: 103.68 | O72: 3873300 | U72: 2008-05-14 | V72: 0.201385 | W72: 47.30019 | X72: 200805 | Y72: 200705 | Z72: 2007-05-16 | AA72: 5 | AB72: 1 | AC72: 0.80554 | AD72: 0.01703037557
A73: 58 | B73: 2022-04-14 | C73: 103.889999 | D73: 104.980003 | E73: 103.669998 | F73: 104.269997 | G73: 4027400 | H73: 103.650749 | I73: 0.9940611104 | J73: 1 | K73: 103.27 | L73: 104.36 | M73: 103.05 | N73: 103.65 | O73: 4027400 | U73: 2008-02-13 | V73: 0.201385 | W73: 46.268093 | X73: 200802 | Y73: 200702 | Z73: 2007-02-14 | AA73: 5 | AB73: 1 | AC73: 0.770927 | AD73: 0.01666217365
A74: 59 | B74: 2022-04-13 | C74: 103.32 | D74: 104.449997 | E74: 102.639999 | F74: 103.370003 | G74: 5351900 | H74: 102.756104 | I74: 0.9940611494 | J74: 1 | K74: 102.71 | L74: 103.83 | M74: 102.03 | N74: 102.76 | O74: 5351900 | U74: 2007-11-14 | V74: 0.201385 | W74: 47.149151 | X74: 200711 | Y74: 200611 | Z74: 2006-11-15 | AA74: 5 | AB74: 1 | AC74: 0.736314 | AD74: 0.01561669689
A75: 60 | B75: 2022-04-12 | C75: 102.18 | D75: 103.980003 | E75: 102.07 | F75: 102.599998 | G75: 4839200 | H75: 101.990669 | I75: 0.9940611207 | J75: 1 | K75: 101.57 | L75: 103.36 | M75: 101.46 | N75: 101.99 | O75: 4839200 | U75: 2007-08-15 | V75: 0.201385 | W75: 45.078667 | X75: 200708 | Y75: 200608 | Z75: 2006-08-16 | AA75: 5 | AB75: 1 | AC75: 0.701701 | AD75: 0.01556614352
A76: 61 | B76: 2022-04-11 | C76: 100.639999 | D76: 102.949997 | E76: 100.639999 | F76: 102.110001 | G76: 5707600 | H76: 101.503578 | I76: 0.9940610812 | J76: 1 | K76: 100.04 | L76: 102.34 | M76: 100.04 | N76: 101.5 | O76: 5707600 | U76: 2007-05-16 | V76: 0.166772 | W76: 43.096287 | X76: 200705 | Y76: 200605 | Z76: 2006-05-17 | AA76: 5 | AB76: 1 | AC76: 0.667088 | AD76: 0.01547901331
A77: 62 | B77: 2022-04-08 | C77: 101.980003 | D77: 102.739998 | E77: 100.07 | F77: 100.400002 | G77: 4811400 | H77: 99.803734 | I77: 0.9940610758 | J77: 1 | K77: 101.37 | L77: 102.13 | M77: 99.48 | N77: 99.8 | O77: 4811400 | U77: 2007-02-14 | V77: 0.166772 | W77: 42.901196 | X77: 200702 | Y77: 200602 | Z77: 2006-02-15 | AA77: 5 | AB77: 1 | AC77: 0.667088 | AD77: 0.01554940333
A78: 63 | B78: 2022-04-07 | C78: 98.25 | D78: 101.269997 | E78: 97.900002 | F78: 100.980003 | G78: 6151500 | H78: 100.380295 | I78: 0.9940611212 | J78: 1 | K78: 97.67 | L78: 100.67 | M78: 97.32 | N78: 100.38 | O78: 6151500 | U78: 2006-11-15 | V78: 0.166772 | W78: 41.283825 | X78: 200611 | Y78: 200511 | Z78: 2005-11-16 | AA78: 5 | AB78: 1 | AC78: 0.638768 | AD78: 0.01547259732
A79: 64 | B79: 2022-04-06 | C79: 98.32 | D79: 99.279999 | E79: 98.129997 | F79: 98.459999 | G79: 5260800 | H79: 97.875259 | I79: 0.9940611415 | J79: 1 | K79: 97.74 | L79: 98.69 | M79: 97.55 | N79: 97.88 | O79: 5260800 | U79: 2006-08-16 | V79: 0.166772 | W79: 39.125237 | X79: 200608 | Y79: 200508 | Z79: 2005-08-17 | AA79: 5 | AB79: 1 | AC79: 0.610448 | AD79: 0.01560241028
A80: 65 | B80: 2022-04-05 | C80: 99.480003 | D80: 100.510002 | E80: 98.610001 | F80: 98.809998 | G80: 4217100 | H80: 98.223175 | I80: 0.9940610969 | J80: 1 | K80: 98.89 | L80: 99.91 | M80: 98.02 | N80: 98.22 | O80: 4217100 | U80: 2006-05-17 | V80: 0.166772 | W80: 40.119572 | X80: 200605 | Y80: 200505 | Z80: 2005-05-18 | AA80: 5 | AB80: 1 | AC80: 0.582128 | AD80: 0.01450982578
A81: 66 | B81: 2022-04-04 | C81: 100.120003 | D81: 100.400002 | E81: 98.559998 | F81: 99.300003 | G81: 3812300 | H81: 98.710274 | I81: =IF(F81=0,1,H81/F81) -> 0.9940611381 | J81: =INDEX(OFFSET($T$15,0,0,$S$13+1,1),MATCH(B81,OFFSET($Q$15,0,0,$S$13+1,1),-1)) -> 1 | K81: =ROUND($I81*C81,2) -> 99.53 | L81: =ROUND($I81*D81,2) -> 99.8 | M81: =ROUND($I81*E81,2) -> 97.97 | N81: =ROUND($I81*F81,2) -> 98.71 | O81: =G81*J81 -> 3812300 | U81: 2006-02-15 | V81: 0.138452 | W81: =(INDEX(OFFSET($F$15,1,0,$B$10,1),MATCH(U81,OFFSET($B$15,1,0,$B$10,1),-1))) -> 36.582756 | X81: =YEAR(U81)&RIGHT("0"&MONTH(U81),2) -> 200602 | Y81: =YEAR(U81)-1&RIGHT("0"&MONTH(U81),2) -> 200502 | Z81: =OFFSET(U80,AA81,0,1,1) -> 2005-02-16 | AA81: =MATCH(Y81,OFFSET($X$15,A81,0,$V$14+1-A81,1),-1) -> 5 | AB81: =IF(OR(AND(YEAR(U81)=YEAR(Z81),MONTH(U81)=MONTH(Z81)),MONTH(U81)=MONTH(Z81)),1,0) -> 1 | AC81: =(V81+IF(AA81-AB81=0,0,IFERROR(SUM(OFFSET(V81,1,0,AA81-AB81-1,1)),0))) -> 0.553808 | AD81: =AC81/(INDEX(OFFSET($F$15,1,0,$B$10,1),MATCH(U81,OFFSET($B$15,1,0,$B$10,1),-1))) -> 0.01513849859
A82: 67 | B82: 2022-04-01 | C82: 99.760002 | D82: 100.449997 | E82: 98.980003 | F82: 100.169998 | G82: 3608600 | H82: 99.575096 | I82: 0.9940610761 | J82: 1 | K82: 99.17 | L82: 99.85 | M82: 98.39 | N82: 99.58 | O82: 3608600 | U82: 2005-11-16 | V82: 0.138452 | W82: 33.713028 | X82: 200511 | Y82: 200411 | Z82: 2004-11-17 | AA82: 5 | AB82: 1 | AC82: 0.553808 | AD82: 0.01642712129
A83: 68 | B83: 2022-03-31 | C83: 99.279999 | D83: 100.910004 | E83: 99 | F83: 99.07 | G83: 5505600 | H83: 98.481636 | I83: 0.9940611285 | J83: 1 | K83: 98.69 | L83: 100.31 | M83: 98.41 | N83: 98.48 | O83: 5505600 | U83: 2005-08-17 | V83: 0.138452 | W83: 32.48584 | X83: 200508 | Y83: 200408 | Z83: 2004-08-18 | AA83: 5 | AB83: 1 | AC83: 0.525488 | AD83: 0.01617590926
A84: 69 | B84: 2022-03-30 | C84: 101.629997 | D84: 102.379997 | E84: 99.760002 | F84: 100.830002 | G84: 5168100 | H84: 100.231186 | I84: 0.9940611327 | J84: 1 | K84: 101.03 | L84: 101.77 | M84: 99.17 | N84: 100.23 | O84: 5168100 | U84: 2005-05-18 | V84: 0.138452 | W84: 33.275646 | X84: 200505 | Y84: 200405 | Z84: 2004-05-19 | AA84: 5 | AB84: 1 | AC84: 0.497168 | AD84: 0.01494089702
A85: 70 | B85: 2022-03-29 | C85: 100.849998 | D85: 101.400002 | E85: 99.370003 | F85: 101.080002 | G85: 5038200 | H85: 100.479698 | I85: 0.9940611002 | J85: 1 | K85: 100.25 | L85: 100.8 | M85: 98.78 | N85: 100.48 | O85: 5038200 | U85: 2005-02-16 | V85: 0.138452 | W85: 32.363121 | X85: 200502 | Y85: 200402 | Z85: 2004-02-18 | AA85: 5 | AB85: 1 | AC85: 0.468848 | AD85: 0.0144871071
A86: 71 | B86: 2022-03-28 | C86: 101.669998 | D86: 102.160004 | E86: 100.919998 | F86: 101.589996 | G86: 4053300 | H86: 100.986664 | I86: 0.9940611081 | J86: 1 | K86: 101.07 | L86: 101.55 | M86: 100.32 | N86: 100.99 | O86: 4053300 | U86: 2004-11-17 | V86: 0.110132 | W86: 30.63562 | X86: 200411 | Y86: 200311 | Z86: 2003-11-12 | AA86: 5 | AB86: 1 | AC86: 0.440528 | AD86: 0.01437960126
A87: 72 | B87: 2022-03-25 | C87: 102 | D87: 102.970001 | E87: 101.919998 | F87: 102.43 | G87: 3521400 | H87: 101.821678 | I87: 0.9940610954 | J87: 1 | K87: 101.39 | L87: 102.36 | M87: 101.31 | N87: 101.82 | O87: 3521400 | U87: 2004-08-18 | V87: 0.110132 | W87: 29.232222 | X87: 200408 | Y87: 200308 | Z87: 2003-08-20 | AA87: 5 | AB87: 1 | AC87: 0.440528 | AD87: 0.01506994576
A88: 73 | B88: 2022-03-24 | C88: 101.660004 | D88: 102.199997 | E88: 101.129997 | F88: 101.709999 | G88: 3894600 | H88: 101.105957 | I88: 0.9940611345 | J88: 1 | K88: 101.06 | L88: 101.59 | M88: 100.53 | N88: 101.11 | O88: 3894600 | U88: 2004-05-19 | V88: 0.110132 | W88: 25.786657 | X88: 200405 | Y88: 200305 | Z88: 2003-05-14 | AA88: 5 | AB88: 1 | AC88: 0.415355 | AD88: 0.01610736126
A89: 74 | B89: 2022-03-23 | C89: 101.160004 | D89: 102.480003 | E89: 101.110001 | F89: 101.230003 | G89: 4471800 | H89: 100.628807 | I89: 0.9940610888 | J89: 1 | K89: 100.56 | L89: 101.87 | M89: 100.51 | N89: 100.63 | O89: 4471800 | U89: 2004-02-18 | V89: 0.110132 | W89: 30.63562 | X89: 200402 | Y89: 200302 | Z89: 2003-02-12 | AA89: 5 | AB89: 1 | AC89: 0.390182 | AD89: 0.01273622013
A90: 75 | B90: 2022-03-22 | C90: 99.800003 | D90: 101.629997 | E90: 98.910004 | F90: 101.379997 | G90: 6048300 | H90: 100.777916 | I90: 0.994061146 | J90: 1 | K90: 99.21 | L90: 101.03 | M90: 98.32 | N90: 100.78 | O90: 6048300 | U90: 2003-11-12 | V90: 0.110132 | W90: 27.123978 | X90: 200311 | Y90: 200211 | Z90: 2002-11-13 | AA90: 5 | AB90: 1 | AC90: 0.357143 | AD90: 0.01316705831
A91: 76 | B91: 2022-03-21 | C91: 97.839996 | D91: 100.82 | E91: 97.800003 | F91: 99.940002 | G91: 6673700 | H91: 99.346474 | I91: 0.9940611568 | J91: 1 | K91: 97.26 | L91: 100.22 | M91: 97.22 | N91: 99.35 | O91: 6673700 | U91: 2003-08-20 | V91: 0.084959 | W91: 24.424166 | X91: 200308 | Y91: 200208 | Z91: 2002-08-21 | AA91: 5 | AB91: 1 | AC91: 0.324104 | AD91: 0.01326980827
A92: 77 | B92: 2022-03-18 | C92: 98 | D92: 98.279999 | E92: 96.330002 | F92: 97.519997 | G92: 10438500 | H92: 96.940834 | I92: 0.9940610847 | J92: 1 | K92: 97.42 | L92: 97.7 | M92: 95.76 | N92: 96.94 | O92: 10438500 | U92: 2003-05-14 | V92: 0.084959 | W92: 21.211454 | X92: 200305 | Y92: 200205 | Z92: 2002-05-15 | AA92: 5 | AB92: 1 | AC92: 0.316238 | AD92: 0.0149088318
A93: 78 | B93: 2022-03-17 | C93: 96.599998 | D93: 97.790001 | E93: 95.830002 | F93: 97.75 | G93: 6537200 | H93: 97.169472 | I93: 0.9940610946 | J93: 1 | K93: 96.03 | L93: 97.21 | M93: 95.26 | N93: 97.17 | O93: 6537200 | U93: 2003-02-12 | V93: 0.077093 | W93: 19.03713 | X93: 200302 | Y93: 200202 | Z93: 2002-02-13 | AA93: 5 | AB93: 1 | AC93: 0.308372 | AD93: 0.01619845008
A94: 79 | B94: 2022-03-16 | C94: 97.040001 | D94: 97.639999 | E94: 94.07 | F94: 95.800003 | G94: 8813000 | H94: 95.231056 | I94: 0.9940610962 | J94: 1 | K94: 96.46 | L94: 97.06 | M94: 93.51 | N94: 95.23 | O94: 8813000 | U94: 2002-11-13 | V94: 0.077093 | W94: 19.524858 | X94: 200211 | Y94: 200111 | Z94: 2001-11-14 | AA94: 5 | AB94: 1 | AC94: 0.308372 | AD94: 0.01579381525
A95: 80 | B95: 2022-03-15 | C95: 97.879997 | D95: 98.099998 | E95: 96.57 | F95: 97.620003 | G95: 5417600 | H95: 97.040245 | I95: 0.9940610737 | J95: 1 | K95: 97.3 | L95: 97.52 | M95: 96 | N95: 97.04 | O95: 5417600 | U95: 2002-08-21 | V95: 0.077093 | W95: 19.276274 | X95: 200208 | Y95: 200108 | Z95: 2001-08-22 | AA95: 5 | AB95: 1 | AC95: 0.302078 | AD95: 0.01567097459
A96: 81 | B96: 2022-03-14 | C96: 97.169998 | D96: 97.660004 | E96: 95.410004 | F96: 97.040001 | G96: 5581700 | H96: 96.463692 | I96: 0.9940611192 | J96: 1 | K96: 96.59 | L96: 97.08 | M96: 94.84 | N96: 96.46 | O96: 5581700 | U96: 2002-05-15 | V96: 0.077093 | W96: 22.16803 | X96: 200205 | Y96: 200105 | Z96: 2001-05-16 | AA96: 5 | AB96: 1 | AC96: 0.295784 | AD96: 0.01334281846
A97: 82 | B97: 2022-03-11 | C97: 98.779999 | D97: 99.75 | E97: 96.800003 | F97: 96.919998 | G97: 4354300 | H97: 96.344398 | I97: 0.9940610812 | J97: 1 | K97: 98.19 | L97: 99.16 | M97: 96.23 | N97: 96.34 | O97: 4354300 | U97: 2002-02-13 | V97: 0.077093 | W97: 21.998112 | X97: 200202 | Y97: 200102 | Z97: 2001-02-14 | AA97: 5 | AB97: 1 | AC97: 0.28949 | AD97: 0.01315976571
A98: 83 | B98: 2022-03-10 | C98: 98.169998 | D98: 99.800003 | E98: 97.660004 | F98: 98.510002 | G98: 5118400 | H98: 97.924965 | I98: 0.9940611411 | J98: 1 | K98: 97.59 | L98: 99.21 | M98: 97.08 | N98: 97.92 | O98: 5118400 | U98: 2001-11-14 | V98: 0.070799 | W98: 18.307112 | X98: 200111 | Y98: 200011 | Z98: 2000-11-15 | AA98: 5 | AB98: 1 | AC98: 0.283196 | AD98: 0.01546917941
A99: 84 | B99: 2022-03-09 | C99: 95.25 | D99: 99.080002 | E99: 95.25 | F99: 98.519997 | G99: 7100500 | H99: 97.934898 | I99: 0.9940611143 | J99: 1 | K99: 94.68 | L99: 98.49 | M99: 94.68 | N99: 97.93 | O99: 7100500 | U99: 2001-08-22 | V99: 0.070799 | W99: 22.923222 | X99: 200108 | Y99: 200008 | Z99: 2000-08-23 | AA99: 5 | AB99: 1 | AC99: 0.283196 | AD99: 0.01235410973
A100: 85 | B100: 2022-03-08 | C100: 98.010002 | D100: 98.400002 | E100: 94.690002 | F100: 94.849998 | G100: 9410600 | H100: 94.286697 | I100: 0.9940611385 | J100: 1 | K100: 97.43 | L100: 97.82 | M100: 94.13 | N100: 94.29 | O100: 9410600 | U100: 2001-05-16 | V100: 0.070799 | W100: 26.085588 | X100: 200105 | Y100: 200005 | Z100: 2000-05-17 | AA100: 5 | AB100: 1 | AC100: 0.27533 | AD100: 0.01055487038
A101: 86 | B101: 2022-03-07 | C101: 101.290001 | D101: 103.099998 | E101: 98.120003 | F101: 98.190002 | G101: 12759000 | H101: 97.606865 | I101: 0.9940611367 | J101: 1 | K101: 100.69 | L101: 102.49 | M101: 97.54 | N101: 97.61 | O101: 12759000 | U101: 2001-02-14 | V101: 0.070799 | W101: 24.229074 | X101: 200102 | Y101: 200002 | Z101: 2000-02-16 | AA101: 5 | AB101: 1 | AC101: 0.267464 | AD101: 0.01103896913
A102: 87 | B102: 2022-03-04 | C102: 99.949997 | D102: 99.949997 | E102: 98.230003 | F102: 99.589996 | G102: 8627200 | H102: 98.998543 | I102: 0.9940611204 | J102: 1 | K102: 99.36 | L102: 99.36 | M102: 97.65 | N102: 99 | O102: 8627200 | U102: 2000-11-15 | V102: 0.070799 | W102: 21.102108 | X102: 200011 | Y102: 199911 | Z102: 1999-11-17 | AA102: 5 | AB102: 1 | AC102: 0.259598 | AD102: 0.01230199372
A103: 88 | B103: 2022-03-03 | C103: 101.059998 | D103: 101.349998 | E103: 98.629997 | F103: 99.830002 | G103: 8613500 | H103: 99.237122 | I103: 0.994061104 | J103: 1 | K103: 100.46 | L103: 100.75 | M103: 98.04 | N103: 99.24 | O103: 8613500 | U103: 2000-08-23 | V103: 0.062933 | W103: 20.167952 | X103: 200008 | Y103: 199908 | Z103: 1999-08-25 | AA103: 5 | AB103: 1 | AC103: 0.251732 | AD103: 0.01248178298
A104: 89 | B104: 2022-03-02 | C104: 102.199997 | D104: 102.510002 | E104: 99.779999 | F104: 100.739998 | G104: 12834600 | H104: 100.141716 | I104: 0.9940611275 | J104: 1 | K104: 101.59 | L104: 101.9 | M104: 99.19 | N104: 100.14 | O104: 12834600 | U104: 2000-05-17 | V104: 0.062933 | W104: 20.512115 | X104: 200005 | Y104: 199905 | Z104: 1999-05-05 | AA104: 5 | AB104: 1 | AC104: 0.245438 | AD104: 0.01196551404
A105: 90 | B105: 2022-03-01 | C105: 102.769997 | D105: 104.339996 | E105: 102.18 | F105: 102.730003 | G105: 12340900 | H105: 102.119904 | I105: 0.994061141 | J105: 1 | K105: 102.16 | L105: 103.72 | M105: 101.57 | N105: 102.12 | O105: 12340900 | U105: 2000-02-16 | V105: 0.062933 | W105: 16.401825 | X105: 200002 | Y105: 199902 | Z105: 1999-02-17 | AA105: 5 | AB105: 1 | AC105: 0.239144 | AD105: 0.01458032871
A106: 91 | B106: 2022-02-28 | C106: 99.019997 | D106: 102.959999 | E106: 98.400002 | F106: 102.699997 | G106: 16726100 | H106: 102.090073 | I106: 0.9940611099 | J106: 1 | K106: 98.43 | L106: 102.35 | M106: 97.82 | N106: 102.09 | O106: 16726100 | U106: 1999-11-17 | V106: 0.062933 | W106: 17.739143 | X106: 199911 | Y106: 199811 | Z106: 1998-11-18 | AA106: 5 | AB106: 1 | AC106: 0.23285 | AD106: 0.01312633874
A107: 92 | B107: 2022-02-25 | C107: 94.389999 | D107: 98.269997 | E107: 94.199997 | F107: 98.120003 | G107: 8692300 | H107: 97.537277 | I107: 0.9940610886 | J107: 1 | K107: 93.83 | L107: 97.69 | M107: 93.64 | N107: 97.54 | O107: 8692300 | U107: 1999-08-25 | V107: 0.056639 | W107: 22.026432 | X107: 199908 | Y107: 199808 | Z107: 1998-08-19 | AA107: 5 | AB107: 1 | AC107: 0.226556 | AD107: 0.01028564227
A108: 93 | B108: 2022-02-24 | C108: 93 | D108: 94.650002 | E108: 89.309998 | F108: 94.25 | G108: 9698500 | H108: 93.690262 | I108: 0.9940611353 | J108: 1 | K108: 92.45 | L108: 94.09 | M108: 88.78 | N108: 93.69 | O108: 9698500 | U108: 1999-05-05 | V108: 0.056639 | W108: 22.931089 | X108: 199905 | Y108: 199805 | Z108: 1998-05-20 | AA108: 5 | AB108: 1 | AC108: 0.226556 | AD108: 0.009879862225
A109: 94 | B109: 2022-02-23 | C109: 94.300003 | D109: 94.529999 | E109: 92.050003 | F109: 92.239998 | G109: 6903300 | H109: 91.185219 | I109: 0.9885648415 | J109: 1 | K109: 93.22 | L109: 93.45 | M109: 91 | N109: 91.19 | O109: 6903300 | U109: 1999-02-17 | V109: 0.056639 | W109: 19.155128 | X109: 199902 | Y109: 199802 | Z109: 1998-02-18 | AA109: 5 | AB109: 1 | AC109: 0.226556 | AD109: 0.01182743336
A110: 95 | B110: 2022-02-22 | C110: 93.620003 | D110: 94.739998 | E110: 92.790001 | F110: 93.540001 | G110: 5862200 | H110: 92.47036 | I110: 0.9885648815 | J110: 1 | K110: 92.55 | L110: 93.66 | M110: 91.73 | N110: 92.47 | O110: 5862200 | U110: 1998-11-18 | V110: 0.056639 | W110: 15.683999 | X110: 199811 | Y110: 199711 | Z110: 1997-11-19 | AA110: 5 | AB110: 1 | AC110: 0.21869 | AD110: 0.0139435102
A111: 96 | B111: 2022-02-18 | C111: 94.139999 | D111: 95.010002 | E111: 92.989998 | F111: 93.370003 | G111: 6544800 | H111: 92.302307 | I111: 0.9885648927 | J111: 1 | K111: 93.06 | L111: 93.92 | M111: 91.93 | N111: 92.3 | O111: 6544800 | U111: 1998-08-19 | V111: 0.056639 | W111: 13.953351 | X111: 199808 | Y111: 199708 | Z111: 1997-08-20 | AA111: 5 | AB111: 1 | AC111: 0.210824 | AD111: 0.01510920208
A112: 97 | B112: 2022-02-17 | C112: 93.970001 | D112: 95.169998 | E112: 93.440002 | F112: 94.360001 | G112: 5753300 | H112: 93.280983 | I112: 0.9885648793 | J112: 1 | K112: 92.9 | L112: 94.08 | M112: 92.37 | N112: 93.28 | O112: 5753300 | U112: 1998-05-20 | V112: 0.056639 | W112: 15.182505 | X112: 199805 | Y112: 199705 | Z112: 1997-05-21 | AA112: 5 | AB112: 1 | AC112: 0.202958 | AD112: 0.01336788626
A113: 98 | B113: 2022-02-16 | C113: 94.010002 | D113: 95.269997 | E113: 93.919998 | F113: 94.75 | G113: 4560900 | H113: 93.666519 | I113: 0.9885648443 | J113: 1 | K113: 92.93 | L113: 94.18 | M113: 92.85 | N113: 93.67 | O113: 4560900 | U113: 1998-02-18 | V113: 0.048773 | W113: 13.569855 | X113: 199802 | Y113: 199702 | Z113: 1997-02-19 | AA113: 5 | AB113: 1 | AC113: 0.195092 | AD113: 0.01437686696
A114: 99 | B114: 2022-02-15 | C114: 93.589996 | D114: 94.900002 | E114: 93.57 | F114: 94.040001 | G114: 4616000 | H114: 92.964645 | I114: 0.9885649087 | J114: 1 | K114: 92.52 | L114: 93.81 | M114: 92.5 | N114: 92.96 | O114: 4616000 | U114: 1997-11-19 | V114: 0.048773 | W114: 11.524544 | X114: 199711 | Y114: 199611 | Z114: 1996-11-20 | AA114: 5 | AB114: 1 | AC114: 0.195092 | AD114: 0.01692839213
A115: 100 | B115: 2022-02-14 | C115: 95.510002 | D115: 95.599998 | E115: 92.889999 | F115: 93.57 | G115: 6419200 | H115: 92.500023 | I115: 0.9885649567 | J115: 1 | K115: 94.42 | L115: 94.51 | M115: 91.83 | N115: 92.5 | O115: 6419200 | U115: 1997-08-20 | V115: 0.048773 | W115: 12.82253 | X115: 199708 | Y115: 199608 | Z115: 1996-08-21 | AA115: 5 | AB115: 1 | AC115: 0.189585 | AD115: 0.01478530368
A116: 101 | B116: 2022-02-11 | C116: 95.25 | D116: 96.050003 | E116: 94.080002 | F116: 95.269997 | G116: 6532900 | H116: 94.18058 | I116: 0.9885649519 | J116: 1 | K116: 94.16 | L116: 94.95 | M116: 93 | N116: 94.18 | O116: 6532900 | U116: 1997-05-21 | V116: 0.048773 | W116: 12.114537 | X116: 199705 | Y116: 199605 | Z116: 1996-05-22 | AA116: 5 | AB116: 1 | AC116: 0.184078 | AD116: 0.01519480274
A117: 102 | B117: 2022-02-10 | C117: 95.32 | D117: 96.959999 | E117: 94.550003 | F117: 95.059998 | G117: 6534300 | H117: 93.972977 | I117: 0.9885648956 | J117: 1 | K117: 94.23 | L117: 95.85 | M117: 93.47 | N117: 93.97 | O117: 6534300 | U117: 1997-02-19 | V117: 0.048773 | W117: 12.075205 | X117: 199702 | Y117: 199602 | Z117: 1996-02-21 | AA117: 5 | AB117: 1 | AC117: 0.178571 | AD117: 0.01478823755
A118: 103 | B118: 2022-02-09 | C118: 96.029999 | D118: 96.32 | E118: 95.480003 | F118: 96 | G118: 5394900 | H118: 94.902229 | I118: 0.9885648854 | J118: 1 | K118: 94.93 | L118: 95.22 | M118: 94.39 | N118: 94.9 | O118: 5394900 | U118: 1996-11-20 | V118: 0.043266 | W118: 10.492055 | X118: 199611 | Y118: 199511 | Z118: 1995-11-15 | AA118: 5 | AB118: 1 | AC118: 0.173064 | AD118: 0.01649476675
A119: 104 | B119: 2022-02-08 | C119: 93.830002 | D119: 95.32 | E119: 92.870003 | F119: 95.07 | G119: 8173200 | H119: 93.982864 | I119: 0.988564889 | J119: 1 | K119: 92.76 | L119: 94.23 | M119: 91.81 | N119: 93.98 | O119: 8173200 | U119: 1996-08-21 | V119: 0.043266 | W119: 8.899072 | X119: 199608 | Y119: 199508 | Z119: 1995-08-16 | AA119: 5 | AB119: 1 | AC119: 0.173064 | AD119: 0.01944742103
A120: 105 | B120: 2022-02-07 | C120: 93.459999 | D120: 94.730003 | E120: 93.010002 | F120: 94.029999 | G120: 4932700 | H120: 92.954758 | I120: 0.9885649153 | J120: 1 | K120: 92.39 | L120: 93.65 | M120: 91.95 | N120: 92.95 | O120: 4932700 | U120: 1996-05-22 | V120: 0.043266 | W120: 8.77124 | X120: 199605 | Y120: 199505 | Z120: 1995-05-15 | AA120: 5 | AB120: 1 | AC120: 0.169131 | AD120: 0.01928245037
A121: 106 | B121: 2022-02-04 | C121: 92.360001 | D121: 93.900002 | E121: 92.110001 | F121: 93.010002 | G121: 6321400 | H121: 91.946419 | I121: 0.9885648535 | J121: 1 | K121: 91.3 | L121: 92.83 | M121: 91.06 | N121: 91.95 | O121: 6321400 | U121: 1996-02-21 | V121: 0.043266 | W121: 8.269745 | X121: 199602 | Y121: 199502 | Z121: 1995-02-17 | AA121: 5 | AB121: 1 | AC121: 0.165198 | AD121: 0.01997619032
A122: 107 | B122: 2022-02-03 | C122: 92.150002 | D122: 92.989998 | E122: 91.620003 | F122: 92.809998 | G122: 7171700 | H122: 91.748703 | I122: 0.9885648635 | J122: 1 | K122: 91.1 | L122: 91.93 | M122: 90.57 | N122: 91.75 | O122: 7171700 | U122: 1995-11-15 | V122: 0.043266 | W122: 6.961926 | X122: 199511 | Y122: 199411 | Z122: 1994-11-14 | AA122: 5 | AB122: 1 | AC122: 0.161265 | AD122: 0.02316384862
A123: 108 | B123: 2022-02-02 | C123: 90.300003 | D123: 92.690002 | E123: 90.25 | F123: 92.540001 | G123: 5978600 | H123: 91.481796 | I123: 0.988564891 | J123: 1 | K123: 89.27 | L123: 91.63 | M123: 89.22 | N123: 91.48 | O123: 5978600 | U123: 1995-08-16 | V123: 0.039333 | W123: 6.450598 | X123: 199508 | Y123: 199408 | Z123: 1994-08-15 | AA123: 5 | AB123: 1 | AC123: 0.157332 | AD123: 0.02439029684
A124: 109 | B124: 2022-02-01 | C124: 90.099998 | D124: 90.940002 | E124: 89.269997 | F124: 90.730003 | G124: 6558400 | H124: 89.692497 | I124: 0.9885649072 | J124: 1 | K124: 89.07 | L124: 89.9 | M124: 88.25 | N124: 89.69 | O124: 6558400 | U124: 1995-05-15 | V124: 0.039333 | W124: 5.899937 | X124: 199505 | Y124: 199405 | Z124: 1994-05-16 | AA124: 5 | AB124: 1 | AC124: 0.157332 | AD124: 0.02666672542
A125: 110 | B125: 2022-01-31 | C125: 89.610001 | D125: 90.410004 | E125: 89.010002 | F125: 90.190002 | G125: 6419700 | H125: 89.158669 | I125: 0.9885648855 | J125: 1 | K125: 88.59 | L125: 89.38 | M125: 87.99 | N125: 89.16 | O125: 6419700 | U125: 1995-02-17 | V125: 0.039333 | W125: 5.123112 | X125: 199502 | Y125: 199402 | Z125: 1994-02-23 | AA125: 5 | AB125: 1 | AC125: 0.153399 | AD125: 0.02994254274
A126: 111 | B126: 2022-01-28 | C126: 88.970001 | D126: 90.370003 | E126: 87.480003 | F126: 90.330002 | G126: 5877600 | H126: 89.297073 | I126: 0.9885649399 | J126: 1 | K126: 87.95 | L126: 89.34 | M126: 86.48 | N126: 89.3 | O126: 5877600 | U126: 1994-11-14 | V126: 0.039333 | W126: 4.641284 | X126: 199411 | Y126: 199311 | Z126: 1993-11-15 | AA126: 5 | AB126: 1 | AC126: 0.149466 | AD126: 0.03220358849
A127: 112 | B127: 2022-01-27 | C127: 89.919998 | D127: 91.480003 | E127: 88.400002 | F127: 89.279999 | G127: 6998700 | H127: 88.259079 | I127: 0.988564964 | J127: 1 | K127: 88.89 | L127: 90.43 | M127: 87.39 | N127: 88.26 | O127: 6998700 | U127: 1994-08-15 | V127: 0.039333 | W127: 4.896948 | X127: 199408 | Y127: 199308 | Z127: 1993-08-16 | AA127: 5 | AB127: 1 | AC127: 0.145533 | AD127: 0.02971912301
A128: 113 | B128: 2022-01-26 | C128: 89.980003 | D128: 91.519997 | E128: 87.470001 | F128: 88.980003 | G128: 9829100 | H128: 87.962509 | I128: 0.9885649138 | J128: 1 | K128: 88.95 | L128: 90.47 | M128: 86.47 | N128: 87.96 | O128: 9829100 | U128: 1994-05-16 | V128: 0.0354 | W128: 5.02478 | X128: 199405 | Y128: 199305 | Z128: 1993-05-17 | AA128: 5 | AB128: 1 | AC128: 0.1416 | AD128: 0.02818033824
A129: 114 | B129: 2022-01-25 | C129: 85 | D129: 91.290001 | E129: 85 | F129: 90.309998 | G129: 10377400 | H129: 89.27729 | I129: 0.9885648541 | J129: 1 | K129: 84.03 | L129: 90.25 | M129: 84.03 | N129: 89.28 | O129: 10377400 | U129: 1994-02-23 | V129: 0.0354 | W129: 5.309943 | X129: 199402 | Y129: 199302 | Z129: 1993-02-22 | AA129: 5 | AB129: 1 | AC129: 0.1416 | AD129: 0.02666695292
A130: 115 | B130: 2022-01-24 | C130: 85.769997 | D130: 88.300003 | E130: 84.800003 | F130: 88.120003 | G130: 8849700 | H130: 87.112343 | I130: 0.9885649119 | J130: 1 | K130: 84.79 | L130: 87.29 | M130: 83.83 | N130: 87.11 | O130: 8849700 | U130: 1993-11-15 | V130: 0.0354 | W130: 5.02478 | X130: 199311 | Y130: 199211 | Z130: 1992-11-16 | AA130: 5 | AB130: 1 | AC130: 0.1416 | AD130: 0.02818033824
A131: 116 | B131: 2022-01-21 | C131: 88.519997 | D131: 88.809998 | E131: 86.82 | F131: 87.209999 | G131: 5846500 | H131: 86.212746 | I131: 0.9885649236 | J131: 1 | K131: 87.51 | L131: 87.79 | M131: 85.83 | N131: 86.21 | O131: 5846500 | U131: 1993-08-16 | V131: 0.0354 | W131: 4.621617 | X131: 199308 | Y131: 199208 | Z131: 1992-08-17 | AA131: 5 | AB131: 1 | AC131: 0.1416 | AD131: 0.03063862713
A132: 117 | B132: 2022-01-20 | C132: 89.959999 | D132: 90.830002 | E132: 88.25 | F132: 88.360001 | G132: 5354700 | H132: 87.349594 | I132: 0.9885648824 | J132: 1 | K132: 88.93 | L132: 89.79 | M132: 87.24 | N132: 87.35 | O132: 5354700 | U132: 1993-05-17 | V132: 0.0354 | W132: 4.08079 | X132: 199305 | Y132: 199205 | Z132: 1992-05-18 | AA132: 5 | AB132: 1 | AC132: 0.1416 | AD132: 0.03469916364
A133: 118 | B133: 2022-01-19 | C133: 90.730003 | D133: 91.339996 | E133: 89.580002 | F133: 89.699997 | G133: 4887800 | H133: 88.674271 | I133: 0.9885649272 | J133: 1 | K133: 89.69 | L133: 90.3 | M133: 88.56 | N133: 88.67 | O133: 4887800 | U133: 1993-02-22 | V133: 0.0354 | W133: 3.559629 | X133: 199302 | Y133: 199202 | Z133: 1992-02-24 | AA133: 5 | AB133: 1 | AC133: 0.1416 | AD133: 0.03977942645
A134: 119 | B134: 2022-01-18 | C134: 91.330002 | D134: 91.900002 | E134: 90.279999 | F134: 90.75 | G134: 6010200 | H134: 89.712265 | I134: 0.9885649036 | J134: 1 | K134: 90.29 | L134: 90.85 | M134: 89.25 | N134: 89.71 | O134: 6010200 | U134: 1992-11-16 | V134: 0.0354 | W134: 3.343298 | X134: 199211 | Y134: 199111 | Z134: 1991-11-18 | AA134: 5 | AB134: 1 | AC134: 0.108245 | AD134: 0.03237671305
A135: 120 | B135: 2022-01-14 | C135: 91.050003 | D135: 92.480003 | E135: 90.720001 | F135: 92.330002 | G135: 4987400 | H135: 91.2742 | I135: 0.9885649087 | J135: 1 | K135: 90.01 | L135: 91.42 | M135: 89.68 | N135: 91.27 | O135: 4987400 | U135: 1992-08-17 | V135: 0.0354 | W135: 4.395453 | X135: 199208 | Y135: 199108 | Z135: 1991-08-19 | AA135: 5 | AB135: 1 | AC135: 0.108245 | AD135: 0.0246265857
A136: 121 | B136: 2022-01-13 | C136: 91.379997 | D136: 92.459999 | E136: 90.959999 | F136: 91.559998 | G136: 5026300 | H136: 90.513 | I136: 0.9885648971 | J136: 1 | K136: 90.34 | L136: 91.4 | M136: 89.92 | N136: 90.51 | O136: 5026300 | U136: 1992-05-18 | V136: 0.0354 | W136: 4.159456 | X136: 199205 | Y136: 199105 | Z136: 1991-05-20 | AA136: 5 | AB136: 1 | AC136: 0.108245 | AD136: 0.02602383581
A137: 122 | B137: 2022-01-12 | C137: 91 | D137: 91.550003 | E137: 90.839996 | F137: 91.07 | G137: 4613100 | H137: 90.028603 | I137: 0.9885648732 | J137: 1 | K137: 89.96 | L137: 90.5 | M137: 89.8 | N137: 90.03 | O137: 4613100 | U137: 1992-02-24 | V137: 0.002045 | W137: 3.952958 | X137: 199202 | Y137: 199102 | Z137: 1991-02-19 | AA137: 5 | AB137: 1 | AC137: 0.108245 | AD137: 0.0273832912
A138: 123 | B138: 2022-01-11 | C138: 89.739998 | D138: 90.839996 | E138: 89.269997 | F138: 90.720001 | G138: 4529800 | H138: 89.68261 | I138: 0.9885649141 | J138: 1 | K138: 88.71 | L138: 89.8 | M138: 88.25 | N138: 89.68 | O138: 4529800 | U138: 1991-11-18 | V138: 0.0354 | W138: 3.815293 | X138: 199111 | Y138: 199011 | Z138: 1990-11-15 | AA138: 5 | AB138: 1 | AC138: 0.1416 | AD138: 0.03711379441
A139: 124 | B139: 2022-01-10 | C139: 90.68 | D139: 90.790001 | E139: 89.239998 | F139: 89.730003 | G139: 4884200 | H139: 88.703926 | I139: 0.9885648393 | J139: 1 | K139: 89.64 | L139: 89.75 | M139: 88.22 | N139: 88.7 | O139: 4884200 | U139: 1991-08-19 | V139: 0.0354 | W139: 3.451463 | X139: 199108 | Y139: 199008 | Z139: 1990-08-20 | AA139: 5 | AB139: 1 | AC139: 0.1416 | AD139: 0.04102608082
A140: 125 | B140: 2022-01-07 | C140: 90.260002 | D140: 91.370003 | E140: 90.089996 | F140: 90.440002 | G140: 4835300 | H140: 89.405815 | I140: 0.9885649383 | J140: 1 | K140: 89.23 | L140: 90.33 | M140: 89.06 | N140: 89.41 | O140: 4835300 | U140: 1991-05-20 | V140: 0.0354 | W140: 3.431797 | X140: 199105 | Y140: 199005 | Z140: 1990-05-21 | AA140: 5 | AB140: 1 | AC140: 0.1416 | AD140: 0.04126118182
A141: 126 | B141: 2022-01-06 | C141: 90.400002 | D141: 90.93 | E141: 89.610001 | F141: 90.059998 | G141: 5559000 | H141: 89.030151 | I141: 0.9885648787 | J141: 1 | K141: 89.37 | L141: 89.89 | M141: 88.59 | N141: 89.03 | O141: 5559000 | U141: 1991-02-19 | V141: 0.0354 | W141: 3.736627 | X141: 199102 | Y141: 199002 | Z141: 1990-02-16 | AA141: 5 | AB141: 1 | AC141: 0.1416 | AD141: 0.03789513912
A142: 127 | B142: 2022-01-05 | C142: 90.199997 | D142: 91.529999 | E142: 89.400002 | F142: 89.57 | G142: 6833600 | H142: 88.545753 | I142: 0.9885648431 | J142: 1 | K142: 89.17 | L142: 90.48 | M142: 88.38 | N142: 88.55 | O142: 6833600 | U142: 1990-11-15 | V142: 0.0354 | W142: 3.490796 | X142: 199011 | Y142: 198911 | Z142: 1989-11-16 | AA142: 5 | AB142: 1 | AC142: 0.1416 | AD142: 0.0405638141
A143: 128 | B143: 2022-01-04 | C143: 87.870003 | D143: 90.07 | E143: 87.699997 | F143: 90.019997 | G143: 6044200 | H143: 88.990608 | I143: 0.9885648852 | J143: 1 | K143: 86.87 | L143: 89.04 | M143: 86.7 | N143: 88.99 | O143: 6044200 | U143: 1990-08-20 | V143: 0.0354 | W143: 3.903792 | X143: 199008 | Y143: 198908 | Z143: 1989-08-21 | AA143: 5 | AB143: 1 | AC143: 0.137666 | AD143: 0.03526468623
A144: 129 | B144: 2022-01-03 | C144: 86.080002 | D144: 87.139999 | E144: 86.07 | F144: 86.970001 | G144: 5169200 | H144: 85.975494 | I144: 0.9885649421 | J144: 1 | K144: 85.1 | L144: 86.14 | M144: 85.09 | N144: 85.98 | O144: 5169200 | U144: 1990-05-21 | V144: 0.0354 | W144: 4.552785 | X144: 199005 | Y144: 198905 | Z144: 1989-05-22 | AA144: 5 | AB144: 1 | AC144: 0.133732 | AD144: 0.02937366908
A145: 130 | B145: 2021-12-31 | C145: 85.730003 | D145: 86.330002 | E145: 85.5 | F145: 86.059998 | G145: 2667700 | H145: 85.07589 | I145: =IF(F145=0,1,H145/F145) -> 0.9885648615 | J145: =INDEX(OFFSET($T$15,0,0,$S$13+1,1),MATCH(B145,OFFSET($Q$15,0,0,$S$13+1,1),-1)) -> 1 | K145: =ROUND($I145*C145,2) -> 84.75 | L145: =ROUND($I145*D145,2) -> 85.34 | M145: =ROUND($I145*E145,2) -> 84.52 | N145: =ROUND($I145*F145,2) -> 85.08 | O145: =G145*J145 -> 2667700 | U145: 1990-02-16 | V145: 0.0354 | W145: =(INDEX(OFFSET($F$15,1,0,$B$10,1),MATCH(U145,OFFSET($B$15,1,0,$B$10,1),-1))) -> 4.02179 | X145: =YEAR(U145)&RIGHT("0"&MONTH(U145),2) -> 199002 | Y145: =YEAR(U145)-1&RIGHT("0"&MONTH(U145),2) -> 198902 | Z145: =OFFSET(U144,AA145,0,1,1) -> 1989-02-13 | AA145: =MATCH(Y145,OFFSET($X$15,A145,0,$V$14+1-A145,1),-1) -> 5 | AB145: =IF(OR(AND(YEAR(U145)=YEAR(Z145),MONTH(U145)=MONTH(Z145)),MONTH(U145)=MONTH(Z145)),1,0) -> 1 | AC145: =(V145+IF(AA145-AB145=0,0,IFERROR(SUM(OFFSET(V145,1,0,AA145-AB145-1,1)),0))) -> 0.129798 | AD145: =AC145/(INDEX(OFFSET($F$15,1,0,$B$10,1),MATCH(U145,OFFSET($B$15,1,0,$B$10,1),-1))) -> 0.03227368908
A146: 131 | B146: 2021-12-30 | C146: 86.040001 | D146: 86.5 | E146: 85.699997 | F146: 85.800003 | G146: 2459400 | H146: 84.818871 | I146: 0.9885648955 | J146: 1 | K146: 85.06 | L146: 85.51 | M146: 84.72 | N146: 84.82 | O146: 2459400 | U146: 1989-11-16 | V146: 0.031466 | W146: 4.257788 | X146: 198911 | Y146: 198811 | Z146: 1988-11-14 | AA146: 5 | AB146: 1 | AC146: 0.125864 | AD146: 0.02956088936
A147: 132 | B147: 2021-12-29 | C147: 85.580002 | D147: 86.07 | E147: 85.220001 | F147: 85.889999 | G147: 2085300 | H147: 84.907837 | I147: 0.9885648852 | J147: 1 | K147: 84.6 | L147: 85.09 | M147: 84.25 | N147: 84.91 | O147: 2085300 | U147: 1989-08-21 | V147: 0.031466 | W147: 4.218455 | X147: 198908 | Y147: 198808 | Z147: 1988-08-22 | AA147: 5 | AB147: 1 | AC147: 0.125864 | AD147: 0.02983651598
A148: 133 | B148: 2021-12-28 | C148: 85.07 | D148: 86.349998 | E148: 84.779999 | F148: 86.019997 | G148: 3220100 | H148: 85.036346 | I148: 0.9885648566 | J148: 1 | K148: 84.1 | L148: 85.36 | M148: 83.81 | N148: 85.04 | O148: 3220100 | U148: 1989-05-22 | V148: 0.031466 | W148: 4.061123 | X148: 198905 | Y148: 198805 | Z148: 1988-05-16 | AA148: 5 | AB148: 1 | AC148: 0.125864 | AD148: 0.03099241269
A149: 134 | B149: 2021-12-27 | C149: 84.720001 | D149: 85.400002 | E149: 84.239998 | F149: 85.239998 | G149: 2743700 | H149: 84.265266 | I149: 0.9885648519 | J149: 1 | K149: 83.75 | L149: 84.42 | M149: 83.28 | N149: 84.27 | O149: 2743700 | U149: 1989-02-13 | V149: 0.031466 | W149: 3.421963 | X149: 198902 | Y149: 198802 | Z149: 1988-02-12 | AA149: 5 | AB149: 1 | AC149: 0.125864 | AD149: 0.03678122762
A150: 135 | B150: 2021-12-23 | C150: 84.559998 | D150: 85.199997 | E150: 84.519997 | F150: 84.900002 | G150: 2650000 | H150: 83.929161 | I150: 0.9885648884 | J150: 1 | K150: 83.59 | L150: 84.23 | M150: 83.55 | N150: 83.93 | O150: 2650000 | U150: 1988-11-14 | V150: 0.031466 | W150: 3.028634 | X150: 198811 | Y150: 198711 | Z150: 1987-11-16 | AA150: 5 | AB150: 1 | AC150: 0.121931 | AD150: 0.04025940407
A151: 136 | B151: 2021-12-22 | C151: 83.480003 | D151: 84.75 | E151: 83.43 | F151: 84.07 | G151: 3852800 | H151: 83.10865 | I151: 0.9885648864 | J151: 1 | K151: 82.53 | L151: 83.78 | M151: 82.48 | N151: 83.11 | O151: 3852800 | U151: 1988-08-22 | V151: 0.031466 | W151: 2.763137 | X151: 198808 | Y151: 198708 | Z151: 1987-08-17 | AA151: 5 | AB151: 1 | AC151: 0.117998 | AD151: 0.04270436102
A152: 137 | B152: 2021-12-21 | C152: 81.669998 | D152: 83.919998 | E152: 81.669998 | F152: 83.68 | G152: 7301900 | H152: 82.723114 | I152: 0.9885649379 | J152: 1 | K152: 80.74 | L152: 82.96 | M152: 80.74 | N152: 82.72 | O152: 7301900 | U152: 1988-05-16 | V152: 0.031466 | W152: 2.959802 | X152: 198805 | Y152: 198705 | Z152: 1987-05-18 | AA152: 5 | AB152: 1 | AC152: 0.114065 | AD152: 0.03853805086
A153: 138 | B153: 2021-12-20 | C153: 81.029999 | D153: 81.349998 | E153: 79.690002 | F153: 81.029999 | G153: 5828400 | H153: 80.103409 | I153: 0.9885648524 | J153: 1 | K153: 80.1 | L153: 80.42 | M153: 78.78 | N153: 80.1 | O153: 5828400 | U153: 1988-02-12 | V153: 0.027533 | W153: 2.940135 | X153: 198802 | Y153: 198702 | Z153: 1987-02-13 | AA153: 5 | AB153: 1 | AC153: 0.110132 | AD153: 0.03745814393
A154: 139 | B154: 2021-12-17 | C154: 82.699997 | D154: 83.019997 | E154: 81.169998 | F154: 82.279999 | G154: 8892600 | H154: 81.339119 | I154: 0.9885649002 | J154: 1 | K154: 81.75 | L154: 82.07 | M154: 80.24 | N154: 81.34 | O154: 8892600 | U154: 1987-11-16 | V154: 0.027533 | W154: 2.694305 | X154: 198711 | Y154: 198611 | Z154: 1986-11-17 | AA154: 5 | AB154: 1 | AC154: 0.110132 | AD154: 0.04087584739
A155: 140 | B155: 2021-12-16 | C155: 84.260002 | D155: 84.519997 | E155: 82.459999 | F155: 82.699997 | G155: 4546300 | H155: 81.754311 | I155: 0.9885648605 | J155: 1 | K155: 83.3 | L155: 83.55 | M155: 81.52 | N155: 81.75 | O155: 4546300 | U155: 1987-08-17 | V155: 0.027533 | W155: 4.66095 | X155: 198708 | Y155: 198608 | Z155: 1986-08-18 | AA155: 5 | AB155: 1 | AC155: 0.110132 | AD155: 0.02362865939
A156: 141 | B156: 2021-12-15 | C156: 83.459999 | D156: 83.720001 | E156: 82.07 | F156: 83.43 | G156: 5388300 | H156: 82.475967 | I156: 0.9885648688 | J156: 1 | K156: 82.51 | L156: 82.76 | M156: 81.13 | N156: 82.48 | O156: 5388300 | U156: 1987-05-18 | V156: 0.027533 | W156: 3.638295 | X156: 198705 | Y156: 198605 | Z156: 1986-05-19 | AA156: 5 | AB156: 1 | AC156: 0.110132 | AD156: 0.03027022273
A157: 142 | B157: 2021-12-14 | C157: 83.629997 | D157: 84.739998 | E157: 83.230003 | F157: 83.5 | G157: 6144700 | H157: 82.545166 | I157: 0.9885648623 | J157: 1 | K157: 82.67 | L157: 83.77 | M157: 82.28 | N157: 82.55 | O157: 6144700 | U157: 1987-02-13 | V157: 0.027533 | W157: 4.031624 | X157: 198702 | Y157: 198602 | Z157: 1986-02-14 | AA157: 5 | AB157: 1 | AC157: 0.110132 | AD157: 0.02731703155
A158: 143 | B158: 2021-12-13 | C158: 85.449997 | D158: 85.940002 | E158: 84.040001 | F158: 84.330002 | G158: 4173900 | H158: 83.365685 | I158: 0.9885649594 | J158: 1 | K158: 84.47 | L158: 84.96 | M158: 83.08 | N158: 83.37 | O158: 4173900 | U158: 1986-11-17 | V158: 0.027533 | W158: 3.569462 | X158: 198611 | Y158: 198511 | Z158: 1985-11-18 | AA158: 5 | AB158: 1 | AC158: 0.110132 | AD158: 0.03085394942
A159: 144 | B159: 2021-12-10 | C159: 86.910004 | D159: 86.980003 | E159: 85.699997 | F159: 86.160004 | G159: 3294400 | H159: 85.174759 | I159: 0.9885649379 | J159: 1 | K159: 85.92 | L159: 85.99 | M159: 84.72 | N159: 85.17 | O159: 3294400 | U159: 1986-08-18 | V159: 0.027533 | W159: 3.618628 | X159: 198608 | Y159: 198508 | Z159: 1985-08-19 | AA159: 5 | AB159: 1 | AC159: 0.110132 | AD159: 0.03043473935
A160: 145 | B160: 2021-12-09 | C160: 86 | D160: 86.57 | E160: 85.519997 | F160: 86.160004 | G160: 4241900 | H160: 85.174759 | I160: 0.9885649379 | J160: 1 | K160: 85.02 | L160: 85.58 | M160: 84.54 | N160: 85.17 | O160: 4241900 | U160: 1986-05-19 | V160: 0.027533 | W160: 3.71696 | X160: 198605 | Y160: 198505 | Z160: 1985-08-19 | AA160: 4 | AB160: 0 | AC160: 0.110132 | AD160: 0.02962958977
A161: 146 | B161: 2021-12-08 | C161: 85.839996 | D161: 87.650002 | E161: 85.800003 | F161: 86.5 | G161: 6749500 | H161: 85.510864 | I161: 0.9885649017 | J161: 1 | K161: 84.86 | L161: 86.65 | M161: 84.82 | N161: 85.51 | O161: 6749500 | U161: 1986-02-14 | V161: 0.027533 | W161: 4.169289 | X161: 198602 | Y161: 198502 | Z161: 1985-02-15 | AA161: 4 | AB161: 1 | AC161: 0.082599 | AD161: 0.01981129157
A162: 147 | B162: 2021-12-07 | C162: 84.43 | D162: 85.800003 | E162: 84.050003 | F162: 85.010002 | G162: 5102900 | H162: 84.037903 | I162: 0.9885648868 | J162: 1 | K162: 83.46 | L162: 84.82 | M162: 83.09 | N162: 84.04 | O162: 5102900 | U162: 1985-11-18 | V162: 0.027533 | W162: 3.244965 | X162: 198511 | Y162: 198411 | Z162: 1984-11-16 | AA162: 4 | AB162: 1 | AC162: 0.082599 | AD162: 0.02545451184
A163: 148 | B163: 2021-12-06 | C163: 82.25 | D163: 84.389999 | E163: 81.669998 | F163: 83.760002 | G163: 4964200 | H163: 82.8022 | I163: 0.9885649239 | J163: 1 | K163: 81.31 | L163: 83.42 | M163: 80.74 | N163: 82.8 | O163: 4964200 | U163: 1985-08-19 | V163: 0.027533 | W163: 3.254799 | X163: 198508 | Y163: 198408 | Z163: 1984-08-20 | AA163: 4 | AB163: 1 | AC163: 0.082599 | AD163: 0.02537760396
A164: 149 | B164: 2021-12-03 | C164: 81.610001 | D164: 82.120003 | E164: 80.120003 | F164: 81.110001 | G164: 6038900 | H164: 80.182495 | I164: 0.988564838 | J164: 1 | K164: 80.68 | L164: 81.18 | M164: 79.2 | N164: 80.18 | O164: 6038900 | U164: 1985-02-15 | V164: 0.027533 | W164: 3.461296 | X164: 198502 | Y164: 198402 | Z164: 1984-02-17 | AA164: 5 | AB164: 1 | AC164: 0.110132 | AD164: 0.0318181398
A165: 150 | B165: 2021-12-02 | C165: 80.050003 | D165: 82.230003 | E165: 79.510002 | F165: 81.660004 | G165: 6409100 | H165: 80.726219 | I165: 0.988564965 | J165: 1 | K165: 79.13 | L165: 81.29 | M165: 78.6 | N165: 80.73 | O165: 6409100 | U165: 1984-11-16 | V165: 0.027533 | W165: 2.80247 | X165: 198411 | Y165: 198311 | Z165: 1983-11-14 | AA165: 5 | AB165: 1 | AC165: 0.108165 | AD165: 0.03859630968
A166: 151 | B166: 2021-12-01 | C166: 82.139999 | D166: 82.139999 | E166: 79 | F166: 79.050003 | G166: 8499000 | H166: 78.146057 | I166: 0.9885648834 | J166: 1 | K166: 81.2 | L166: 81.2 | M166: 78.1 | N166: 78.15 | O166: 8499000 | U166: 1984-08-20 | V166: 0.027533 | W166: 3.097467 | X166: 198408 | Y166: 198308 | Z166: 1983-08-15 | AA166: 5 | AB166: 1 | AC166: 0.106198 | AD166: 0.03428543387
A167: 152 | B167: 2021-11-30 | C167: 82.120003 | D167: 82.5 | E167: 80.279999 | F167: 80.919998 | G167: 7966000 | H167: 79.994667 | I167: 0.9885648663 | J167: 1 | K167: 81.18 | L167: 81.56 | M167: 79.36 | N167: 79.99 | O167: 7966000 | U167: 1984-05-21 | V167: 0.027533 | W167: 2.561556 | X167: 198405 | Y167: 198305 | Z167: 1983-05-16 | AA167: 5 | AB167: 1 | AC167: 0.104231 | AD167: 0.04069050218
A168: 153 | B168: 2021-11-29 | C168: 84.089996 | D168: 84.449997 | E168: 82.519997 | F168: 82.940002 | G168: 5835000 | H168: 81.991577 | I168: 0.9885649267 | J168: 1 | K168: 83.13 | L168: 83.48 | M168: 81.58 | N168: 81.99 | O168: 5835000 | U168: 1984-02-17 | V168: 0.025566 | W168: 2.409141 | X168: 198402 | Y168: 198302 | Z168: 1983-02-18 | AA168: 5 | AB168: 1 | AC168: 0.102264 | AD168: 0.04244832494
A169: 154 | B169: 2021-11-26 | C169: 83.559998 | D169: 83.589996 | E169: 81.419998 | F169: 83 | G169: 7113600 | H169: 82.050888 | I169: 0.9885649157 | J169: 1 | K169: 82.6 | L169: 82.63 | M169: 80.49 | N169: 82.05 | O169: 7113600 | U169: 1983-11-14 | V169: 0.025566 | W169: 2.630389 | X169: 198311 | Y169: 198211 | Z169: 1982-11-15 | AA169: 5 | AB169: 1 | AC169: 0.100298 | AD169: 0.03813048184
A170: 155 | B170: 2021-11-24 | C170: 86.93 | D170: 87.480003 | E170: 86.68 | F170: 87.190002 | G170: 3464500 | H170: 86.192978 | I170: 0.9885649274 | J170: 1 | K170: 85.94 | L170: 86.48 | M170: 85.69 | N170: 86.19 | O170: 3464500 | U170: 1983-08-15 | V170: 0.025566 | W170: 2.694305 | X170: 198308 | Y170: 198208 | Z170: 1982-08-23 | AA170: 5 | AB170: 1 | AC170: 0.098332 | AD170: 0.03649623929
A171: 156 | B171: 2021-11-23 | C171: 87.32 | D171: 87.739998 | E171: 86.739998 | F171: 87.309998 | G171: 5950700 | H171: 86.3116 | I171: 0.9885649064 | J171: 1 | K171: 86.32 | L171: 86.74 | M171: 85.75 | N171: 86.31 | O171: 5950700 | U171: 1983-05-16 | V171: 0.025566 | W171: 2.78772 | X171: 198305 | Y171: 198205 | Z171: 1982-05-17 | AA171: 5 | AB171: 1 | AC171: 0.096366 | AD171: 0.03456803409
A172: 157 | B172: 2021-11-22 | C172: 85.809998 | D172: 87.639999 | E172: 85.68 | F172: 86.800003 | G172: 6819800 | H172: 85.807442 | I172: 0.9885649658 | J172: 1 | K172: 84.83 | L172: 86.64 | M172: 84.7 | N172: 85.81 | O172: 6819800 | U172: 1983-02-18 | V172: 0.0236 | W172: 2.551723 | X172: 198302 | Y172: 198202 | Z172: 1982-02-11 | AA172: 5 | AB172: 1 | AC172: 0.0944 | AD172: 0.03699461109
A173: 158 | B173: 2021-11-19 | C173: 86.25 | D173: 86.25 | E173: 85.059998 | F173: 85.43 | G173: 5478200 | H173: 84.453102 | I173: 0.9885649304 | J173: 1 | K173: 85.26 | L173: 85.26 | M173: 84.09 | N173: 84.45 | O173: 5478200 | U173: 1982-11-15 | V173: 0.0236 | W173: 2.217393 | X173: 198211 | Y173: 198111 | Z173: 1981-11-16 | AA173: 5 | AB173: 1 | AC173: 0.0944 | AD173: 0.04257251646
A174: 159 | B174: 2021-11-18 | C174: 87.190002 | D174: 87.790001 | E174: 86.339996 | F174: 86.910004 | G174: 4376300 | H174: 85.916176 | I174: 0.9885648607 | J174: 1 | K174: 86.19 | L174: 86.79 | M174: 85.35 | N174: 85.92 | O174: 4376300 | U174: 1982-08-23 | V174: 0.0236 | W174: 1.82898 | X174: 198208 | Y174: 198108 | Z174: 1981-08-24 | AA174: 5 | AB174: 1 | AC174: 0.0944 | AD174: 0.05161346762
A175: 160 | B175: 2021-11-17 | C175: 88.760002 | D175: 89.050003 | E175: 87.190002 | F175: 87.449997 | G175: 3910600 | H175: 85.945831 | I175: 0.9827997021 | J175: 1 | K175: 87.23 | L175: 87.52 | M175: 85.69 | N175: 85.95 | O175: 3910600 | U175: 1982-05-17 | V175: 0.0236 | W175: 1.5684 | X175: 198205 | Y175: 198105 | Z175: 1981-05-18 | AA175: 5 | AB175: 1 | AC175: 0.0944 | AD175: 0.06018872737
A176: 161 | B176: 2021-11-16 | C176: 89.269997 | D176: 89.82 | E176: 88.809998 | F176: 88.900002 | G176: 4746200 | H176: 87.370895 | I176: 0.9827996967 | J176: 1 | K176: 87.73 | L176: 88.28 | M176: 87.28 | N176: 87.37 | O176: 4746200 | U176: 1982-02-11 | V176: 0.0236 | W176: 1.391402 | X176: 198202 | Y176: 198102 | Z176: 1981-02-13 | AA176: 5 | AB176: 1 | AC176: 0.0944 | AD176: 0.06784523811
A177: 162 | B177: 2021-11-15 | C177: 89.629997 | D177: 89.629997 | E177: 88.839996 | F177: 89.349998 | G177: 3423100 | H177: 87.813156 | I177: 0.9827997534 | J177: 1 | K177: 88.09 | L177: 88.09 | M177: 87.31 | N177: 87.81 | O177: 3423100 | U177: 1981-11-16 | V177: 0.0236 | W177: 1.642149 | X177: 198111 | Y177: 198011 | Z177: 1980-11-17 | AA177: 5 | AB177: 1 | AC177: 0.0944 | AD177: 0.05748564838
A178: 163 | B178: 2021-11-12 | C178: 89.18 | D178: 89.25 | E178: 88.620003 | F178: 88.860001 | G178: 3273100 | H178: 87.331581 | I178: 0.9827996851 | J178: 1 | K178: 87.65 | L178: 87.71 | M178: 87.1 | N178: 87.33 | O178: 3273100 | U178: 1981-08-24 | V178: 0.0236 | W178: 1.922396 | X178: 198108 | Y178: 198008 | Z178: 1980-08-25 | AA178: 5 | AB178: 1 | AC178: 0.092433 | AD178: 0.04808218494
A179: 164 | B179: 2021-11-11 | C179: 90.080002 | D179: 90.419998 | E179: 88.690002 | F179: 89.050003 | G179: 4993600 | H179: 87.518318 | I179: 0.9827997198 | J179: 1 | K179: 88.53 | L179: 88.86 | M179: 87.16 | N179: 87.52 | O179: 4993600 | U179: 1981-05-18 | V179: 0.0236 | W179: 2.310809 | X179: 198105 | Y179: 198005 | Z179: 1980-05-19 | AA179: 5 | AB179: 1 | AC179: 0.090466 | AD179: 0.03914905992
A180: 165 | B180: 2021-11-10 | C180: 91.019997 | D180: 91.440002 | E180: 90.139999 | F180: 90.18 | G180: 3503200 | H180: 88.628876 | I180: 0.9827996895 | J180: 1 | K180: 89.45 | L180: 89.87 | M180: 88.59 | N180: 88.63 | O180: 3503200 | U180: 1981-02-13 | V180: 0.0236 | W180: 2.069895 | X180: 198102 | Y180: 198002 | Z180: 1980-02-15 | AA180: 5 | AB180: 1 | AC180: 0.088499 | AD180: 0.04275530884
A181: 166 | B181: 2021-11-09 | C181: 90.709999 | D181: 91.07 | E181: 89.970001 | F181: 90.989998 | G181: 3372900 | H181: 89.424942 | I181: 0.9827996919 | J181: 1 | K181: 89.15 | L181: 89.5 | M181: 88.42 | N181: 89.42 | O181: 3372900 | U181: 1980-11-17 | V181: 0.021633 | W181: 2.423891 | X181: 198011 | Y181: 197911 | Z181: 1979-11-16 | AA181: 5 | AB181: 1 | AC181: 0.086532 | AD181: 0.03569962511
A182: 167 | B182: 2021-11-08 | C182: 91.309998 | D182: 91.669998 | E182: 90.309998 | F182: 90.709999 | G182: 4469100 | H182: 89.149757 | I182: 0.9827996691 | J182: 1 | K182: 89.74 | L182: 90.09 | M182: 88.76 | N182: 89.15 | O182: 4469100 | U182: 1980-08-25 | V182: 0.021633 | W182: 2.005979 | X182: 198008 | Y182: 197908 | Z182: 1979-08-20 | AA182: 5 | AB182: 1 | AC182: 0.086532 | AD182: 0.04313704181
A183: 168 | B183: 2021-11-05 | C183: 89.769997 | D183: 91.230003 | E183: 89.059998 | F183: 91.18 | G183: 4330400 | H183: 89.611679 | I183: 0.9827997258 | J183: 1 | K183: 88.23 | L183: 89.66 | M183: 87.53 | N183: 89.61 | O183: 4330400 | U183: 1980-05-19 | V183: 0.021633 | W183: 1.607733 | X183: 198005 | Y183: 197905 | Z183: 1979-05-21 | AA183: 5 | AB183: 1 | AC183: 0.086532 | AD183: 0.05382236976
A184: 169 | B184: 2021-11-04 | C184: 88.339996 | D184: 89.089996 | E184: 87.760002 | F184: 88.059998 | G184: 3711700 | H184: 86.545341 | I184: 0.9827997157 | J184: 1 | K184: 86.82 | L184: 87.56 | M184: 86.25 | N184: 86.55 | O184: 3711700 | U184: 1980-02-15 | V184: 0.021633 | W184: 1.907646 | X184: 198002 | Y184: 197902 | Z184: 1979-02-16 | AA184: 5 | AB184: 1 | AC184: 0.086532 | AD184: 0.04536061722
A185: 170 | B185: 2021-11-03 | C185: 87.019997 | D185: 88.790001 | E185: 86.949997 | F185: 88.669998 | G185: 4148500 | H185: 87.144852 | I185: 0.9827997515 | J185: 1 | K185: 85.52 | L185: 87.26 | M185: 85.45 | N185: 87.14 | O185: 4148500 | U185: 1979-11-16 | V185: 0.021633 | W185: 1.450401 | X185: 197911 | Y185: 197811 | Z185: 1978-11-17 | AA185: 5 | AB185: 1 | AC185: 0.086532 | AD185: 0.0596607421
A186: 171 | B186: 2021-11-02 | C186: 88.529999 | D186: 88.809998 | E186: 87.199997 | F186: 87.800003 | G186: 4554100 | H186: 86.28981 | I186: 0.9827996247 | J186: 1 | K186: 87.01 | L186: 87.28 | M186: 85.7 | N186: 86.29 | O186: 4554100 | U186: 1979-08-20 | V186: 0.021633 | W186: 1.647066 | X186: 197908 | Y186: 197808 | Z186: 1978-08-21 | AA186: 5 | AB186: 1 | AC186: 0.084565 | AD186: 0.05134281201
A187: 172 | B187: 2021-11-01 | C187: 88.910004 | D187: 89.190002 | E187: 87.959999 | F187: 88.550003 | G187: 4588800 | H187: 87.026924 | I187: 0.982799786 | J187: 1 | K187: 87.38 | L187: 87.66 | M187: 86.45 | N187: 87.03 | O187: 4588800 | U187: 1979-05-21 | V187: 0.021633 | W187: 1.465151 | X187: 197905 | Y187: 197805 | Z187: 1978-05-19 | AA187: 5 | AB187: 1 | AC187: 0.082598 | AD187: 0.0563750767
A188: 173 | B188: 2021-10-29 | C188: 89.059998 | D188: 89.760002 | E188: 88.510002 | F188: 88.860001 | G188: 5202300 | H188: 87.331581 | I188: 0.9827996851 | J188: 1 | K188: 87.53 | L188: 88.22 | M188: 86.99 | N188: 87.33 | O188: 5202300 | U188: 1979-02-16 | V188: 0.021633 | W188: 1.445485 | X188: 197902 | Y188: 197802 | Z188: 1978-02-17 | AA188: 5 | AB188: 1 | AC188: 0.080631 | AD188: 0.05578127756
A189: 174 | B189: 2021-10-28 | C189: 89.360001 | D189: 89.809998 | E189: 88.739998 | F189: 89.190002 | G189: 4179900 | H189: 87.655907 | I189: 0.9827996977 | J189: 1 | K189: 87.82 | L189: 88.27 | M189: 87.21 | N189: 87.66 | O189: 4179900 | U189: 1978-11-17 | V189: 0.019666 | W189: 1.425818 | X189: 197811 | Y189: 197711 | Z189: 1977-11-17 | AA189: 5 | AB189: 1 | AC189: 0.078664 | AD189: 0.05517113685
A190: 175 | B190: 2021-10-27 | C190: 89.150002 | D190: 90.559998 | E190: 88.690002 | F190: 89.160004 | G190: 4273200 | H190: 87.626427 | I190: 0.9827997204 | J190: 1 | K190: 87.62 | L190: 89 | M190: 87.16 | N190: 87.63 | O190: 4273200 | U190: 1978-08-21 | V190: 0.019666 | W190: 1.946979 | X190: 197808 | Y190: 197708 | Z190: 1977-08-23 | AA190: 5 | AB190: 1 | AC190: 0.076698 | AD190: 0.03939333706
A191: 176 | B191: 2021-10-26 | C191: 88.290001 | D191: 91.190002 | E191: 87 | F191: 89.160004 | G191: 9122500 | H191: 87.626427 | I191: 0.9827997204 | J191: 1 | K191: 86.77 | L191: 89.62 | M191: 85.5 | N191: 87.63 | O191: 9122500 | U191: 1978-05-19 | V191: 0.019666 | W191: 1.710982 | X191: 197805 | Y191: 197705 | Z191: 1977-05-25 | AA191: 5 | AB191: 1 | AC191: 0.074732 | AD191: 0.04367784115
A192: 177 | B192: 2021-10-25 | C192: 91.669998 | D192: 91.980003 | E192: 90.699997 | F192: 91.300003 | G192: 5953900 | H192: 89.729614 | I192: 0.9827996829 | J192: 1 | K192: 90.09 | L192: 90.4 | M192: 89.14 | N192: 89.73 | O192: 5953900 | U192: 1978-02-17 | V192: 0.019666 | W192: 1.337319 | X192: 197802 | Y192: 197702 | Z192: 1977-02-17 | AA192: 5 | AB192: 1 | AC192: 0.072766 | AD192: 0.05441184938
A193: 178 | B193: 2021-10-22 | C193: 91.669998 | D193: 92.32 | E193: 91.18 | F193: 91.860001 | G193: 4160800 | H193: 90.279984 | I193: 0.982799728 | J193: 1 | K193: 90.09 | L193: 90.73 | M193: 89.61 | N193: 90.28 | O193: 4160800 | U193: 1977-11-17 | V193: 0.0177 | W193: 1.430735 | X193: 197711 | Y193: 197611 | Z193: 1976-11-05 | AA193: 5 | AB193: 1 | AC193: 0.0649 | AD193: 0.04536130031
A194: 179 | B194: 2021-10-21 | C194: 91.330002 | D194: 91.669998 | E194: 90.580002 | F194: 91.610001 | G194: 4274900 | H194: 90.034279 | I194: 0.9827996727 | J194: 1 | K194: 89.76 | L194: 90.09 | M194: 89.02 | N194: 90.03 | O194: 4274900 | U194: 1977-08-23 | V194: 0.0177 | W194: 1.386485 | X194: 197708 | Y194: 197608 | Z194: 1976-08-16 | AA194: 5 | AB194: 1 | AC194: 0.059 | AD194: 0.04255365186
A195: 180 | B195: 2021-10-20 | C195: 90.690002 | D195: 91.910004 | E195: 90.080002 | F195: 91.68 | G195: 3916600 | H195: 90.103073 | I195: 0.9827996619 | J195: 1 | K195: 89.13 | L195: 90.33 | M195: 88.53 | N195: 90.1 | O195: 3916600 | U195: 1977-05-25 | V195: 0.0177 | W195: 1.494651 | X195: 197705 | Y195: 197605 | Z195: 1976-05-26 | AA195: 5 | AB195: 1 | AC195: 0.0531 | AD195: 0.03552668817
A196: 181 | B196: 2021-10-19 | C196: 90.980003 | D196: 91.489998 | E196: 90.449997 | F196: 91.230003 | G196: 4195100 | H196: 89.660812 | I196: 0.9827996169 | J196: 1 | K196: 89.42 | L196: 89.92 | M196: 88.89 | N196: 89.66 | O196: 4195100 | U196: 1977-02-17 | V196: 0.0118 | W196: 1.391402 | X196: 197702 | Y196: 197602 | Z196: 1976-02-19 | AA196: 5 | AB196: 1 | AC196: 0.0472 | AD196: 0.03392261906
A197: 182 | B197: 2021-10-18 | C197: 90.099998 | D197: 91.120003 | E197: 89.32 | F197: 90.800003 | G197: 3898700 | H197: 89.238213 | I197: 0.9827996702 | J197: 1 | K197: 88.55 | L197: 89.55 | M197: 87.78 | N197: 89.24 | O197: 3898700 | U197: 1976-11-05 | V197: 0.0118 | W197: 1.347152 | X197: 197611 | Y197: 197511 | Z197: 1975-11-07 | AA197: 5 | AB197: 1 | AC197: 0.046708 | AD197: 0.03467166289
A198: 183 | B198: 2021-10-15 | C198: 89.849998 | D198: 91.290001 | E198: 89.669998 | F198: 90.919998 | G198: 4581600 | H198: 89.356148 | I198: 0.9827997137 | J198: 1 | K198: 88.3 | L198: 89.72 | M198: 88.13 | N198: 89.36 | O198: 4581600 | U198: 1976-08-16 | V198: 0.0118 | W198: 1.391402 | X198: 197608 | Y198: 197508 | Z198: 1975-08-11 | AA198: 5 | AB198: 1 | AC198: 0.044741 | AD198: 0.03215533685
A199: 184 | B199: 2021-10-14 | C199: 90.32 | D199: 90.470001 | E199: 89.110001 | F199: 89.169998 | G199: 4225300 | H199: 87.636246 | I199: 0.9827996856 | J199: 1 | K199: 88.77 | L199: 88.91 | M199: 87.58 | N199: 87.64 | O199: 4225300 | U199: 1976-05-26 | V199: 0.0118 | W199: 1.297986 | X199: 197605 | Y199: 197505 | Z199: 1975-05-19 | AA199: 5 | AB199: 1 | AC199: 0.042774 | AD199: 0.03295413048
A200: 185 | B200: 2021-10-13 | C200: 89.809998 | D200: 90 | E200: 88.32 | F200: 89.68 | G200: 3285500 | H200: 88.137482 | I200: 0.9827997547 | J200: 1 | K200: 88.27 | L200: 88.45 | M200: 86.8 | N200: 88.14 | O200: 3285500 | U200: 1976-02-19 | V200: 0.011308 | W200: 1.066905 | X200: 197602 | Y200: 197502 | Z200: 1975-02-18 | AA200: 5 | AB200: 1 | AC200: 0.040807 | AD200: 0.03824801646
... 4300 more rows

Sheet CalculationsAndCharts
A1: LraEma.xlsm
A2: =" " & InputPriceData!A1 -> Raytheon Technologies Corporation (RTX) -NYSE (Daily) | G2: ="Pairs Rotation(" &A18 &", " &#REF! & "), " & $A$2 & " :: " &#REF! -> 
A4: User Charting Controls | E4: Click to Shift Chart One Bar:
A5: Data Control | C5: TRUE
A6: =MIN(InputPriceData!$B$10) -> 15171 | B6: Available Input Data Rows | E6: Earliest: | F6: =OFFSET(InputPriceData!B15,CalculationsAndCharts!A6,0,1,1) -> 1962-04-02
A7: =MAX(A33:A56896) -> 2700 | B7: Available Calculation Rows | E7: Latest: | F7: =OFFSET(InputPriceData!B15,1,0,1,1) -> 2022-07-08
A8: =MIN(AvailableInputRows-DataPanRows,A7) -> 2700 | B8: Logically Available for Calc / Plot | E8: $ Change: | F8: =G33-G34 -> 1.18
A10: Historical Price Windowing Specifications | F10: Click to Shift
A11: 0 | B11: Input Data Offset (Pan) | F11: Points to Plot
A12: 250 | B12: Data Points to Plot (Zoom)
B13: First: | C13: =OFFSET(B32,A12,0,1,1) -> 2021-07-13
B14: ="Last: " & IF(OFFSET(InputPriceData!P15,1+A11,0,1,1)="","",TEXT(OFFSET(InputPriceData!P15,1+A11,0,1,1),"H:MM AM/PM")) -> Last: | C14: =B33 -> 2022-07-08
A15: User Controls | C15: Coefs | F15: Coefs
A16: ="First or only: LrAdjEMA ("&A$18&","&A$19&","&A$20&")" -> First or only: LrAdjEMA (50,50,5) | D16: ="Second: LrAdjEMA ["&D$18&","&D$19&","&D$20&"]" -> Second: LrAdjEMA [200,200,5] | V16: =U16/5 -> 0
A18: 50 | B18: Periods | D18: 200 | E18: Periods
A19: 50 | B19: Pds | D19: 200 | E19: Pds
A20: 5 | B20: Mltp | D20: 5 | E20: Mltp
B21: Mltp1: | C21: =2/(A18+1) -> 0.03921568627 | E21: Mltp1: | F21: =2/(D18+1) -> 0.009950248756
A23: 50 | B23: EMA | C23: =2/(A23+1) -> 0.03921568627
A25: Help! I would like to plot data
A26: From | B26: 2021-08-02 | C26: =OFFSET(InputPriceData!$A$15,MATCH(B26,OFFSET(InputPriceData!B15,1,0,InputPriceData!$B$10,1),0),0,1,1)-C27 -> 85 | E26: 250
A27: To | B27: 2021-11-30 | C27: =OFFSET(InputPriceData!$A$15,MATCH(B27,OFFSET(InputPriceData!$B$15,1,0,InputPriceData!$B$10,1),0),0,1,1)-1 -> 151 | E27: =$A$12-$E$26+1 -> 1
H28: Value @ Cursor => | I28: =OFFSET(A32,$E$27,0,1,1)&"(RR)" -> 1(RR) | J28: =OFFSET($B$32,$E$27,0,1,1) -> 2022-07-08 | K28: =TEXT(OFFSET(D32,$E$27,0,1,1),"#,##0.00")&"(o)" -> 94.29(o) | L28: =TEXT(OFFSET(E32,$E$27,0,1,1),"#,##0.00")&"(h)" -> 95.72(h) | M28: =TEXT(OFFSET(F32,$E$27,0,1,1),"#,##0.00")&"(l)" -> 93.94(l) | N28: =TEXT(OFFSET(G32,$E$27,0,1,1),"#,##0.00")&"(c)" -> 95.12(c) | O28: =TEXT(OFFSET(C32,$E$27,0,1,1),"#,##0.00,,""M""")&"(v)" -> 2.76M(v)
E29: Cursor ==> | AY29: Work Area For Chart Cursors
B30: =LogicallyAvailableRows -> 2700 | C30: <== Calculation Rel Row Limits ==> | I30: =$B$30-$A$19+1 -> 2651 | M30: =$I$30-$A$18+1 -> 2602 | S30: =$B$30-$A$23+1 -> 2651 | U30: =$B$30-$D$19+1 -> 2501 | Y30: =$U$30-$D$18+1 -> 2302
A31: Rel Row | B31: =InputPriceData!$A$1 -> Raytheon Technologies Corporation (RTX) -NYSE (Daily) | H31: ="Lineest("&$A$19&") ""X"" Value Stick" -> Lineest(50) "X" Value Stick | I31: Metastock LinearReg Equivalant | R31: ="LrAdjEMA ("&$A$18&","&$A$19&","&$A$20&")" -> LrAdjEMA (50,50,5) | S31: "Standard" | T31: ="Lineest("&$D$19&") ""X"" Value Stick" -> Lineest(200) "X" Value Stick | U31: Metastock LinearReg Equivalant | AD31: ="LrAdjEMA ["&$D$18&","&$D$19&","&$D$20&"]" -> LrAdjEMA [200,200,5] | AW31: Used To Color Vol Bars | BM31: LoopChart Cursor
B32: Date | C32: Volume | D32: Open | E32: High | F32: Low | G32: Close | I32: Slope | J32: Intercept | K32: ="LinReg("&A19&")" -> LinReg(50) | L32: Dist | M32: ="LLV(Dist, "&$A$18&")" -> LLV(Dist, 50) | N32: ="HHV(Dist, "&$A$18&")" -> HHV(Dist, 50) | O32: ST | P32: Mltp2 | Q32: Rate | S32: ="EMA("&$A$23&")" -> EMA(50) | U32: Slope | V32: Intercept | W32: ="LinReg["&$D$19&"]" -> LinReg[200] | X32: Dist | Y32: ="LLV(Dist, "&$D$18&")" -> LLV(Dist, 200) | Z32: ="HHV(Dist, "&$D$18&")" -> HHV(Dist, 200) | AA32: ST | AB32: Mltp2 | AC32: Rate | AW32: Up Vol | AX32: Dn Vol | AY32: Volume Cursor | AZ32: =MAX(OFFSET(C33,0,0,A12,1)) -> 23128700 | BA32: Price Chart Cursor | BC32: Indicator 01 Cursor | BE32: Indicator 02 Cursor | BG32: Indicator 03 Cursor | BI32: Indicator 04 Cursor | BK32: Price Chart2 Cursor | BM32: =OFFSET($B$32,$E$27,0,1,1) -> 2022-07-08
A33: 1 | B33: =IF($A33>$B$30,NA(),IF($A33>$A$8,"",OFFSET(InputPriceData!$B$15,$A33+$A$11,0,1,1))) -> 2022-07-08 | C33: =IF($A33>$B$30,NA(),IF($A33>$A$8,"",OFFSET(InputPriceData!$G$15,CalculationsAndCharts!$A33+$A$11,IF($C$5,8,0),1,1))) -> 2762700 | D33: =IF($A33>$B$30,NA(),IF($A33>$A$8,"",OFFSET(InputPriceData!$C$15,CalculationsAndCharts!$A33+$A$11,IF($C$5,8,0),1,1))) -> 94.29 | E33: =IF($A33>$B$30,NA(),IF($A33>$A$8,"",OFFSET(InputPriceData!$D$15,CalculationsAndCharts!$A33+$A$11,IF($C$5,8,0),1,1))) -> 95.72 | F33: =IF($A33>$B$30,NA(),IF($A33>$A$8,"",OFFSET(InputPriceData!$E$15,CalculationsAndCharts!$A33+$A$11,IF($C$5,8,0),1,1))) -> 93.94 | G33: =IF($A33>$B$30,NA(),IF($A33>$A$8,"",OFFSET(InputPriceData!$F$15,CalculationsAndCharts!$A33+$A$11,IF($C$5,8,0),1,1))) -> 95.12 | H33: =IF($A33>$A$19,NA(),$A$19+1-$A33) -> 50 | I33: =IF($A33>$I$30,NA(),LINEST(OFFSET($G33,0,0,$A$19,1),OFFSET($H$33,0,0,$A$19,1))) -> -0.00218727491 | J33: 94.03637551 | K33: =IF($A33>$I$30,NA(),I33*$H$33+J33) -> 93.92701176 | L33: =IF($A33>$I$30,NA(),ABS(K33-$G33)) -> 1.192988235 | M33: =IF($A33>$M$30,NA(),MIN(OFFSET($L33,0,0,$A$18,1))) -> 0.08207058824 | N33: =IF($A33>$M$30,NA(),MAX(OFFSET($L33,0,0,$A$18,1))) -> 7.884305882 | O33: =IF($A33>$M$30,NA(),(L33-M33)/(N33-M33)) -> 0.1423845354 | P33: =IF($A33>$M$30,NA(),O33*$A$20) -> 0.7119226768 | Q33: =IF($A33>$M$30,NA(),$C$21*(1+P33)) -> 0.06713422262 | R33: =IF($A33>$M$30,NA(),IF($A33=$M$30,$G33,R34+Q33*($G33-R34))) -> 94.66246144 | S33: =IF($A33>$S$30,NA(),IF($A33=$S$30,AVERAGE(OFFSET($G33,0,0,$A$23,1)),S34+$C$23*($G33-S34))) -> 94.57225448 | T33: =IF($A33>$D$19,NA(),$D$19+1-$A33) -> 200 | U33: =IF($A33>$U$30,NA(),LINEST(OFFSET($G33,0,0,$D$19,1),OFFSET($T$33,0,0,$D$19,1))) -> 0.06703403585 | V33: 84.9050794 | W33: =IF($A33>$U$30,NA(),U33*$T$33+V33) -> 98.31188657 | X33: =IF($A33>$U$30,NA(),ABS(W33-$G33)) -> 3.191886567 | Y33: =IF($A33>$Y$30,NA(),MIN(OFFSET($X33,0,0,$D$18,1))) -> 0.0339119403 | Z33: =IF($A33>$Y$30,NA(),MAX(OFFSET($X33,0,0,$D$18,1))) -> 12.81625075 | AA33: =IF($A33>$Y$30,NA(),(X33-Y33)/(Z33-Y33)) -> 0.2470576531 | AB33: =IF($A33>$Y$30,NA(),AA33*$D$20) -> 1.235288266 | AC33: =IF($A33>$Y$30,NA(),$F$21*(1+AB33)) -> 0.02224167428 | AD33: =IF($A33>$Y$30,NA(),IF($A33=$Y$30,$G33,AD34+AC33*($G33-AD34))) -> 94.25992286 | AW33: =IF(G33>=D33,C33,NA()) -> 2762700 | AX33: =IF(G33<D33,C33,NA()) ->  | AY33: =$E$27 -> 1 | AZ33: 0 | BA33: =$E$27 -> 1 | BB33: 77.88 | BC33: =$E$27 -> 1 | BE33: =$E$27 -> 1 | BG33: =$E$27 -> 1 | BI33: =$E$27 -> 1 | BK33: =$E$27 -> 1 | BL33: 0.0216991777 | BM33: =OFFSET(#REF!,$E$27,0,1,1) ->  | BN33: =OFFSET($H$32,$E$27,0,1,1) -> 50
A34: 2 | B34: =IF(A34>$B$30,NA(),IF($A34>$A$8,"",OFFSET(InputPriceData!$B$15,$A34+$A$11,0,1,1))) -> 2022-07-07 | C34: =IF(A34>$B$30,NA(),IF($A34>$A$8,"",OFFSET(InputPriceData!$G$15,CalculationsAndCharts!$A34+$A$11,IF($C$5,8,0),1,1))) -> 3212600 | D34: =IF(A34>$B$30,NA(),IF(A34>$A$8,"",OFFSET(InputPriceData!$C$15,CalculationsAndCharts!$A34+$A$11,IF($C$5,8,0),1,1))) -> 94.55 | E34: =IF(A34>$B$30,NA(),IF(A34>$A$8,"",OFFSET(InputPriceData!$D$15,CalculationsAndCharts!$A34+$A$11,IF($C$5,8,0),1,1))) -> 95 | F34: =IF(A34>$B$30,NA(),IF(A34>$A$8,"",OFFSET(InputPriceData!$E$15,CalculationsAndCharts!$A34+$A$11,IF($C$5,8,0),1,1))) -> 93.81 | G34: =IF(A34>$B$30,NA(),IF(A34>$A$8,"",OFFSET(InputPriceData!$F$15,CalculationsAndCharts!$A34+$A$11,IF($C$5,8,0),1,1))) -> 93.94 | H34: =IF($A34>$A$19,NA(),$A$19+1-$A34) -> 49 | I34: =IF($A34>$I$30,NA(),LINEST(OFFSET(G34,0,0,$A$19,1),OFFSET($H$33,0,0,$A$19,1))) -> -0.01584681873 | J34: 94.45429388 | K34: =IF($A34>$I$30,NA(),I34*$H$33+J34) -> 93.66195294 | L34: =IF($A34>$I$30,NA(),ABS(K34-$G34)) -> 0.2780470588 | M34: =IF($A34>$M$30,NA(),MIN(OFFSET($L34,0,0,$A$18,1))) -> 0.08207058824 | N34: =IF($A34>$M$30,NA(),MAX(OFFSET($L34,0,0,$A$18,1))) -> 7.884305882 | O34: =IF($A34>$M$30,NA(),(L34-M34)/(N34-M34)) -> 0.02511799032 | P34: =IF($A34>$M$30,NA(),O34*$A$20) -> 0.1255899516 | Q34: =IF($A34>$M$30,NA(),$C$21*(1+P34)) -> 0.04414078242 | R34: =IF($A34>$M$30,NA(),IF($A34=$M$30,$G34,R35+Q34*($G34-R35))) -> 94.62953442 | S34: =IF($A34>$S$30,NA(),IF($A34=$S$30,AVERAGE(OFFSET($G34,0,0,$A$23,1)),S35+$C$23*($G34-S35))) -> 94.54989752 | T34: =IF($A34>$D$19,NA(),$D$19+1-$A34) -> 199 | U34: =IF($A34>$U$30,NA(),LINEST(OFFSET($G34,0,0,$D$19,1),OFFSET($T$33,0,0,$D$19,1))) -> 0.06799657991 | V34: 84.74114372 | W34: =IF($A34>$U$30,NA(),U34*$T$33+V34) -> 98.3404597 | X34: =IF($A34>$U$30,NA(),ABS(W34-$G34)) -> 4.400459701 | Y34: =IF($A34>$Y$30,NA(),MIN(OFFSET($X34,0,0,$D$18,1))) -> 0.0339119403 | Z34: =IF($A34>$Y$30,NA(),MAX(OFFSET($X34,0,0,$D$18,1))) -> 12.81625075 | AA34: =IF($A34>$Y$30,NA(),(X34-Y34)/(Z34-Y34)) -> 0.3416078878 | AB34: =IF($A34>$Y$30,NA(),AA34*$D$20) -> 1.708039439 | AC34: =IF($A34>$Y$30,NA(),$F$21*(1+AB34)) -> 0.02694566606 | AD34: =IF($A34>$Y$30,NA(),IF($A34=$Y$30,$G34,AD35+AC34*($G34-AD35))) -> 94.24035815 | AX34: 3212600 | AY34: =$E$27 -> 1 | AZ34: =CEILING(AZ32,10^INT(LOG10(AZ32))/8) -> 23750000 | BA34: =$E$27 -> 1 | BB34: 105.39 | BC34: =$E$27 -> 1 | BD34: 0 | BE34: =$E$27 -> 1 | BF34: 0 | BG34: =$E$27 -> 1 | BH34: 0 | BI34: =$E$27 -> 1 | BJ34: 0 | BK34: =$E$27 -> 1 | BL34: 102.9045412
A35: 3 | B35: =IF(A35>$B$30,NA(),IF($A35>$A$8,"",OFFSET(InputPriceData!$B$15,$A35+$A$11,0,1,1))) -> 2022-07-06 | C35: =IF(A35>$B$30,NA(),IF($A35>$A$8,"",OFFSET(InputPriceData!$G$15,CalculationsAndCharts!$A35+$A$11,IF($C$5,8,0),1,1))) -> 4294700 | D35: =IF(A35>$B$30,NA(),IF(A35>$A$8,"",OFFSET(InputPriceData!$C$15,CalculationsAndCharts!$A35+$A$11,IF($C$5,8,0),1,1))) -> 93 | E35: =IF(A35>$B$30,NA(),IF(A35>$A$8,"",OFFSET(InputPriceData!$D$15,CalculationsAndCharts!$A35+$A$11,IF($C$5,8,0),1,1))) -> 94.72 | F35: =IF(A35>$B$30,NA(),IF(A35>$A$8,"",OFFSET(InputPriceData!$E$15,CalculationsAndCharts!$A35+$A$11,IF($C$5,8,0),1,1))) -> 92.24 | G35: =IF(A35>$B$30,NA(),IF(A35>$A$8,"",OFFSET(InputPriceData!$F$15,CalculationsAndCharts!$A35+$A$11,IF($C$5,8,0),1,1))) -> 93.92 | H35: 48 | I35: =IF($A35>$I$30,NA(),LINEST(OFFSET(G35,0,0,$A$19,1),OFFSET($H$33,0,0,$A$19,1))) -> -0.02727058824 | J35: 94.8472 | K35: 93.48367059 | L35: 0.4363294118 | M35: 0.08207058824 | N35: 7.884305882 | O35: 0.04540478596 | P35: 0.2270239298 | Q35: 0.04811858548 | R35: 94.66137654 | S35: 94.5747913 | T35: 198 | U35: =IF($A35>$U$30,NA(),LINEST(OFFSET($G35,0,0,$D$19,1),OFFSET($T$33,0,0,$D$19,1))) -> 0.06906759919 | V35: 84.57385628 | W35: 98.38737612 | X35: 4.467376119 | Y35: 0.0339119403 | Z35: 12.81625075 | AA35: 0.3468429562 | AB35: 1.734214781 | AC35: 0.02720611723 | AD35: 94.24867562 | AW35: 4294700
A36: 4 | B36: =IF(A36>$B$30,NA(),IF($A36>$A$8,"",OFFSET(InputPriceData!$B$15,$A36+$A$11,0,1,1))) -> 2022-07-05 | C36: =IF(A36>$B$30,NA(),IF($A36>$A$8,"",OFFSET(InputPriceData!$G$15,CalculationsAndCharts!$A36+$A$11,IF($C$5,8,0),1,1))) -> 4938700 | D36: =IF(A36>$B$30,NA(),IF(A36>$A$8,"",OFFSET(InputPriceData!$C$15,CalculationsAndCharts!$A36+$A$11,IF($C$5,8,0),1,1))) -> 94.92 | E36: =IF(A36>$B$30,NA(),IF(A36>$A$8,"",OFFSET(InputPriceData!$D$15,CalculationsAndCharts!$A36+$A$11,IF($C$5,8,0),1,1))) -> 95.45 | F36: =IF(A36>$B$30,NA(),IF(A36>$A$8,"",OFFSET(InputPriceData!$E$15,CalculationsAndCharts!$A36+$A$11,IF($C$5,8,0),1,1))) -> 91.41 | G36: =IF(A36>$B$30,NA(),IF(A36>$A$8,"",OFFSET(InputPriceData!$F$15,CalculationsAndCharts!$A36+$A$11,IF($C$5,8,0),1,1))) -> 92.92 | H36: 47 | I36: =IF($A36>$I$30,NA(),LINEST(OFFSET(G36,0,0,$A$19,1),OFFSET($H$33,0,0,$A$19,1))) -> -0.04020456182 | J36: 95.29641633 | K36: 93.28618824 | L36: 0.3661882353 | M36: 0.08207058824 | N36: 7.884305882 | O36: 0.03641490372 | P36: 0.1820745186 | Q36: 0.04635586348 | R36: 94.69885389 | S36: 94.60151748 | T36: 197 | U36: =IF($A36>$U$30,NA(),LINEST(OFFSET($G36,0,0,$D$19,1),OFFSET($T$33,0,0,$D$19,1))) -> 0.07013120078 | V36: 84.40716432 | W36: 98.43340448 | X36: 5.513404478 | Y36: 0.0339119403 | Z36: 12.81625075 | AA36: 0.4286768345 | AB36: 2.143384173 | AC36: 0.03127745445 | AD36: 94.25786769 | AX36: 4938700
A37: 5 | B37: =IF(A37>$B$30,NA(),IF($A37>$A$8,"",OFFSET(InputPriceData!$B$15,$A37+$A$11,0,1,1))) -> 2022-07-01 | C37: =IF(A37>$B$30,NA(),IF($A37>$A$8,"",OFFSET(InputPriceData!$G$15,CalculationsAndCharts!$A37+$A$11,IF($C$5,8,0),1,1))) -> 4219900 | D37: =IF(A37>$B$30,NA(),IF(A37>$A$8,"",OFFSET(InputPriceData!$C$15,CalculationsAndCharts!$A37+$A$11,IF($C$5,8,0),1,1))) -> 96.05 | E37: =IF(A37>$B$30,NA(),IF(A37>$A$8,"",OFFSET(InputPriceData!$D$15,CalculationsAndCharts!$A37+$A$11,IF($C$5,8,0),1,1))) -> 97.32 | F37: =IF(A37>$B$30,NA(),IF(A37>$A$8,"",OFFSET(InputPriceData!$E$15,CalculationsAndCharts!$A37+$A$11,IF($C$5,8,0),1,1))) -> 95.34 | G37: =IF(A37>$B$30,NA(),IF(A37>$A$8,"",OFFSET(InputPriceData!$F$15,CalculationsAndCharts!$A37+$A$11,IF($C$5,8,0),1,1))) -> 97.02 | H37: 46 | I37: =IF($A37>$I$30,NA(),LINEST(OFFSET(G37,0,0,$A$19,1),OFFSET($H$33,0,0,$A$19,1))) -> -0.05303385354 | J37: 95.78776327 | K37: 93.13607059 | L37: 3.883929412 | M37: 0.08207058824 | N37: 7.884305882 | O37: 0.4872781556 | P37: 2.436390778 | Q37: 0.1347604227 | R37: 94.78532252 | S37: 94.67015084 | T37: 196 | U37: =IF($A37>$U$30,NA(),LINEST(OFFSET($G37,0,0,$D$19,1),OFFSET($T$33,0,0,$D$19,1))) -> 0.07123657091 | V37: 84.24432462 | W37: 98.49163881 | X37: 1.471638806 | Y37: 0.0339119403 | Z37: 12.81625075 | AA37: 0.1124776058 | AB37: 0.5623880291 | AC37: 0.01554614954 | AD37: 94.30106385 | AW37: 4219900
A38: 6 | B38: =IF(A38>$B$30,NA(),IF($A38>$A$8,"",OFFSET(InputPriceData!$B$15,$A38+$A$11,0,1,1))) -> 2022-06-30 | C38: =IF(A38>$B$30,NA(),IF($A38>$A$8,"",OFFSET(InputPriceData!$G$15,CalculationsAndCharts!$A38+$A$11,IF($C$5,8,0),1,1))) -> 6319100 | D38: =IF(A38>$B$30,NA(),IF(A38>$A$8,"",OFFSET(InputPriceData!$C$15,CalculationsAndCharts!$A38+$A$11,IF($C$5,8,0),1,1))) -> 92.97 | E38: =IF(A38>$B$30,NA(),IF(A38>$A$8,"",OFFSET(InputPriceData!$D$15,CalculationsAndCharts!$A38+$A$11,IF($C$5,8,0),1,1))) -> 96.27 | F38: =IF(A38>$B$30,NA(),IF(A38>$A$8,"",OFFSET(InputPriceData!$E$15,CalculationsAndCharts!$A38+$A$11,IF($C$5,8,0),1,1))) -> 92.71 | G38: =IF(A38>$B$30,NA(),IF(A38>$A$8,"",OFFSET(InputPriceData!$F$15,CalculationsAndCharts!$A38+$A$11,IF($C$5,8,0),1,1))) -> 96.11 | H38: 45 | I38: =IF($A38>$I$30,NA(),LINEST(OFFSET(G38,0,0,$A$19,1),OFFSET($H$33,0,0,$A$19,1))) -> -0.08269195678 | J38: 96.6906449 | K38: 92.55604706 | L38: 3.553952941 | M38: 0.08207058824 | N38: 7.884305882 | O38: 0.4449855999 | P38: 2.224928 | Q38: 0.1264677647 | R38: 94.43727316 | S38: 94.57423863 | T38: 195 | U38: =IF($A38>$U$30,NA(),LINEST(OFFSET($G38,0,0,$D$19,1),OFFSET($T$33,0,0,$D$19,1))) -> 0.07158295207 | V38: 84.14146332 | W38: 98.45805373 | X38: 2.348053731 | Y38: 0.0339119403 | Z38: 12.81625075 | AA38: 0.1810421259 | AB38: 0.9052106294 | AC38: 0.0189573197 | AD38: 94.25812736 | AW38: 6319100
A39: 7 | B39: =IF(A39>$B$30,NA(),IF($A39>$A$8,"",OFFSET(InputPriceData!$B$15,$A39+$A$11,0,1,1))) -> 2022-06-29 | C39: =IF(A39>$B$30,NA(),IF($A39>$A$8,"",OFFSET(InputPriceData!$G$15,CalculationsAndCharts!$A39+$A$11,IF($C$5,8,0),1,1))) -> 2504100 | D39: =IF(A39>$B$30,NA(),IF(A39>$A$8,"",OFFSET(InputPriceData!$C$15,CalculationsAndCharts!$A39+$A$11,IF($C$5,8,0),1,1))) -> 94.22 | E39: =IF(A39>$B$30,NA(),IF(A39>$A$8,"",OFFSET(InputPriceData!$D$15,CalculationsAndCharts!$A39+$A$11,IF($C$5,8,0),1,1))) -> 94.3 | F39: =IF(A39>$B$30,NA(),IF(A39>$A$8,"",OFFSET(InputPriceData!$E$15,CalculationsAndCharts!$A39+$A$11,IF($C$5,8,0),1,1))) -> 92.3 | G39: =IF(A39>$B$30,NA(),IF(A39>$A$8,"",OFFSET(InputPriceData!$F$15,CalculationsAndCharts!$A39+$A$11,IF($C$5,8,0),1,1))) -> 93.3 | H39: 44 | I39: =IF($A39>$I$30,NA(),LINEST(OFFSET(G39,0,0,$A$19,1),OFFSET($H$33,0,0,$A$19,1))) -> -0.1084292917 | J39: 97.50334694 | K39: 92.08188235 | L39: 1.218117647 | M39: 0.08207058824 | N39: 7.884305882 | O39: 0.1456053318 | P39: 0.728026659 | Q39: 0.06776575133 | R39: 94.19510005 | S39: 94.51155449 | T39: 194 | U39: =IF($A39>$U$30,NA(),LINEST(OFFSET($G39,0,0,$D$19,1),OFFSET($T$33,0,0,$D$19,1))) -> 0.07235804395 | V39: 83.98961658 | W39: 98.46122537 | X39: 5.161225373 | Y39: 0.0339119403 | Z39: 12.81625075 | AA39: 0.4011248263 | AB39: 2.005624131 | AC39: 0.02990670777 | AD39: 94.22234244 | AX39: 2504100
A40: 8 | B40: =IF(A40>$B$30,NA(),IF($A40>$A$8,"",OFFSET(InputPriceData!$B$15,$A40+$A$11,0,1,1))) -> 2022-06-28 | C40: =IF(A40>$B$30,NA(),IF($A40>$A$8,"",OFFSET(InputPriceData!$G$15,CalculationsAndCharts!$A40+$A$11,IF($C$5,8,0),1,1))) -> 3358800 | D40: =IF(A40>$B$30,NA(),IF(A40>$A$8,"",OFFSET(InputPriceData!$C$15,CalculationsAndCharts!$A40+$A$11,IF($C$5,8,0),1,1))) -> 95.43 | E40: =IF(A40>$B$30,NA(),IF(A40>$A$8,"",OFFSET(InputPriceData!$D$15,CalculationsAndCharts!$A40+$A$11,IF($C$5,8,0),1,1))) -> 96.79 | F40: =IF(A40>$B$30,NA(),IF(A40>$A$8,"",OFFSET(InputPriceData!$E$15,CalculationsAndCharts!$A40+$A$11,IF($C$5,8,0),1,1))) -> 93.68 | G40: =IF(A40>$B$30,NA(),IF(A40>$A$8,"",OFFSET(InputPriceData!$F$15,CalculationsAndCharts!$A40+$A$11,IF($C$5,8,0),1,1))) -> 93.78 | H40: 43 | I40: =IF($A40>$I$30,NA(),LINEST(OFFSET(G40,0,0,$A$19,1),OFFSET($H$33,0,0,$A$19,1))) -> -0.1259457383 | J40: 98.15761633 | K40: 91.86032941 | L40: 1.919670588 | M40: 0.08207058824 | N40: 7.884305882 | O40: 0.2355222485 | P40: 1.177611243 | Q40: 0.08539651932 | R40: 94.26016645 | S40: 94.5610057 | T40: 193 | U40: =IF($A40>$U$30,NA(),LINEST(OFFSET($G40,0,0,$D$19,1),OFFSET($T$33,0,0,$D$19,1))) -> 0.07340322508 | V40: 83.82907588 | W40: 98.5097209 | X40: 4.729720896 | Y40: 0.0339119403 | Z40: 12.81625075 | AA40: 0.3673669605 | AB40: 1.836834802 | AC40: 0.02822721197 | AD40: 94.25077705 | AX40: 3358800
A41: 9 | B41: =IF(A41>$B$30,NA(),IF($A41>$A$8,"",OFFSET(InputPriceData!$B$15,$A41+$A$11,0,1,1))) -> 2022-06-27 | C41: =IF(A41>$B$30,NA(),IF($A41>$A$8,"",OFFSET(InputPriceData!$G$15,CalculationsAndCharts!$A41+$A$11,IF($C$5,8,0),1,1))) -> 2942600 | D41: =IF(A41>$B$30,NA(),IF(A41>$A$8,"",OFFSET(InputPriceData!$C$15,CalculationsAndCharts!$A41+$A$11,IF($C$5,8,0),1,1))) -> 94.44 | E41: =IF(A41>$B$30,NA(),IF(A41>$A$8,"",OFFSET(InputPriceData!$D$15,CalculationsAndCharts!$A41+$A$11,IF($C$5,8,0),1,1))) -> 95.05 | F41: =IF(A41>$B$30,NA(),IF(A41>$A$8,"",OFFSET(InputPriceData!$E$15,CalculationsAndCharts!$A41+$A$11,IF($C$5,8,0),1,1))) -> 93.84 | G41: =IF(A41>$B$30,NA(),IF(A41>$A$8,"",OFFSET(InputPriceData!$F$15,CalculationsAndCharts!$A41+$A$11,IF($C$5,8,0),1,1))) -> 94.81 | H41: 42 | I41: =IF($A41>$I$30,NA(),LINEST(OFFSET(G41,0,0,$A$19,1),OFFSET($H$33,0,0,$A$19,1))) -> -0.1435702281 | J41: 98.80444082 | K41: 91.62592941 | L41: 3.184070588 | M41: 0.08207058824 | N41: 7.884305882 | O41: 0.3975783712 | P41: 1.987891856 | Q41: 0.1171722296 | R41: 94.30499958 | S41: 94.59288348 | T41: 192 | U41: =IF($A41>$U$30,NA(),LINEST(OFFSET($G41,0,0,$D$19,1),OFFSET($T$33,0,0,$D$19,1))) -> 0.07445342384 | V41: 83.6624809 | W41: 98.55316567 | X41: 3.743165672 | Y41: 0.0339119403 | Z41: 12.81625075 | AA41: 0.2901858406 | AB41: 1.450929203 | AC41: 0.02438735525 | AD41: 94.26445177 | AW41: 2942600
A42: 10 | B42: =IF(A42>$B$30,NA(),IF($A42>$A$8,"",OFFSET(InputPriceData!$B$15,$A42+$A$11,0,1,1))) -> 2022-06-24 | C42: =IF(A42>$B$30,NA(),IF($A42>$A$8,"",OFFSET(InputPriceData!$G$15,CalculationsAndCharts!$A42+$A$11,IF($C$5,8,0),1,1))) -> 4782200 | D42: =IF(A42>$B$30,NA(),IF(A42>$A$8,"",OFFSET(InputPriceData!$C$15,CalculationsAndCharts!$A42+$A$11,IF($C$5,8,0),1,1))) -> 92.5 | E42: =IF(A42>$B$30,NA(),IF(A42>$A$8,"",OFFSET(InputPriceData!$D$15,CalculationsAndCharts!$A42+$A$11,IF($C$5,8,0),1,1))) -> 94.37 | F42: =IF(A42>$B$30,NA(),IF(A42>$A$8,"",OFFSET(InputPriceData!$E$15,CalculationsAndCharts!$A42+$A$11,IF($C$5,8,0),1,1))) -> 91.88 | G42: =IF(A42>$B$30,NA(),IF(A42>$A$8,"",OFFSET(InputPriceData!$F$15,CalculationsAndCharts!$A42+$A$11,IF($C$5,8,0),1,1))) -> 94.2 | H42: 41 | I42: =IF($A42>$I$30,NA(),LINEST(OFFSET(G42,0,0,$A$19,1),OFFSET($H$33,0,0,$A$19,1))) -> -0.1606751501 | J42: 99.39961633 | K42: 91.36585882 | L42: 2.834141176 | M42: 0.08207058824 | N42: 7.884305882 | O42: 0.352728479 | P42: 1.763642395 | Q42: 0.1083781331 | R42: 94.23797403 | S42: 94.58402158 | T42: 191 | U42: =IF($A42>$U$30,NA(),LINEST(OFFSET($G42,0,0,$D$19,1),OFFSET($T$33,0,0,$D$19,1))) -> 0.07523301583 | V42: 83.52118191 | W42: 98.56778507 | X42: 4.367785075 | Y42: 0.0339119403 | Z42: 12.81625075 | AA42: 0.3390516556 | AB42: 1.695258278 | AC42: 0.02681849033 | AD42: 94.25081472 | AW42: 4782200
A43: 11 | B43: =IF(A43>$B$30,NA(),IF($A43>$A$8,"",OFFSET(InputPriceData!$B$15,$A43+$A$11,0,1,1))) -> 2022-06-23 | C43: =IF(A43>$B$30,NA(),IF($A43>$A$8,"",OFFSET(InputPriceData!$G$15,CalculationsAndCharts!$A43+$A$11,IF($C$5,8,0),1,1))) -> 3310500 | D43: =IF(A43>$B$30,NA(),IF(A43>$A$8,"",OFFSET(InputPriceData!$C$15,CalculationsAndCharts!$A43+$A$11,IF($C$5,8,0),1,1))) -> 92.5 | E43: =IF(A43>$B$30,NA(),IF(A43>$A$8,"",OFFSET(InputPriceData!$D$15,CalculationsAndCharts!$A43+$A$11,IF($C$5,8,0),1,1))) -> 93.32 | F43: =IF(A43>$B$30,NA(),IF(A43>$A$8,"",OFFSET(InputPriceData!$E$15,CalculationsAndCharts!$A43+$A$11,IF($C$5,8,0),1,1))) -> 90.77 | G43: =IF(A43>$B$30,NA(),IF(A43>$A$8,"",OFFSET(InputPriceData!$F$15,CalculationsAndCharts!$A43+$A$11,IF($C$5,8,0),1,1))) -> 91.76 | H43: 40 | I43: =IF($A43>$I$30,NA(),LINEST(OFFSET(G43,0,0,$A$19,1),OFFSET($H$33,0,0,$A$19,1))) -> -0.1737109244 | J43: 99.88782857 | K43: 91.20228235 | L43: 0.5577176471 | M43: 0.08207058824 | N43: 7.884305882 | O43: 0.06096292164 | P43: 0.3048146082 | Q43: 0.05116920032 | R43: 94.24258983 | S43: 94.59969593 | T43: 190 | U43: =IF($A43>$U$30,NA(),LINEST(OFFSET($G43,0,0,$D$19,1),OFFSET($T$33,0,0,$D$19,1))) -> 0.07620210005 | V43: 83.35998894 | W43: 98.60040896 | X43: 6.840408955 | Y43: 0.0339119403 | Z43: 12.81625075 | AA43: 0.5324923019 | AB43: 2.66246151 | AC43: 0.03644240308 | AD43: 94.25221505 | AX43: 3310500
A44: 12 | B44: =IF(A44>$B$30,NA(),IF($A44>$A$8,"",OFFSET(InputPriceData!$B$15,$A44+$A$11,0,1,1))) -> 2022-06-22 | C44: =IF(A44>$B$30,NA(),IF($A44>$A$8,"",OFFSET(InputPriceData!$G$15,CalculationsAndCharts!$A44+$A$11,IF($C$5,8,0),1,1))) -> 4481500 | D44: =IF(A44>$B$30,NA(),IF(A44>$A$8,"",OFFSET(InputPriceData!$C$15,CalculationsAndCharts!$A44+$A$11,IF($C$5,8,0),1,1))) -> 91.2 | E44: =IF(A44>$B$30,NA(),IF(A44>$A$8,"",OFFSET(InputPriceData!$D$15,CalculationsAndCharts!$A44+$A$11,IF($C$5,8,0),1,1))) -> 93.82 | F44: =IF(A44>$B$30,NA(),IF(A44>$A$8,"",OFFSET(InputPriceData!$E$15,CalculationsAndCharts!$A44+$A$11,IF($C$5,8,0),1,1))) -> 91.08 | G44: =IF(A44>$B$30,NA(),IF(A44>$A$8,"",OFFSET(InputPriceData!$F$15,CalculationsAndCharts!$A44+$A$11,IF($C$5,8,0),1,1))) -> 92.56 | H44: 39 | I44: =IF($A44>$I$30,NA(),LINEST(OFFSET(G44,0,0,$A$19,1),OFFSET($H$33,0,0,$A$19,1))) -> -0.178870108 | J44: 100.2141878 | K44: 91.27068235 | L44: 1.289317647 | M44: 0.03508235294 | N44: 7.884305882 | O44: 0.1597910022 | P44: 0.7989550109 | Q44: 0.07054725533 | R44: 94.37647265 | S44: 94.71560189 | T44: 189 | U44: =IF($A44>$U$30,NA(),LINEST(OFFSET($G44,0,0,$D$19,1),OFFSET($T$33,0,0,$D$19,1))) -> 0.07750048001 | V44: 83.17855176 | W44: 98.67864776 | X44: 6.118647761 | Y44: 0.0339119403 | Z44: 12.81625075 | AA44: 0.4760267986 | AB44: 2.380133993 | AC44: 0.03363317406 | AD44: 94.34647232 | AW44: 4481500
A45: 13 | B45: =IF(A45>$B$30,NA(),IF($A45>$A$8,"",OFFSET(InputPriceData!$B$15,$A45+$A$11,0,1,1))) -> 2022-06-21 | C45: =IF(A45>$B$30,NA(),IF($A45>$A$8,"",OFFSET(InputPriceData!$G$15,CalculationsAndCharts!$A45+$A$11,IF($C$5,8,0),1,1))) -> 5834200 | D45: =IF(A45>$B$30,NA(),IF(A45>$A$8,"",OFFSET(InputPriceData!$C$15,CalculationsAndCharts!$A45+$A$11,IF($C$5,8,0),1,1))) -> 90.85 | E45: =IF(A45>$B$30,NA(),IF(A45>$A$8,"",OFFSET(InputPriceData!$D$15,CalculationsAndCharts!$A45+$A$11,IF($C$5,8,0),1,1))) -> 93.35 | F45: =IF(A45>$B$30,NA(),IF(A45>$A$8,"",OFFSET(InputPriceData!$E$15,CalculationsAndCharts!$A45+$A$11,IF($C$5,8,0),1,1))) -> 90.11 | G45: =IF(A45>$B$30,NA(),IF(A45>$A$8,"",OFFSET(InputPriceData!$F$15,CalculationsAndCharts!$A45+$A$11,IF($C$5,8,0),1,1))) -> 92.92 | H45: 38 | I45: =IF($A45>$I$30,NA(),LINEST(OFFSET(G45,0,0,$A$19,1),OFFSET($H$33,0,0,$A$19,1))) -> -0.1810530612 | J45: 100.4146531 | K45: 91.362 | L45: 1.558 | M45: 0.03508235294 | N45: 7.884305882 | O45: 0.1940214394 | P45: 0.9701071968 | Q45: 0.07725910576 | R45: 94.51434642 | S45: 94.80358564 | T45: 188 | U45: =IF($A45>$U$30,NA(),LINEST(OFFSET($G45,0,0,$D$19,1),OFFSET($T$33,0,0,$D$19,1))) -> 0.07856744919 | V45: 83.01957136 | W45: 98.73306119 | X45: 5.813061194 | Y45: 0.0339119403 | Z45: 12.81625075 | AA45: 0.4521198617 | AB45: 2.260599309 | AC45: 0.03244377422 | AD45: 94.40864822 | AW45: 5834200
A46: 14 | B46: =IF(A46>$B$30,NA(),IF($A46>$A$8,"",OFFSET(InputPriceData!$B$15,$A46+$A$11,0,1,1))) -> 2022-06-17 | C46: =IF(A46>$B$30,NA(),IF($A46>$A$8,"",OFFSET(InputPriceData!$G$15,CalculationsAndCharts!$A46+$A$11,IF($C$5,8,0),1,1))) -> 7576500 | D46: =IF(A46>$B$30,NA(),IF(A46>$A$8,"",OFFSET(InputPriceData!$C$15,CalculationsAndCharts!$A46+$A$11,IF($C$5,8,0),1,1))) -> 89.46 | E46: =IF(A46>$B$30,NA(),IF(A46>$A$8,"",OFFSET(InputPriceData!$D$15,CalculationsAndCharts!$A46+$A$11,IF($C$5,8,0),1,1))) -> 90.01 | F46: =IF(A46>$B$30,NA(),IF(A46>$A$8,"",OFFSET(InputPriceData!$E$15,CalculationsAndCharts!$A46+$A$11,IF($C$5,8,0),1,1))) -> 87.61 | G46: =IF(A46>$B$30,NA(),IF(A46>$A$8,"",OFFSET(InputPriceData!$F$15,CalculationsAndCharts!$A46+$A$11,IF($C$5,8,0),1,1))) -> 88.88 | H46: 37 | I46: =IF($A46>$I$30,NA(),LINEST(OFFSET(G46,0,0,$A$19,1),OFFSET($H$33,0,0,$A$19,1))) -> -0.1847870348 | J46: 100.6590694 | K46: 91.41971765 | L46: 2.539717647 | M46: 0.03508235294 | N46: 7.884305882 | O46: 0.3190933835 | P46: 1.595466918 | Q46: 0.1017830164 | R46: 94.64783761 | S46: 94.88046669 | T46: 187 | U46: =IF($A46>$U$30,NA(),LINEST(OFFSET($G46,0,0,$D$19,1),OFFSET($T$33,0,0,$D$19,1))) -> 0.07943327833 | V46: 82.88340553 | W46: 98.77006119 | X46: 9.890061194 | Y46: 0.0339119403 | Z46: 12.81625075 | AA46: 0.7710755757 | AB46: 3.855377879 | AC46: 0.0483122177 | AD46: 94.45856508 | AX46: 7576500
A47: 15 | B47: =IF(A47>$B$30,NA(),IF($A47>$A$8,"",OFFSET(InputPriceData!$B$15,$A47+$A$11,0,1,1))) -> 2022-06-16 | C47: =IF(A47>$B$30,NA(),IF($A47>$A$8,"",OFFSET(InputPriceData!$G$15,CalculationsAndCharts!$A47+$A$11,IF($C$5,8,0),1,1))) -> 4517700 | D47: =IF(A47>$B$30,NA(),IF(A47>$A$8,"",OFFSET(InputPriceData!$C$15,CalculationsAndCharts!$A47+$A$11,IF($C$5,8,0),1,1))) -> 91.05 | E47: =IF(A47>$B$30,NA(),IF(A47>$A$8,"",OFFSET(InputPriceData!$D$15,CalculationsAndCharts!$A47+$A$11,IF($C$5,8,0),1,1))) -> 91.18 | F47: =IF(A47>$B$30,NA(),IF(A47>$A$8,"",OFFSET(InputPriceData!$E$15,CalculationsAndCharts!$A47+$A$11,IF($C$5,8,0),1,1))) -> 89.01 | G47: =IF(A47>$B$30,NA(),IF(A47>$A$8,"",OFFSET(InputPriceData!$F$15,CalculationsAndCharts!$A47+$A$11,IF($C$5,8,0),1,1))) -> 89.52 | H47: 36 | I47: =IF($A47>$I$30,NA(),LINEST(OFFSET(G47,0,0,$A$19,1),OFFSET($H$33,0,0,$A$19,1))) -> -0.1720283313 | J47: 100.5137224 | K47: 91.91230588 | L47: 2.392305882 | M47: 0.03508235294 | N47: 7.884305882 | O47: 0.3003129571 | P47: 1.501564786 | Q47: 0.09810057983 | R47: 95.30143014 | S47: 95.12538369 | T47: 186 | U47: =IF($A47>$U$30,NA(),LINEST(OFFSET($G47,0,0,$D$19,1),OFFSET($T$33,0,0,$D$19,1))) -> 0.08095907898 | V47: 82.69891256 | W47: 98.89072836 | X47: 9.370728358 | Y47: 0.0339119403 | Z47: 12.81625075 | AA47: 0.7304466389 | AB47: 3.652233194 | AC47: 0.04629087756 | AD47: 94.74175969 | AX47: 4517700
A48: 16 | B48: =IF(A48>$B$30,NA(),IF($A48>$A$8,"",OFFSET(InputPriceData!$B$15,$A48+$A$11,0,1,1))) -> 2022-06-15 | C48: =IF(A48>$B$30,NA(),IF($A48>$A$8,"",OFFSET(InputPriceData!$G$15,CalculationsAndCharts!$A48+$A$11,IF($C$5,8,0),1,1))) -> 4139200 | D48: =IF(A48>$B$30,NA(),IF(A48>$A$8,"",OFFSET(InputPriceData!$C$15,CalculationsAndCharts!$A48+$A$11,IF($C$5,8,0),1,1))) -> 92.1 | E48: =IF(A48>$B$30,NA(),IF(A48>$A$8,"",OFFSET(InputPriceData!$D$15,CalculationsAndCharts!$A48+$A$11,IF($C$5,8,0),1,1))) -> 93.19 | F48: =IF(A48>$B$30,NA(),IF(A48>$A$8,"",OFFSET(InputPriceData!$E$15,CalculationsAndCharts!$A48+$A$11,IF($C$5,8,0),1,1))) -> 90.8 | G48: =IF(A48>$B$30,NA(),IF(A48>$A$8,"",OFFSET(InputPriceData!$F$15,CalculationsAndCharts!$A48+$A$11,IF($C$5,8,0),1,1))) -> 92.28 | H48: 35 | I48: =IF($A48>$I$30,NA(),LINEST(OFFSET(G48,0,0,$A$19,1),OFFSET($H$33,0,0,$A$19,1))) -> -0.1607726291 | J48: 100.400702 | K48: 92.36207059 | L48: 0.08207058824 | M48: 0.03508235294 | N48: 7.884305882 | O48: 0.005986354589 | P48: 0.02993177294 | Q48: 0.04038948129 | R48: 95.93028258 | S48: 95.35417486 | T48: 185 | U48: =IF($A48>$U$30,NA(),LINEST(OFFSET($G48,0,0,$D$19,1),OFFSET($T$33,0,0,$D$19,1))) -> 0.08228203705 | V48: 82.53485528 | W48: 98.99126269 | X48: 6.711262687 | Y48: 0.0339119403 | Z48: 12.81625075 | AA48: 0.5223888091 | AB48: 2.611944045 | AC48: 0.03593974175 | AD48: 94.99521206 | AW48: 4139200
A49: 17 | B49: =IF(A49>$B$30,NA(),IF($A49>$A$8,"",OFFSET(InputPriceData!$B$15,$A49+$A$11,0,1,1))) -> 2022-06-14 | C49: =IF(A49>$B$30,NA(),IF($A49>$A$8,"",OFFSET(InputPriceData!$G$15,CalculationsAndCharts!$A49+$A$11,IF($C$5,8,0),1,1))) -> 3977900 | D49: =IF(A49>$B$30,NA(),IF(A49>$A$8,"",OFFSET(InputPriceData!$C$15,CalculationsAndCharts!$A49+$A$11,IF($C$5,8,0),1,1))) -> 92.43 | E49: =IF(A49>$B$30,NA(),IF(A49>$A$8,"",OFFSET(InputPriceData!$D$15,CalculationsAndCharts!$A49+$A$11,IF($C$5,8,0),1,1))) -> 92.71 | F49: =IF(A49>$B$30,NA(),IF(A49>$A$8,"",OFFSET(InputPriceData!$E$15,CalculationsAndCharts!$A49+$A$11,IF($C$5,8,0),1,1))) -> 90.73 | G49: =IF(A49>$B$30,NA(),IF(A49>$A$8,"",OFFSET(InputPriceData!$F$15,CalculationsAndCharts!$A49+$A$11,IF($C$5,8,0),1,1))) -> 91.32 | H49: 34 | I49: =IF($A49>$I$30,NA(),LINEST(OFFSET(G49,0,0,$A$19,1),OFFSET($H$33,0,0,$A$19,1))) -> -0.1565935174 | J49: 100.4227347 | K49: 92.59305882 | L49: 1.273058824 | M49: 0.03508235294 | N49: 7.884305882 | O49: 0.1577196096 | P49: 0.7885980479 | Q49: 0.07014109992 | R49: 96.08392097 | S49: 95.47965139 | T49: 184 | U49: =IF($A49>$U$30,NA(),LINEST(OFFSET($G49,0,0,$D$19,1),OFFSET($T$33,0,0,$D$19,1))) -> 0.08317361434 | V49: 82.40055176 | W49: 99.03527463 | X49: 7.715274627 | Y49: 0.0339119403 | Z49: 12.81625075 | AA49: 0.6009356193 | AB49: 3.004678097 | AC49: 0.03984754325 | AD49: 95.09643397 | AX49: 3977900
A50: 18 | B50: =IF(A50>$B$30,NA(),IF($A50>$A$8,"",OFFSET(InputPriceData!$B$15,$A50+$A$11,0,1,1))) -> 2022-06-13 | C50: =IF(A50>$B$30,NA(),IF($A50>$A$8,"",OFFSET(InputPriceData!$G$15,CalculationsAndCharts!$A50+$A$11,IF($C$5,8,0),1,1))) -> 5419200 | D50: =IF(A50>$B$30,NA(),IF(A50>$A$8,"",OFFSET(InputPriceData!$C$15,CalculationsAndCharts!$A50+$A$11,IF($C$5,8,0),1,1))) -> 93.49 | E50: =IF(A50>$B$30,NA(),IF(A50>$A$8,"",OFFSET(InputPriceData!$D$15,CalculationsAndCharts!$A50+$A$11,IF($C$5,8,0),1,1))) -> 93.53 | F50: =IF(A50>$B$30,NA(),IF(A50>$A$8,"",OFFSET(InputPriceData!$E$15,CalculationsAndCharts!$A50+$A$11,IF($C$5,8,0),1,1))) -> 91.38 | G50: =IF(A50>$B$30,NA(),IF(A50>$A$8,"",OFFSET(InputPriceData!$F$15,CalculationsAndCharts!$A50+$A$11,IF($C$5,8,0),1,1))) -> 91.95 | H50: 33 | I50: =IF($A50>$I$30,NA(),LINEST(OFFSET(G50,0,0,$A$19,1),OFFSET($H$33,0,0,$A$19,1))) -> -0.1514929172 | J50: 100.4578694 | K50: 92.88322353 | L50: 0.9332235294 | M50: 0.03508235294 | N50: 7.884305882 | O50: 0.1144242068 | P50: 0.5721210341 | Q50: 0.06165180526 | R50: 96.44327297 | S50: 95.64943308 | T50: 183 | U50: =IF($A50>$U$30,NA(),LINEST(OFFSET($G50,0,0,$D$19,1),OFFSET($T$33,0,0,$D$19,1))) -> 0.08410844521 | V50: 82.26965126 | W50: 99.0913403 | X50: 7.141340299 | Y50: 0.0339119403 | Z50: 12.81625075 | AA50: 0.556035047 | AB50: 2.780175235 | AC50: 0.03761368393 | AD50: 95.25316077 | AX50: 5419200
A51: 19 | B51: =IF(A51>$B$30,NA(),IF($A51>$A$8,"",OFFSET(InputPriceData!$B$15,$A51+$A$11,0,1,1))) -> 2022-06-10 | C51: =IF(A51>$B$30,NA(),IF($A51>$A$8,"",OFFSET(InputPriceData!$G$15,CalculationsAndCharts!$A51+$A$11,IF($C$5,8,0),1,1))) -> 5615900 | D51: =IF(A51>$B$30,NA(),IF(A51>$A$8,"",OFFSET(InputPriceData!$C$15,CalculationsAndCharts!$A51+$A$11,IF($C$5,8,0),1,1))) -> 95.82 | E51: =IF(A51>$B$30,NA(),IF(A51>$A$8,"",OFFSET(InputPriceData!$D$15,CalculationsAndCharts!$A51+$A$11,IF($C$5,8,0),1,1))) -> 96.69 | F51: =IF(A51>$B$30,NA(),IF(A51>$A$8,"",OFFSET(InputPriceData!$E$15,CalculationsAndCharts!$A51+$A$11,IF($C$5,8,0),1,1))) -> 94.45 | G51: =IF(A51>$B$30,NA(),IF(A51>$A$8,"",OFFSET(InputPriceData!$F$15,CalculationsAndCharts!$A51+$A$11,IF($C$5,8,0),1,1))) -> 95.49 | H51: 32 | I51: =IF($A51>$I$30,NA(),LINEST(OFFSET(G51,0,0,$A$19,1),OFFSET($H$33,0,0,$A$19,1))) -> -0.1445536615 | J51: 100.4115184 | K51: 93.18383529 | L51: 2.306164706 | M51: 0.03508235294 | N51: 7.884305882 | O51: 0.2893384733 | P51: 1.446692367 | Q51: 0.09594872026 | R51: 96.73849216 | S51: 95.80043035 | T51: 182 | U51: =IF($A51>$U$30,NA(),LINEST(OFFSET($G51,0,0,$D$19,1),OFFSET($T$33,0,0,$D$19,1))) -> 0.08503124578 | V51: 82.1336598 | W51: 99.13990896 | X51: 3.649908955 | Y51: 0.0339119403 | Z51: 12.81625075 | AA51: 0.2828900931 | AB51: 1.414450466 | AC51: 0.02402438274 | AD51: 95.38226074 | AX51: 5615900
A52: 20 | B52: =IF(A52>$B$30,NA(),IF($A52>$A$8,"",OFFSET(InputPriceData!$B$15,$A52+$A$11,0,1,1))) -> 2022-06-09 | C52: =IF(A52>$B$30,NA(),IF($A52>$A$8,"",OFFSET(InputPriceData!$G$15,CalculationsAndCharts!$A52+$A$11,IF($C$5,8,0),1,1))) -> 4566900 | D52: =IF(A52>$B$30,NA(),IF(A52>$A$8,"",OFFSET(InputPriceData!$C$15,CalculationsAndCharts!$A52+$A$11,IF($C$5,8,0),1,1))) -> 98.33 | E52: =IF(A52>$B$30,NA(),IF(A52>$A$8,"",OFFSET(InputPriceData!$D$15,CalculationsAndCharts!$A52+$A$11,IF($C$5,8,0),1,1))) -> 99.17 | F52: =IF(A52>$B$30,NA(),IF(A52>$A$8,"",OFFSET(InputPriceData!$E$15,CalculationsAndCharts!$A52+$A$11,IF($C$5,8,0),1,1))) -> 97.32 | G52: =IF(A52>$B$30,NA(),IF(A52>$A$8,"",OFFSET(InputPriceData!$F$15,CalculationsAndCharts!$A52+$A$11,IF($C$5,8,0),1,1))) -> 97.38 | H52: 31 | I52: =IF($A52>$I$30,NA(),LINEST(OFFSET(G52,0,0,$A$19,1),OFFSET($H$33,0,0,$A$19,1))) -> -0.1497743097 | J52: 100.6394449 | K52: 93.15072941 | L52: 4.229270588 | M52: 0.03508235294 | N52: 7.884305882 | O52: 0.5343443488 | P52: 2.671721744 | Q52: 0.143989088 | R52: 96.87099706 | S52: 95.81310097 | T52: 181 | U52: =IF($A52>$U$30,NA(),LINEST(OFFSET($G52,0,0,$D$19,1),OFFSET($T$33,0,0,$D$19,1))) -> 0.0852641191 | V52: 82.05410603 | W52: 99.10692985 | X52: 1.726929851 | Y52: 0.0339119403 | Z52: 12.81625075 | AA52: 0.1324497759 | AB52: 0.6622488795 | AC52: 0.01653978985 | AD52: 95.37960865 | AX52: 4566900
A53: 21 | B53: =IF(A53>$B$30,NA(),IF($A53>$A$8,"",OFFSET(InputPriceData!$B$15,$A53+$A$11,0,1,1))) -> 2022-06-08 | C53: =IF(A53>$B$30,NA(),IF($A53>$A$8,"",OFFSET(InputPriceData!$G$15,CalculationsAndCharts!$A53+$A$11,IF($C$5,8,0),1,1))) -> 6666600 | D53: =IF(A53>$B$30,NA(),IF(A53>$A$8,"",OFFSET(InputPriceData!$C$15,CalculationsAndCharts!$A53+$A$11,IF($C$5,8,0),1,1))) -> 99.73 | E53: =IF(A53>$B$30,NA(),IF(A53>$A$8,"",OFFSET(InputPriceData!$D$15,CalculationsAndCharts!$A53+$A$11,IF($C$5,8,0),1,1))) -> 100.33 | F53: =IF(A53>$B$30,NA(),IF(A53>$A$8,"",OFFSET(InputPriceData!$E$15,CalculationsAndCharts!$A53+$A$11,IF($C$5,8,0),1,1))) -> 98.96 | G53: =IF(A53>$B$30,NA(),IF(A53>$A$8,"",OFFSET(InputPriceData!$F$15,CalculationsAndCharts!$A53+$A$11,IF($C$5,8,0),1,1))) -> 99.23 | H53: 30 | I53: =IF($A53>$I$30,NA(),LINEST(OFFSET(G53,0,0,$A$19,1),OFFSET($H$33,0,0,$A$19,1))) -> -0.1597565426 | J53: 100.9559918 | K53: 92.96816471 | L53: 6.261835294 | M53: 0.03508235294 | N53: 7.884305882 | O53: 0.7932954028 | P53: 3.966477014 | Q53: 0.1947638045 | R53: 96.78537798 | S53: 95.74914591 | T53: 180 | U53: =IF($A53>$U$30,NA(),LINEST(OFFSET($G53,0,0,$D$19,1),OFFSET($T$33,0,0,$D$19,1))) -> 0.0852399985 | V53: 81.98943015 | W53: 99.03742985 | X53: 0.1925701493 | Y53: 0.0339119403 | Z53: 12.81625075 | AA53: 0.01241229883 | AB53: 0.06206149413 | AC53: 0.01056777606 | AD53: 95.34596616 | AX53: 6666600
A54: 22 | B54: =IF(A54>$B$30,NA(),IF($A54>$A$8,"",OFFSET(InputPriceData!$B$15,$A54+$A$11,0,1,1))) -> 2022-06-07 | C54: =IF(A54>$B$30,NA(),IF($A54>$A$8,"",OFFSET(InputPriceData!$G$15,CalculationsAndCharts!$A54+$A$11,IF($C$5,8,0),1,1))) -> 5634600 | D54: =IF(A54>$B$30,NA(),IF(A54>$A$8,"",OFFSET(InputPriceData!$C$15,CalculationsAndCharts!$A54+$A$11,IF($C$5,8,0),1,1))) -> 97.18 | E54: =IF(A54>$B$30,NA(),IF(A54>$A$8,"",OFFSET(InputPriceData!$D$15,CalculationsAndCharts!$A54+$A$11,IF($C$5,8,0),1,1))) -> 100.68 | F54: =IF(A54>$B$30,NA(),IF(A54>$A$8,"",OFFSET(InputPriceData!$E$15,CalculationsAndCharts!$A54+$A$11,IF($C$5,8,0),1,1))) -> 96.66 | G54: =IF(A54>$B$30,NA(),IF(A54>$A$8,"",OFFSET(InputPriceData!$F$15,CalculationsAndCharts!$A54+$A$11,IF($C$5,8,0),1,1))) -> 100.51 | H54: 29 | I54: =IF($A54>$I$30,NA(),LINEST(OFFSET(G54,0,0,$A$19,1),OFFSET($H$33,0,0,$A$19,1))) -> -0.1751716687 | J54: 101.3842776 | K54: 92.62569412 | L54: 7.884305882 | M54: 0.03508235294 | N54: 7.884305882 | O54: 1 | P54: 5 | Q54: 0.2352941176 | R54: 96.19409322 | S54: 95.60707023 | T54: 179 | U54: =IF($A54>$U$30,NA(),LINEST(OFFSET($G54,0,0,$D$19,1),OFFSET($T$33,0,0,$D$19,1))) -> 0.08498550964 | V54: 81.93635628 | W54: 98.93345821 | X54: 1.576541791 | Y54: 0.0339119403 | Z54: 12.81625075 | AA54: 0.1206844752 | AB54: 0.603422376 | AC54: 0.0159544515 | AD54: 95.30448217 | AW54: 5634600
A55: 23 | B55: =IF(A55>$B$30,NA(),IF($A55>$A$8,"",OFFSET(InputPriceData!$B$15,$A55+$A$11,0,1,1))) -> 2022-06-06 | C55: =IF(A55>$B$30,NA(),IF($A55>$A$8,"",OFFSET(InputPriceData!$G$15,CalculationsAndCharts!$A55+$A$11,IF($C$5,8,0),1,1))) -> 3080300 | D55: =IF(A55>$B$30,NA(),IF(A55>$A$8,"",OFFSET(InputPriceData!$C$15,CalculationsAndCharts!$A55+$A$11,IF($C$5,8,0),1,1))) -> 96.99 | E55: =IF(A55>$B$30,NA(),IF(A55>$A$8,"",OFFSET(InputPriceData!$D$15,CalculationsAndCharts!$A55+$A$11,IF($C$5,8,0),1,1))) -> 97.49 | F55: =IF(A55>$B$30,NA(),IF(A55>$A$8,"",OFFSET(InputPriceData!$E$15,CalculationsAndCharts!$A55+$A$11,IF($C$5,8,0),1,1))) -> 96.39 | G55: =IF(A55>$B$30,NA(),IF(A55>$A$8,"",OFFSET(InputPriceData!$F$15,CalculationsAndCharts!$A55+$A$11,IF($C$5,8,0),1,1))) -> 97.21 | H55: 28 | I55: =IF($A55>$I$30,NA(),LINEST(OFFSET(G55,0,0,$A$19,1),OFFSET($H$33,0,0,$A$19,1))) -> -0.1955054022 | J55: 101.9289878 | K55: 92.15371765 | L55: 5.056282353 | M55: 0.03508235294 | N55: 7.196658824 | O55: 0.7011305431 | P55: 3.505652715 | Q55: 0.1766922633 | R55: 94.86612191 | S55: 95.40695065 | T55: 178 | U55: =IF($A55>$U$30,NA(),LINEST(OFFSET($G55,0,0,$D$19,1),OFFSET($T$33,0,0,$D$19,1))) -> 0.08464878872 | V55: 81.88064673 | W55: 98.81040448 | X55: 1.600404478 | Y55: 0.0339119403 | Z55: 12.81625075 | AA55: 0.1225513234 | AB55: 0.6127566172 | AC55: 0.01604732952 | AD55: 95.22008447 | AW55: 3080300
A56: 24 | B56: =IF(A56>$B$30,NA(),IF($A56>$A$8,"",OFFSET(InputPriceData!$B$15,$A56+$A$11,0,1,1))) -> 2022-06-03 | C56: =IF(A56>$B$30,NA(),IF($A56>$A$8,"",OFFSET(InputPriceData!$G$15,CalculationsAndCharts!$A56+$A$11,IF($C$5,8,0),1,1))) -> 2836200 | D56: =IF(A56>$B$30,NA(),IF(A56>$A$8,"",OFFSET(InputPriceData!$C$15,CalculationsAndCharts!$A56+$A$11,IF($C$5,8,0),1,1))) -> 95.36 | E56: =IF(A56>$B$30,NA(),IF(A56>$A$8,"",OFFSET(InputPriceData!$D$15,CalculationsAndCharts!$A56+$A$11,IF($C$5,8,0),1,1))) -> 96.62 | F56: =IF(A56>$B$30,NA(),IF(A56>$A$8,"",OFFSET(InputPriceData!$E$15,CalculationsAndCharts!$A56+$A$11,IF($C$5,8,0),1,1))) -> 95.29 | G56: =IF(A56>$B$30,NA(),IF(A56>$A$8,"",OFFSET(InputPriceData!$F$15,CalculationsAndCharts!$A56+$A$11,IF($C$5,8,0),1,1))) -> 96.33 | H56: 27 | I56: =IF($A56>$I$30,NA(),LINEST(OFFSET(G56,0,0,$A$19,1),OFFSET($H$33,0,0,$A$19,1))) -> -0.2059611044 | J56: 102.2736082 | K56: 91.97555294 | L56: 4.354447059 | M56: 0.03508235294 | N56: 7.196658824 | O56: 0.6031304314 | P56: 3.015652157 | Q56: 0.1574765552 | R56: 94.36309599 | S56: 95.3333568 | T56: 177 | U56: =IF($A56>$U$30,NA(),LINEST(OFFSET($G56,0,0,$D$19,1),OFFSET($T$33,0,0,$D$19,1))) -> 0.0848841821 | V56: 81.7805397 | W56: 98.75737612 | X56: 2.427376119 | Y56: 0.0339119403 | Z56: 12.81625075 | AA56: 0.1872477498 | AB56: 0.9362387492 | AC56: 0.01926605721 | AD56: 95.18763084 | AW56: 2836200
A57: 25 | B57: =IF(A57>$B$30,NA(),IF($A57>$A$8,"",OFFSET(InputPriceData!$B$15,$A57+$A$11,0,1,1))) -> 2022-06-02 | C57: =IF(A57>$B$30,NA(),IF($A57>$A$8,"",OFFSET(InputPriceData!$G$15,CalculationsAndCharts!$A57+$A$11,IF($C$5,8,0),1,1))) -> 3460300 | D57: =IF(A57>$B$30,NA(),IF(A57>$A$8,"",OFFSET(InputPriceData!$C$15,CalculationsAndCharts!$A57+$A$11,IF($C$5,8,0),1,1))) -> 95.77 | E57: =IF(A57>$B$30,NA(),IF(A57>$A$8,"",OFFSET(InputPriceData!$D$15,CalculationsAndCharts!$A57+$A$11,IF($C$5,8,0),1,1))) -> 96.31 | F57: =IF(A57>$B$30,NA(),IF(A57>$A$8,"",OFFSET(InputPriceData!$E$15,CalculationsAndCharts!$A57+$A$11,IF($C$5,8,0),1,1))) -> 94.06 | G57: =IF(A57>$B$30,NA(),IF(A57>$A$8,"",OFFSET(InputPriceData!$F$15,CalculationsAndCharts!$A57+$A$11,IF($C$5,8,0),1,1))) -> 96.24 | H57: 26 | I57: =IF($A57>$I$30,NA(),LINEST(OFFSET(G57,0,0,$A$19,1),OFFSET($H$33,0,0,$A$19,1))) -> -0.2127577431 | J57: 102.5329224 | K57: 91.89503529 | L57: 4.344964706 | M57: 0.03508235294 | N57: 7.196658824 | O57: 0.6018063719 | P57: 3.00903186 | Q57: 0.1572169357 | R57: 93.9954608 | S57: 95.29267749 | T57: 176 | U57: =IF($A57>$U$30,NA(),LINEST(OFFSET($G57,0,0,$D$19,1),OFFSET($T$33,0,0,$D$19,1))) -> 0.0849919898 | V57: 81.70560503 | W57: 98.70400299 | X57: 2.464002985 | Y57: 0.0339119403 | Z57: 12.81625075 | AA57: 0.1901131774 | AB57: 0.9505658869 | AC57: 0.01940861579 | AD57: 95.16518954 | AW57: 3460300
A58: 26 | B58: =IF(A58>$B$30,NA(),IF($A58>$A$8,"",OFFSET(InputPriceData!$B$15,$A58+$A$11,0,1,1))) -> 2022-06-01 | C58: =IF(A58>$B$30,NA(),IF($A58>$A$8,"",OFFSET(InputPriceData!$G$15,CalculationsAndCharts!$A58+$A$11,IF($C$5,8,0),1,1))) -> 4245900 | D58: =IF(A58>$B$30,NA(),IF(A58>$A$8,"",OFFSET(InputPriceData!$C$15,CalculationsAndCharts!$A58+$A$11,IF($C$5,8,0),1,1))) -> 96.01 | E58: =IF(A58>$B$30,NA(),IF(A58>$A$8,"",OFFSET(InputPriceData!$D$15,CalculationsAndCharts!$A58+$A$11,IF($C$5,8,0),1,1))) -> 96.28 | F58: =IF(A58>$B$30,NA(),IF(A58>$A$8,"",OFFSET(InputPriceData!$E$15,CalculationsAndCharts!$A58+$A$11,IF($C$5,8,0),1,1))) -> 94.1 | G58: =IF(A58>$B$30,NA(),IF(A58>$A$8,"",OFFSET(InputPriceData!$F$15,CalculationsAndCharts!$A58+$A$11,IF($C$5,8,0),1,1))) -> 94.81 | H58: 25 | I58: =IF($A58>$I$30,NA(),LINEST(OFFSET(G58,0,0,$A$19,1),OFFSET($H$33,0,0,$A$19,1))) -> -0.2192739496 | J58: 102.7898857 | K58: 91.82618824 | L58: 2.983811765 | M58: 0.03508235294 | N58: 7.196658824 | O58: 0.4117430602 | P58: 2.058715301 | Q58: 0.1199496196 | R58: 93.57675332 | S58: 95.25401126 | T58: 175 | U58: =IF($A58>$U$30,NA(),LINEST(OFFSET($G58,0,0,$D$19,1),OFFSET($T$33,0,0,$D$19,1))) -> 0.08492995575 | V58: 81.65368945 | W58: 98.6396806 | X58: 3.829680597 | Y58: 0.0339119403 | Z58: 12.81625075 | AA58: 0.2969541579 | AB58: 1.48477079 | AC58: 0.02472408746 | AD58: 95.14391606 | AX58: 4245900
A59: 27 | B59: =IF(A59>$B$30,NA(),IF($A59>$A$8,"",OFFSET(InputPriceData!$B$15,$A59+$A$11,0,1,1))) -> 2022-05-31 | C59: =IF(A59>$B$30,NA(),IF($A59>$A$8,"",OFFSET(InputPriceData!$G$15,CalculationsAndCharts!$A59+$A$11,IF($C$5,8,0),1,1))) -> 6478700 | D59: =IF(A59>$B$30,NA(),IF(A59>$A$8,"",OFFSET(InputPriceData!$C$15,CalculationsAndCharts!$A59+$A$11,IF($C$5,8,0),1,1))) -> 95.36 | E59: =IF(A59>$B$30,NA(),IF(A59>$A$8,"",OFFSET(InputPriceData!$D$15,CalculationsAndCharts!$A59+$A$11,IF($C$5,8,0),1,1))) -> 95.97 | F59: =IF(A59>$B$30,NA(),IF(A59>$A$8,"",OFFSET(InputPriceData!$E$15,CalculationsAndCharts!$A59+$A$11,IF($C$5,8,0),1,1))) -> 94.63 | G59: =IF(A59>$B$30,NA(),IF(A59>$A$8,"",OFFSET(InputPriceData!$F$15,CalculationsAndCharts!$A59+$A$11,IF($C$5,8,0),1,1))) -> 95.12 | H59: 24 | I59: =IF($A59>$I$30,NA(),LINEST(OFFSET(G59,0,0,$A$19,1),OFFSET($H$33,0,0,$A$19,1))) -> -0.218487395 | J59: 102.8606286 | K59: 91.93625882 | L59: 3.183741176 | M59: 0.03508235294 | N59: 7.196658824 | O59: 0.4396600157 | P59: 2.198300079 | Q59: 0.1254235325 | R59: 93.40866355 | S59: 95.27213417 | T59: 174 | U59: =IF($A59>$U$30,NA(),LINEST(OFFSET($G59,0,0,$D$19,1),OFFSET($T$33,0,0,$D$19,1))) -> 0.08498844221 | V59: 81.59941156 | W59: 98.5971 | X59: 3.4771 | Y59: 0.0339119403 | Z59: 12.81625075 | AA59: 0.2693707397 | AB59: 1.346853699 | AC59: 0.0233517781 | AD59: 95.15238113 | AX59: 6478700
A60: 28 | B60: =IF(A60>$B$30,NA(),IF($A60>$A$8,"",OFFSET(InputPriceData!$B$15,$A60+$A$11,0,1,1))) -> 2022-05-27 | C60: =IF(A60>$B$30,NA(),IF($A60>$A$8,"",OFFSET(InputPriceData!$G$15,CalculationsAndCharts!$A60+$A$11,IF($C$5,8,0),1,1))) -> 3394200 | D60: =IF(A60>$B$30,NA(),IF(A60>$A$8,"",OFFSET(InputPriceData!$C$15,CalculationsAndCharts!$A60+$A$11,IF($C$5,8,0),1,1))) -> 95.63 | E60: =IF(A60>$B$30,NA(),IF(A60>$A$8,"",OFFSET(InputPriceData!$D$15,CalculationsAndCharts!$A60+$A$11,IF($C$5,8,0),1,1))) -> 96.72 | F60: =IF(A60>$B$30,NA(),IF(A60>$A$8,"",OFFSET(InputPriceData!$E$15,CalculationsAndCharts!$A60+$A$11,IF($C$5,8,0),1,1))) -> 95.2 | G60: =IF(A60>$B$30,NA(),IF(A60>$A$8,"",OFFSET(InputPriceData!$F$15,CalculationsAndCharts!$A60+$A$11,IF($C$5,8,0),1,1))) -> 96.71 | H60: 23 | I60: =IF($A60>$I$30,NA(),LINEST(OFFSET(G60,0,0,$A$19,1),OFFSET($H$33,0,0,$A$19,1))) -> -0.2123534214 | J60: 102.7406122 | K60: 92.12294118 | L60: 4.587058824 | M60: 0.03508235294 | N60: 7.196658824 | O60: 0.6356109565 | P60: 3.178054783 | Q60: 0.1638452856 | R60: 93.16323977 | S60: 95.27834373 | T60: 173 | U60: =IF($A60>$U$30,NA(),LINEST(OFFSET($G60,0,0,$D$19,1),OFFSET($T$33,0,0,$D$19,1))) -> 0.08496925673 | V60: 81.5519397 | W60: 98.54579104 | X60: 1.835791045 | Y60: 0.0339119403 | Z60: 12.81625075 | AA60: 0.1409663076 | AB60: 0.7048315382 | AC60: 0.01696349789 | AD60: 95.15315536 | AW60: 3394200
A61: 29 | B61: =IF(A61>$B$30,NA(),IF($A61>$A$8,"",OFFSET(InputPriceData!$B$15,$A61+$A$11,0,1,1))) -> 2022-05-26 | C61: =IF(A61>$B$30,NA(),IF($A61>$A$8,"",OFFSET(InputPriceData!$G$15,CalculationsAndCharts!$A61+$A$11,IF($C$5,8,0),1,1))) -> 5545800 | D61: =IF(A61>$B$30,NA(),IF(A61>$A$8,"",OFFSET(InputPriceData!$C$15,CalculationsAndCharts!$A61+$A$11,IF($C$5,8,0),1,1))) -> 94.52 | E61: =IF(A61>$B$30,NA(),IF(A61>$A$8,"",OFFSET(InputPriceData!$D$15,CalculationsAndCharts!$A61+$A$11,IF($C$5,8,0),1,1))) -> 95.86 | F61: =IF(A61>$B$30,NA(),IF(A61>$A$8,"",OFFSET(InputPriceData!$E$15,CalculationsAndCharts!$A61+$A$11,IF($C$5,8,0),1,1))) -> 94.11 | G61: =IF(A61>$B$30,NA(),IF(A61>$A$8,"",OFFSET(InputPriceData!$F$15,CalculationsAndCharts!$A61+$A$11,IF($C$5,8,0),1,1))) -> 95 | H61: 22 | I61: =IF($A61>$I$30,NA(),LINEST(OFFSET(G61,0,0,$A$19,1),OFFSET($H$33,0,0,$A$19,1))) -> -0.2104797119 | J61: 102.7020327 | K61: 92.17804706 | L61: 2.821952941 | M61: 0.03508235294 | N61: 7.196658824 | O61: 0.3891420555 | P61: 1.945710277 | Q61: 0.1155180501 | R61: 92.46824884 | S61: 95.21990878 | T61: 172 | U61: =IF($A61>$U$30,NA(),LINEST(OFFSET($G61,0,0,$D$19,1),OFFSET($T$33,0,0,$D$19,1))) -> 0.08458958224 | V61: 81.53629698 | W61: 98.45421343 | X61: 3.454213433 | Y61: 0.0339119403 | Z61: 12.81625075 | AA61: 0.2675802562 | AB61: 1.337901281 | AC61: 0.02326269931 | AD61: 95.1262901 | AW61: 5545800
A62: 30 | B62: =IF(A62>$B$30,NA(),IF($A62>$A$8,"",OFFSET(InputPriceData!$B$15,$A62+$A$11,0,1,1))) -> 2022-05-25 | C62: =IF(A62>$B$30,NA(),IF($A62>$A$8,"",OFFSET(InputPriceData!$G$15,CalculationsAndCharts!$A62+$A$11,IF($C$5,8,0),1,1))) -> 3742000 | D62: =IF(A62>$B$30,NA(),IF(A62>$A$8,"",OFFSET(InputPriceData!$C$15,CalculationsAndCharts!$A62+$A$11,IF($C$5,8,0),1,1))) -> 93.32 | E62: =IF(A62>$B$30,NA(),IF(A62>$A$8,"",OFFSET(InputPriceData!$D$15,CalculationsAndCharts!$A62+$A$11,IF($C$5,8,0),1,1))) -> 94.1 | F62: =IF(A62>$B$30,NA(),IF(A62>$A$8,"",OFFSET(InputPriceData!$E$15,CalculationsAndCharts!$A62+$A$11,IF($C$5,8,0),1,1))) -> 92.59 | G62: =IF(A62>$B$30,NA(),IF(A62>$A$8,"",OFFSET(InputPriceData!$F$15,CalculationsAndCharts!$A62+$A$11,IF($C$5,8,0),1,1))) -> 93.56 | H62: 21 | I62: =IF($A62>$I$30,NA(),LINEST(OFFSET(G62,0,0,$A$19,1),OFFSET($H$33,0,0,$A$19,1))) -> -0.1998093637 | J62: 102.4345388 | K62: 92.44407059 | L62: 1.115929412 | M62: 0.03508235294 | N62: 7.196658824 | O62: 0.1509230633 | P62: 0.7546153164 | Q62: 0.06880844378 | R62: 92.13758866 | S62: 95.22888465 | T62: 171 | U62: =IF($A62>$U$30,NA(),LINEST(OFFSET($G62,0,0,$D$19,1),OFFSET($T$33,0,0,$D$19,1))) -> 0.08435752644 | V62: 81.51751859 | W62: 98.38902388 | X62: 4.829023881 | Y62: 0.0339119403 | Z62: 12.81625075 | AA62: 0.3751357254 | AB62: 1.875678627 | AC62: 0.02861371768 | AD62: 95.12929792 | AW62: 3742000
A63: 31 | B63: =IF(A63>$B$30,NA(),IF($A63>$A$8,"",OFFSET(InputPriceData!$B$15,$A63+$A$11,0,1,1))) -> 2022-05-24 | C63: =IF(A63>$B$30,NA(),IF($A63>$A$8,"",OFFSET(InputPriceData!$G$15,CalculationsAndCharts!$A63+$A$11,IF($C$5,8,0),1,1))) -> 5932000 | D63: =IF(A63>$B$30,NA(),IF(A63>$A$8,"",OFFSET(InputPriceData!$C$15,CalculationsAndCharts!$A63+$A$11,IF($C$5,8,0),1,1))) -> 91.2 | E63: =IF(A63>$B$30,NA(),IF(A63>$A$8,"",OFFSET(InputPriceData!$D$15,CalculationsAndCharts!$A63+$A$11,IF($C$5,8,0),1,1))) -> 93.42 | F63: =IF(A63>$B$30,NA(),IF(A63>$A$8,"",OFFSET(InputPriceData!$E$15,CalculationsAndCharts!$A63+$A$11,IF($C$5,8,0),1,1))) -> 90.47 | G63: =IF(A63>$B$30,NA(),IF(A63>$A$8,"",OFFSET(InputPriceData!$F$15,CalculationsAndCharts!$A63+$A$11,IF($C$5,8,0),1,1))) -> 93.21 | H63: 20 | I63: =IF($A63>$I$30,NA(),LINEST(OFFSET(G63,0,0,$A$19,1),OFFSET($H$33,0,0,$A$19,1))) -> -0.1898492197 | J63: 102.2501551 | K63: 92.75769412 | L63: 0.4523058824 | M63: 0.03508235294 | N63: 7.196658824 | O63: 0.05825861542 | P63: 0.2912930771 | Q63: 0.0506389442 | R63: 92.03248256 | S63: 95.29700239 | T63: 170 | U63: =IF($A63>$U$30,NA(),LINEST(OFFSET($G63,0,0,$D$19,1),OFFSET($T$33,0,0,$D$19,1))) -> 0.08447171679 | V63: 81.46639246 | W63: 98.36073582 | X63: 5.150735821 | Y63: 0.0339119403 | Z63: 12.81625075 | AA63: 0.4003041977 | AB63: 2.001520989 | AC63: 0.02986588048 | AD63: 95.17552407 | AW63: 5932000
A64: 32 | B64: =IF(A64>$B$30,NA(),IF($A64>$A$8,"",OFFSET(InputPriceData!$B$15,$A64+$A$11,0,1,1))) -> 2022-05-23 | C64: =IF(A64>$B$30,NA(),IF($A64>$A$8,"",OFFSET(InputPriceData!$G$15,CalculationsAndCharts!$A64+$A$11,IF($C$5,8,0),1,1))) -> 4701300 | D64: =IF(A64>$B$30,NA(),IF(A64>$A$8,"",OFFSET(InputPriceData!$C$15,CalculationsAndCharts!$A64+$A$11,IF($C$5,8,0),1,1))) -> 90.6 | E64: =IF(A64>$B$30,NA(),IF(A64>$A$8,"",OFFSET(InputPriceData!$D$15,CalculationsAndCharts!$A64+$A$11,IF($C$5,8,0),1,1))) -> 92.02 | F64: =IF(A64>$B$30,NA(),IF(A64>$A$8,"",OFFSET(InputPriceData!$E$15,CalculationsAndCharts!$A64+$A$11,IF($C$5,8,0),1,1))) -> 90 | G64: =IF(A64>$B$30,NA(),IF(A64>$A$8,"",OFFSET(InputPriceData!$F$15,CalculationsAndCharts!$A64+$A$11,IF($C$5,8,0),1,1))) -> 91.83 | H64: 19 | I64: =IF($A64>$I$30,NA(),LINEST(OFFSET(G64,0,0,$A$19,1),OFFSET($H$33,0,0,$A$19,1))) -> -0.1773330132 | J64: 101.9959918 | K64: 93.12934118 | L64: 1.299341176 | M64: 0.03508235294 | N64: 7.196658824 | O64: 0.1765335927 | P64: 0.8826679633 | Q64: 0.07383011621 | R64: 91.96967375 | S64: 95.38218616 | T64: 169 | U64: =IF($A64>$U$30,NA(),LINEST(OFFSET($G64,0,0,$D$19,1),OFFSET($T$33,0,0,$D$19,1))) -> 0.08471035776 | V64: 81.40170905 | W64: 98.3437806 | X64: 6.513780597 | Y64: 0.0339119403 | Z64: 12.81625075 | AA64: 0.5069392038 | AB64: 2.534696019 | AC64: 0.03517110467 | AD64: 95.23603334 | AW64: 4701300
A65: 33 | B65: =IF(A65>$B$30,NA(),IF($A65>$A$8,"",OFFSET(InputPriceData!$B$15,$A65+$A$11,0,1,1))) -> 2022-05-20 | C65: =IF(A65>$B$30,NA(),IF($A65>$A$8,"",OFFSET(InputPriceData!$G$15,CalculationsAndCharts!$A65+$A$11,IF($C$5,8,0),1,1))) -> 6585500 | D65: =IF(A65>$B$30,NA(),IF(A65>$A$8,"",OFFSET(InputPriceData!$C$15,CalculationsAndCharts!$A65+$A$11,IF($C$5,8,0),1,1))) -> 90.84 | E65: =IF(A65>$B$30,NA(),IF(A65>$A$8,"",OFFSET(InputPriceData!$D$15,CalculationsAndCharts!$A65+$A$11,IF($C$5,8,0),1,1))) -> 91.17 | F65: =IF(A65>$B$30,NA(),IF(A65>$A$8,"",OFFSET(InputPriceData!$E$15,CalculationsAndCharts!$A65+$A$11,IF($C$5,8,0),1,1))) -> 88.43 | G65: =IF(A65>$B$30,NA(),IF(A65>$A$8,"",OFFSET(InputPriceData!$F$15,CalculationsAndCharts!$A65+$A$11,IF($C$5,8,0),1,1))) -> 90.08 | H65: 18 | I65: =IF($A65>$I$30,NA(),LINEST(OFFSET(G65,0,0,$A$19,1),OFFSET($H$33,0,0,$A$19,1))) -> -0.1608427371 | J65: 101.6656898 | K65: 93.62355294 | L65: 3.543552941 | M65: 0.03508235294 | N65: 7.196658824 | O65: 0.4899019933 | P65: 2.449509967 | Q65: 0.1352749007 | R65: 91.98080791 | S65: 95.52717335 | T65: 168 | U65: =IF($A65>$U$30,NA(),LINEST(OFFSET($G65,0,0,$D$19,1),OFFSET($T$33,0,0,$D$19,1))) -> 0.08507169429 | V65: 81.33404472 | W65: 98.34838358 | X65: 8.268383582 | Y65: 0.0339119403 | Z65: 12.81625075 | AA65: 0.6442069614 | AB65: 3.221034807 | AC65: 0.04200034634 | AD65: 95.36019417 | AX65: 6585500
A66: 34 | B66: =IF(A66>$B$30,NA(),IF($A66>$A$8,"",OFFSET(InputPriceData!$B$15,$A66+$A$11,0,1,1))) -> 2022-05-19 | C66: =IF(A66>$B$30,NA(),IF($A66>$A$8,"",OFFSET(InputPriceData!$G$15,CalculationsAndCharts!$A66+$A$11,IF($C$5,8,0),1,1))) -> 5234700 | D66: =IF(A66>$B$30,NA(),IF(A66>$A$8,"",OFFSET(InputPriceData!$C$15,CalculationsAndCharts!$A66+$A$11,IF($C$5,8,0),1,1))) -> 91.38 | E66: =IF(A66>$B$30,NA(),IF(A66>$A$8,"",OFFSET(InputPriceData!$D$15,CalculationsAndCharts!$A66+$A$11,IF($C$5,8,0),1,1))) -> 92.46 | F66: =IF(A66>$B$30,NA(),IF(A66>$A$8,"",OFFSET(InputPriceData!$E$15,CalculationsAndCharts!$A66+$A$11,IF($C$5,8,0),1,1))) -> 89.54 | G66: =IF(A66>$B$30,NA(),IF(A66>$A$8,"",OFFSET(InputPriceData!$F$15,CalculationsAndCharts!$A66+$A$11,IF($C$5,8,0),1,1))) -> 90.25 | H66: 17 | I66: =IF($A66>$I$30,NA(),LINEST(OFFSET(G66,0,0,$A$19,1),OFFSET($H$33,0,0,$A$19,1))) -> -0.1433512605 | J66: 101.3764571 | K66: 94.20889412 | L66: 3.958894118 | M66: 0.03508235294 | N66: 7.196658824 | O66: 0.5478977682 | P66: 2.739488841 | Q66: 0.1466466212 | R66: 92.27816438 | S66: 95.74950696 | T66: 167 | U66: =IF($A66>$U$30,NA(),LINEST(OFFSET($G66,0,0,$D$19,1),OFFSET($T$33,0,0,$D$19,1))) -> 0.08578893722 | V66: 81.23596181 | W66: 98.39374925 | X66: 8.143749254 | Y66: 0.0339119403 | Z66: 12.81625075 | AA66: 0.6344564509 | AB66: 3.172282255 | AC66: 0.04151524631 | AD66: 95.59168693 | AX66: 5234700
A67: 35 | B67: =IF(A67>$B$30,NA(),IF($A67>$A$8,"",OFFSET(InputPriceData!$B$15,$A67+$A$11,0,1,1))) -> 2022-05-18 | C67: =IF(A67>$B$30,NA(),IF($A67>$A$8,"",OFFSET(InputPriceData!$G$15,CalculationsAndCharts!$A67+$A$11,IF($C$5,8,0),1,1))) -> 5843100 | D67: =IF(A67>$B$30,NA(),IF(A67>$A$8,"",OFFSET(InputPriceData!$C$15,CalculationsAndCharts!$A67+$A$11,IF($C$5,8,0),1,1))) -> 93.77 | E67: =IF(A67>$B$30,NA(),IF(A67>$A$8,"",OFFSET(InputPriceData!$D$15,CalculationsAndCharts!$A67+$A$11,IF($C$5,8,0),1,1))) -> 94.63 | F67: =IF(A67>$B$30,NA(),IF(A67>$A$8,"",OFFSET(InputPriceData!$E$15,CalculationsAndCharts!$A67+$A$11,IF($C$5,8,0),1,1))) -> 91.73 | G67: =IF(A67>$B$30,NA(),IF(A67>$A$8,"",OFFSET(InputPriceData!$F$15,CalculationsAndCharts!$A67+$A$11,IF($C$5,8,0),1,1))) -> 92.06 | H67: 16 | I67: =IF($A67>$I$30,NA(),LINEST(OFFSET(G67,0,0,$A$19,1),OFFSET($H$33,0,0,$A$19,1))) -> -0.1255466987 | J67: 101.0760408 | K67: 94.79870588 | L67: 2.738705882 | M67: 0.03508235294 | N67: 7.196658824 | O67: 0.3775179307 | P67: 1.887589653 | Q67: 0.1132388099 | R67: 92.62669931 | S67: 95.97397663 | T67: 166 | U67: =IF($A67>$U$30,NA(),LINEST(OFFSET($G67,0,0,$D$19,1),OFFSET($T$33,0,0,$D$19,1))) -> 0.0866279757 | V67: 81.11958844 | W67: 98.44518358 | X67: 6.385183582 | Y67: 0.0339119403 | Z67: 12.81625075 | AA67: 0.4968786807 | AB67: 2.484393403 | AC67: 0.03467058113 | AD67: 95.82305362 | AX67: 5843100
A68: 36 | B68: =IF(A68>$B$30,NA(),IF($A68>$A$8,"",OFFSET(InputPriceData!$B$15,$A68+$A$11,0,1,1))) -> 2022-05-17 | C68: =IF(A68>$B$30,NA(),IF($A68>$A$8,"",OFFSET(InputPriceData!$G$15,CalculationsAndCharts!$A68+$A$11,IF($C$5,8,0),1,1))) -> 4447200 | D68: =IF(A68>$B$30,NA(),IF(A68>$A$8,"",OFFSET(InputPriceData!$C$15,CalculationsAndCharts!$A68+$A$11,IF($C$5,8,0),1,1))) -> 93.77 | E68: =IF(A68>$B$30,NA(),IF(A68>$A$8,"",OFFSET(InputPriceData!$D$15,CalculationsAndCharts!$A68+$A$11,IF($C$5,8,0),1,1))) -> 94.57 | F68: =IF(A68>$B$30,NA(),IF(A68>$A$8,"",OFFSET(InputPriceData!$E$15,CalculationsAndCharts!$A68+$A$11,IF($C$5,8,0),1,1))) -> 92.94 | G68: =IF(A68>$B$30,NA(),IF(A68>$A$8,"",OFFSET(InputPriceData!$F$15,CalculationsAndCharts!$A68+$A$11,IF($C$5,8,0),1,1))) -> 94.39 | H68: 15 | I68: =IF($A68>$I$30,NA(),LINEST(OFFSET(G68,0,0,$A$19,1),OFFSET($H$33,0,0,$A$19,1))) -> -0.102872509 | J68: 100.542449 | K68: 95.39882353 | L68: 1.008823529 | M68: 0.03508235294 | N68: 7.196658824 | O68: 0.1359674341 | P68: 0.6798371703 | Q68: 0.06587596746 | R68: 92.69906643 | S68: 96.13373078 | T68: 165 | U68: =IF($A68>$U$30,NA(),LINEST(OFFSET($G68,0,0,$D$19,1),OFFSET($T$33,0,0,$D$19,1))) -> 0.08687110178 | V68: 81.06455427 | W68: 98.43877463 | X68: 4.048774627 | Y68: 0.0339119403 | Z68: 12.81625075 | AA68: 0.314094529 | AB68: 1.570472645 | AC68: 0.02557684224 | AD68: 95.95820671 | AW68: 4447200
A69: 37 | B69: =IF(A69>$B$30,NA(),IF($A69>$A$8,"",OFFSET(InputPriceData!$B$15,$A69+$A$11,0,1,1))) -> 2022-05-16 | C69: =IF(A69>$B$30,NA(),IF($A69>$A$8,"",OFFSET(InputPriceData!$G$15,CalculationsAndCharts!$A69+$A$11,IF($C$5,8,0),1,1))) -> 5158500 | D69: =IF(A69>$B$30,NA(),IF(A69>$A$8,"",OFFSET(InputPriceData!$C$15,CalculationsAndCharts!$A69+$A$11,IF($C$5,8,0),1,1))) -> 91.3 | E69: =IF(A69>$B$30,NA(),IF(A69>$A$8,"",OFFSET(InputPriceData!$D$15,CalculationsAndCharts!$A69+$A$11,IF($C$5,8,0),1,1))) -> 92.98 | F69: =IF(A69>$B$30,NA(),IF(A69>$A$8,"",OFFSET(InputPriceData!$E$15,CalculationsAndCharts!$A69+$A$11,IF($C$5,8,0),1,1))) -> 91.26 | G69: =IF(A69>$B$30,NA(),IF(A69>$A$8,"",OFFSET(InputPriceData!$F$15,CalculationsAndCharts!$A69+$A$11,IF($C$5,8,0),1,1))) -> 91.93 | H69: 14 | I69: =IF($A69>$I$30,NA(),LINEST(OFFSET(G69,0,0,$A$19,1),OFFSET($H$33,0,0,$A$19,1))) -> -0.09350204082 | J69: 100.367902 | K69: 95.6928 | L69: 3.7628 | M69: 0.03508235294 | N69: 7.196658824 | O69: 0.5205163503 | P69: 2.602581752 | Q69: 0.1412777158 | R69: 92.579819 | S69: 96.20490346 | T69: 164 | U69: =IF($A69>$U$30,NA(),LINEST(OFFSET($G69,0,0,$D$19,1),OFFSET($T$33,0,0,$D$19,1))) -> 0.08695229881 | V69: 81.00749397 | W69: 98.39795373 | X69: 6.467953731 | Y69: 0.0339119403 | Z69: 12.81625075 | AA69: 0.5033540331 | AB69: 2.516770166 | AC69: 0.03499273797 | AD69: 95.9993693 | AW69: 5158500
A70: 38 | B70: =IF(A70>$B$30,NA(),IF($A70>$A$8,"",OFFSET(InputPriceData!$B$15,$A70+$A$11,0,1,1))) -> 2022-05-13 | C70: =IF(A70>$B$30,NA(),IF($A70>$A$8,"",OFFSET(InputPriceData!$G$15,CalculationsAndCharts!$A70+$A$11,IF($C$5,8,0),1,1))) -> 5465600 | D70: =IF(A70>$B$30,NA(),IF(A70>$A$8,"",OFFSET(InputPriceData!$C$15,CalculationsAndCharts!$A70+$A$11,IF($C$5,8,0),1,1))) -> 91.5 | E70: =IF(A70>$B$30,NA(),IF(A70>$A$8,"",OFFSET(InputPriceData!$D$15,CalculationsAndCharts!$A70+$A$11,IF($C$5,8,0),1,1))) -> 92.06 | F70: =IF(A70>$B$30,NA(),IF(A70>$A$8,"",OFFSET(InputPriceData!$E$15,CalculationsAndCharts!$A70+$A$11,IF($C$5,8,0),1,1))) -> 90.55 | G70: =IF(A70>$B$30,NA(),IF(A70>$A$8,"",OFFSET(InputPriceData!$F$15,CalculationsAndCharts!$A70+$A$11,IF($C$5,8,0),1,1))) -> 91.37 | H70: 13 | I70: =IF($A70>$I$30,NA(),LINEST(OFFSET(G70,0,0,$A$19,1),OFFSET($H$33,0,0,$A$19,1))) -> -0.08106842737 | J70: 100.1922449 | K70: 96.13882353 | L70: 4.768823529 | M70: 0.03508235294 | N70: 7.196658824 | O70: 0.6609915004 | P70: 3.304957502 | Q70: 0.1688218628 | R70: 92.68672777 | S70: 96.37938932 | T70: 163 | U70: =IF($A70>$U$30,NA(),LINEST(OFFSET($G70,0,0,$D$19,1),OFFSET($T$33,0,0,$D$19,1))) -> 0.08734042601 | V70: 80.93353719 | W70: 98.40162239 | X70: 7.031622388 | Y70: 0.0339119403 | Z70: 12.81625075 | AA70: 0.5474514918 | AB70: 2.737257459 | AC70: 0.03718664138 | AD70: 96.14693127 | AX70: 5465600
A71: 39 | B71: =IF(A71>$B$30,NA(),IF($A71>$A$8,"",OFFSET(InputPriceData!$B$15,$A71+$A$11,0,1,1))) -> 2022-05-12 | C71: =IF(A71>$B$30,NA(),IF($A71>$A$8,"",OFFSET(InputPriceData!$G$15,CalculationsAndCharts!$A71+$A$11,IF($C$5,8,0),1,1))) -> 6356200 | D71: =IF(A71>$B$30,NA(),IF(A71>$A$8,"",OFFSET(InputPriceData!$C$15,CalculationsAndCharts!$A71+$A$11,IF($C$5,8,0),1,1))) -> 90.31 | E71: =IF(A71>$B$30,NA(),IF(A71>$A$8,"",OFFSET(InputPriceData!$D$15,CalculationsAndCharts!$A71+$A$11,IF($C$5,8,0),1,1))) -> 91.92 | F71: =IF(A71>$B$30,NA(),IF(A71>$A$8,"",OFFSET(InputPriceData!$E$15,CalculationsAndCharts!$A71+$A$11,IF($C$5,8,0),1,1))) -> 89.41 | G71: =IF(A71>$B$30,NA(),IF(A71>$A$8,"",OFFSET(InputPriceData!$F$15,CalculationsAndCharts!$A71+$A$11,IF($C$5,8,0),1,1))) -> 90.94 | H71: 12 | I71: =IF($A71>$I$30,NA(),LINEST(OFFSET(G71,0,0,$A$19,1),OFFSET($H$33,0,0,$A$19,1))) -> -0.06714909964 | J71: 99.99470204 | K71: 96.63724706 | L71: 5.697247059 | M71: 0.03508235294 | N71: 7.196658824 | O71: 0.7906310474 | P71: 3.953155237 | Q71: 0.1942413818 | R71: 92.95417037 | S71: 96.58385419 | T71: 162 | U71: =IF($A71>$U$30,NA(),LINEST(OFFSET($G71,0,0,$D$19,1),OFFSET($T$33,0,0,$D$19,1))) -> 0.08769950499 | V71: 80.86874975 | W71: 98.40865075 | X71: 7.468650746 | Y71: 0.0339119403 | Z71: 12.81625075 | AA71: 0.581641507 | AB71: 2.908207535 | AC71: 0.03888763716 | AD71: 96.3314302 | AW71: 6356200
A72: 40 | B72: =IF(A72>$B$30,NA(),IF($A72>$A$8,"",OFFSET(InputPriceData!$B$15,$A72+$A$11,0,1,1))) -> 2022-05-11 | C72: =IF(A72>$B$30,NA(),IF($A72>$A$8,"",OFFSET(InputPriceData!$G$15,CalculationsAndCharts!$A72+$A$11,IF($C$5,8,0),1,1))) -> 6493900 | D72: =IF(A72>$B$30,NA(),IF(A72>$A$8,"",OFFSET(InputPriceData!$C$15,CalculationsAndCharts!$A72+$A$11,IF($C$5,8,0),1,1))) -> 90.73 | E72: =IF(A72>$B$30,NA(),IF(A72>$A$8,"",OFFSET(InputPriceData!$D$15,CalculationsAndCharts!$A72+$A$11,IF($C$5,8,0),1,1))) -> 93.57 | F72: =IF(A72>$B$30,NA(),IF(A72>$A$8,"",OFFSET(InputPriceData!$E$15,CalculationsAndCharts!$A72+$A$11,IF($C$5,8,0),1,1))) -> 90.27 | G72: =IF(A72>$B$30,NA(),IF(A72>$A$8,"",OFFSET(InputPriceData!$F$15,CalculationsAndCharts!$A72+$A$11,IF($C$5,8,0),1,1))) -> 90.46 | H72: 11 | I72: =IF($A72>$I$30,NA(),LINEST(OFFSET(G72,0,0,$A$19,1),OFFSET($H$33,0,0,$A$19,1))) -> -0.05353853541 | J72: 99.83163265 | K72: 97.15470588 | L72: 6.694705882 | M72: 0.03508235294 | N72: 7.196658824 | O72: 0.9299102728 | P72: 4.649551364 | Q72: 0.2215510339 | R72: 93.4397193 | S72: 96.81421558 | T72: 161 | U72: =IF($A72>$U$30,NA(),LINEST(OFFSET($G72,0,0,$D$19,1),OFFSET($T$33,0,0,$D$19,1))) -> 0.08818046951 | V72: 80.79166281 | W72: 98.42775672 | X72: 7.967756716 | Y72: 0.0339119403 | Z72: 12.81625075 | AA72: 0.6206880366 | AB72: 3.103440183 | AC72: 0.04083025058 | AD72: 96.54957324 | AX72: 6493900
A73: 41 | B73: =IF(A73>$B$30,NA(),IF($A73>$A$8,"",OFFSET(InputPriceData!$B$15,$A73+$A$11,0,1,1))) -> 2022-05-10 | C73: =IF(A73>$B$30,NA(),IF($A73>$A$8,"",OFFSET(InputPriceData!$G$15,CalculationsAndCharts!$A73+$A$11,IF($C$5,8,0),1,1))) -> 7526300 | D73: =IF(A73>$B$30,NA(),IF(A73>$A$8,"",OFFSET(InputPriceData!$C$15,CalculationsAndCharts!$A73+$A$11,IF($C$5,8,0),1,1))) -> 91.89 | E73: =IF(A73>$B$30,NA(),IF(A73>$A$8,"",OFFSET(InputPriceData!$D$15,CalculationsAndCharts!$A73+$A$11,IF($C$5,8,0),1,1))) -> 93.3 | F73: =IF(A73>$B$30,NA(),IF(A73>$A$8,"",OFFSET(InputPriceData!$E$15,CalculationsAndCharts!$A73+$A$11,IF($C$5,8,0),1,1))) -> 90.82 | G73: =IF(A73>$B$30,NA(),IF(A73>$A$8,"",OFFSET(InputPriceData!$F$15,CalculationsAndCharts!$A73+$A$11,IF($C$5,8,0),1,1))) -> 91.15 | H73: 10 | I73: =IF($A73>$I$30,NA(),LINEST(OFFSET(G73,0,0,$A$19,1),OFFSET($H$33,0,0,$A$19,1))) -> -0.04252773109 | J73: 99.78405714 | K73: 97.65767059 | L73: 6.507670588 | M73: 0.03508235294 | N73: 7.196658824 | O73: 0.9037937753 | P73: 4.518968876 | Q73: 0.216430152 | R73: 94.28776447 | S73: 97.07357132 | T73: 160 | U73: =IF($A73>$U$30,NA(),LINEST(OFFSET($G73,0,0,$D$19,1),OFFSET($T$33,0,0,$D$19,1))) -> 0.0885759169 | V73: 80.73057035 | W73: 98.44575373 | X73: 7.295753731 | Y73: 0.0339119403 | Z73: 12.81625075 | AA73: 0.5681152645 | AB73: 2.840576322 | AC73: 0.03821468977 | AD73: 96.80879618 | AX73: 7526300
A74: 42 | B74: =IF(A74>$B$30,NA(),IF($A74>$A$8,"",OFFSET(InputPriceData!$B$15,$A74+$A$11,0,1,1))) -> 2022-05-09 | C74: =IF(A74>$B$30,NA(),IF($A74>$A$8,"",OFFSET(InputPriceData!$G$15,CalculationsAndCharts!$A74+$A$11,IF($C$5,8,0),1,1))) -> 6071900 | D74: =IF(A74>$B$30,NA(),IF(A74>$A$8,"",OFFSET(InputPriceData!$C$15,CalculationsAndCharts!$A74+$A$11,IF($C$5,8,0),1,1))) -> 93.97 | E74: =IF(A74>$B$30,NA(),IF(A74>$A$8,"",OFFSET(InputPriceData!$D$15,CalculationsAndCharts!$A74+$A$11,IF($C$5,8,0),1,1))) -> 94.23 | F74: =IF(A74>$B$30,NA(),IF(A74>$A$8,"",OFFSET(InputPriceData!$E$15,CalculationsAndCharts!$A74+$A$11,IF($C$5,8,0),1,1))) -> 90.71 | G74: =IF(A74>$B$30,NA(),IF(A74>$A$8,"",OFFSET(InputPriceData!$F$15,CalculationsAndCharts!$A74+$A$11,IF($C$5,8,0),1,1))) -> 91.21 | H74: 9 | I74: =IF($A74>$I$30,NA(),LINEST(OFFSET(G74,0,0,$A$19,1),OFFSET($H$33,0,0,$A$19,1))) -> -0.03201632653 | J74: 99.73481633 | K74: 98.134 | L74: 6.924 | M74: 0.03508235294 | N74: 7.196658824 | O74: 0.9619275414 | P74: 4.809637707 | Q74: 0.2278289297 | R74: 95.1544477 | S74: 97.31534974 | T74: 159 | U74: =IF($A74>$U$30,NA(),LINEST(OFFSET($G74,0,0,$D$19,1),OFFSET($T$33,0,0,$D$19,1))) -> 0.08919228231 | V74: 80.63272563 | W74: 98.47118209 | X74: 7.26118209 | Y74: 0.0339119403 | Z74: 12.81625075 | AA74: 0.5654106231 | AB74: 2.827053116 | AC74: 0.0380801305 | AD74: 97.03363757 | AX74: 6071900
A75: 43 | B75: =IF(A75>$B$30,NA(),IF($A75>$A$8,"",OFFSET(InputPriceData!$B$15,$A75+$A$11,0,1,1))) -> 2022-05-06 | C75: =IF(A75>$B$30,NA(),IF($A75>$A$8,"",OFFSET(InputPriceData!$G$15,CalculationsAndCharts!$A75+$A$11,IF($C$5,8,0),1,1))) -> 5295000 | D75: =IF(A75>$B$30,NA(),IF(A75>$A$8,"",OFFSET(InputPriceData!$C$15,CalculationsAndCharts!$A75+$A$11,IF($C$5,8,0),1,1))) -> 95.14 | E75: =IF(A75>$B$30,NA(),IF(A75>$A$8,"",OFFSET(InputPriceData!$D$15,CalculationsAndCharts!$A75+$A$11,IF($C$5,8,0),1,1))) -> 95.48 | F75: =IF(A75>$B$30,NA(),IF(A75>$A$8,"",OFFSET(InputPriceData!$E$15,CalculationsAndCharts!$A75+$A$11,IF($C$5,8,0),1,1))) -> 93.16 | G75: =IF(A75>$B$30,NA(),IF(A75>$A$8,"",OFFSET(InputPriceData!$F$15,CalculationsAndCharts!$A75+$A$11,IF($C$5,8,0),1,1))) -> 94.73 | H75: 8 | I75: =IF($A75>$I$30,NA(),LINEST(OFFSET(G75,0,0,$A$19,1),OFFSET($H$33,0,0,$A$19,1))) -> -0.009895318127 | J75: 99.29733061 | K75: 98.80256471 | L75: 4.072564706 | M75: 0.03508235294 | N75: 7.196658824 | O75: 0.5637700539 | P75: 2.81885027 | Q75: 0.1497588341 | R75: 96.31825625 | S75: 97.56454769 | T75: 158 | U75: =IF($A75>$U$30,NA(),LINEST(OFFSET($G75,0,0,$D$19,1),OFFSET($T$33,0,0,$D$19,1))) -> 0.08980972774 | V75: 80.53377236 | W75: 98.49571791 | X75: 3.76571791 | Y75: 0.0339119403 | Z75: 12.81625075 | AA75: 0.2919501687 | AB75: 1.459750843 | AC75: 0.02447513277 | AD75: 97.26418159 | AX75: 5295000
A76: 44 | B76: =IF(A76>$B$30,NA(),IF($A76>$A$8,"",OFFSET(InputPriceData!$B$15,$A76+$A$11,0,1,1))) -> 2022-05-05 | C76: =IF(A76>$B$30,NA(),IF($A76>$A$8,"",OFFSET(InputPriceData!$G$15,CalculationsAndCharts!$A76+$A$11,IF($C$5,8,0),1,1))) -> 5906500 | D76: =IF(A76>$B$30,NA(),IF(A76>$A$8,"",OFFSET(InputPriceData!$C$15,CalculationsAndCharts!$A76+$A$11,IF($C$5,8,0),1,1))) -> 97.22 | E76: =IF(A76>$B$30,NA(),IF(A76>$A$8,"",OFFSET(InputPriceData!$D$15,CalculationsAndCharts!$A76+$A$11,IF($C$5,8,0),1,1))) -> 97.62 | F76: =IF(A76>$B$30,NA(),IF(A76>$A$8,"",OFFSET(InputPriceData!$E$15,CalculationsAndCharts!$A76+$A$11,IF($C$5,8,0),1,1))) -> 94.84 | G76: =IF(A76>$B$30,NA(),IF(A76>$A$8,"",OFFSET(InputPriceData!$F$15,CalculationsAndCharts!$A76+$A$11,IF($C$5,8,0),1,1))) -> 95.75 | H76: 7 | I76: =IF($A76>$I$30,NA(),LINEST(OFFSET(G76,0,0,$A$19,1),OFFSET($H$33,0,0,$A$19,1))) -> 0.01327202881 | J76: 98.68576327 | K76: 99.34936471 | L76: 3.599364706 | M76: 0.03508235294 | N76: 7.196658824 | O76: 0.4976952166 | P76: 2.488476083 | Q76: 0.1368029837 | R76: 96.59800677 | S76: 97.68024351 | T76: 157 | U76: =IF($A76>$U$30,NA(),LINEST(OFFSET($G76,0,0,$D$19,1),OFFSET($T$33,0,0,$D$19,1))) -> 0.0898839571 | V76: 80.47186231 | W76: 98.44865373 | X76: 2.698653731 | Y76: 0.0339119403 | Z76: 12.81625075 | AA76: 0.2084705961 | AB76: 1.042352981 | AC76: 0.02032192021 | AD76: 97.32776217 | AX76: 5906500
A77: 45 | B77: =IF(A77>$B$30,NA(),IF($A77>$A$8,"",OFFSET(InputPriceData!$B$15,$A77+$A$11,0,1,1))) -> 2022-05-04 | C77: =IF(A77>$B$30,NA(),IF($A77>$A$8,"",OFFSET(InputPriceData!$G$15,CalculationsAndCharts!$A77+$A$11,IF($C$5,8,0),1,1))) -> 6160800 | D77: =IF(A77>$B$30,NA(),IF(A77>$A$8,"",OFFSET(InputPriceData!$C$15,CalculationsAndCharts!$A77+$A$11,IF($C$5,8,0),1,1))) -> 94.43 | E77: =IF(A77>$B$30,NA(),IF(A77>$A$8,"",OFFSET(InputPriceData!$D$15,CalculationsAndCharts!$A77+$A$11,IF($C$5,8,0),1,1))) -> 97.44 | F77: =IF(A77>$B$30,NA(),IF(A77>$A$8,"",OFFSET(InputPriceData!$E$15,CalculationsAndCharts!$A77+$A$11,IF($C$5,8,0),1,1))) -> 94.39 | G77: =IF(A77>$B$30,NA(),IF(A77>$A$8,"",OFFSET(InputPriceData!$F$15,CalculationsAndCharts!$A77+$A$11,IF($C$5,8,0),1,1))) -> 97.18 | H77: 6 | I77: =IF($A77>$I$30,NA(),LINEST(OFFSET(G77,0,0,$A$19,1),OFFSET($H$33,0,0,$A$19,1))) -> 0.03972388956 | J77: 97.92004082 | K77: 99.90623529 | L77: 2.726235294 | M77: 0.03508235294 | N77: 7.196658824 | O77: 0.3757766118 | P77: 1.878883059 | Q77: 0.1128973749 | R77: 96.73240234 | S77: 97.75902896 | T77: 156 | U77: =IF($A77>$U$30,NA(),LINEST(OFFSET($G77,0,0,$D$19,1),OFFSET($T$33,0,0,$D$19,1))) -> 0.08967763444 | V77: 80.43674774 | W77: 98.37227463 | X77: 1.192274627 | Y77: 0.0339119403 | Z77: 12.81625075 | AA77: 0.09062212355 | AB77: 0.4531106178 | AC77: 0.01445881212 | AD77: 97.36049043 | AW77: 6160800
A78: 46 | B78: =IF(A78>$B$30,NA(),IF($A78>$A$8,"",OFFSET(InputPriceData!$B$15,$A78+$A$11,0,1,1))) -> 2022-05-03 | C78: =IF(A78>$B$30,NA(),IF($A78>$A$8,"",OFFSET(InputPriceData!$G$15,CalculationsAndCharts!$A78+$A$11,IF($C$5,8,0),1,1))) -> 5612200 | D78: =IF(A78>$B$30,NA(),IF(A78>$A$8,"",OFFSET(InputPriceData!$C$15,CalculationsAndCharts!$A78+$A$11,IF($C$5,8,0),1,1))) -> 94.61 | E78: =IF(A78>$B$30,NA(),IF(A78>$A$8,"",OFFSET(InputPriceData!$D$15,CalculationsAndCharts!$A78+$A$11,IF($C$5,8,0),1,1))) -> 95.56 | F78: =IF(A78>$B$30,NA(),IF(A78>$A$8,"",OFFSET(InputPriceData!$E$15,CalculationsAndCharts!$A78+$A$11,IF($C$5,8,0),1,1))) -> 93.76 | G78: =IF(A78>$B$30,NA(),IF(A78>$A$8,"",OFFSET(InputPriceData!$F$15,CalculationsAndCharts!$A78+$A$11,IF($C$5,8,0),1,1))) -> 94.83 | H78: 5 | I78: =IF($A78>$I$30,NA(),LINEST(OFFSET(G78,0,0,$A$19,1),OFFSET($H$33,0,0,$A$19,1))) -> 0.0592240096 | J78: 97.32858776 | K78: 100.2897882 | L78: 5.459788235 | M78: 0.03508235294 | N78: 7.196658824 | O78: 0.7574737077 | P78: 3.787368539 | Q78: 0.1877399427 | R78: 96.67543869 | S78: 97.7826628 | T78: 155 | U78: =IF($A78>$U$30,NA(),LINEST(OFFSET($G78,0,0,$D$19,1),OFFSET($T$33,0,0,$D$19,1))) -> 0.08949867997 | V78: 80.38303266 | W78: 98.28276866 | X78: 3.452768657 | Y78: 0.0339119403 | Z78: 12.81625075 | AA78: 0.2674672271 | AB78: 1.337336136 | AC78: 0.02325707598 | AD78: 97.36313839 | AW78: 5612200
A79: 47 | B79: =IF(A79>$B$30,NA(),IF($A79>$A$8,"",OFFSET(InputPriceData!$B$15,$A79+$A$11,0,1,1))) -> 2022-05-02 | C79: =IF(A79>$B$30,NA(),IF($A79>$A$8,"",OFFSET(InputPriceData!$G$15,CalculationsAndCharts!$A79+$A$11,IF($C$5,8,0),1,1))) -> 7870600 | D79: =IF(A79>$B$30,NA(),IF(A79>$A$8,"",OFFSET(InputPriceData!$C$15,CalculationsAndCharts!$A79+$A$11,IF($C$5,8,0),1,1))) -> 93.95 | E79: =IF(A79>$B$30,NA(),IF(A79>$A$8,"",OFFSET(InputPriceData!$D$15,CalculationsAndCharts!$A79+$A$11,IF($C$5,8,0),1,1))) -> 94.76 | F79: =IF(A79>$B$30,NA(),IF(A79>$A$8,"",OFFSET(InputPriceData!$E$15,CalculationsAndCharts!$A79+$A$11,IF($C$5,8,0),1,1))) -> 91.85 | G79: =IF(A79>$B$30,NA(),IF(A79>$A$8,"",OFFSET(InputPriceData!$F$15,CalculationsAndCharts!$A79+$A$11,IF($C$5,8,0),1,1))) -> 93.66 | H79: 4 | I79: =IF($A79>$I$30,NA(),LINEST(OFFSET(G79,0,0,$A$19,1),OFFSET($H$33,0,0,$A$19,1))) -> 0.08442689076 | J79: 96.63531429 | K79: 100.8566588 | L79: 7.196658824 | M79: 0.03508235294 | N79: 7.196658824 | O79: 1 | P79: 5 | Q79: 0.2352941176 | R79: 97.10198011 | S79: 97.90317965 | T79: 154 | U79: =IF($A79>$U$30,NA(),LINEST(OFFSET($G79,0,0,$D$19,1),OFFSET($T$33,0,0,$D$19,1))) -> 0.09019875497 | V79: 80.23442513 | W79: 98.27417612 | X79: 4.614176119 | Y79: 0.0339119403 | Z79: 12.81625075 | AA79: 0.3583275525 | AB79: 1.791637762 | AC79: 0.02777749017 | AD79: 97.42345456 | AX79: 7870600
A80: 48 | B80: =IF(A80>$B$30,NA(),IF($A80>$A$8,"",OFFSET(InputPriceData!$B$15,$A80+$A$11,0,1,1))) -> 2022-04-29 | C80: =IF(A80>$B$30,NA(),IF($A80>$A$8,"",OFFSET(InputPriceData!$G$15,CalculationsAndCharts!$A80+$A$11,IF($C$5,8,0),1,1))) -> 5883000 | D80: =IF(A80>$B$30,NA(),IF(A80>$A$8,"",OFFSET(InputPriceData!$C$15,CalculationsAndCharts!$A80+$A$11,IF($C$5,8,0),1,1))) -> 97.89 | E80: =IF(A80>$B$30,NA(),IF(A80>$A$8,"",OFFSET(InputPriceData!$D$15,CalculationsAndCharts!$A80+$A$11,IF($C$5,8,0),1,1))) -> 98.3 | F80: =IF(A80>$B$30,NA(),IF(A80>$A$8,"",OFFSET(InputPriceData!$E$15,CalculationsAndCharts!$A80+$A$11,IF($C$5,8,0),1,1))) -> 94.05 | G80: =IF(A80>$B$30,NA(),IF(A80>$A$8,"",OFFSET(InputPriceData!$F$15,CalculationsAndCharts!$A80+$A$11,IF($C$5,8,0),1,1))) -> 94.35 | H80: 3 | I80: =IF($A80>$I$30,NA(),LINEST(OFFSET(G80,0,0,$A$19,1),OFFSET($H$33,0,0,$A$19,1))) -> 0.1099462185 | J80: 95.97697143 | K80: 101.4742824 | L80: 7.124282353 | M80: 0.03508235294 | N80: 7.124282353 | O80: 1 | P80: 5 | Q80: 0.2352941176 | R80: 98.16105091 | S80: 98.07637065 | T80: 153 | U80: =IF($A80>$U$30,NA(),LINEST(OFFSET($G80,0,0,$D$19,1),OFFSET($T$33,0,0,$D$19,1))) -> 0.09069054226 | V80: 80.1247005 | W80: 98.26280896 | X80: 3.912808955 | Y80: 0.0339119403 | Z80: 12.81625075 | AA80: 0.3034575342 | AB80: 1.517287671 | AC80: 0.02504763852 | AD80: 97.53098069 | AX80: 5883000
A81: 49 | B81: =IF(A81>$B$30,NA(),IF($A81>$A$8,"",OFFSET(InputPriceData!$B$15,$A81+$A$11,0,1,1))) -> 2022-04-28 | C81: =IF(A81>$B$30,NA(),IF($A81>$A$8,"",OFFSET(InputPriceData!$G$15,CalculationsAndCharts!$A81+$A$11,IF($C$5,8,0),1,1))) -> 6544200 | D81: =IF(A81>$B$30,NA(),IF(A81>$A$8,"",OFFSET(InputPriceData!$C$15,CalculationsAndCharts!$A81+$A$11,IF($C$5,8,0),1,1))) -> 98.41 | E81: =IF(A81>$B$30,NA(),IF(A81>$A$8,"",OFFSET(InputPriceData!$D$15,CalculationsAndCharts!$A81+$A$11,IF($C$5,8,0),1,1))) -> 98.67 | F81: =IF(A81>$B$30,NA(),IF(A81>$A$8,"",OFFSET(InputPriceData!$E$15,CalculationsAndCharts!$A81+$A$11,IF($C$5,8,0),1,1))) -> 96.32 | G81: =IF(A81>$B$30,NA(),IF(A81>$A$8,"",OFFSET(InputPriceData!$F$15,CalculationsAndCharts!$A81+$A$11,IF($C$5,8,0),1,1))) -> 97.5 | H81: 2 | I81: =IF($A81>$I$30,NA(),LINEST(OFFSET(G81,0,0,$A$19,1),OFFSET($H$33,0,0,$A$19,1))) -> 0.1328216086 | J81: 95.38004898 | K81: 102.0211294 | L81: 4.521129412 | M81: 0.01508235294 | N81: 6.243011765 | O81: 0.7235225002 | P81: 3.617612501 | Q81: 0.1810828432 | R81: 99.33368196 | S81: 98.22846741 | T81: 152 | U81: =IF($A81>$U$30,NA(),LINEST(OFFSET($G81,0,0,$D$19,1),OFFSET($T$33,0,0,$D$19,1))) -> 0.09084827871 | V81: 80.05219799 | W81: 98.22185373 | X81: 0.7218537313 | Y81: 0.0339119403 | Z81: 12.81625075 | AA81: 0.05381971183 | AB81: 0.2690985591 | AC81: 0.01262784636 | AD81: 97.61270371 | AX81: 6544200
A82: 50 | B82: =IF(A82>$B$30,NA(),IF($A82>$A$8,"",OFFSET(InputPriceData!$B$15,$A82+$A$11,0,1,1))) -> 2022-04-27 | C82: =IF(A82>$B$30,NA(),IF($A82>$A$8,"",OFFSET(InputPriceData!$G$15,CalculationsAndCharts!$A82+$A$11,IF($C$5,8,0),1,1))) -> 6632100 | D82: =IF(A82>$B$30,NA(),IF(A82>$A$8,"",OFFSET(InputPriceData!$C$15,CalculationsAndCharts!$A82+$A$11,IF($C$5,8,0),1,1))) -> 98.63 | E82: =IF(A82>$B$30,NA(),IF(A82>$A$8,"",OFFSET(InputPriceData!$D$15,CalculationsAndCharts!$A82+$A$11,IF($C$5,8,0),1,1))) -> 99.32 | F82: =IF(A82>$B$30,NA(),IF(A82>$A$8,"",OFFSET(InputPriceData!$E$15,CalculationsAndCharts!$A82+$A$11,IF($C$5,8,0),1,1))) -> 97.02 | G82: =IF(A82>$B$30,NA(),IF(A82>$A$8,"",OFFSET(InputPriceData!$F$15,CalculationsAndCharts!$A82+$A$11,IF($C$5,8,0),1,1))) -> 98.25 | H82: 1 | I82: =IF($A82>$I$30,NA(),LINEST(OFFSET(G82,0,0,$A$19,1),OFFSET($H$33,0,0,$A$19,1))) -> 0.1495879952 | J82: 94.86170612 | K82: 102.3411059 | L82: 4.091105882 | M82: 0.01508235294 | N82: 6.243011765 | O82: 0.6544749081 | P82: 3.27237454 | Q82: 0.1675440996 | R82: 99.73915441 | S82: 98.25820078 | T82: 151 | U82: =IF($A82>$U$30,NA(),LINEST(OFFSET($G82,0,0,$D$19,1),OFFSET($T$33,0,0,$D$19,1))) -> 0.09052459311 | V82: 80.01197839 | W82: 98.11689701 | X82: 0.1331029851 | Y82: 0.0339119403 | Z82: 12.81625075 | AA82: 0.007760007482 | AB82: 0.03880003741 | AC82: 0.01033631878 | AD82: 97.61414512 | AX82: 6632100
A83: 51 | B83: =IF(A83>$B$30,NA(),IF($A83>$A$8,"",OFFSET(InputPriceData!$B$15,$A83+$A$11,0,1,1))) -> 2022-04-26 | C83: =IF(A83>$B$30,NA(),IF($A83>$A$8,"",OFFSET(InputPriceData!$G$15,CalculationsAndCharts!$A83+$A$11,IF($C$5,8,0),1,1))) -> 7199200 | D83: =IF(A83>$B$30,NA(),IF(A83>$A$8,"",OFFSET(InputPriceData!$C$15,CalculationsAndCharts!$A83+$A$11,IF($C$5,8,0),1,1))) -> 96.32 | E83: =IF(A83>$B$30,NA(),IF(A83>$A$8,"",OFFSET(InputPriceData!$D$15,CalculationsAndCharts!$A83+$A$11,IF($C$5,8,0),1,1))) -> 100.35 | F83: =IF(A83>$B$30,NA(),IF(A83>$A$8,"",OFFSET(InputPriceData!$E$15,CalculationsAndCharts!$A83+$A$11,IF($C$5,8,0),1,1))) -> 96.21 | G83: =IF(A83>$B$30,NA(),IF(A83>$A$8,"",OFFSET(InputPriceData!$F$15,CalculationsAndCharts!$A83+$A$11,IF($C$5,8,0),1,1))) -> 98.6 | I83: =IF($A83>$I$30,NA(),LINEST(OFFSET(G83,0,0,$A$19,1),OFFSET($H$33,0,0,$A$19,1))) -> 0.1651639856 | J83: 94.34951837 | K83: 102.6077176 | L83: 4.007717647 | M83: 0.01508235294 | N83: 6.243011765 | O83: 0.6410855085 | P83: 3.205427543 | Q83: 0.1649187272 | R83: 100.0388688 | S83: 98.2585355 | T83: 150 | U83: =IF($A83>$U$30,NA(),LINEST(OFFSET($G83,0,0,$D$19,1),OFFSET($T$33,0,0,$D$19,1))) -> 0.09000482262 | V83: 79.98976533 | W83: 97.99072985 | X83: 0.6092701493 | Y83: 0.0339119403 | Z83: 12.81625075 | AA83: 0.04501196672 | AB83: 0.2250598336 | AC83: 0.01218965009 | AD83: 97.60750407 | AW83: 7199200
A84: 52 | B84: =IF(A84>$B$30,NA(),IF($A84>$A$8,"",OFFSET(InputPriceData!$B$15,$A84+$A$11,0,1,1))) -> 2022-04-25 | C84: =IF(A84>$B$30,NA(),IF($A84>$A$8,"",OFFSET(InputPriceData!$G$15,CalculationsAndCharts!$A84+$A$11,IF($C$5,8,0),1,1))) -> 5612500 | D84: =IF(A84>$B$30,NA(),IF(A84>$A$8,"",OFFSET(InputPriceData!$C$15,CalculationsAndCharts!$A84+$A$11,IF($C$5,8,0),1,1))) -> 99.26 | E84: =IF(A84>$B$30,NA(),IF(A84>$A$8,"",OFFSET(InputPriceData!$D$15,CalculationsAndCharts!$A84+$A$11,IF($C$5,8,0),1,1))) -> 99.33 | F84: =IF(A84>$B$30,NA(),IF(A84>$A$8,"",OFFSET(InputPriceData!$E$15,CalculationsAndCharts!$A84+$A$11,IF($C$5,8,0),1,1))) -> 96.99 | G84: =IF(A84>$B$30,NA(),IF(A84>$A$8,"",OFFSET(InputPriceData!$F$15,CalculationsAndCharts!$A84+$A$11,IF($C$5,8,0),1,1))) -> 99.02 | I84: =IF($A84>$I$30,NA(),LINEST(OFFSET(G84,0,0,$A$19,1),OFFSET($H$33,0,0,$A$19,1))) -> 0.1753776711 | J84: 94.00066939 | K84: 102.7695529 | L84: 3.749552941 | M84: 0.01508235294 | N84: 6.243011765 | O84: 0.5996327738 | P84: 2.998163869 | Q84: 0.15679074 | R84: 100.3230285 | S84: 98.24459818 | T84: 149 | U84: =IF($A84>$U$30,NA(),LINEST(OFFSET($G84,0,0,$D$19,1),OFFSET($T$33,0,0,$D$19,1))) -> 0.089280102 | V84: 79.99074975 | W84: 97.84677015 | X84: 1.173229851 | Y84: 0.0339119403 | Z84: 12.81625075 | AA84: 0.08913219464 | AB84: 0.4456609732 | AC84: 0.0143846863 | AD84: 97.5952566 | AX84: 5612500
A85: 53 | B85: =IF(A85>$B$30,NA(),IF($A85>$A$8,"",OFFSET(InputPriceData!$B$15,$A85+$A$11,0,1,1))) -> 2022-04-22 | C85: =IF(A85>$B$30,NA(),IF($A85>$A$8,"",OFFSET(InputPriceData!$G$15,CalculationsAndCharts!$A85+$A$11,IF($C$5,8,0),1,1))) -> 4683300 | D85: =IF(A85>$B$30,NA(),IF(A85>$A$8,"",OFFSET(InputPriceData!$C$15,CalculationsAndCharts!$A85+$A$11,IF($C$5,8,0),1,1))) -> 100.85 | E85: =IF(A85>$B$30,NA(),IF(A85>$A$8,"",OFFSET(InputPriceData!$D$15,CalculationsAndCharts!$A85+$A$11,IF($C$5,8,0),1,1))) -> 101.95 | F85: =IF(A85>$B$30,NA(),IF(A85>$A$8,"",OFFSET(InputPriceData!$E$15,CalculationsAndCharts!$A85+$A$11,IF($C$5,8,0),1,1))) -> 99.77 | G85: =IF(A85>$B$30,NA(),IF(A85>$A$8,"",OFFSET(InputPriceData!$F$15,CalculationsAndCharts!$A85+$A$11,IF($C$5,8,0),1,1))) -> 99.89 | I85: =IF($A85>$I$30,NA(),LINEST(OFFSET(G85,0,0,$A$19,1),OFFSET($H$33,0,0,$A$19,1))) -> 0.184632413 | J85: 93.66367347 | K85: 102.8952941 | L85: 3.005294118 | M85: 0.01508235294 | N85: 6.243011765 | O85: 0.4801293603 | P85: 2.400646802 | Q85: 0.1333586981 | R85: 100.5653204 | S85: 98.21294912 | T85: 148 | U85: =IF($A85>$U$30,NA(),LINEST(OFFSET($G85,0,0,$D$19,1),OFFSET($T$33,0,0,$D$19,1))) -> 0.08844662867 | V85: 80.00136382 | W85: 97.69068955 | X85: 2.199310448 | Y85: 0.0339119403 | Z85: 12.81625075 | AA85: 0.1694055009 | AB85: 0.8470275043 | AC85: 0.01837838313 | AD85: 97.57446301 | AX85: 4683300
A86: 54 | B86: =IF(A86>$B$30,NA(),IF($A86>$A$8,"",OFFSET(InputPriceData!$B$15,$A86+$A$11,0,1,1))) -> 2022-04-21 | C86: =IF(A86>$B$30,NA(),IF($A86>$A$8,"",OFFSET(InputPriceData!$G$15,CalculationsAndCharts!$A86+$A$11,IF($C$5,8,0),1,1))) -> 5795300 | D86: =IF(A86>$B$30,NA(),IF(A86>$A$8,"",OFFSET(InputPriceData!$C$15,CalculationsAndCharts!$A86+$A$11,IF($C$5,8,0),1,1))) -> 105.22 | E86: =IF(A86>$B$30,NA(),IF(A86>$A$8,"",OFFSET(InputPriceData!$D$15,CalculationsAndCharts!$A86+$A$11,IF($C$5,8,0),1,1))) -> 105.39 | F86: =IF(A86>$B$30,NA(),IF(A86>$A$8,"",OFFSET(InputPriceData!$E$15,CalculationsAndCharts!$A86+$A$11,IF($C$5,8,0),1,1))) -> 100.8 | G86: =IF(A86>$B$30,NA(),IF(A86>$A$8,"",OFFSET(InputPriceData!$F$15,CalculationsAndCharts!$A86+$A$11,IF($C$5,8,0),1,1))) -> 101.13 | I86: =IF($A86>$I$30,NA(),LINEST(OFFSET(G86,0,0,$A$19,1),OFFSET($H$33,0,0,$A$19,1))) -> 0.1890833133 | J86: 93.45037551 | K86: 102.9045412 | L86: 1.774541176 | M86: 0.01508235294 | N86: 6.243011765 | O86: 0.2825110413 | P86: 1.412555207 | Q86: 0.09461000811 | R86: 100.6692387 | S86: 98.14449807 | T86: 147 | U86: =IF($A86>$U$30,NA(),LINEST(OFFSET($G86,0,0,$D$19,1),OFFSET($T$33,0,0,$D$19,1))) -> 0.08759736743 | V86: 80.00461457 | W86: 97.52408806 | X86: 3.60591194 | Y86: 0.0339119403 | Z86: 12.81625075 | AA86: 0.2794480771 | AB86: 1.397240385 | AC86: 0.02385313816 | AD86: 97.53111043 | AX86: 5795300
A87: 55 | B87: =IF(A87>$B$30,NA(),IF($A87>$A$8,"",OFFSET(InputPriceData!$B$15,$A87+$A$11,0,1,1))) -> 2022-04-20 | C87: =IF(A87>$B$30,NA(),IF($A87>$A$8,"",OFFSET(InputPriceData!$G$15,CalculationsAndCharts!$A87+$A$11,IF($C$5,8,0),1,1))) -> 4232200 | D87: =IF(A87>$B$30,NA(),IF(A87>$A$8,"",OFFSET(InputPriceData!$C$15,CalculationsAndCharts!$A87+$A$11,IF($C$5,8,0),1,1))) -> 105.05 | E87: =IF(A87>$B$30,NA(),IF(A87>$A$8,"",OFFSET(InputPriceData!$D$15,CalculationsAndCharts!$A87+$A$11,IF($C$5,8,0),1,1))) -> 105.39 | F87: =IF(A87>$B$30,NA(),IF(A87>$A$8,"",OFFSET(InputPriceData!$E$15,CalculationsAndCharts!$A87+$A$11,IF($C$5,8,0),1,1))) -> 103.66 | G87: =IF(A87>$B$30,NA(),IF(A87>$A$8,"",OFFSET(InputPriceData!$F$15,CalculationsAndCharts!$A87+$A$11,IF($C$5,8,0),1,1))) -> 104.35 | I87: =IF($A87>$I$30,NA(),LINEST(OFFSET(G87,0,0,$A$19,1),OFFSET($H$33,0,0,$A$19,1))) -> 0.1921829532 | J87: 93.22833469 | K87: 102.8374824 | L87: 1.512517647 | M87: 0.01508235294 | N87: 6.243011765 | O87: 0.2404387068 | P87: 1.202193534 | Q87: 0.08636053075 | R87: 100.6210908 | S87: 98.02264084 | T87: 146 | U87: =IF($A87>$U$30,NA(),LINEST(OFFSET($G87,0,0,$D$19,1),OFFSET($T$33,0,0,$D$19,1))) -> 0.0864798245 | V87: 80.03052764 | W87: 97.32649254 | X87: 7.023507463 | Y87: 0.0339119403 | Z87: 12.81625075 | AA87: 0.5468166373 | AB87: 2.734083186 | AC87: 0.03715505658 | AD87: 97.44316792 | AX87: 4232200
A88: 56 | B88: =IF(A88>$B$30,NA(),IF($A88>$A$8,"",OFFSET(InputPriceData!$B$15,$A88+$A$11,0,1,1))) -> 2022-04-19 | C88: =IF(A88>$B$30,NA(),IF($A88>$A$8,"",OFFSET(InputPriceData!$G$15,CalculationsAndCharts!$A88+$A$11,IF($C$5,8,0),1,1))) -> 4572800 | D88: =IF(A88>$B$30,NA(),IF(A88>$A$8,"",OFFSET(InputPriceData!$C$15,CalculationsAndCharts!$A88+$A$11,IF($C$5,8,0),1,1))) -> 103.82 | E88: =IF(A88>$B$30,NA(),IF(A88>$A$8,"",OFFSET(InputPriceData!$D$15,CalculationsAndCharts!$A88+$A$11,IF($C$5,8,0),1,1))) -> 105.03 | F88: =IF(A88>$B$30,NA(),IF(A88>$A$8,"",OFFSET(InputPriceData!$E$15,CalculationsAndCharts!$A88+$A$11,IF($C$5,8,0),1,1))) -> 103.54 | G88: =IF(A88>$B$30,NA(),IF(A88>$A$8,"",OFFSET(InputPriceData!$F$15,CalculationsAndCharts!$A88+$A$11,IF($C$5,8,0),1,1))) -> 103.93 | I88: =IF($A88>$I$30,NA(),LINEST(OFFSET(G88,0,0,$A$19,1),OFFSET($H$33,0,0,$A$19,1))) -> 0.1891337335 | J88: 93.0780898 | K88: 102.5347765 | L88: 1.395223529 | M88: 0.01508235294 | N88: 6.243011765 | O88: 0.2216051412 | P88: 1.108025706 | Q88: 0.08266767474 | R88: 100.2686207 | S88: 97.76438129 | T88: 145 | U88: =IF($A88>$U$30,NA(),LINEST(OFFSET($G88,0,0,$D$19,1),OFFSET($T$33,0,0,$D$19,1))) -> 0.08486287407 | V88: 80.09013116 | W88: 97.06270597 | X88: 6.86729403 | Y88: 0.0339119403 | Z88: 12.81625075 | AA88: 0.5345956005 | AB88: 2.672978002 | AC88: 0.0365470448 | AD88: 97.17664137 | AW88: 4572800
A89: 57 | B89: =IF(A89>$B$30,NA(),IF($A89>$A$8,"",OFFSET(InputPriceData!$B$15,$A89+$A$11,0,1,1))) -> 2022-04-18 | C89: =IF(A89>$B$30,NA(),IF($A89>$A$8,"",OFFSET(InputPriceData!$G$15,CalculationsAndCharts!$A89+$A$11,IF($C$5,8,0),1,1))) -> 3873300 | D89: =IF(A89>$B$30,NA(),IF(A89>$A$8,"",OFFSET(InputPriceData!$C$15,CalculationsAndCharts!$A89+$A$11,IF($C$5,8,0),1,1))) -> 103.64 | E89: =IF(A89>$B$30,NA(),IF(A89>$A$8,"",OFFSET(InputPriceData!$D$15,CalculationsAndCharts!$A89+$A$11,IF($C$5,8,0),1,1))) -> 104.83 | F89: =IF(A89>$B$30,NA(),IF(A89>$A$8,"",OFFSET(InputPriceData!$E$15,CalculationsAndCharts!$A89+$A$11,IF($C$5,8,0),1,1))) -> 103.29 | G89: =IF(A89>$B$30,NA(),IF(A89>$A$8,"",OFFSET(InputPriceData!$F$15,CalculationsAndCharts!$A89+$A$11,IF($C$5,8,0),1,1))) -> 103.68 | I89: =IF($A89>$I$30,NA(),LINEST(OFFSET(G89,0,0,$A$19,1),OFFSET($H$33,0,0,$A$19,1))) -> 0.1883711885 | J89: 92.85793469 | K89: 102.2764941 | L89: 1.403505882 | M89: 0.01508235294 | N89: 6.243011765 | O89: 0.2229350138 | P89: 1.114675069 | Q89: 0.08292843408 | R89: 99.93866642 | S89: 97.51272338 | T89: 144 | U89: =IF($A89>$U$30,NA(),LINEST(OFFSET($G89,0,0,$D$19,1),OFFSET($T$33,0,0,$D$19,1))) -> 0.08313956349 | V89: 80.16717387 | W89: 96.79508657 | X89: 6.884913433 | Y89: 0.0339119403 | Z89: 12.81625075 | AA89: 0.5359740183 | AB89: 2.679870091 | AC89: 0.0366156228 | AD89: 96.92046353 | AW89: 3873300
A90: 58 | B90: =IF(A90>$B$30,NA(),IF($A90>$A$8,"",OFFSET(InputPriceData!$B$15,$A90+$A$11,0,1,1))) -> 2022-04-14 | C90: =IF(A90>$B$30,NA(),IF($A90>$A$8,"",OFFSET(InputPriceData!$G$15,CalculationsAndCharts!$A90+$A$11,IF($C$5,8,0),1,1))) -> 4027400 | D90: =IF(A90>$B$30,NA(),IF(A90>$A$8,"",OFFSET(InputPriceData!$C$15,CalculationsAndCharts!$A90+$A$11,IF($C$5,8,0),1,1))) -> 103.27 | E90: =IF(A90>$B$30,NA(),IF(A90>$A$8,"",OFFSET(InputPriceData!$D$15,CalculationsAndCharts!$A90+$A$11,IF($C$5,8,0),1,1))) -> 104.36 | F90: =IF(A90>$B$30,NA(),IF(A90>$A$8,"",OFFSET(InputPriceData!$E$15,CalculationsAndCharts!$A90+$A$11,IF($C$5,8,0),1,1))) -> 103.05 | G90: =IF(A90>$B$30,NA(),IF(A90>$A$8,"",OFFSET(InputPriceData!$F$15,CalculationsAndCharts!$A90+$A$11,IF($C$5,8,0),1,1))) -> 103.65 | I90: =IF($A90>$I$30,NA(),LINEST(OFFSET(G90,0,0,$A$19,1),OFFSET($H$33,0,0,$A$19,1))) -> 0.1875409364 | J90: 92.64050612 | K90: 102.0175529 | L90: 1.632447059 | M90: 0.01508235294 | N90: 6.243011765 | O90: 0.2596954138 | P90: 1.298477069 | Q90: 0.09013635565 | R90: 99.6003472 | S90: 97.2609978 | T90: 143 | U90: =IF($A90>$U$30,NA(),LINEST(OFFSET($G90,0,0,$D$19,1),OFFSET($T$33,0,0,$D$19,1))) -> 0.08149524488 | V90: 80.23517789 | W90: 96.53422687 | X90: 7.115773134 | Y90: 0.0339119403 | Z90: 12.81625075 | AA90: 0.5540348524 | AB90: 2.770174262 | AC90: 0.03751417176 | AD90: 96.66355191 | AW90: 4027400
A91: 59 | B91: =IF(A91>$B$30,NA(),IF($A91>$A$8,"",OFFSET(InputPriceData!$B$15,$A91+$A$11,0,1,1))) -> 2022-04-13 | C91: =IF(A91>$B$30,NA(),IF($A91>$A$8,"",OFFSET(InputPriceData!$G$15,CalculationsAndCharts!$A91+$A$11,IF($C$5,8,0),1,1))) -> 5351900 | D91: =IF(A91>$B$30,NA(),IF(A91>$A$8,"",OFFSET(InputPriceData!$C$15,CalculationsAndCharts!$A91+$A$11,IF($C$5,8,0),1,1))) -> 102.71 | E91: =IF(A91>$B$30,NA(),IF(A91>$A$8,"",OFFSET(InputPriceData!$D$15,CalculationsAndCharts!$A91+$A$11,IF($C$5,8,0),1,1))) -> 103.83 | F91: =IF(A91>$B$30,NA(),IF(A91>$A$8,"",OFFSET(InputPriceData!$E$15,CalculationsAndCharts!$A91+$A$11,IF($C$5,8,0),1,1))) -> 102.03 | G91: =IF(A91>$B$30,NA(),IF(A91>$A$8,"",OFFSET(InputPriceData!$F$15,CalculationsAndCharts!$A91+$A$11,IF($C$5,8,0),1,1))) -> 102.76 | I91: =IF($A91>$I$30,NA(),LINEST(OFFSET(G91,0,0,$A$19,1),OFFSET($H$33,0,0,$A$19,1))) -> 0.1862737095 | J91: 92.42942041 | K91: 101.7431059 | L91: 1.016894118 | M91: 0.01508235294 | N91: 6.243011765 | O91: 0.160857919 | P91: 0.8042895949 | Q91: 0.0707564547 | R91: 99.19916517 | S91: 97.0002222 | T91: 142 | U91: =IF($A91>$U$30,NA(),LINEST(OFFSET($G91,0,0,$D$19,1),OFFSET($T$33,0,0,$D$19,1))) -> 0.07995910898 | V91: 80.28800955 | W91: 96.27983134 | X91: 6.480168657 | Y91: 0.0339119403 | Z91: 12.81625075 | AA91: 0.5043096427 | AB91: 2.521548214 | AC91: 0.03504028073 | AD91: 96.39124576 | AW91: 5351900
A92: 60 | B92: =IF(A92>$B$30,NA(),IF($A92>$A$8,"",OFFSET(InputPriceData!$B$15,$A92+$A$11,0,1,1))) -> 2022-04-12 | C92: =IF(A92>$B$30,NA(),IF($A92>$A$8,"",OFFSET(InputPriceData!$G$15,CalculationsAndCharts!$A92+$A$11,IF($C$5,8,0),1,1))) -> 4839200 | D92: =IF(A92>$B$30,NA(),IF(A92>$A$8,"",OFFSET(InputPriceData!$C$15,CalculationsAndCharts!$A92+$A$11,IF($C$5,8,0),1,1))) -> 101.57 | E92: =IF(A92>$B$30,NA(),IF(A92>$A$8,"",OFFSET(InputPriceData!$D$15,CalculationsAndCharts!$A92+$A$11,IF($C$5,8,0),1,1))) -> 103.36 | F92: =IF(A92>$B$30,NA(),IF(A92>$A$8,"",OFFSET(InputPriceData!$E$15,CalculationsAndCharts!$A92+$A$11,IF($C$5,8,0),1,1))) -> 101.46 | G92: =IF(A92>$B$30,NA(),IF(A92>$A$8,"",OFFSET(InputPriceData!$F$15,CalculationsAndCharts!$A92+$A$11,IF($C$5,8,0),1,1))) -> 101.99 | I92: =IF($A92>$I$30,NA(),LINEST(OFFSET(G92,0,0,$A$19,1),OFFSET($H$33,0,0,$A$19,1))) -> 0.1902290516 | J92: 92.06715918 | K92: 101.5786118 | L92: 0.4113882353 | M92: 0.008023529412 | N92: 6.243011765 | O92: 0.06469373969 | P92: 0.3234686985 | Q92: 0.05190073327 | R92: 98.92802845 | S92: 96.76512923 | T92: 141 | U92: =IF($A92>$U$30,NA(),LINEST(OFFSET($G92,0,0,$D$19,1),OFFSET($T$33,0,0,$D$19,1))) -> 0.07865354384 | V92: 80.31786884 | W92: 96.04857761 | X92: 5.941422388 | Y92: 0.0339119403 | Z92: 12.81625075 | AA92: 0.4621619359 | AB92: 2.310809679 | AC92: 0.03294337989 | AD92: 96.15997917 | AW92: 4839200
A93: 61 | B93: =IF(A93>$B$30,NA(),IF($A93>$A$8,"",OFFSET(InputPriceData!$B$15,$A93+$A$11,0,1,1))) -> 2022-04-11 | C93: =IF(A93>$B$30,NA(),IF($A93>$A$8,"",OFFSET(InputPriceData!$G$15,CalculationsAndCharts!$A93+$A$11,IF($C$5,8,0),1,1))) -> 5707600 | D93: =IF(A93>$B$30,NA(),IF(A93>$A$8,"",OFFSET(InputPriceData!$C$15,CalculationsAndCharts!$A93+$A$11,IF($C$5,8,0),1,1))) -> 100.04 | E93: =IF(A93>$B$30,NA(),IF(A93>$A$8,"",OFFSET(InputPriceData!$D$15,CalculationsAndCharts!$A93+$A$11,IF($C$5,8,0),1,1))) -> 102.34 | F93: =IF(A93>$B$30,NA(),IF(A93>$A$8,"",OFFSET(InputPriceData!$E$15,CalculationsAndCharts!$A93+$A$11,IF($C$5,8,0),1,1))) -> 100.04 | G93: =IF(A93>$B$30,NA(),IF(A93>$A$8,"",OFFSET(InputPriceData!$F$15,CalculationsAndCharts!$A93+$A$11,IF($C$5,8,0),1,1))) -> 101.5 | I93: =IF($A93>$I$30,NA(),LINEST(OFFSET(G93,0,0,$A$19,1),OFFSET($H$33,0,0,$A$19,1))) -> 0.1960619448 | J93: 91.66182041 | K93: 101.4649176 | L93: 0.03508235294 | M93: 0.008023529412 | N93: 6.243011765 | O93: 0.004339835539 | P93: 0.0216991777 | Q93: 0.04006663442 | R93: 98.76041038 | S93: 96.5518692 | T93: 140 | U93: =IF($A93>$U$30,NA(),LINEST(OFFSET($G93,0,0,$D$19,1),OFFSET($T$33,0,0,$D$19,1))) -> 0.07733514588 | V93: 80.35616784 | W93: 95.82319701 | X93: 5.676802985 | Y93: 0.0339119403 | Z93: 12.81625075 | AA93: 0.4414599809 | AB93: 2.207299904 | AC93: 0.03191343188 | AD93: 95.96137592 | AW93: 5707600
A94: 62 | B94: =IF(A94>$B$30,NA(),IF($A94>$A$8,"",OFFSET(InputPriceData!$B$15,$A94+$A$11,0,1,1))) -> 2022-04-08 | C94: =IF(A94>$B$30,NA(),IF($A94>$A$8,"",OFFSET(InputPriceData!$G$15,CalculationsAndCharts!$A94+$A$11,IF($C$5,8,0),1,1))) -> 4811400 | D94: =IF(A94>$B$30,NA(),IF(A94>$A$8,"",OFFSET(InputPriceData!$C$15,CalculationsAndCharts!$A94+$A$11,IF($C$5,8,0),1,1))) -> 101.37 | E94: =IF(A94>$B$30,NA(),IF(A94>$A$8,"",OFFSET(InputPriceData!$D$15,CalculationsAndCharts!$A94+$A$11,IF($C$5,8,0),1,1))) -> 102.13 | F94: =IF(A94>$B$30,NA(),IF(A94>$A$8,"",OFFSET(InputPriceData!$E$15,CalculationsAndCharts!$A94+$A$11,IF($C$5,8,0),1,1))) -> 99.48 | G94: =IF(A94>$B$30,NA(),IF(A94>$A$8,"",OFFSET(InputPriceData!$F$15,CalculationsAndCharts!$A94+$A$11,IF($C$5,8,0),1,1))) -> 99.8 | I94: =IF($A94>$I$30,NA(),LINEST(OFFSET(G94,0,0,$A$19,1),OFFSET($H$33,0,0,$A$19,1))) -> 0.2015332533 | J94: 91.27830204 | K94: 101.3549647 | L94: 1.554964706 | M94: 0.008023529412 | N94: 6.243011765 | O94: 0.2481065109 | P94: 1.240532554 | Q94: 0.08786402174 | R94: 98.64606272 | S94: 96.34990468 | T94: 139 | U94: =IF($A94>$U$30,NA(),LINEST(OFFSET($G94,0,0,$D$19,1),OFFSET($T$33,0,0,$D$19,1))) -> 0.0758280282 | V94: 80.42373317 | W94: 95.58933881 | X94: 4.210661194 | Y94: 0.0339119403 | Z94: 12.81625075 | AA94: 0.3267593918 | AB94: 1.633796959 | AC94: 0.02620693491 | AD94: 95.77879256 | AX94: 4811400
A95: 63 | B95: =IF(A95>$B$30,NA(),IF($A95>$A$8,"",OFFSET(InputPriceData!$B$15,$A95+$A$11,0,1,1))) -> 2022-04-07 | C95: =IF(A95>$B$30,NA(),IF($A95>$A$8,"",OFFSET(InputPriceData!$G$15,CalculationsAndCharts!$A95+$A$11,IF($C$5,8,0),1,1))) -> 6151500 | D95: =IF(A95>$B$30,NA(),IF(A95>$A$8,"",OFFSET(InputPriceData!$C$15,CalculationsAndCharts!$A95+$A$11,IF($C$5,8,0),1,1))) -> 97.67 | E95: =IF(A95>$B$30,NA(),IF(A95>$A$8,"",OFFSET(InputPriceData!$D$15,CalculationsAndCharts!$A95+$A$11,IF($C$5,8,0),1,1))) -> 100.67 | F95: =IF(A95>$B$30,NA(),IF(A95>$A$8,"",OFFSET(InputPriceData!$E$15,CalculationsAndCharts!$A95+$A$11,IF($C$5,8,0),1,1))) -> 97.32 | G95: =IF(A95>$B$30,NA(),IF(A95>$A$8,"",OFFSET(InputPriceData!$F$15,CalculationsAndCharts!$A95+$A$11,IF($C$5,8,0),1,1))) -> 100.38 | I95: =IF($A95>$I$30,NA(),LINEST(OFFSET(G95,0,0,$A$19,1),OFFSET($H$33,0,0,$A$19,1))) -> 0.2124432173 | J95: 90.76929796 | K95: 101.3914588 | L95: 1.011458824 | M95: 0.008023529412 | N95: 6.243011765 | O95: 0.1609361969 | P95: 0.8046809844 | Q95: 0.07077180331 | R95: 98.53490652 | S95: 96.20908446 | T95: 138 | U95: =IF($A95>$U$30,NA(),LINEST(OFFSET($G95,0,0,$D$19,1),OFFSET($T$33,0,0,$D$19,1))) -> 0.07453261832 | V95: 80.47917186 | W95: 95.38569552 | X95: 4.994304478 | Y95: 0.0339119403 | Z95: 12.81625075 | AA95: 0.3880661131 | AB95: 1.940330566 | AC95: 0.02925702055 | AD95: 95.67057293 | AW95: 6151500
A96: 64 | B96: =IF(A96>$B$30,NA(),IF($A96>$A$8,"",OFFSET(InputPriceData!$B$15,$A96+$A$11,0,1,1))) -> 2022-04-06 | C96: =IF(A96>$B$30,NA(),IF($A96>$A$8,"",OFFSET(InputPriceData!$G$15,CalculationsAndCharts!$A96+$A$11,IF($C$5,8,0),1,1))) -> 5260800 | D96: =IF(A96>$B$30,NA(),IF(A96>$A$8,"",OFFSET(InputPriceData!$C$15,CalculationsAndCharts!$A96+$A$11,IF($C$5,8,0),1,1))) -> 97.74 | E96: =IF(A96>$B$30,NA(),IF(A96>$A$8,"",OFFSET(InputPriceData!$D$15,CalculationsAndCharts!$A96+$A$11,IF($C$5,8,0),1,1))) -> 98.69 | F96: =IF(A96>$B$30,NA(),IF(A96>$A$8,"",OFFSET(InputPriceData!$E$15,CalculationsAndCharts!$A96+$A$11,IF($C$5,8,0),1,1))) -> 97.55 | G96: =IF(A96>$B$30,NA(),IF(A96>$A$8,"",OFFSET(InputPriceData!$F$15,CalculationsAndCharts!$A96+$A$11,IF($C$5,8,0),1,1))) -> 97.88 | I96: =IF($A96>$I$30,NA(),LINEST(OFFSET(G96,0,0,$A$19,1),OFFSET($H$33,0,0,$A$19,1))) -> 0.2215303721 | J96: 90.28917551 | K96: 101.3656941 | L96: 3.485694118 | M96: 0.008023529412 | N96: 6.243011765 | O96: 0.5577669848 | P96: 2.788834924 | Q96: 0.1485817617 | R96: 98.39438066 | S96: 96.03884301 | T96: 137 | U96: =IF($A96>$U$30,NA(),LINEST(OFFSET($G96,0,0,$D$19,1),OFFSET($T$33,0,0,$D$19,1))) -> 0.07316465912 | V96: 80.53775176 | W96: 95.17068358 | X96: 2.709316418 | Y96: 0.0339119403 | Z96: 12.81625075 | AA96: 0.2093047695 | AB96: 1.046523848 | AC96: 0.02036342137 | AD96: 95.52863649 | AW96: 5260800
A97: 65 | B97: =IF(A97>$B$30,NA(),IF($A97>$A$8,"",OFFSET(InputPriceData!$B$15,$A97+$A$11,0,1,1))) -> 2022-04-05 | C97: =IF(A97>$B$30,NA(),IF($A97>$A$8,"",OFFSET(InputPriceData!$G$15,CalculationsAndCharts!$A97+$A$11,IF($C$5,8,0),1,1))) -> 4217100 | D97: =IF(A97>$B$30,NA(),IF(A97>$A$8,"",OFFSET(InputPriceData!$C$15,CalculationsAndCharts!$A97+$A$11,IF($C$5,8,0),1,1))) -> 98.89 | E97: =IF(A97>$B$30,NA(),IF(A97>$A$8,"",OFFSET(InputPriceData!$D$15,CalculationsAndCharts!$A97+$A$11,IF($C$5,8,0),1,1))) -> 99.91 | F97: =IF(A97>$B$30,NA(),IF(A97>$A$8,"",OFFSET(InputPriceData!$E$15,CalculationsAndCharts!$A97+$A$11,IF($C$5,8,0),1,1))) -> 98.02 | G97: =IF(A97>$B$30,NA(),IF(A97>$A$8,"",OFFSET(InputPriceData!$F$15,CalculationsAndCharts!$A97+$A$11,IF($C$5,8,0),1,1))) -> 98.22 | I97: =IF($A97>$I$30,NA(),LINEST(OFFSET(G97,0,0,$A$19,1),OFFSET($H$33,0,0,$A$19,1))) -> 0.2324412965 | J97: 89.83894694 | K97: 101.4610118 | L97: 3.241011765 | M97: 0.008023529412 | N97: 6.243011765 | O97: 0.5185235502 | P97: 2.592617751 | Q97: 0.1408869706 | R97: 98.48414569 | S97: 95.96369375 | T97: 136 | U97: =IF($A97>$U$30,NA(),LINEST(OFFSET($G97,0,0,$D$19,1),OFFSET($T$33,0,0,$D$19,1))) -> 0.07203648091 | V97: 80.58853367 | W97: 94.99582985 | X97: 3.224170149 | Y97: 0.0339119403 | Z97: 12.81625075 | AA97: 0.2495832928 | AB97: 1.247916464 | AC97: 0.022367328 | AD97: 95.47975938 | AW97: =IF(G97>=D97,C97,NA()) ->  | AX97: =IF(G97<D97,C97,NA()) -> 4217100
A98: 66 | B98: =IF(A98>$B$30,NA(),IF($A98>$A$8,"",OFFSET(InputPriceData!$B$15,$A98+$A$11,0,1,1))) -> 2022-04-04 | C98: =IF(A98>$B$30,NA(),IF($A98>$A$8,"",OFFSET(InputPriceData!$G$15,CalculationsAndCharts!$A98+$A$11,IF($C$5,8,0),1,1))) -> 3812300 | D98: =IF(A98>$B$30,NA(),IF(A98>$A$8,"",OFFSET(InputPriceData!$C$15,CalculationsAndCharts!$A98+$A$11,IF($C$5,8,0),1,1))) -> 99.53 | E98: =IF(A98>$B$30,NA(),IF(A98>$A$8,"",OFFSET(InputPriceData!$D$15,CalculationsAndCharts!$A98+$A$11,IF($C$5,8,0),1,1))) -> 99.8 | F98: =IF(A98>$B$30,NA(),IF(A98>$A$8,"",OFFSET(InputPriceData!$E$15,CalculationsAndCharts!$A98+$A$11,IF($C$5,8,0),1,1))) -> 97.97 | G98: =IF(A98>$B$30,NA(),IF(A98>$A$8,"",OFFSET(InputPriceData!$F$15,CalculationsAndCharts!$A98+$A$11,IF($C$5,8,0),1,1))) -> 98.71 | H98: =IF($A98>$A$19,NA(),$A$19+1-$A98) ->  | I98: =IF($A98>$I$30,NA(),LINEST(OFFSET(G98,0,0,$A$19,1),OFFSET($H$33,0,0,$A$19,1))) -> 0.2467995198 | J98: 89.25061224 | K98: =IF($A98>$I$30,NA(),I98*$H$33+J98) -> 101.5905882 | L98: =IF($A98>$I$30,NA(),ABS(K98-$G98)) -> 2.880588235 | M98: =IF($A98>$M$30,NA(),MIN(OFFSET($L98,0,0,$A$18,1))) -> 0.008023529412 | N98: =IF($A98>$M$30,NA(),MAX(OFFSET($L98,0,0,$A$18,1))) -> 6.243011765 | O98: =IF($A98>$M$30,NA(),(L98-M98)/(N98-M98)) -> 0.4607169408 | P98: =IF($A98>$M$30,NA(),O98*$A$20) -> 2.303584704 | Q98: =IF($A98>$M$30,NA(),$C$21*(1+P98)) -> 0.1295523413 | R98: =IF($A98>$M$30,NA(),IF($A98=$M$30,$G98,R99+Q98*($G98-R99))) -> 98.52746325 | S98: =IF($A98>$S$30,NA(),IF($A98=$S$30,AVERAGE(OFFSET($G98,0,0,$A$23,1)),S99+$C$23*($G98-S99))) -> 95.87159961 | T98: =IF($A98>$D$19,NA(),$D$19+1-$A98) -> 135 | U98: =IF($A98>$U$30,NA(),LINEST(OFFSET($G98,0,0,$D$19,1),OFFSET($T$33,0,0,$D$19,1))) -> 0.07074722118 | V98: 80.65685427 | W98: =IF($A98>$U$30,NA(),U98*$T$33+V98) -> 94.80629851 | X98: =IF($A98>$U$30,NA(),ABS(W98-$G98)) -> 3.903701493 | Y98: =IF($A98>$Y$30,NA(),MIN(OFFSET($X98,0,0,$D$18,1))) -> 0.0339119403 | Z98: =IF($A98>$Y$30,NA(),MAX(OFFSET($X98,0,0,$D$18,1))) -> 12.81625075 | AA98: =IF($A98>$Y$30,NA(),(X98-Y98)/(Z98-Y98)) -> 0.3027450305 | AB98: =IF($A98>$Y$30,NA(),AA98*$D$20) -> 1.513725153 | AC98: =IF($A98>$Y$30,NA(),$F$21*(1+AB98)) -> 0.02501219057 | AD98: =IF($A98>$Y$30,NA(),IF($A98=$Y$30,$G98,AD99+AC98*($G98-AD99))) -> 95.41706522 | AX98: 3812300
A99: 67 | B99: =IF(A99>$B$30,NA(),IF($A99>$A$8,"",OFFSET(InputPriceData!$B$15,$A99+$A$11,0,1,1))) -> 2022-04-01 | C99: =IF(A99>$B$30,NA(),IF($A99>$A$8,"",OFFSET(InputPriceData!$G$15,CalculationsAndCharts!$A99+$A$11,IF($C$5,8,0),1,1))) -> 3608600 | D99: =IF(A99>$B$30,NA(),IF(A99>$A$8,"",OFFSET(InputPriceData!$C$15,CalculationsAndCharts!$A99+$A$11,IF($C$5,8,0),1,1))) -> 99.17 | E99: =IF(A99>$B$30,NA(),IF(A99>$A$8,"",OFFSET(InputPriceData!$D$15,CalculationsAndCharts!$A99+$A$11,IF($C$5,8,0),1,1))) -> 99.85 | F99: =IF(A99>$B$30,NA(),IF(A99>$A$8,"",OFFSET(InputPriceData!$E$15,CalculationsAndCharts!$A99+$A$11,IF($C$5,8,0),1,1))) -> 98.39 | G99: =IF(A99>$B$30,NA(),IF(A99>$A$8,"",OFFSET(InputPriceData!$F$15,CalculationsAndCharts!$A99+$A$11,IF($C$5,8,0),1,1))) -> 99.58 | I99: =IF($A99>$I$30,NA(),LINEST(OFFSET(G99,0,0,$A$19,1),OFFSET($H$33,0,0,$A$19,1))) -> 0.2610084034 | J99: 88.63828571 | K99: 101.6887059 | L99: 2.108705882 | M99: 0.008023529412 | N99: 6.243011765 | O99: 0.3369184149 | P99: 1.684592074 | Q99: 0.1052781206 | R99: 98.50029555 | S99: 95.75574654 | T99: 134 | U99: =IF($A99>$U$30,NA(),LINEST(OFFSET($G99,0,0,$D$19,1),OFFSET($T$33,0,0,$D$19,1))) -> 0.06966870172 | V99: 80.69139548 | W99: 94.62513582 | X99: 4.954864179 | Y99: 0.0339119403 | Z99: 12.81625075 | AA99: 0.3849805825 | AB99: 1.924902912 | AC99: 0.02910351157 | AD99: 95.33258876 | AW99: 3608600
A100: 68 | B100: =IF(A100>$B$30,NA(),IF($A100>$A$8,"",OFFSET(InputPriceData!$B$15,$A100+$A$11,0,1,1))) -> 2022-03-31 | C100: =IF(A100>$B$30,NA(),IF($A100>$A$8,"",OFFSET(InputPriceData!$G$15,CalculationsAndCharts!$A100+$A$11,IF($C$5,8,0),1,1))) -> 5505600 | D100: =IF(A100>$B$30,NA(),IF(A100>$A$8,"",OFFSET(InputPriceData!$C$15,CalculationsAndCharts!$A100+$A$11,IF($C$5,8,0),1,1))) -> 98.69 | E100: =IF(A100>$B$30,NA(),IF(A100>$A$8,"",OFFSET(InputPriceData!$D$15,CalculationsAndCharts!$A100+$A$11,IF($C$5,8,0),1,1))) -> 100.31 | F100: =IF(A100>$B$30,NA(),IF(A100>$A$8,"",OFFSET(InputPriceData!$E$15,CalculationsAndCharts!$A100+$A$11,IF($C$5,8,0),1,1))) -> 98.41 | G100: =IF(A100>$B$30,NA(),IF(A100>$A$8,"",OFFSET(InputPriceData!$F$15,CalculationsAndCharts!$A100+$A$11,IF($C$5,8,0),1,1))) -> 98.48 | I100: =IF($A100>$I$30,NA(),LINEST(OFFSET(G100,0,0,$A$19,1),OFFSET($H$33,0,0,$A$19,1))) -> 0.2692038415 | J100: 88.18470204 | K100: 101.6448941 | L100: 3.164894118 | M100: 0.008023529412 | N100: 6.243011765 | O100: 0.5063154042 | P100: 2.531577021 | Q100: 0.1384932165 | R100: 98.37325132 | S100: 95.59965456 | T100: 133 | U100: =IF($A100>$U$30,NA(),LINEST(OFFSET($G100,0,0,$D$19,1),OFFSET($T$33,0,0,$D$19,1))) -> 0.06826075152 | V100: 80.76059447 | W100: 94.41274478 | X100: 4.067255224 | Y100: 0.0339119403 | Z100: 12.81625075 | AA100: 0.3155403205 | AB100: 1.577701603 | AC100: 0.02564877216 | AD100: 95.20526872 | AX100: 5505600
A101: 69 | B101: =IF(A101>$B$30,NA(),IF($A101>$A$8,"",OFFSET(InputPriceData!$B$15,$A101+$A$11,0,1,1))) -> 2022-03-30 | C101: =IF(A101>$B$30,NA(),IF($A101>$A$8,"",OFFSET(InputPriceData!$G$15,CalculationsAndCharts!$A101+$A$11,IF($C$5,8,0),1,1))) -> 5168100 | D101: =IF(A101>$B$30,NA(),IF(A101>$A$8,"",OFFSET(InputPriceData!$C$15,CalculationsAndCharts!$A101+$A$11,IF($C$5,8,0),1,1))) -> 101.03 | E101: =IF(A101>$B$30,NA(),IF(A101>$A$8,"",OFFSET(InputPriceData!$D$15,CalculationsAndCharts!$A101+$A$11,IF($C$5,8,0),1,1))) -> 101.77 | F101: =IF(A101>$B$30,NA(),IF(A101>$A$8,"",OFFSET(InputPriceData!$E$15,CalculationsAndCharts!$A101+$A$11,IF($C$5,8,0),1,1))) -> 99.17 | G101: =IF(A101>$B$30,NA(),IF(A101>$A$8,"",OFFSET(InputPriceData!$F$15,CalculationsAndCharts!$A101+$A$11,IF($C$5,8,0),1,1))) -> 100.23 | I101: =IF($A101>$I$30,NA(),LINEST(OFFSET(G101,0,0,$A$19,1),OFFSET($H$33,0,0,$A$19,1))) -> 0.2758127251 | J101: 87.81997551 | K101: 101.6106118 | L101: 1.380611765 | M101: 0.008023529412 | N101: 6.243011765 | O101: 0.2201428749 | P101: 1.100714375 | Q101: 0.08238095587 | R101: 98.35609072 | S101: 95.48208944 | T101: 132 | U101: =IF($A101>$U$30,NA(),LINEST(OFFSET($G101,0,0,$D$19,1),OFFSET($T$33,0,0,$D$19,1))) -> 0.06680738768 | V101: 80.84620754 | W101: 94.20768507 | X101: 6.022314925 | Y101: 0.0339119403 | Z101: 12.81625075 | AA101: 0.4684903973 | AB101: 2.342451986 | AC101: 0.03325822872 | AD101: 95.11906486 | AX101: 5168100
A102: 70 | B102: =IF(A102>$B$30,NA(),IF($A102>$A$8,"",OFFSET(InputPriceData!$B$15,$A102+$A$11,0,1,1))) -> 2022-03-29 | C102: =IF(A102>$B$30,NA(),IF($A102>$A$8,"",OFFSET(InputPriceData!$G$15,CalculationsAndCharts!$A102+$A$11,IF($C$5,8,0),1,1))) -> 5038200 | D102: =IF(A102>$B$30,NA(),IF(A102>$A$8,"",OFFSET(InputPriceData!$C$15,CalculationsAndCharts!$A102+$A$11,IF($C$5,8,0),1,1))) -> 100.25 | E102: =IF(A102>$B$30,NA(),IF(A102>$A$8,"",OFFSET(InputPriceData!$D$15,CalculationsAndCharts!$A102+$A$11,IF($C$5,8,0),1,1))) -> 100.8 | F102: =IF(A102>$B$30,NA(),IF(A102>$A$8,"",OFFSET(InputPriceData!$E$15,CalculationsAndCharts!$A102+$A$11,IF($C$5,8,0),1,1))) -> 98.78 | G102: =IF(A102>$B$30,NA(),IF(A102>$A$8,"",OFFSET(InputPriceData!$F$15,CalculationsAndCharts!$A102+$A$11,IF($C$5,8,0),1,1))) -> 100.48 | I102: =IF($A102>$I$30,NA(),LINEST(OFFSET(G102,0,0,$A$19,1),OFFSET($H$33,0,0,$A$19,1))) -> 0.2747466987 | J102: 87.63675918 | K102: 101.3740941 | L102: 0.8940941176 | M102: 0.008023529412 | N102: 6.243011765 | O102: 0.1421126319 | P102: 0.7105631597 | Q102: 0.06708090822 | R102: 98.18785703 | S102: 95.28829717 | T102: 131 | U102: =IF($A102>$U$30,NA(),LINEST(OFFSET($G102,0,0,$D$19,1),OFFSET($T$33,0,0,$D$19,1))) -> 0.06493027826 | V102: 80.97040704 | W102: 93.95646269 | X102: 6.523537313 | Y102: 0.0339119403 | Z102: 12.81625075 | AA102: 0.5077025004 | AB102: 2.538512502 | AC102: 0.03520907962 | AD102: 94.94323647 | AW102: 5038200
A103: 71 | B103: =IF(A103>$B$30,NA(),IF($A103>$A$8,"",OFFSET(InputPriceData!$B$15,$A103+$A$11,0,1,1))) -> 2022-03-28 | C103: =IF(A103>$B$30,NA(),IF($A103>$A$8,"",OFFSET(InputPriceData!$G$15,CalculationsAndCharts!$A103+$A$11,IF($C$5,8,0),1,1))) -> 4053300 | D103: =IF(A103>$B$30,NA(),IF(A103>$A$8,"",OFFSET(InputPriceData!$C$15,CalculationsAndCharts!$A103+$A$11,IF($C$5,8,0),1,1))) -> 101.07 | E103: =IF(A103>$B$30,NA(),IF(A103>$A$8,"",OFFSET(InputPriceData!$D$15,CalculationsAndCharts!$A103+$A$11,IF($C$5,8,0),1,1))) -> 101.55 | F103: =IF(A103>$B$30,NA(),IF(A103>$A$8,"",OFFSET(InputPriceData!$E$15,CalculationsAndCharts!$A103+$A$11,IF($C$5,8,0),1,1))) -> 100.32 | G103: =IF(A103>$B$30,NA(),IF(A103>$A$8,"",OFFSET(InputPriceData!$F$15,CalculationsAndCharts!$A103+$A$11,IF($C$5,8,0),1,1))) -> 100.99 | I103: =IF($A103>$I$30,NA(),LINEST(OFFSET(G103,0,0,$A$19,1),OFFSET($H$33,0,0,$A$19,1))) -> 0.268387515 | J103: 87.61471837 | K103: 101.0340941 | L103: 0.04409411765 | M103: 0.008023529412 | N103: 6.243011765 | O103: 0.005785189462 | P103: 0.02892594731 | Q103: 0.04035003715 | R103: 98.02304206 | S103: 95.07639093 | T103: 130 | U103: =IF($A103>$U$30,NA(),LINEST(OFFSET($G103,0,0,$D$19,1),OFFSET($T$33,0,0,$D$19,1))) -> 0.0630961449 | V103: 81.08568744 | W103: 93.70491642 | X103: 7.285083582 | Y103: 0.0339119403 | Z103: 12.81625075 | AA103: 0.5672805073 | AB103: 2.836402536 | AC103: 0.03817315957 | AD103: 94.74117782 | AX103: 4053300
A104: 72 | B104: =IF(A104>$B$30,NA(),IF($A104>$A$8,"",OFFSET(InputPriceData!$B$15,$A104+$A$11,0,1,1))) -> 2022-03-25 | C104: =IF(A104>$B$30,NA(),IF($A104>$A$8,"",OFFSET(InputPriceData!$G$15,CalculationsAndCharts!$A104+$A$11,IF($C$5,8,0),1,1))) -> 3521400 | D104: =IF(A104>$B$30,NA(),IF(A104>$A$8,"",OFFSET(InputPriceData!$C$15,CalculationsAndCharts!$A104+$A$11,IF($C$5,8,0),1,1))) -> 101.39 | E104: =IF(A104>$B$30,NA(),IF(A104>$A$8,"",OFFSET(InputPriceData!$D$15,CalculationsAndCharts!$A104+$A$11,IF($C$5,8,0),1,1))) -> 102.36 | F104: =IF(A104>$B$30,NA(),IF(A104>$A$8,"",OFFSET(InputPriceData!$E$15,CalculationsAndCharts!$A104+$A$11,IF($C$5,8,0),1,1))) -> 101.31 | G104: =IF(A104>$B$30,NA(),IF(A104>$A$8,"",OFFSET(InputPriceData!$F$15,CalculationsAndCharts!$A104+$A$11,IF($C$5,8,0),1,1))) -> 101.82 | I104: =IF($A104>$I$30,NA(),LINEST(OFFSET(G104,0,0,$A$19,1),OFFSET($H$33,0,0,$A$19,1))) -> 0.2616830732 | J104: 87.57608163 | K104: 100.6602353 | L104: 1.159764706 | M104: 0.008023529412 | N104: 6.243011765 | O104: 0.1847222694 | P104: 0.923611347 | Q104: 0.0754357391 | R104: 97.89829151 | S104: 94.83501914 | T104: 129 | U104: =IF($A104>$U$30,NA(),LINEST(OFFSET($G104,0,0,$D$19,1),OFFSET($T$33,0,0,$D$19,1))) -> 0.06115097877 | V104: 81.21002663 | W104: 93.44022239 | X104: 8.379777612 | Y104: 0.0339119403 | Z104: 12.81625075 | AA104: 0.6529216443 | AB104: 3.264608222 | AC104: 0.04243391265 | AD104: 94.49317342 | AW104: 3521400
A105: 73 | B105: =IF(A105>$B$30,NA(),IF($A105>$A$8,"",OFFSET(InputPriceData!$B$15,$A105+$A$11,0,1,1))) -> 2022-03-24 | C105: =IF(A105>$B$30,NA(),IF($A105>$A$8,"",OFFSET(InputPriceData!$G$15,CalculationsAndCharts!$A105+$A$11,IF($C$5,8,0),1,1))) -> 3894600 | D105: =IF(A105>$B$30,NA(),IF(A105>$A$8,"",OFFSET(InputPriceData!$C$15,CalculationsAndCharts!$A105+$A$11,IF($C$5,8,0),1,1))) -> 101.06 | E105: =IF(A105>$B$30,NA(),IF(A105>$A$8,"",OFFSET(InputPriceData!$D$15,CalculationsAndCharts!$A105+$A$11,IF($C$5,8,0),1,1))) -> 101.59 | F105: =IF(A105>$B$30,NA(),IF(A105>$A$8,"",OFFSET(InputPriceData!$E$15,CalculationsAndCharts!$A105+$A$11,IF($C$5,8,0),1,1))) -> 100.53 | G105: =IF(A105>$B$30,NA(),IF(A105>$A$8,"",OFFSET(InputPriceData!$F$15,CalculationsAndCharts!$A105+$A$11,IF($C$5,8,0),1,1))) -> 101.11 | I105: =IF($A105>$I$30,NA(),LINEST(OFFSET(G105,0,0,$A$19,1),OFFSET($H$33,0,0,$A$19,1))) -> 0.2530689076 | J105: 87.55994286 | K105: 100.2133882 | L105: 0.8966117647 | M105: 0.008023529412 | N105: 6.243011765 | O105: 0.1425164253 | P105: 0.7125821267 | Q105: 0.0671600834 | R105: 97.57831702 | S105: 94.54991788 | T105: 128 | U105: =IF($A105>$U$30,NA(),LINEST(OFFSET($G105,0,0,$D$19,1),OFFSET($T$33,0,0,$D$19,1))) -> 0.05914143104 | V105: 81.33393618 | W105: 93.16222239 | X105: 7.947777612 | Y105: 0.0339119403 | Z105: 12.81625075 | AA105: 0.6191250124 | AB105: 3.095625062 | AC105: 0.04075248818 | AD105: 94.16848991 | AW105: 3894600
A106: 74 | B106: =IF(A106>$B$30,NA(),IF($A106>$A$8,"",OFFSET(InputPriceData!$B$15,$A106+$A$11,0,1,1))) -> 2022-03-23 | C106: =IF(A106>$B$30,NA(),IF($A106>$A$8,"",OFFSET(InputPriceData!$G$15,CalculationsAndCharts!$A106+$A$11,IF($C$5,8,0),1,1))) -> 4471800 | D106: =IF(A106>$B$30,NA(),IF(A106>$A$8,"",OFFSET(InputPriceData!$C$15,CalculationsAndCharts!$A106+$A$11,IF($C$5,8,0),1,1))) -> 100.56 | E106: =IF(A106>$B$30,NA(),IF(A106>$A$8,"",OFFSET(InputPriceData!$D$15,CalculationsAndCharts!$A106+$A$11,IF($C$5,8,0),1,1))) -> 101.87 | F106: =IF(A106>$B$30,NA(),IF(A106>$A$8,"",OFFSET(InputPriceData!$E$15,CalculationsAndCharts!$A106+$A$11,IF($C$5,8,0),1,1))) -> 100.51 | G106: =IF(A106>$B$30,NA(),IF(A106>$A$8,"",OFFSET(InputPriceData!$F$15,CalculationsAndCharts!$A106+$A$11,IF($C$5,8,0),1,1))) -> 100.63 | I106: =IF($A106>$I$30,NA(),LINEST(OFFSET(G106,0,0,$A$19,1),OFFSET($H$33,0,0,$A$19,1))) -> 0.2458847539 | J106: 87.51453878 | K106: 99.80877647 | L106: 0.8212235294 | M106: 0.008023529412 | N106: 6.243011765 | O106: 0.1304252661 | P106: 0.6521263307 | Q106: 0.06478926787 | R106: 97.32405247 | S106: 94.28215942 | T106: 127 | U106: =IF($A106>$U$30,NA(),LINEST(OFFSET($G106,0,0,$D$19,1),OFFSET($T$33,0,0,$D$19,1))) -> 0.05712744319 | V106: 81.46479196 | W106: 92.8902806 | X106: 7.739719403 | Y106: 0.0339119403 | Z106: 12.81625075 | AA106: 0.6028480061 | AB106: 3.014240031 | AC106: 0.03994268687 | AD106: 93.87358812 | AW106: 4471800
A107: 75 | B107: =IF(A107>$B$30,NA(),IF($A107>$A$8,"",OFFSET(InputPriceData!$B$15,$A107+$A$11,0,1,1))) -> 2022-03-22 | C107: =IF(A107>$B$30,NA(),IF($A107>$A$8,"",OFFSET(InputPriceData!$G$15,CalculationsAndCharts!$A107+$A$11,IF($C$5,8,0),1,1))) -> 6048300 | D107: =IF(A107>$B$30,NA(),IF(A107>$A$8,"",OFFSET(InputPriceData!$C$15,CalculationsAndCharts!$A107+$A$11,IF($C$5,8,0),1,1))) -> 99.21 | E107: =IF(A107>$B$30,NA(),IF(A107>$A$8,"",OFFSET(InputPriceData!$D$15,CalculationsAndCharts!$A107+$A$11,IF($C$5,8,0),1,1))) -> 101.03 | F107: =IF(A107>$B$30,NA(),IF(A107>$A$8,"",OFFSET(InputPriceData!$E$15,CalculationsAndCharts!$A107+$A$11,IF($C$5,8,0),1,1))) -> 98.32 | G107: =IF(A107>$B$30,NA(),IF(A107>$A$8,"",OFFSET(InputPriceData!$F$15,CalculationsAndCharts!$A107+$A$11,IF($C$5,8,0),1,1))) -> 100.78 | I107: =IF($A107>$I$30,NA(),LINEST(OFFSET(G107,0,0,$A$19,1),OFFSET($H$33,0,0,$A$19,1))) -> 0.2410842737 | J107: 87.39835102 | K107: 99.45256471 | L107: 1.327435294 | M107: 0.008023529412 | N107: 6.243011765 | O107: 0.2116141547 | P107: 1.058070773 | Q107: 0.08070865778 | R107: 97.09502396 | S107: 94.02306389 | T107: 126 | U107: =IF($A107>$U$30,NA(),LINEST(OFFSET($G107,0,0,$D$19,1),OFFSET($T$33,0,0,$D$19,1))) -> 0.05507629191 | V107: 81.60473266 | W107: 92.61999104 | X107: 8.160008955 | Y107: 0.0339119403 | Z107: 12.81625075 | AA107: 0.6357284953 | AB107: 3.178642476 | AC107: 0.0415785321 | AD107: 93.59249111 | AW107: 6048300
A108: 76 | B108: =IF(A108>$B$30,NA(),IF($A108>$A$8,"",OFFSET(InputPriceData!$B$15,$A108+$A$11,0,1,1))) -> 2022-03-21 | C108: =IF(A108>$B$30,NA(),IF($A108>$A$8,"",OFFSET(InputPriceData!$G$15,CalculationsAndCharts!$A108+$A$11,IF($C$5,8,0),1,1))) -> 6673700 | D108: =IF(A108>$B$30,NA(),IF(A108>$A$8,"",OFFSET(InputPriceData!$C$15,CalculationsAndCharts!$A108+$A$11,IF($C$5,8,0),1,1))) -> 97.26 | E108: =IF(A108>$B$30,NA(),IF(A108>$A$8,"",OFFSET(InputPriceData!$D$15,CalculationsAndCharts!$A108+$A$11,IF($C$5,8,0),1,1))) -> 100.22 | F108: =IF(A108>$B$30,NA(),IF(A108>$A$8,"",OFFSET(InputPriceData!$E$15,CalculationsAndCharts!$A108+$A$11,IF($C$5,8,0),1,1))) -> 97.22 | G108: =IF(A108>$B$30,NA(),IF(A108>$A$8,"",OFFSET(InputPriceData!$F$15,CalculationsAndCharts!$A108+$A$11,IF($C$5,8,0),1,1))) -> 99.35 | I108: =IF($A108>$I$30,NA(),LINEST(OFFSET(G108,0,0,$A$19,1),OFFSET($H$33,0,0,$A$19,1))) -> 0.23310012 | J108: 87.37454694 | K108: 99.02955294 | L108: 0.3204470588 | M108: 0.008023529412 | N108: 6.243011765 | O108: 0.05010811851 | P108: 0.2505405926 | Q108: 0.04904080755 | R108: 96.77150359 | S108: 93.74727058 | T108: 125 | U108: =IF($A108>$U$30,NA(),LINEST(OFFSET($G108,0,0,$D$19,1),OFFSET($T$33,0,0,$D$19,1))) -> 0.05305281632 | V108: 81.73879196 | W108: 92.34935522 | X108: 7.000644776 | Y108: 0.0339119403 | Z108: 12.81625075 | AA108: 0.545028022 | AB108: 2.72514011 | AC108: 0.03706607075 | AD108: 93.28068041 | AW108: 6673700
A109: 77 | B109: =IF(A109>$B$30,NA(),IF($A109>$A$8,"",OFFSET(InputPriceData!$B$15,$A109+$A$11,0,1,1))) -> 2022-03-18 | C109: =IF(A109>$B$30,NA(),IF($A109>$A$8,"",OFFSET(InputPriceData!$G$15,CalculationsAndCharts!$A109+$A$11,IF($C$5,8,0),1,1))) -> 10438500 | D109: =IF(A109>$B$30,NA(),IF(A109>$A$8,"",OFFSET(InputPriceData!$C$15,CalculationsAndCharts!$A109+$A$11,IF($C$5,8,0),1,1))) -> 97.42 | E109: =IF(A109>$B$30,NA(),IF(A109>$A$8,"",OFFSET(InputPriceData!$D$15,CalculationsAndCharts!$A109+$A$11,IF($C$5,8,0),1,1))) -> 97.7 | F109: =IF(A109>$B$30,NA(),IF(A109>$A$8,"",OFFSET(InputPriceData!$E$15,CalculationsAndCharts!$A109+$A$11,IF($C$5,8,0),1,1))) -> 95.76 | G109: =IF(A109>$B$30,NA(),IF(A109>$A$8,"",OFFSET(InputPriceData!$F$15,CalculationsAndCharts!$A109+$A$11,IF($C$5,8,0),1,1))) -> 96.94 | I109: =IF($A109>$I$30,NA(),LINEST(OFFSET(G109,0,0,$A$19,1),OFFSET($H$33,0,0,$A$19,1))) -> 0.2284201681 | J109: 87.28748571 | K109: 98.70849412 | L109: 1.768494118 | M109: 0.008023529412 | N109: 6.243011765 | O109: 0.2823534739 | P109: 1.41176737 | Q109: 0.09457911254 | R109: 96.63853096 | S109: 93.51858774 | T109: 124 | U109: =IF($A109>$U$30,NA(),LINEST(OFFSET($G109,0,0,$D$19,1),OFFSET($T$33,0,0,$D$19,1))) -> 0.05121666542 | V109: 81.86142513 | W109: 92.10475821 | X109: 4.835241791 | Y109: 0.0339119403 | Z109: 12.81625075 | AA109: 0.3756221708 | AB109: 1.878110854 | AC109: 0.02863791895 | AD109: 93.047055 | AX109: 10438500
A110: 78 | B110: =IF(A110>$B$30,NA(),IF($A110>$A$8,"",OFFSET(InputPriceData!$B$15,$A110+$A$11,0,1,1))) -> 2022-03-17 | C110: =IF(A110>$B$30,NA(),IF($A110>$A$8,"",OFFSET(InputPriceData!$G$15,CalculationsAndCharts!$A110+$A$11,IF($C$5,8,0),1,1))) -> 6537200 | D110: =IF(A110>$B$30,NA(),IF(A110>$A$8,"",OFFSET(InputPriceData!$C$15,CalculationsAndCharts!$A110+$A$11,IF($C$5,8,0),1,1))) -> 96.03 | E110: =IF(A110>$B$30,NA(),IF(A110>$A$8,"",OFFSET(InputPriceData!$D$15,CalculationsAndCharts!$A110+$A$11,IF($C$5,8,0),1,1))) -> 97.21 | F110: =IF(A110>$B$30,NA(),IF(A110>$A$8,"",OFFSET(InputPriceData!$E$15,CalculationsAndCharts!$A110+$A$11,IF($C$5,8,0),1,1))) -> 95.26 | G110: =IF(A110>$B$30,NA(),IF(A110>$A$8,"",OFFSET(InputPriceData!$F$15,CalculationsAndCharts!$A110+$A$11,IF($C$5,8,0),1,1))) -> 97.17 | I110: =IF($A110>$I$30,NA(),LINEST(OFFSET(G110,0,0,$A$19,1),OFFSET($H$33,0,0,$A$19,1))) -> 0.2297805522 | J110: 87.08499592 | K110: 98.57402353 | L110: 1.404023529 | M110: 0.008023529412 | N110: 6.243011765 | O110: 0.2238977761 | P110: 1.119488881 | Q110: 0.083117211 | R110: 96.60703989 | S110: 93.37893826 | T110: 123 | U110: =IF($A110>$U$30,NA(),LINEST(OFFSET($G110,0,0,$D$19,1),OFFSET($T$33,0,0,$D$19,1))) -> 0.0497760069 | V110: 81.95466131 | W110: 91.90986269 | X110: 5.260137313 | Y110: 0.0339119403 | Z110: 12.81625075 | AA110: 0.4088629986 | AB110: 2.044314993 | AC110: 0.03029169147 | AD110: 92.93228231 | AW110: 6537200
A111: 79 | B111: =IF(A111>$B$30,NA(),IF($A111>$A$8,"",OFFSET(InputPriceData!$B$15,$A111+$A$11,0,1,1))) -> 2022-03-16 | C111: =IF(A111>$B$30,NA(),IF($A111>$A$8,"",OFFSET(InputPriceData!$G$15,CalculationsAndCharts!$A111+$A$11,IF($C$5,8,0),1,1))) -> 8813000 | D111: =IF(A111>$B$30,NA(),IF(A111>$A$8,"",OFFSET(InputPriceData!$C$15,CalculationsAndCharts!$A111+$A$11,IF($C$5,8,0),1,1))) -> 96.46 | E111: =IF(A111>$B$30,NA(),IF(A111>$A$8,"",OFFSET(InputPriceData!$D$15,CalculationsAndCharts!$A111+$A$11,IF($C$5,8,0),1,1))) -> 97.06 | F111: =IF(A111>$B$30,NA(),IF(A111>$A$8,"",OFFSET(InputPriceData!$E$15,CalculationsAndCharts!$A111+$A$11,IF($C$5,8,0),1,1))) -> 93.51 | G111: =IF(A111>$B$30,NA(),IF(A111>$A$8,"",OFFSET(InputPriceData!$F$15,CalculationsAndCharts!$A111+$A$11,IF($C$5,8,0),1,1))) -> 95.23 | I111: =IF($A111>$I$30,NA(),LINEST(OFFSET(G111,0,0,$A$19,1),OFFSET($H$33,0,0,$A$19,1))) -> 0.2287366146 | J111: 86.94801633 | K111: 98.38484706 | L111: 3.154847059 | M111: 0.008023529412 | N111: 6.443364706 | O111: 0.4889909397 | P111: 2.444954699 | Q111: 0.1350962627 | R111: 96.55600646 | S111: 93.22420105 | T111: 122 | U111: =IF($A111>$U$30,NA(),LINEST(OFFSET($G111,0,0,$D$19,1),OFFSET($T$33,0,0,$D$19,1))) -> 0.04829117978 | V111: 82.05098643 | W111: 91.70922239 | X111: 3.520777612 | Y111: 0.0339119403 | Z111: 12.81625075 | AA111: 0.2727877679 | AB111: 1.36393884 | AC111: 0.0235217795 | AD111: 92.79990473 | AX111: 8813000
A112: 80 | B112: =IF(A112>$B$30,NA(),IF($A112>$A$8,"",OFFSET(InputPriceData!$B$15,$A112+$A$11,0,1,1))) -> 2022-03-15 | C112: =IF(A112>$B$30,NA(),IF($A112>$A$8,"",OFFSET(InputPriceData!$G$15,CalculationsAndCharts!$A112+$A$11,IF($C$5,8,0),1,1))) -> 5417600 | D112: =IF(A112>$B$30,NA(),IF(A112>$A$8,"",OFFSET(InputPriceData!$C$15,CalculationsAndCharts!$A112+$A$11,IF($C$5,8,0),1,1))) -> 97.3 | E112: =IF(A112>$B$30,NA(),IF(A112>$A$8,"",OFFSET(InputPriceData!$D$15,CalculationsAndCharts!$A112+$A$11,IF($C$5,8,0),1,1))) -> 97.52 | F112: =IF(A112>$B$30,NA(),IF(A112>$A$8,"",OFFSET(InputPriceData!$E$15,CalculationsAndCharts!$A112+$A$11,IF($C$5,8,0),1,1))) -> 96 | G112: =IF(A112>$B$30,NA(),IF(A112>$A$8,"",OFFSET(InputPriceData!$F$15,CalculationsAndCharts!$A112+$A$11,IF($C$5,8,0),1,1))) -> 97.04 | I112: =IF($A112>$I$30,NA(),LINEST(OFFSET(G112,0,0,$A$19,1),OFFSET($H$33,0,0,$A$19,1))) -> 0.2387404562 | J112: 86.50791837 | K112: 98.44494118 | L112: 1.404941176 | M112: 0.008023529412 | N112: 6.443364706 | O112: 0.2170697106 | P112: 1.085348553 | Q112: 0.08177837464 | R112: 96.76312606 | S112: 93.1423317 | T112: 121 | U112: =IF($A112>$U$30,NA(),LINEST(OFFSET($G112,0,0,$D$19,1),OFFSET($T$33,0,0,$D$19,1))) -> 0.04703070577 | V112: 82.13621407 | W112: 91.54235522 | X112: 5.497644776 | Y112: 0.0339119403 | Z112: 12.81625075 | AA112: 0.4274439067 | AB112: 2.137219533 | AC112: 0.03121611476 | AD112: 92.74136767 | AX112: 5417600
A113: 81 | B113: =IF(A113>$B$30,NA(),IF($A113>$A$8,"",OFFSET(InputPriceData!$B$15,$A113+$A$11,0,1,1))) -> 2022-03-14 | C113: =IF(A113>$B$30,NA(),IF($A113>$A$8,"",OFFSET(InputPriceData!$G$15,CalculationsAndCharts!$A113+$A$11,IF($C$5,8,0),1,1))) -> 5581700 | D113: =IF(A113>$B$30,NA(),IF(A113>$A$8,"",OFFSET(InputPriceData!$C$15,CalculationsAndCharts!$A113+$A$11,IF($C$5,8,0),1,1))) -> 96.59 | E113: =IF(A113>$B$30,NA(),IF(A113>$A$8,"",OFFSET(InputPriceData!$D$15,CalculationsAndCharts!$A113+$A$11,IF($C$5,8,0),1,1))) -> 97.08 | F113: =IF(A113>$B$30,NA(),IF(A113>$A$8,"",OFFSET(InputPriceData!$E$15,CalculationsAndCharts!$A113+$A$11,IF($C$5,8,0),1,1))) -> 94.84 | G113: =IF(A113>$B$30,NA(),IF(A113>$A$8,"",OFFSET(InputPriceData!$F$15,CalculationsAndCharts!$A113+$A$11,IF($C$5,8,0),1,1))) -> 96.46 | I113: =IF($A113>$I$30,NA(),LINEST(OFFSET(G113,0,0,$A$19,1),OFFSET($H$33,0,0,$A$19,1))) -> 0.2455409364 | J113: 86.09530612 | K113: 98.37235294 | L113: 1.912352941 | M113: 0.008023529412 | N113: 6.443364706 | O113: 0.2959173973 | P113: 1.479586987 | Q113: 0.09723870536 | R113: 96.7384672 | S113: 92.9832432 | T113: 120 | U113: =IF($A113>$U$30,NA(),LINEST(OFFSET($G113,0,0,$D$19,1),OFFSET($T$33,0,0,$D$19,1))) -> 0.04552672317 | V113: 82.23546432 | W113: 91.34080896 | X113: 5.119191045 | Y113: 0.0339119403 | Z113: 12.81625075 | AA113: 0.397836357 | AB113: 1.989181785 | AC113: 0.02974310234 | AD113: 92.60285732 | AX113: 5581700
A114: 82 | B114: =IF(A114>$B$30,NA(),IF($A114>$A$8,"",OFFSET(InputPriceData!$B$15,$A114+$A$11,0,1,1))) -> 2022-03-11 | C114: =IF(A114>$B$30,NA(),IF($A114>$A$8,"",OFFSET(InputPriceData!$G$15,CalculationsAndCharts!$A114+$A$11,IF($C$5,8,0),1,1))) -> 4354300 | D114: =IF(A114>$B$30,NA(),IF(A114>$A$8,"",OFFSET(InputPriceData!$C$15,CalculationsAndCharts!$A114+$A$11,IF($C$5,8,0),1,1))) -> 98.19 | E114: =IF(A114>$B$30,NA(),IF(A114>$A$8,"",OFFSET(InputPriceData!$D$15,CalculationsAndCharts!$A114+$A$11,IF($C$5,8,0),1,1))) -> 99.16 | F114: =IF(A114>$B$30,NA(),IF(A114>$A$8,"",OFFSET(InputPriceData!$E$15,CalculationsAndCharts!$A114+$A$11,IF($C$5,8,0),1,1))) -> 96.23 | G114: =IF(A114>$B$30,NA(),IF(A114>$A$8,"",OFFSET(InputPriceData!$F$15,CalculationsAndCharts!$A114+$A$11,IF($C$5,8,0),1,1))) -> 96.34 | I114: =IF($A114>$I$30,NA(),LINEST(OFFSET(G114,0,0,$A$19,1),OFFSET($H$33,0,0,$A$19,1))) -> 0.25322497 | J114: 85.66656327 | K114: 98.32781176 | L114: 1.987811765 | M114: 0.008023529412 | N114: 6.443364706 | O114: 0.3076430885 | P114: 1.538215443 | Q114: 0.0995378605 | R114: 96.76846161 | S114: 92.84133476 | T114: 119 | U114: =IF($A114>$U$30,NA(),LINEST(OFFSET($G114,0,0,$D$19,1),OFFSET($T$33,0,0,$D$19,1))) -> 0.0441080402 | V114: 82.32859196 | W114: 91.1502 | X114: 5.1898 | Y114: 0.0339119403 | Z114: 12.81625075 | AA114: 0.4033603035 | AB114: 2.016801517 | AC114: 0.03001792555 | AD114: 92.4846171 | AX114: 4354300
A115: 83 | B115: =IF(A115>$B$30,NA(),IF($A115>$A$8,"",OFFSET(InputPriceData!$B$15,$A115+$A$11,0,1,1))) -> 2022-03-10 | C115: =IF(A115>$B$30,NA(),IF($A115>$A$8,"",OFFSET(InputPriceData!$G$15,CalculationsAndCharts!$A115+$A$11,IF($C$5,8,0),1,1))) -> 5118400 | D115: =IF(A115>$B$30,NA(),IF(A115>$A$8,"",OFFSET(InputPriceData!$C$15,CalculationsAndCharts!$A115+$A$11,IF($C$5,8,0),1,1))) -> 97.59 | E115: =IF(A115>$B$30,NA(),IF(A115>$A$8,"",OFFSET(InputPriceData!$D$15,CalculationsAndCharts!$A115+$A$11,IF($C$5,8,0),1,1))) -> 99.21 | F115: =IF(A115>$B$30,NA(),IF(A115>$A$8,"",OFFSET(InputPriceData!$E$15,CalculationsAndCharts!$A115+$A$11,IF($C$5,8,0),1,1))) -> 97.08 | G115: =IF(A115>$B$30,NA(),IF(A115>$A$8,"",OFFSET(InputPriceData!$F$15,CalculationsAndCharts!$A115+$A$11,IF($C$5,8,0),1,1))) -> 97.92 | I115: =IF($A115>$I$30,NA(),LINEST(OFFSET(G115,0,0,$A$19,1),OFFSET($H$33,0,0,$A$19,1))) -> 0.2598732293 | J115: 85.26843265 | K115: 98.26209412 | L115: 0.3420941176 | M115: 0.008023529412 | N115: 6.443364706 | O115: 0.05191186902 | P115: 0.2595593451 | Q115: 0.04939448412 | R115: 96.81582412 | S115: 92.6985321 | T115: 118 | U115: =IF($A115>$U$30,NA(),LINEST(OFFSET($G115,0,0,$D$19,1),OFFSET($T$33,0,0,$D$19,1))) -> 0.04300156754 | V115: 82.38059246 | W115: 90.98090597 | X115: 6.93909403 | Y115: 0.0339119403 | Z115: 12.81625075 | AA115: 0.5402127259 | AB115: 2.701063629 | AC115: 0.03682650378 | AD115: 92.365305 | AW115: 5118400
A116: 84 | B116: =IF(A116>$B$30,NA(),IF($A116>$A$8,"",OFFSET(InputPriceData!$B$15,$A116+$A$11,0,1,1))) -> 2022-03-09 | C116: =IF(A116>$B$30,NA(),IF($A116>$A$8,"",OFFSET(InputPriceData!$G$15,CalculationsAndCharts!$A116+$A$11,IF($C$5,8,0),1,1))) -> 7100500 | D116: =IF(A116>$B$30,NA(),IF(A116>$A$8,"",OFFSET(InputPriceData!$C$15,CalculationsAndCharts!$A116+$A$11,IF($C$5,8,0),1,1))) -> 94.68 | E116: =IF(A116>$B$30,NA(),IF(A116>$A$8,"",OFFSET(InputPriceData!$D$15,CalculationsAndCharts!$A116+$A$11,IF($C$5,8,0),1,1))) -> 98.49 | F116: =IF(A116>$B$30,NA(),IF(A116>$A$8,"",OFFSET(InputPriceData!$E$15,CalculationsAndCharts!$A116+$A$11,IF($C$5,8,0),1,1))) -> 94.68 | G116: =IF(A116>$B$30,NA(),IF(A116>$A$8,"",OFFSET(InputPriceData!$F$15,CalculationsAndCharts!$A116+$A$11,IF($C$5,8,0),1,1))) -> 97.93 | I116: =IF($A116>$I$30,NA(),LINEST(OFFSET(G116,0,0,$A$19,1),OFFSET($H$33,0,0,$A$19,1))) -> 0.2612484994 | J116: 84.97576327 | K116: 98.03818824 | L116: 0.1081882353 | M116: 0.008023529412 | N116: 6.443364706 | O116: 0.01556478563 | P116: 0.07782392816 | Q116: 0.04226760503 | R116: 96.75844996 | S116: 92.48541096 | T116: 117 | U116: =IF($A116>$U$30,NA(),LINEST(OFFSET($G116,0,0,$D$19,1),OFFSET($T$33,0,0,$D$19,1))) -> 0.04167347184 | V116: 82.44581608 | W116: 90.78051045 | X116: 7.149489552 | Y116: 0.0339119403 | Z116: 12.81625075 | AA116: 0.5566725871 | AB116: 2.783362935 | AC116: 0.03764540234 | AD116: 92.15292374 | AW116: 7100500
A117: 85 | B117: =IF(A117>$B$30,NA(),IF($A117>$A$8,"",OFFSET(InputPriceData!$B$15,$A117+$A$11,0,1,1))) -> 2022-03-08 | C117: =IF(A117>$B$30,NA(),IF($A117>$A$8,"",OFFSET(InputPriceData!$G$15,CalculationsAndCharts!$A117+$A$11,IF($C$5,8,0),1,1))) -> 9410600 | D117: =IF(A117>$B$30,NA(),IF(A117>$A$8,"",OFFSET(InputPriceData!$C$15,CalculationsAndCharts!$A117+$A$11,IF($C$5,8,0),1,1))) -> 97.43 | E117: =IF(A117>$B$30,NA(),IF(A117>$A$8,"",OFFSET(InputPriceData!$D$15,CalculationsAndCharts!$A117+$A$11,IF($C$5,8,0),1,1))) -> 97.82 | F117: =IF(A117>$B$30,NA(),IF(A117>$A$8,"",OFFSET(InputPriceData!$E$15,CalculationsAndCharts!$A117+$A$11,IF($C$5,8,0),1,1))) -> 94.13 | G117: =IF(A117>$B$30,NA(),IF(A117>$A$8,"",OFFSET(InputPriceData!$F$15,CalculationsAndCharts!$A117+$A$11,IF($C$5,8,0),1,1))) -> 94.29 | I117: =IF($A117>$I$30,NA(),LINEST(OFFSET(G117,0,0,$A$19,1),OFFSET($H$33,0,0,$A$19,1))) -> 0.2631740696 | J117: 84.65346122 | K117: 97.81216471 | L117: 3.522164706 | M117: 0.008023529412 | N117: 6.443364706 | O117: 0.5460691329 | P117: 2.730345665 | Q117: 0.1462880653 | R117: 96.70674594 | S117: 92.26318284 | T117: 116 | U117: =IF($A117>$U$30,NA(),LINEST(OFFSET($G117,0,0,$D$19,1),OFFSET($T$33,0,0,$D$19,1))) -> 0.04029055726 | V117: 82.51759899 | W117: 90.57571045 | X117: 3.714289552 | Y117: 0.0339119403 | Z117: 12.81625075 | AA117: 0.2879267768 | AB117: 1.439633884 | AC117: 0.02427496402 | AD117: 91.92693598 | AX117: 9410600
A118: 86 | B118: =IF(A118>$B$30,NA(),IF($A118>$A$8,"",OFFSET(InputPriceData!$B$15,$A118+$A$11,0,1,1))) -> 2022-03-07 | C118: =IF(A118>$B$30,NA(),IF($A118>$A$8,"",OFFSET(InputPriceData!$G$15,CalculationsAndCharts!$A118+$A$11,IF($C$5,8,0),1,1))) -> 12759000 | D118: =IF(A118>$B$30,NA(),IF(A118>$A$8,"",OFFSET(InputPriceData!$C$15,CalculationsAndCharts!$A118+$A$11,IF($C$5,8,0),1,1))) -> 100.69 | E118: =IF(A118>$B$30,NA(),IF(A118>$A$8,"",OFFSET(InputPriceData!$D$15,CalculationsAndCharts!$A118+$A$11,IF($C$5,8,0),1,1))) -> 102.49 | F118: =IF(A118>$B$30,NA(),IF(A118>$A$8,"",OFFSET(InputPriceData!$E$15,CalculationsAndCharts!$A118+$A$11,IF($C$5,8,0),1,1))) -> 97.54 | G118: =IF(A118>$B$30,NA(),IF(A118>$A$8,"",OFFSET(InputPriceData!$F$15,CalculationsAndCharts!$A118+$A$11,IF($C$5,8,0),1,1))) -> 97.61 | I118: =IF($A118>$I$30,NA(),LINEST(OFFSET(G118,0,0,$A$19,1),OFFSET($H$33,0,0,$A$19,1))) -> 0.2735020408 | J118: 84.18289796 | K118: 97.858 | L118: 0.248 | M118: 0.008023529412 | N118: 6.443364706 | O118: 0.03729040373 | P118: 0.1864520186 | Q118: 0.04652753014 | R118: 97.12086816 | S118: 92.18045561 | T118: 115 | U118: =IF($A118>$U$30,NA(),LINEST(OFFSET($G118,0,0,$D$19,1),OFFSET($T$33,0,0,$D$19,1))) -> 0.03953473337 | V118: 82.5412593 | W118: 90.44820597 | X118: 7.16179403 | Y118: 0.0339119403 | Z118: 12.81625075 | AA118: 0.5576352026 | AB118: 2.788176013 | AC118: 0.03769329366 | AD118: 91.86814555 | AX118: 12759000
A119: 87 | B119: =IF(A119>$B$30,NA(),IF($A119>$A$8,"",OFFSET(InputPriceData!$B$15,$A119+$A$11,0,1,1))) -> 2022-03-04 | C119: =IF(A119>$B$30,NA(),IF($A119>$A$8,"",OFFSET(InputPriceData!$G$15,CalculationsAndCharts!$A119+$A$11,IF($C$5,8,0),1,1))) -> 8627200 | D119: =IF(A119>$B$30,NA(),IF(A119>$A$8,"",OFFSET(InputPriceData!$C$15,CalculationsAndCharts!$A119+$A$11,IF($C$5,8,0),1,1))) -> 99.36 | E119: =IF(A119>$B$30,NA(),IF(A119>$A$8,"",OFFSET(InputPriceData!$D$15,CalculationsAndCharts!$A119+$A$11,IF($C$5,8,0),1,1))) -> 99.36 | F119: =IF(A119>$B$30,NA(),IF(A119>$A$8,"",OFFSET(InputPriceData!$E$15,CalculationsAndCharts!$A119+$A$11,IF($C$5,8,0),1,1))) -> 97.65 | G119: =IF(A119>$B$30,NA(),IF(A119>$A$8,"",OFFSET(InputPriceData!$F$15,CalculationsAndCharts!$A119+$A$11,IF($C$5,8,0),1,1))) -> 99 | I119: =IF($A119>$I$30,NA(),LINEST(OFFSET(G119,0,0,$A$19,1),OFFSET($H$33,0,0,$A$19,1))) -> 0.2766338535 | J119: 83.81303673 | K119: 97.64472941 | L119: 1.355270588 | M119: 0.008023529412 | N119: 6.443364706 | O119: 0.2093513027 | P119: 1.046756514 | Q119: 0.08026496132 | R119: 97.09699952 | S119: 91.95884155 | T119: 114 | U119: =IF($A119>$U$30,NA(),LINEST(OFFSET($G119,0,0,$D$19,1),OFFSET($T$33,0,0,$D$19,1))) -> 0.03834779119 | V119: 82.58879698 | W119: 90.25835522 | X119: 8.741644776 | Y119: 0.0339119403 | Z119: 12.81625075 | AA119: 0.681231578 | AB119: 3.40615789 | AC119: 0.04384236707 | AD119: 91.64323866 | AX119: 8627200
A120: 88 | B120: =IF(A120>$B$30,NA(),IF($A120>$A$8,"",OFFSET(InputPriceData!$B$15,$A120+$A$11,0,1,1))) -> 2022-03-03 | C120: =IF(A120>$B$30,NA(),IF($A120>$A$8,"",OFFSET(InputPriceData!$G$15,CalculationsAndCharts!$A120+$A$11,IF($C$5,8,0),1,1))) -> 8613500 | D120: =IF(A120>$B$30,NA(),IF(A120>$A$8,"",OFFSET(InputPriceData!$C$15,CalculationsAndCharts!$A120+$A$11,IF($C$5,8,0),1,1))) -> 100.46 | E120: =IF(A120>$B$30,NA(),IF(A120>$A$8,"",OFFSET(InputPriceData!$D$15,CalculationsAndCharts!$A120+$A$11,IF($C$5,8,0),1,1))) -> 100.75 | F120: =IF(A120>$B$30,NA(),IF(A120>$A$8,"",OFFSET(InputPriceData!$E$15,CalculationsAndCharts!$A120+$A$11,IF($C$5,8,0),1,1))) -> 98.04 | G120: =IF(A120>$B$30,NA(),IF(A120>$A$8,"",OFFSET(InputPriceData!$F$15,CalculationsAndCharts!$A120+$A$11,IF($C$5,8,0),1,1))) -> 99.24 | I120: =IF($A120>$I$30,NA(),LINEST(OFFSET(G120,0,0,$A$19,1),OFFSET($H$33,0,0,$A$19,1))) -> 0.2758866747 | J120: 83.5064898 | K120: 97.30082353 | L120: 1.939176471 | M120: 0.008023529412 | N120: 6.443364706 | O120: 0.300085557 | P120: 1.500427785 | Q120: 0.09805599156 | R120: 96.93092532 | S120: 91.67144733 | T120: 113 | U120: =IF($A120>$U$30,NA(),LINEST(OFFSET($G120,0,0,$D$19,1),OFFSET($T$33,0,0,$D$19,1))) -> 0.03700589515 | V120: 82.64240754 | W120: 90.04358657 | X120: 9.196413433 | Y120: 0.0339119403 | Z120: 12.81625075 | AA120: 0.716809469 | AB120: 3.584047345 | AC120: 0.04561241139 | AD120: 91.30591162 | AX120: 8613500
A121: 89 | B121: =IF(A121>$B$30,NA(),IF($A121>$A$8,"",OFFSET(InputPriceData!$B$15,$A121+$A$11,0,1,1))) -> 2022-03-02 | C121: =IF(A121>$B$30,NA(),IF($A121>$A$8,"",OFFSET(InputPriceData!$G$15,CalculationsAndCharts!$A121+$A$11,IF($C$5,8,0),1,1))) -> 12834600 | D121: =IF(A121>$B$30,NA(),IF(A121>$A$8,"",OFFSET(InputPriceData!$C$15,CalculationsAndCharts!$A121+$A$11,IF($C$5,8,0),1,1))) -> 101.59 | E121: =IF(A121>$B$30,NA(),IF(A121>$A$8,"",OFFSET(InputPriceData!$D$15,CalculationsAndCharts!$A121+$A$11,IF($C$5,8,0),1,1))) -> 101.9 | F121: =IF(A121>$B$30,NA(),IF(A121>$A$8,"",OFFSET(InputPriceData!$E$15,CalculationsAndCharts!$A121+$A$11,IF($C$5,8,0),1,1))) -> 99.19 | G121: =IF(A121>$B$30,NA(),IF(A121>$A$8,"",OFFSET(InputPriceData!$F$15,CalculationsAndCharts!$A121+$A$11,IF($C$5,8,0),1,1))) -> 100.14 | I121: =IF($A121>$I$30,NA(),LINEST(OFFSET(G121,0,0,$A$19,1),OFFSET($H$33,0,0,$A$19,1))) -> 0.2791529412 | J121: 83.0404 | K121: 96.99804706 | L121: 3.141952941 | M121: 0.008023529412 | N121: 6.443364706 | O121: 0.4869872981 | P121: 2.43493649 | Q121: 0.1347033918 | R121: 96.67989132 | S121: 91.36252681 | T121: 112 | U121: =IF($A121>$U$30,NA(),LINEST(OFFSET($G121,0,0,$D$19,1),OFFSET($T$33,0,0,$D$19,1))) -> 0.03557956199 | V121: 82.70410402 | W121: 89.82001642 | X121: 10.31998358 | Y121: 0.0339119403 | Z121: 12.81625075 | AA121: 0.80470967 | AB121: 4.02354835 | AC121: 0.04998555572 | AD121: 90.92672301 | AX121: 12834600
A122: 90 | B122: =IF(A122>$B$30,NA(),IF($A122>$A$8,"",OFFSET(InputPriceData!$B$15,$A122+$A$11,0,1,1))) -> 2022-03-01 | C122: =IF(A122>$B$30,NA(),IF($A122>$A$8,"",OFFSET(InputPriceData!$G$15,CalculationsAndCharts!$A122+$A$11,IF($C$5,8,0),1,1))) -> 12340900 | D122: =IF(A122>$B$30,NA(),IF(A122>$A$8,"",OFFSET(InputPriceData!$C$15,CalculationsAndCharts!$A122+$A$11,IF($C$5,8,0),1,1))) -> 102.16 | E122: =IF(A122>$B$30,NA(),IF(A122>$A$8,"",OFFSET(InputPriceData!$D$15,CalculationsAndCharts!$A122+$A$11,IF($C$5,8,0),1,1))) -> 103.72 | F122: =IF(A122>$B$30,NA(),IF(A122>$A$8,"",OFFSET(InputPriceData!$E$15,CalculationsAndCharts!$A122+$A$11,IF($C$5,8,0),1,1))) -> 101.57 | G122: =IF(A122>$B$30,NA(),IF(A122>$A$8,"",OFFSET(InputPriceData!$F$15,CalculationsAndCharts!$A122+$A$11,IF($C$5,8,0),1,1))) -> 102.12 | I122: =IF($A122>$I$30,NA(),LINEST(OFFSET(G122,0,0,$A$19,1),OFFSET($H$33,0,0,$A$19,1))) -> 0.2754593037 | J122: 82.75858776 | K122: 96.53155294 | L122: 5.588447059 | M122: 0.008023529412 | N122: 6.443364706 | O122: 0.8671527082 | P122: 4.335763541 | Q122: 0.2092456291 | R122: 96.14124553 | S122: 91.0042626 | T122: 111 | U122: =IF($A122>$U$30,NA(),LINEST(OFFSET($G122,0,0,$D$19,1),OFFSET($T$33,0,0,$D$19,1))) -> 0.0338199205 | V122: 82.80059799 | W122: 89.56458209 | X122: 12.55541791 | Y122: 0.0339119403 | Z122: 12.81625075 | AA122: 0.9795942793 | AB122: 4.897971396 | AC122: 0.05868628255 | AD122: 90.44196115 | AX122: 12340900
A123: 91 | B123: =IF(A123>$B$30,NA(),IF($A123>$A$8,"",OFFSET(InputPriceData!$B$15,$A123+$A$11,0,1,1))) -> 2022-02-28 | C123: =IF(A123>$B$30,NA(),IF($A123>$A$8,"",OFFSET(InputPriceData!$G$15,CalculationsAndCharts!$A123+$A$11,IF($C$5,8,0),1,1))) -> 16726100 | D123: =IF(A123>$B$30,NA(),IF(A123>$A$8,"",OFFSET(InputPriceData!$C$15,CalculationsAndCharts!$A123+$A$11,IF($C$5,8,0),1,1))) -> 98.43 | E123: =IF(A123>$B$30,NA(),IF(A123>$A$8,"",OFFSET(InputPriceData!$D$15,CalculationsAndCharts!$A123+$A$11,IF($C$5,8,0),1,1))) -> 102.35 | F123: =IF(A123>$B$30,NA(),IF(A123>$A$8,"",OFFSET(InputPriceData!$E$15,CalculationsAndCharts!$A123+$A$11,IF($C$5,8,0),1,1))) -> 97.82 | G123: =IF(A123>$B$30,NA(),IF(A123>$A$8,"",OFFSET(InputPriceData!$F$15,CalculationsAndCharts!$A123+$A$11,IF($C$5,8,0),1,1))) -> 102.09 | I123: =IF($A123>$I$30,NA(),LINEST(OFFSET(G123,0,0,$A$19,1),OFFSET($H$33,0,0,$A$19,1))) -> 0.2641464586 | J123: 82.63966531 | K123: 95.84698824 | L123: 6.243011765 | M123: 0.008023529412 | N123: 6.443364706 | O123: 0.9688667725 | P123: 4.844333862 | Q123: 0.2291895632 | R123: 94.5591762 | S123: 90.55055903 | T123: 110 | U123: =IF($A123>$U$30,NA(),LINEST(OFFSET($G123,0,0,$D$19,1),OFFSET($T$33,0,0,$D$19,1))) -> 0.03183768094 | V123: 82.90621307 | W123: 89.27374925 | X123: 12.81625075 | Y123: 0.0339119403 | Z123: 12.81625075 | AA123: 1 | AB123: 5 | AC123: 0.05970149254 | AD123: 89.71389284 | AW123: 16726100
A124: 92 | B124: =IF(A124>$B$30,NA(),IF($A124>$A$8,"",OFFSET(InputPriceData!$B$15,$A124+$A$11,0,1,1))) -> 2022-02-25 | C124: =IF(A124>$B$30,NA(),IF($A124>$A$8,"",OFFSET(InputPriceData!$G$15,CalculationsAndCharts!$A124+$A$11,IF($C$5,8,0),1,1))) -> 8692300 | D124: =IF(A124>$B$30,NA(),IF(A124>$A$8,"",OFFSET(InputPriceData!$C$15,CalculationsAndCharts!$A124+$A$11,IF($C$5,8,0),1,1))) -> 93.83 | E124: =IF(A124>$B$30,NA(),IF(A124>$A$8,"",OFFSET(InputPriceData!$D$15,CalculationsAndCharts!$A124+$A$11,IF($C$5,8,0),1,1))) -> 97.69 | F124: =IF(A124>$B$30,NA(),IF(A124>$A$8,"",OFFSET(InputPriceData!$E$15,CalculationsAndCharts!$A124+$A$11,IF($C$5,8,0),1,1))) -> 93.64 | G124: =IF(A124>$B$30,NA(),IF(A124>$A$8,"",OFFSET(InputPriceData!$F$15,CalculationsAndCharts!$A124+$A$11,IF($C$5,8,0),1,1))) -> 97.54 | I124: =IF($A124>$I$30,NA(),LINEST(OFFSET(G124,0,0,$A$19,1),OFFSET($H$33,0,0,$A$19,1))) -> 0.2492331333 | J124: 82.6277551 | K124: 95.08941176 | L124: 2.450588235 | M124: 0.008023529412 | N124: 6.443364706 | O124: 0.3795548113 | P124: 1.897774056 | Q124: 0.1136381983 | R124: 92.31999244 | S124: 90.07956144 | T124: 109 | U124: =IF($A124>$U$30,NA(),LINEST(OFFSET($G124,0,0,$D$19,1),OFFSET($T$33,0,0,$D$19,1))) -> 0.03013636091 | V124: 82.97354573 | W124: 89.00081791 | X124: 8.53918209 | Y124: 0.0339119403 | Z124: 10.9314791 | AA124: 0.7804742124 | AB124: 3.902371062 | AC124: 0.04877981156 | AD124: 88.92810825 | AW124: 8692300
A125: 93 | B125: =IF(A125>$B$30,NA(),IF($A125>$A$8,"",OFFSET(InputPriceData!$B$15,$A125+$A$11,0,1,1))) -> 2022-02-24 | C125: =IF(A125>$B$30,NA(),IF($A125>$A$8,"",OFFSET(InputPriceData!$G$15,CalculationsAndCharts!$A125+$A$11,IF($C$5,8,0),1,1))) -> 9698500 | D125: =IF(A125>$B$30,NA(),IF(A125>$A$8,"",OFFSET(InputPriceData!$C$15,CalculationsAndCharts!$A125+$A$11,IF($C$5,8,0),1,1))) -> 92.45 | E125: =IF(A125>$B$30,NA(),IF(A125>$A$8,"",OFFSET(InputPriceData!$D$15,CalculationsAndCharts!$A125+$A$11,IF($C$5,8,0),1,1))) -> 94.09 | F125: =IF(A125>$B$30,NA(),IF(A125>$A$8,"",OFFSET(InputPriceData!$E$15,CalculationsAndCharts!$A125+$A$11,IF($C$5,8,0),1,1))) -> 88.78 | G125: =IF(A125>$B$30,NA(),IF(A125>$A$8,"",OFFSET(InputPriceData!$F$15,CalculationsAndCharts!$A125+$A$11,IF($C$5,8,0),1,1))) -> 93.69 | I125: =IF($A125>$I$30,NA(),LINEST(OFFSET(G125,0,0,$A$19,1),OFFSET($H$33,0,0,$A$19,1))) -> 0.2434146459 | J125: 82.47632653 | K125: 94.64705882 | L125: 0.9570588235 | M125: 0.008023529412 | N125: 6.443364706 | O125: 0.1474724134 | P125: 0.7373620668 | Q125: 0.06813184576 | R125: 91.65074851 | S125: 89.77505374 | T125: 108 | U125: =IF($A125>$U$30,NA(),LINEST(OFFSET($G125,0,0,$D$19,1),OFFSET($T$33,0,0,$D$19,1))) -> 0.02930778519 | V125: 82.96861759 | W125: 88.83017463 | X125: 4.859825373 | Y125: 0.0339119403 | Z125: 10.9314791 | AA125: 0.4428431924 | AB125: 2.214215962 | AC125: 0.03198224838 | AD125: 88.48647922 | AW125: 9698500
A126: 94 | B126: =IF(A126>$B$30,NA(),IF($A126>$A$8,"",OFFSET(InputPriceData!$B$15,$A126+$A$11,0,1,1))) -> 2022-02-23 | C126: =IF(A126>$B$30,NA(),IF($A126>$A$8,"",OFFSET(InputPriceData!$G$15,CalculationsAndCharts!$A126+$A$11,IF($C$5,8,0),1,1))) -> 6903300 | D126: =IF(A126>$B$30,NA(),IF(A126>$A$8,"",OFFSET(InputPriceData!$C$15,CalculationsAndCharts!$A126+$A$11,IF($C$5,8,0),1,1))) -> 93.22 | E126: =IF(A126>$B$30,NA(),IF(A126>$A$8,"",OFFSET(InputPriceData!$D$15,CalculationsAndCharts!$A126+$A$11,IF($C$5,8,0),1,1))) -> 93.45 | F126: =IF(A126>$B$30,NA(),IF(A126>$A$8,"",OFFSET(InputPriceData!$E$15,CalculationsAndCharts!$A126+$A$11,IF($C$5,8,0),1,1))) -> 91 | G126: =IF(A126>$B$30,NA(),IF(A126>$A$8,"",OFFSET(InputPriceData!$F$15,CalculationsAndCharts!$A126+$A$11,IF($C$5,8,0),1,1))) -> 91.19 | I126: =IF($A126>$I$30,NA(),LINEST(OFFSET(G126,0,0,$A$19,1),OFFSET($H$33,0,0,$A$19,1))) -> 0.2436557023 | J126: 82.26377959 | K126: 94.44656471 | L126: 3.256564706 | M126: 0.008023529412 | N126: 6.443364706 | O126: 0.5047970399 | P126: 2.523985199 | Q126: 0.138195498 | R126: 91.50165234 | S126: 89.61526002 | T126: 107 | U126: =IF($A126>$U$30,NA(),LINEST(OFFSET($G126,0,0,$D$19,1),OFFSET($T$33,0,0,$D$19,1))) -> 0.0287361359 | V126: 82.96706834 | W126: 88.71429552 | X126: 2.475704478 | Y126: 0.0339119403 | Z126: 10.9314791 | AA126: 0.224067675 | AB126: 1.120338375 | AC126: 0.02109789428 | AD126: 88.31456058 | AX126: 6903300
A127: 95 | B127: =IF(A127>$B$30,NA(),IF($A127>$A$8,"",OFFSET(InputPriceData!$B$15,$A127+$A$11,0,1,1))) -> 2022-02-22 | C127: =IF(A127>$B$30,NA(),IF($A127>$A$8,"",OFFSET(InputPriceData!$G$15,CalculationsAndCharts!$A127+$A$11,IF($C$5,8,0),1,1))) -> 5862200 | D127: =IF(A127>$B$30,NA(),IF(A127>$A$8,"",OFFSET(InputPriceData!$C$15,CalculationsAndCharts!$A127+$A$11,IF($C$5,8,0),1,1))) -> 92.55 | E127: =IF(A127>$B$30,NA(),IF(A127>$A$8,"",OFFSET(InputPriceData!$D$15,CalculationsAndCharts!$A127+$A$11,IF($C$5,8,0),1,1))) -> 93.66 | F127: =IF(A127>$B$30,NA(),IF(A127>$A$8,"",OFFSET(InputPriceData!$E$15,CalculationsAndCharts!$A127+$A$11,IF($C$5,8,0),1,1))) -> 91.73 | G127: =IF(A127>$B$30,NA(),IF(A127>$A$8,"",OFFSET(InputPriceData!$F$15,CalculationsAndCharts!$A127+$A$11,IF($C$5,8,0),1,1))) -> 92.47 | I127: =IF($A127>$I$30,NA(),LINEST(OFFSET(G127,0,0,$A$19,1),OFFSET($H$33,0,0,$A$19,1))) -> 0.2447927971 | J127: 82.11438367 | K127: 94.35402353 | L127: 1.884023529 | M127: 0.008023529412 | N127: 6.443364706 | O127: 0.2915152357 | P127: 1.457576179 | Q127: 0.09637553642 | R127: 91.55162766 | S127: 89.55098492 | T127: 106 | U127: =IF($A127>$U$30,NA(),LINEST(OFFSET($G127,0,0,$D$19,1),OFFSET($T$33,0,0,$D$19,1))) -> 0.02842068552 | V127: 82.95572111 | W127: 88.63985821 | X127: 3.830141791 | Y127: 0.0339119403 | Z127: 10.9314791 | AA127: 0.3483557195 | AB127: 1.741778598 | AC127: 0.02728137908 | AD127: 88.25258736 | AX127: 5862200
A128: 96 | B128: =IF(A128>$B$30,NA(),IF($A128>$A$8,"",OFFSET(InputPriceData!$B$15,$A128+$A$11,0,1,1))) -> 2022-02-18 | C128: =IF(A128>$B$30,NA(),IF($A128>$A$8,"",OFFSET(InputPriceData!$G$15,CalculationsAndCharts!$A128+$A$11,IF($C$5,8,0),1,1))) -> 6544800 | D128: =IF(A128>$B$30,NA(),IF(A128>$A$8,"",OFFSET(InputPriceData!$C$15,CalculationsAndCharts!$A128+$A$11,IF($C$5,8,0),1,1))) -> 93.06 | E128: =IF(A128>$B$30,NA(),IF(A128>$A$8,"",OFFSET(InputPriceData!$D$15,CalculationsAndCharts!$A128+$A$11,IF($C$5,8,0),1,1))) -> 93.92 | F128: =IF(A128>$B$30,NA(),IF(A128>$A$8,"",OFFSET(InputPriceData!$E$15,CalculationsAndCharts!$A128+$A$11,IF($C$5,8,0),1,1))) -> 91.93 | G128: =IF(A128>$B$30,NA(),IF(A128>$A$8,"",OFFSET(InputPriceData!$F$15,CalculationsAndCharts!$A128+$A$11,IF($C$5,8,0),1,1))) -> 92.3 | I128: =IF($A128>$I$30,NA(),LINEST(OFFSET(G128,0,0,$A$19,1),OFFSET($H$33,0,0,$A$19,1))) -> 0.2422170468 | J128: 82.03406531 | K128: 94.14491765 | L128: 1.844917647 | M128: 0.008023529412 | N128: 6.443364706 | O128: 0.2854384977 | P128: 1.427192489 | Q128: 0.09518401916 | R128: 91.45367919 | S128: 89.43184144 | T128: 105 | U128: =IF($A128>$U$30,NA(),LINEST(OFFSET($G128,0,0,$D$19,1),OFFSET($T$33,0,0,$D$19,1))) -> 0.02780234006 | V128: 82.97166482 | W128: 88.53213284 | X128: 3.767867164 | Y128: 0.0339119403 | Z128: 10.9314791 | AA128: 0.3426411756 | AB128: 1.713205878 | AC128: 0.02699707341 | AD128: 88.13430358 | AX128: 6544800
A129: 97 | B129: =IF(A129>$B$30,NA(),IF($A129>$A$8,"",OFFSET(InputPriceData!$B$15,$A129+$A$11,0,1,1))) -> 2022-02-17 | C129: =IF(A129>$B$30,NA(),IF($A129>$A$8,"",OFFSET(InputPriceData!$G$15,CalculationsAndCharts!$A129+$A$11,IF($C$5,8,0),1,1))) -> 5753300 | D129: =IF(A129>$B$30,NA(),IF(A129>$A$8,"",OFFSET(InputPriceData!$C$15,CalculationsAndCharts!$A129+$A$11,IF($C$5,8,0),1,1))) -> 92.9 | E129: =IF(A129>$B$30,NA(),IF(A129>$A$8,"",OFFSET(InputPriceData!$D$15,CalculationsAndCharts!$A129+$A$11,IF($C$5,8,0),1,1))) -> 94.08 | F129: =IF(A129>$B$30,NA(),IF(A129>$A$8,"",OFFSET(InputPriceData!$E$15,CalculationsAndCharts!$A129+$A$11,IF($C$5,8,0),1,1))) -> 92.37 | G129: =IF(A129>$B$30,NA(),IF(A129>$A$8,"",OFFSET(InputPriceData!$F$15,CalculationsAndCharts!$A129+$A$11,IF($C$5,8,0),1,1))) -> 93.28 | I129: =IF($A129>$I$30,NA(),LINEST(OFFSET(G129,0,0,$A$19,1),OFFSET($H$33,0,0,$A$19,1))) -> 0.2385565426 | J129: 81.99160816 | K129: 93.91943529 | L129: 0.6394352941 | M129: 0.008023529412 | N129: 6.443364706 | O129: 0.09811628434 | P129: 0.4905814217 | Q129: 0.0584541734 | R129: 91.3646487 | S129: 89.31477375 | T129: 104 | U129: =IF($A129>$U$30,NA(),LINEST(OFFSET($G129,0,0,$D$19,1),OFFSET($T$33,0,0,$D$19,1))) -> 0.02734501613 | V129: 82.96727588 | W129: 88.4362791 | X129: 4.843720896 | Y129: 0.0339119403 | Z129: 10.9314791 | AA129: 0.4413653876 | AB129: 2.206826938 | AC129: 0.03190872575 | AD129: 88.01872159 | AW129: 5753300
A130: 98 | B130: =IF(A130>$B$30,NA(),IF($A130>$A$8,"",OFFSET(InputPriceData!$B$15,$A130+$A$11,0,1,1))) -> 2022-02-16 | C130: =IF(A130>$B$30,NA(),IF($A130>$A$8,"",OFFSET(InputPriceData!$G$15,CalculationsAndCharts!$A130+$A$11,IF($C$5,8,0),1,1))) -> 4560900 | D130: =IF(A130>$B$30,NA(),IF(A130>$A$8,"",OFFSET(InputPriceData!$C$15,CalculationsAndCharts!$A130+$A$11,IF($C$5,8,0),1,1))) -> 92.93 | E130: =IF(A130>$B$30,NA(),IF(A130>$A$8,"",OFFSET(InputPriceData!$D$15,CalculationsAndCharts!$A130+$A$11,IF($C$5,8,0),1,1))) -> 94.18 | F130: =IF(A130>$B$30,NA(),IF(A130>$A$8,"",OFFSET(InputPriceData!$E$15,CalculationsAndCharts!$A130+$A$11,IF($C$5,8,0),1,1))) -> 92.85 | G130: =IF(A130>$B$30,NA(),IF(A130>$A$8,"",OFFSET(InputPriceData!$F$15,CalculationsAndCharts!$A130+$A$11,IF($C$5,8,0),1,1))) -> 93.67 | I130: =IF($A130>$I$30,NA(),LINEST(OFFSET(G130,0,0,$A$19,1),OFFSET($H$33,0,0,$A$19,1))) -> 0.2353027611 | J130: 81.88977959 | K130: 93.65491765 | L130: 0.01508235294 | M130: 0.008023529412 | N130: 6.443364706 | O130: 0.001096884118 | P130: 0.005484420589 | Q130: 0.03943076159 | R130: 91.24573757 | S130: 89.15292778 | T130: 103 | U130: =IF($A130>$U$30,NA(),LINEST(OFFSET($G130,0,0,$D$19,1),OFFSET($T$33,0,0,$D$19,1))) -> 0.0268039526 | V130: 82.96375276 | W130: 88.32454328 | X130: 5.345456716 | Y130: 0.0339119403 | Z130: 10.9314791 | AA130: 0.487406473 | AB130: 2.437032365 | AC130: 0.03419932702 | AD130: 87.84530748 | AW130: 4560900
A131: 99 | B131: =IF(A131>$B$30,NA(),IF($A131>$A$8,"",OFFSET(InputPriceData!$B$15,$A131+$A$11,0,1,1))) -> 2022-02-15 | C131: =IF(A131>$B$30,NA(),IF($A131>$A$8,"",OFFSET(InputPriceData!$G$15,CalculationsAndCharts!$A131+$A$11,IF($C$5,8,0),1,1))) -> 4616000 | D131: =IF(A131>$B$30,NA(),IF(A131>$A$8,"",OFFSET(InputPriceData!$C$15,CalculationsAndCharts!$A131+$A$11,IF($C$5,8,0),1,1))) -> 92.52 | E131: =IF(A131>$B$30,NA(),IF(A131>$A$8,"",OFFSET(InputPriceData!$D$15,CalculationsAndCharts!$A131+$A$11,IF($C$5,8,0),1,1))) -> 93.81 | F131: =IF(A131>$B$30,NA(),IF(A131>$A$8,"",OFFSET(InputPriceData!$E$15,CalculationsAndCharts!$A131+$A$11,IF($C$5,8,0),1,1))) -> 92.5 | G131: =IF(A131>$B$30,NA(),IF(A131>$A$8,"",OFFSET(InputPriceData!$F$15,CalculationsAndCharts!$A131+$A$11,IF($C$5,8,0),1,1))) -> 92.96 | I131: =IF($A131>$I$30,NA(),LINEST(OFFSET(G131,0,0,$A$19,1),OFFSET($H$33,0,0,$A$19,1))) -> 0.2331241297 | J131: 81.72793469 | K131: 93.38414118 | L131: 0.4241411765 | M131: 0.008023529412 | N131: 6.443364706 | O131: 0.06466131875 | P131: 0.3233065937 | Q131: 0.05189437622 | R131: 91.14622313 | S131: 88.96855748 | T131: 102 | U131: =IF($A131>$U$30,NA(),LINEST(OFFSET($G131,0,0,$D$19,1),OFFSET($T$33,0,0,$D$19,1))) -> 0.02621508288 | V131: 82.96213417 | W131: 88.20515075 | X131: 4.754849254 | Y131: 0.0339119403 | Z131: 10.9314791 | AA131: 0.4332102058 | AB131: 2.166051029 | AC131: 0.03150299531 | AD131: 87.63905315 | AW131: 4616000
A132: 100 | B132: =IF(A132>$B$30,NA(),IF($A132>$A$8,"",OFFSET(InputPriceData!$B$15,$A132+$A$11,0,1,1))) -> 2022-02-14 | C132: =IF(A132>$B$30,NA(),IF($A132>$A$8,"",OFFSET(InputPriceData!$G$15,CalculationsAndCharts!$A132+$A$11,IF($C$5,8,0),1,1))) -> 6419200 | D132: =IF(A132>$B$30,NA(),IF(A132>$A$8,"",OFFSET(InputPriceData!$C$15,CalculationsAndCharts!$A132+$A$11,IF($C$5,8,0),1,1))) -> 94.42 | E132: =IF(A132>$B$30,NA(),IF(A132>$A$8,"",OFFSET(InputPriceData!$D$15,CalculationsAndCharts!$A132+$A$11,IF($C$5,8,0),1,1))) -> 94.51 | F132: =IF(A132>$B$30,NA(),IF(A132>$A$8,"",OFFSET(InputPriceData!$E$15,CalculationsAndCharts!$A132+$A$11,IF($C$5,8,0),1,1))) -> 91.83 | G132: =IF(A132>$B$30,NA(),IF(A132>$A$8,"",OFFSET(InputPriceData!$F$15,CalculationsAndCharts!$A132+$A$11,IF($C$5,8,0),1,1))) -> 92.5 | I132: =IF($A132>$I$30,NA(),LINEST(OFFSET(G132,0,0,$A$19,1),OFFSET($H$33,0,0,$A$19,1))) -> 0.237805042 | J132: 81.35297143 | K132: 93.24322353 | L132: 0.7432235294 | M132: 0.008023529412 | N132: 6.443364706 | O132: 0.1142441372 | P132: 0.5712206858 | Q132: 0.06161649748 | R132: 91.0469464 | S132: 88.80564146 | T132: 101 | U132: =IF($A132>$U$30,NA(),LINEST(OFFSET($G132,0,0,$D$19,1),OFFSET($T$33,0,0,$D$19,1))) -> 0.02568515713 | V132: 82.95914171 | W132: 88.09617313 | X132: 4.403826866 | Y132: 0.0339119403 | Z132: 10.9314791 | AA132: 0.4009991276 | AB132: 2.004995638 | AC132: 0.02990045411 | AD132: 87.46597491 | AX132: 6419200
A133: 101 | B133: =IF(A133>$B$30,NA(),IF($A133>$A$8,"",OFFSET(InputPriceData!$B$15,$A133+$A$11,0,1,1))) -> 2022-02-11 | C133: =IF(A133>$B$30,NA(),IF($A133>$A$8,"",OFFSET(InputPriceData!$G$15,CalculationsAndCharts!$A133+$A$11,IF($C$5,8,0),1,1))) -> 6532900 | D133: =IF(A133>$B$30,NA(),IF(A133>$A$8,"",OFFSET(InputPriceData!$C$15,CalculationsAndCharts!$A133+$A$11,IF($C$5,8,0),1,1))) -> 94.16 | E133: =IF(A133>$B$30,NA(),IF(A133>$A$8,"",OFFSET(InputPriceData!$D$15,CalculationsAndCharts!$A133+$A$11,IF($C$5,8,0),1,1))) -> 94.95 | F133: =IF(A133>$B$30,NA(),IF(A133>$A$8,"",OFFSET(InputPriceData!$E$15,CalculationsAndCharts!$A133+$A$11,IF($C$5,8,0),1,1))) -> 93 | G133: =IF(A133>$B$30,NA(),IF(A133>$A$8,"",OFFSET(InputPriceData!$F$15,CalculationsAndCharts!$A133+$A$11,IF($C$5,8,0),1,1))) -> 94.18 | I133: =IF($A133>$I$30,NA(),LINEST(OFFSET(G133,0,0,$A$19,1),OFFSET($H$33,0,0,$A$19,1))) -> 0.2410909964 | J133: 81.03377959 | K133: 93.08832941 | L133: 1.091670588 | M133: 0.008023529412 | N133: 6.443364706 | O133: 0.1683899935 | P133: 0.8419499675 | Q133: 0.07223333206 | R133: 90.95153544 | S133: 88.65485132 | T133: 100 | U133: =IF($A133>$U$30,NA(),LINEST(OFFSET($G133,0,0,$D$19,1),OFFSET($T$33,0,0,$D$19,1))) -> 0.02533904598 | V133: 82.93557588 | W133: 88.00338507 | X133: 6.176614925 | Y133: 0.0339119403 | Z133: 10.9314791 | AA133: 0.5636765429 | AB133: 2.818382714 | AC133: 0.03799385786 | AD133: 87.31081595 | AW133: 6532900
A134: 102 | B134: =IF(A134>$B$30,NA(),IF($A134>$A$8,"",OFFSET(InputPriceData!$B$15,$A134+$A$11,0,1,1))) -> 2022-02-10 | C134: =IF(A134>$B$30,NA(),IF($A134>$A$8,"",OFFSET(InputPriceData!$G$15,CalculationsAndCharts!$A134+$A$11,IF($C$5,8,0),1,1))) -> 6534300 | D134: =IF(A134>$B$30,NA(),IF(A134>$A$8,"",OFFSET(InputPriceData!$C$15,CalculationsAndCharts!$A134+$A$11,IF($C$5,8,0),1,1))) -> 94.23 | E134: =IF(A134>$B$30,NA(),IF(A134>$A$8,"",OFFSET(InputPriceData!$D$15,CalculationsAndCharts!$A134+$A$11,IF($C$5,8,0),1,1))) -> 95.85 | F134: =IF(A134>$B$30,NA(),IF(A134>$A$8,"",OFFSET(InputPriceData!$E$15,CalculationsAndCharts!$A134+$A$11,IF($C$5,8,0),1,1))) -> 93.47 | G134: =IF(A134>$B$30,NA(),IF(A134>$A$8,"",OFFSET(InputPriceData!$F$15,CalculationsAndCharts!$A134+$A$11,IF($C$5,8,0),1,1))) -> 93.97 | I134: =IF($A134>$I$30,NA(),LINEST(OFFSET(G134,0,0,$A$19,1),OFFSET($H$33,0,0,$A$19,1))) -> 0.2452028812 | J134: 80.60832653 | K134: 92.86847059 | L134: 1.101529412 | M134: 0.008023529412 | N134: 7.509623529 | O134: 0.1457696868 | P134: 0.7288484339 | Q134: 0.0677979778 | R134: 90.70017617 | S134: 88.42933504 | T134: 99 | U134: =IF($A134>$U$30,NA(),LINEST(OFFSET($G134,0,0,$D$19,1),OFFSET($T$33,0,0,$D$19,1))) -> 0.0247758944 | V134: 82.92362261 | W134: 87.87880149 | X134: 6.091198507 | Y134: 0.0339119403 | Z134: 10.9314791 | AA134: 0.5558384248 | AB134: 2.779192124 | AC134: 0.03760390173 | AD134: 87.03952163 | AX134: 6534300
A135: 103 | B135: =IF(A135>$B$30,NA(),IF($A135>$A$8,"",OFFSET(InputPriceData!$B$15,$A135+$A$11,0,1,1))) -> 2022-02-09 | C135: =IF(A135>$B$30,NA(),IF($A135>$A$8,"",OFFSET(InputPriceData!$G$15,CalculationsAndCharts!$A135+$A$11,IF($C$5,8,0),1,1))) -> 5394900 | D135: =IF(A135>$B$30,NA(),IF(A135>$A$8,"",OFFSET(InputPriceData!$C$15,CalculationsAndCharts!$A135+$A$11,IF($C$5,8,0),1,1))) -> 94.93 | E135: =IF(A135>$B$30,NA(),IF(A135>$A$8,"",OFFSET(InputPriceData!$D$15,CalculationsAndCharts!$A135+$A$11,IF($C$5,8,0),1,1))) -> 95.22 | F135: =IF(A135>$B$30,NA(),IF(A135>$A$8,"",OFFSET(InputPriceData!$E$15,CalculationsAndCharts!$A135+$A$11,IF($C$5,8,0),1,1))) -> 94.39 | G135: =IF(A135>$B$30,NA(),IF(A135>$A$8,"",OFFSET(InputPriceData!$F$15,CalculationsAndCharts!$A135+$A$11,IF($C$5,8,0),1,1))) -> 94.9 | I135: =IF($A135>$I$30,NA(),LINEST(OFFSET(G135,0,0,$A$19,1),OFFSET($H$33,0,0,$A$19,1))) -> 0.2439601441 | J135: 80.36041633 | K135: 92.55842353 | L135: 2.341576471 | M135: 0.008023529412 | N135: 7.509623529 | O135: 0.3110740297 | P135: 1.555370148 | Q135: 0.1002105941 | R135: 90.46236565 | S135: 88.20318545 | T135: 98 | U135: =IF($A135>$U$30,NA(),LINEST(OFFSET($G135,0,0,$D$19,1),OFFSET($T$33,0,0,$D$19,1))) -> 0.02419249231 | V135: 82.91580452 | W135: 87.75430299 | X135: 7.145697015 | Y135: 0.0339119403 | Z135: 10.9314791 | AA135: 0.6526030046 | AB135: 3.263015023 | AC135: 0.04241805993 | AD135: 86.76872561 | AX135: 5394900
A136: 104 | B136: =IF(A136>$B$30,NA(),IF($A136>$A$8,"",OFFSET(InputPriceData!$B$15,$A136+$A$11,0,1,1))) -> 2022-02-08 | C136: =IF(A136>$B$30,NA(),IF($A136>$A$8,"",OFFSET(InputPriceData!$G$15,CalculationsAndCharts!$A136+$A$11,IF($C$5,8,0),1,1))) -> 8173200 | D136: =IF(A136>$B$30,NA(),IF(A136>$A$8,"",OFFSET(InputPriceData!$C$15,CalculationsAndCharts!$A136+$A$11,IF($C$5,8,0),1,1))) -> 92.76 | E136: =IF(A136>$B$30,NA(),IF(A136>$A$8,"",OFFSET(InputPriceData!$D$15,CalculationsAndCharts!$A136+$A$11,IF($C$5,8,0),1,1))) -> 94.23 | F136: =IF(A136>$B$30,NA(),IF(A136>$A$8,"",OFFSET(InputPriceData!$E$15,CalculationsAndCharts!$A136+$A$11,IF($C$5,8,0),1,1))) -> 91.81 | G136: =IF(A136>$B$30,NA(),IF(A136>$A$8,"",OFFSET(InputPriceData!$F$15,CalculationsAndCharts!$A136+$A$11,IF($C$5,8,0),1,1))) -> 93.98 | I136: =IF($A136>$I$30,NA(),LINEST(OFFSET(G136,0,0,$A$19,1),OFFSET($H$33,0,0,$A$19,1))) -> 0.2343913565 | J136: 80.34622041 | K136: 92.06578824 | L136: 1.914211765 | M136: 0.008023529412 | N136: 7.509623529 | O136: 0.2541042225 | P136: 1.270521112 | Q136: 0.08904004362 | R136: 89.96814115 | S136: 87.92984609 | T136: 97 | U136: =IF($A136>$U$30,NA(),LINEST(OFFSET($G136,0,0,$D$19,1),OFFSET($T$33,0,0,$D$19,1))) -> 0.02348775969 | V136: 82.91423015 | W136: 87.61178209 | X136: 6.36821791 | Y136: 0.0339119403 | Z136: 10.9314791 | AA136: 0.5812587227 | AB136: 2.906293613 | AC136: 0.03886859317 | AD136: 86.4085341 | AW136: 8173200
A137: 105 | B137: =IF(A137>$B$30,NA(),IF($A137>$A$8,"",OFFSET(InputPriceData!$B$15,$A137+$A$11,0,1,1))) -> 2022-02-07 | C137: =IF(A137>$B$30,NA(),IF($A137>$A$8,"",OFFSET(InputPriceData!$G$15,CalculationsAndCharts!$A137+$A$11,IF($C$5,8,0),1,1))) -> 4932700 | D137: =IF(A137>$B$30,NA(),IF(A137>$A$8,"",OFFSET(InputPriceData!$C$15,CalculationsAndCharts!$A137+$A$11,IF($C$5,8,0),1,1))) -> 92.39 | E137: =IF(A137>$B$30,NA(),IF(A137>$A$8,"",OFFSET(InputPriceData!$D$15,CalculationsAndCharts!$A137+$A$11,IF($C$5,8,0),1,1))) -> 93.65 | F137: =IF(A137>$B$30,NA(),IF(A137>$A$8,"",OFFSET(InputPriceData!$E$15,CalculationsAndCharts!$A137+$A$11,IF($C$5,8,0),1,1))) -> 91.95 | G137: =IF(A137>$B$30,NA(),IF(A137>$A$8,"",OFFSET(InputPriceData!$F$15,CalculationsAndCharts!$A137+$A$11,IF($C$5,8,0),1,1))) -> 92.95 | I137: =IF($A137>$I$30,NA(),LINEST(OFFSET(G137,0,0,$A$19,1),OFFSET($H$33,0,0,$A$19,1))) -> 0.2256945978 | J137: 80.32938776 | K137: 91.61411765 | L137: 1.335882353 | M137: 0.008023529412 | N137: 7.509623529 | O137: 0.177010081 | P137: 0.8850504049 | Q137: 0.07392354529 | R137: 89.57600966 | S137: 87.68290103 | T137: 96 | U137: =IF($A137>$U$30,NA(),LINEST(OFFSET($G137,0,0,$D$19,1),OFFSET($T$33,0,0,$D$19,1))) -> 0.02316268657 | V137: 82.8703 | W137: 87.50283731 | X137: 5.447162687 | Y137: 0.0339119403 | Z137: 10.9314791 | AA137: 0.496739379 | AB137: 2.483696895 | AC137: 0.0346636507 | AD137: 86.10234056 | AW137: 4932700
A138: 106 | B138: =IF(A138>$B$30,NA(),IF($A138>$A$8,"",OFFSET(InputPriceData!$B$15,$A138+$A$11,0,1,1))) -> 2022-02-04 | C138: =IF(A138>$B$30,NA(),IF($A138>$A$8,"",OFFSET(InputPriceData!$G$15,CalculationsAndCharts!$A138+$A$11,IF($C$5,8,0),1,1))) -> 6321400 | D138: =IF(A138>$B$30,NA(),IF(A138>$A$8,"",OFFSET(InputPriceData!$C$15,CalculationsAndCharts!$A138+$A$11,IF($C$5,8,0),1,1))) -> 91.3 | E138: =IF(A138>$B$30,NA(),IF(A138>$A$8,"",OFFSET(InputPriceData!$D$15,CalculationsAndCharts!$A138+$A$11,IF($C$5,8,0),1,1))) -> 92.83 | F138: =IF(A138>$B$30,NA(),IF(A138>$A$8,"",OFFSET(InputPriceData!$E$15,CalculationsAndCharts!$A138+$A$11,IF($C$5,8,0),1,1))) -> 91.06 | G138: =IF(A138>$B$30,NA(),IF(A138>$A$8,"",OFFSET(InputPriceData!$F$15,CalculationsAndCharts!$A138+$A$11,IF($C$5,8,0),1,1))) -> 91.95 | I138: =IF($A138>$I$30,NA(),LINEST(OFFSET(G138,0,0,$A$19,1),OFFSET($H$33,0,0,$A$19,1))) -> 0.2086333733 | J138: 80.62924898 | K138: 91.06091765 | L138: 0.8890823529 | M138: 0.008023529412 | N138: 7.509623529 | O138: 0.1174494539 | P138: 0.5872472696 | Q138: 0.06224499096 | R138: 89.30668273 | S138: 87.4679174 | T138: 95 | U138: =IF($A138>$U$30,NA(),LINEST(OFFSET($G138,0,0,$D$19,1),OFFSET($T$33,0,0,$D$19,1))) -> 0.02303707343 | V138: 82.80922412 | W138: 87.41663881 | X138: 4.533361194 | Y138: 0.0339119403 | Z138: 10.9314791 | AA138: 0.4128856639 | AB138: 2.06442832 | AC138: 0.03049182408 | AD138: 85.8564523 | AW138: 6321400
A139: 107 | B139: =IF(A139>$B$30,NA(),IF($A139>$A$8,"",OFFSET(InputPriceData!$B$15,$A139+$A$11,0,1,1))) -> 2022-02-03 | C139: =IF(A139>$B$30,NA(),IF($A139>$A$8,"",OFFSET(InputPriceData!$G$15,CalculationsAndCharts!$A139+$A$11,IF($C$5,8,0),1,1))) -> 7171700 | D139: =IF(A139>$B$30,NA(),IF(A139>$A$8,"",OFFSET(InputPriceData!$C$15,CalculationsAndCharts!$A139+$A$11,IF($C$5,8,0),1,1))) -> 91.1 | E139: =IF(A139>$B$30,NA(),IF(A139>$A$8,"",OFFSET(InputPriceData!$D$15,CalculationsAndCharts!$A139+$A$11,IF($C$5,8,0),1,1))) -> 91.93 | F139: =IF(A139>$B$30,NA(),IF(A139>$A$8,"",OFFSET(InputPriceData!$E$15,CalculationsAndCharts!$A139+$A$11,IF($C$5,8,0),1,1))) -> 90.57 | G139: =IF(A139>$B$30,NA(),IF(A139>$A$8,"",OFFSET(InputPriceData!$F$15,CalculationsAndCharts!$A139+$A$11,IF($C$5,8,0),1,1))) -> 91.75 | I139: =IF($A139>$I$30,NA(),LINEST(OFFSET(G139,0,0,$A$19,1),OFFSET($H$33,0,0,$A$19,1))) -> 0.1930895558 | J139: 80.91281633 | K139: 90.56729412 | L139: 1.182705882 | M139: 0.008023529412 | N139: 7.509623529 | O139: 0.1565909077 | P139: 0.7829545383 | Q139: 0.06991978582 | R139: 89.13122831 | S139: 87.28497525 | T139: 94 | U139: =IF($A139>$U$30,NA(),LINEST(OFFSET($G139,0,0,$D$19,1),OFFSET($T$33,0,0,$D$19,1))) -> 0.02330129753 | V139: 82.7052196 | W139: 87.3654791 | X139: 4.384520896 | Y139: 0.0339119403 | Z139: 10.9314791 | AA139: 0.3992275422 | AB139: 1.996137711 | AC139: 0.02981231553 | AD139: 85.66480525 | AW139: 7171700
A140: 108 | B140: =IF(A140>$B$30,NA(),IF($A140>$A$8,"",OFFSET(InputPriceData!$B$15,$A140+$A$11,0,1,1))) -> 2022-02-02 | C140: =IF(A140>$B$30,NA(),IF($A140>$A$8,"",OFFSET(InputPriceData!$G$15,CalculationsAndCharts!$A140+$A$11,IF($C$5,8,0),1,1))) -> 5978600 | D140: =IF(A140>$B$30,NA(),IF(A140>$A$8,"",OFFSET(InputPriceData!$C$15,CalculationsAndCharts!$A140+$A$11,IF($C$5,8,0),1,1))) -> 89.27 | E140: =IF(A140>$B$30,NA(),IF(A140>$A$8,"",OFFSET(InputPriceData!$D$15,CalculationsAndCharts!$A140+$A$11,IF($C$5,8,0),1,1))) -> 91.63 | F140: =IF(A140>$B$30,NA(),IF(A140>$A$8,"",OFFSET(InputPriceData!$E$15,CalculationsAndCharts!$A140+$A$11,IF($C$5,8,0),1,1))) -> 89.22 | G140: =IF(A140>$B$30,NA(),IF(A140>$A$8,"",OFFSET(InputPriceData!$F$15,CalculationsAndCharts!$A140+$A$11,IF($C$5,8,0),1,1))) -> 91.48 | I140: =IF($A140>$I$30,NA(),LINEST(OFFSET(G140,0,0,$A$19,1),OFFSET($H$33,0,0,$A$19,1))) -> 0.1786703481 | J140: 81.16170612 | K140: 90.09522353 | L140: 1.384776471 | M140: 0.008023529412 | N140: 7.509623529 | O140: 0.1835279062 | P140: 0.917639531 | Q140: 0.07520155024 | R140: 88.93435931 | S140: 87.10272934 | T140: 93 | U140: =IF($A140>$U$30,NA(),LINEST(OFFSET($G140,0,0,$D$19,1),OFFSET($T$33,0,0,$D$19,1))) -> 0.02355303383 | V140: 82.6041201 | W140: 87.31472687 | X140: 4.165273134 | Y140: 0.0339119403 | Z140: 10.9314791 | AA140: 0.3791085783 | AB140: 1.895542891 | AC140: 0.02881137205 | AD140: 85.47781695 | AW140: 5978600
A141: 109 | B141: =IF(A141>$B$30,NA(),IF($A141>$A$8,"",OFFSET(InputPriceData!$B$15,$A141+$A$11,0,1,1))) -> 2022-02-01 | C141: =IF(A141>$B$30,NA(),IF($A141>$A$8,"",OFFSET(InputPriceData!$G$15,CalculationsAndCharts!$A141+$A$11,IF($C$5,8,0),1,1))) -> 6558400 | D141: =IF(A141>$B$30,NA(),IF(A141>$A$8,"",OFFSET(InputPriceData!$C$15,CalculationsAndCharts!$A141+$A$11,IF($C$5,8,0),1,1))) -> 89.07 | E141: =IF(A141>$B$30,NA(),IF(A141>$A$8,"",OFFSET(InputPriceData!$D$15,CalculationsAndCharts!$A141+$A$11,IF($C$5,8,0),1,1))) -> 89.9 | F141: =IF(A141>$B$30,NA(),IF(A141>$A$8,"",OFFSET(InputPriceData!$E$15,CalculationsAndCharts!$A141+$A$11,IF($C$5,8,0),1,1))) -> 88.25 | G141: =IF(A141>$B$30,NA(),IF(A141>$A$8,"",OFFSET(InputPriceData!$F$15,CalculationsAndCharts!$A141+$A$11,IF($C$5,8,0),1,1))) -> 89.69 | I141: =IF($A141>$I$30,NA(),LINEST(OFFSET(G141,0,0,$A$19,1),OFFSET($H$33,0,0,$A$19,1))) -> 0.1675418968 | J141: 81.30488163 | K141: 89.68197647 | L141: 0.008023529412 | M141: 0.008023529412 | N141: 7.509623529 | O141: 0 | P141: 0 | Q141: 0.03921568627 | R141: 88.72735624 | S141: 86.92406523 | T141: 92 | U141: =IF($A141>$U$30,NA(),LINEST(OFFSET($G141,0,0,$D$19,1),OFFSET($T$33,0,0,$D$19,1))) -> 0.02408094202 | V141: 82.46796533 | W141: 87.28415373 | X141: 2.405846269 | Y141: 0.0339119403 | Z141: 10.9314791 | AA141: 0.2176572342 | AB141: 1.088286171 | AC141: 0.02077896688 | AD141: 85.29975563 | AW141: 6558400
A142: 110 | B142: =IF(A142>$B$30,NA(),IF($A142>$A$8,"",OFFSET(InputPriceData!$B$15,$A142+$A$11,0,1,1))) -> 2022-01-31 | C142: =IF(A142>$B$30,NA(),IF($A142>$A$8,"",OFFSET(InputPriceData!$G$15,CalculationsAndCharts!$A142+$A$11,IF($C$5,8,0),1,1))) -> 6419700 | D142: =IF(A142>$B$30,NA(),IF(A142>$A$8,"",OFFSET(InputPriceData!$C$15,CalculationsAndCharts!$A142+$A$11,IF($C$5,8,0),1,1))) -> 88.59 | E142: =IF(A142>$B$30,NA(),IF(A142>$A$8,"",OFFSET(InputPriceData!$D$15,CalculationsAndCharts!$A142+$A$11,IF($C$5,8,0),1,1))) -> 89.38 | F142: =IF(A142>$B$30,NA(),IF(A142>$A$8,"",OFFSET(InputPriceData!$E$15,CalculationsAndCharts!$A142+$A$11,IF($C$5,8,0),1,1))) -> 87.99 | G142: =IF(A142>$B$30,NA(),IF(A142>$A$8,"",OFFSET(InputPriceData!$F$15,CalculationsAndCharts!$A142+$A$11,IF($C$5,8,0),1,1))) -> 89.16 | I142: =IF($A142>$I$30,NA(),LINEST(OFFSET(G142,0,0,$A$19,1),OFFSET($H$33,0,0,$A$19,1))) -> 0.1566631453 | J142: 81.5068898 | K142: 89.34004706 | L142: 0.1800470588 | M142: 0.07129411765 | N142: 7.509623529 | O142: 0.01462061374 | P142: 0.07310306868 | Q142: 0.04208247328 | R142: 88.68806465 | S142: 86.81116994 | T142: 91 | U142: =IF($A142>$U$30,NA(),LINEST(OFFSET($G142,0,0,$D$19,1),OFFSET($T$33,0,0,$D$19,1))) -> 0.0246358584 | V142: 82.34534623 | W142: 87.27251791 | X142: 1.88748209 | Y142: 0.0339119403 | Z142: 10.9314791 | AA142: 0.1700902707 | AB142: 0.8504513537 | AC142: 0.01841245128 | AD142: 85.20659511 | AW142: 6419700
A143: 111 | B143: =IF(A143>$B$30,NA(),IF($A143>$A$8,"",OFFSET(InputPriceData!$B$15,$A143+$A$11,0,1,1))) -> 2022-01-28 | C143: =IF(A143>$B$30,NA(),IF($A143>$A$8,"",OFFSET(InputPriceData!$G$15,CalculationsAndCharts!$A143+$A$11,IF($C$5,8,0),1,1))) -> 5877600 | D143: =IF(A143>$B$30,NA(),IF(A143>$A$8,"",OFFSET(InputPriceData!$C$15,CalculationsAndCharts!$A143+$A$11,IF($C$5,8,0),1,1))) -> 87.95 | E143: =IF(A143>$B$30,NA(),IF(A143>$A$8,"",OFFSET(InputPriceData!$D$15,CalculationsAndCharts!$A143+$A$11,IF($C$5,8,0),1,1))) -> 89.34 | F143: =IF(A143>$B$30,NA(),IF(A143>$A$8,"",OFFSET(InputPriceData!$E$15,CalculationsAndCharts!$A143+$A$11,IF($C$5,8,0),1,1))) -> 86.48 | G143: =IF(A143>$B$30,NA(),IF(A143>$A$8,"",OFFSET(InputPriceData!$F$15,CalculationsAndCharts!$A143+$A$11,IF($C$5,8,0),1,1))) -> 89.3 | I143: =IF($A143>$I$30,NA(),LINEST(OFFSET(G143,0,0,$A$19,1),OFFSET($H$33,0,0,$A$19,1))) -> 0.1466496999 | J143: 81.69803265 | K143: 89.03051765 | L143: 0.2694823529 | M143: 0.07129411765 | N143: 7.509623529 | O143: 0.02664418639 | P143: 0.133220932 | Q143: 0.04444003655 | R143: 88.66733196 | S143: 86.71529932 | T143: 90 | U143: =IF($A143>$U$30,NA(),LINEST(OFFSET($G143,0,0,$D$19,1),OFFSET($T$33,0,0,$D$19,1))) -> 0.02530435011 | V143: 82.21216281 | W143: 87.27303284 | X143: 2.026967164 | Y143: 0.0339119403 | Z143: 10.9314791 | AA143: 0.1828899234 | AB143: 0.914449617 | AC143: 0.01904924992 | AD143: 85.13243782 | AW143: 5877600
A144: 112 | B144: =IF(A144>$B$30,NA(),IF($A144>$A$8,"",OFFSET(InputPriceData!$B$15,$A144+$A$11,0,1,1))) -> 2022-01-27 | C144: =IF(A144>$B$30,NA(),IF($A144>$A$8,"",OFFSET(InputPriceData!$G$15,CalculationsAndCharts!$A144+$A$11,IF($C$5,8,0),1,1))) -> 6998700 | D144: =IF(A144>$B$30,NA(),IF(A144>$A$8,"",OFFSET(InputPriceData!$C$15,CalculationsAndCharts!$A144+$A$11,IF($C$5,8,0),1,1))) -> 88.89 | E144: =IF(A144>$B$30,NA(),IF(A144>$A$8,"",OFFSET(InputPriceData!$D$15,CalculationsAndCharts!$A144+$A$11,IF($C$5,8,0),1,1))) -> 90.43 | F144: =IF(A144>$B$30,NA(),IF(A144>$A$8,"",OFFSET(InputPriceData!$E$15,CalculationsAndCharts!$A144+$A$11,IF($C$5,8,0),1,1))) -> 87.39 | G144: =IF(A144>$B$30,NA(),IF(A144>$A$8,"",OFFSET(InputPriceData!$F$15,CalculationsAndCharts!$A144+$A$11,IF($C$5,8,0),1,1))) -> 88.26 | I144: =IF($A144>$I$30,NA(),LINEST(OFFSET(G144,0,0,$A$19,1),OFFSET($H$33,0,0,$A$19,1))) -> 0.1326439376 | J144: 82.01657959 | K144: 88.64877647 | L144: 0.3887764706 | M144: 0.07129411765 | N144: 7.509623529 | O144: 0.04268194313 | P144: 0.2134097157 | Q144: 0.04758469473 | R144: 88.6379086 | S144: 86.60980133 | T144: 89 | U144: =IF($A144>$U$30,NA(),LINEST(OFFSET($G144,0,0,$D$19,1),OFFSET($T$33,0,0,$D$19,1))) -> 0.02596775669 | V144: 82.07759045 | W144: 87.27114179 | X144: 0.988858209 | Y144: 0.0339119403 | Z144: 10.9314791 | AA144: 0.08762930792 | AB144: 0.4381465396 | AC144: 0.01430991582 | AD144: 85.05150722 | AX144: 6998700
A145: 113 | B145: =IF(A145>$B$30,NA(),IF($A145>$A$8,"",OFFSET(InputPriceData!$B$15,$A145+$A$11,0,1,1))) -> 2022-01-26 | C145: =IF(A145>$B$30,NA(),IF($A145>$A$8,"",OFFSET(InputPriceData!$G$15,CalculationsAndCharts!$A145+$A$11,IF($C$5,8,0),1,1))) -> 9829100 | D145: =IF(A145>$B$30,NA(),IF(A145>$A$8,"",OFFSET(InputPriceData!$C$15,CalculationsAndCharts!$A145+$A$11,IF($C$5,8,0),1,1))) -> 88.95 | E145: =IF(A145>$B$30,NA(),IF(A145>$A$8,"",OFFSET(InputPriceData!$D$15,CalculationsAndCharts!$A145+$A$11,IF($C$5,8,0),1,1))) -> 90.47 | F145: =IF(A145>$B$30,NA(),IF(A145>$A$8,"",OFFSET(InputPriceData!$E$15,CalculationsAndCharts!$A145+$A$11,IF($C$5,8,0),1,1))) -> 86.47 | G145: =IF(A145>$B$30,NA(),IF(A145>$A$8,"",OFFSET(InputPriceData!$F$15,CalculationsAndCharts!$A145+$A$11,IF($C$5,8,0),1,1))) -> 87.96 | I145: =IF($A145>$I$30,NA(),LINEST(OFFSET(G145,0,0,$A$19,1),OFFSET($H$33,0,0,$A$19,1))) -> 0.1199644658 | J145: 82.33090612 | K145: 88.32912941 | L145: 0.3691294118 | M145: 0.07129411765 | N145: 7.509623529 | O145: 0.04004061633 | P145: 0.2002030817 | Q145: 0.04706678752 | R145: 88.65678972 | S145: 86.54244629 | T145: 88 | U145: =IF($A145>$U$30,NA(),LINEST(OFFSET($G145,0,0,$D$19,1),OFFSET($T$33,0,0,$D$19,1))) -> 0.02676906923 | V145: 81.93430854 | W145: 87.28812239 | X145: 0.6718776119 | Y145: 0.0339119403 | Z145: 10.9314791 | AA145: 0.05854202704 | AB145: 0.2927101352 | AC145: 0.01286278742 | AD145: 85.0049274 | AX145: 9829100
A146: 114 | B146: =IF(A146>$B$30,NA(),IF($A146>$A$8,"",OFFSET(InputPriceData!$B$15,$A146+$A$11,0,1,1))) -> 2022-01-25 | C146: =IF(A146>$B$30,NA(),IF($A146>$A$8,"",OFFSET(InputPriceData!$G$15,CalculationsAndCharts!$A146+$A$11,IF($C$5,8,0),1,1))) -> 10377400 | D146: =IF(A146>$B$30,NA(),IF(A146>$A$8,"",OFFSET(InputPriceData!$C$15,CalculationsAndCharts!$A146+$A$11,IF($C$5,8,0),1,1))) -> 84.03 | E146: =IF(A146>$B$30,NA(),IF(A146>$A$8,"",OFFSET(InputPriceData!$D$15,CalculationsAndCharts!$A146+$A$11,IF($C$5,8,0),1,1))) -> 90.25 | F146: =IF(A146>$B$30,NA(),IF(A146>$A$8,"",OFFSET(InputPriceData!$E$15,CalculationsAndCharts!$A146+$A$11,IF($C$5,8,0),1,1))) -> 84.03 | G146: =IF(A146>$B$30,NA(),IF(A146>$A$8,"",OFFSET(InputPriceData!$F$15,CalculationsAndCharts!$A146+$A$11,IF($C$5,8,0),1,1))) -> 89.28 | I146: =IF($A146>$I$30,NA(),LINEST(OFFSET(G146,0,0,$A$19,1),OFFSET($H$33,0,0,$A$19,1))) -> 0.1091058824 | J146: 82.5952 | K146: 88.05049412 | L146: 1.229505882 | M146: 0.07129411765 | N146: 7.509623529 | O146: 0.1557085873 | P146: 0.7785429366 | Q146: 0.06974678183 | R146: 88.6912052 | S146: 86.48458695 | T146: 87 | U146: =IF($A146>$U$30,NA(),LINEST(OFFSET($G146,0,0,$D$19,1),OFFSET($T$33,0,0,$D$19,1))) -> 0.02763558839 | V146: 81.78467337 | W146: 87.31179104 | X146: 1.968208955 | Y146: 0.0339119403 | Z146: 10.9314791 | AA146: 0.1774980586 | AB146: 0.8874902929 | AC146: 0.01878099794 | AD146: 84.96642164 | AW146: 10377400
A147: 115 | B147: =IF(A147>$B$30,NA(),IF($A147>$A$8,"",OFFSET(InputPriceData!$B$15,$A147+$A$11,0,1,1))) -> 2022-01-24 | C147: =IF(A147>$B$30,NA(),IF($A147>$A$8,"",OFFSET(InputPriceData!$G$15,CalculationsAndCharts!$A147+$A$11,IF($C$5,8,0),1,1))) -> 8849700 | D147: =IF(A147>$B$30,NA(),IF(A147>$A$8,"",OFFSET(InputPriceData!$C$15,CalculationsAndCharts!$A147+$A$11,IF($C$5,8,0),1,1))) -> 84.79 | E147: =IF(A147>$B$30,NA(),IF(A147>$A$8,"",OFFSET(InputPriceData!$D$15,CalculationsAndCharts!$A147+$A$11,IF($C$5,8,0),1,1))) -> 87.29 | F147: =IF(A147>$B$30,NA(),IF(A147>$A$8,"",OFFSET(InputPriceData!$E$15,CalculationsAndCharts!$A147+$A$11,IF($C$5,8,0),1,1))) -> 83.83 | G147: =IF(A147>$B$30,NA(),IF(A147>$A$8,"",OFFSET(InputPriceData!$F$15,CalculationsAndCharts!$A147+$A$11,IF($C$5,8,0),1,1))) -> 87.11 | I147: =IF($A147>$I$30,NA(),LINEST(OFFSET(G147,0,0,$A$19,1),OFFSET($H$33,0,0,$A$19,1))) -> 0.09450708283 | J147: 82.93226939 | K147: 87.65762353 | L147: 0.5476235294 | M147: 0.07129411765 | N147: 7.509623529 | O147: 0.06403714939 | P147: 0.320185747 | Q147: 0.05177199008 | R147: 88.64705964 | S147: 86.37048846 | T147: 86 | U147: =IF($A147>$U$30,NA(),LINEST(OFFSET($G147,0,0,$D$19,1),OFFSET($T$33,0,0,$D$19,1))) -> 0.02813658591 | V147: 81.67012312 | W147: 87.2974403 | X147: 0.1874402985 | Y147: 0.0339119403 | Z147: 10.9314791 | AA147: 0.01408831493 | AB147: 0.07044157466 | AC147: 0.01065115995 | AD147: 84.8838577 | AW147: 8849700
A148: 116 | B148: =IF(A148>$B$30,NA(),IF($A148>$A$8,"",OFFSET(InputPriceData!$B$15,$A148+$A$11,0,1,1))) -> 2022-01-21 | C148: =IF(A148>$B$30,NA(),IF($A148>$A$8,"",OFFSET(InputPriceData!$G$15,CalculationsAndCharts!$A148+$A$11,IF($C$5,8,0),1,1))) -> 5846500 | D148: =IF(A148>$B$30,NA(),IF(A148>$A$8,"",OFFSET(InputPriceData!$C$15,CalculationsAndCharts!$A148+$A$11,IF($C$5,8,0),1,1))) -> 87.51 | E148: =IF(A148>$B$30,NA(),IF(A148>$A$8,"",OFFSET(InputPriceData!$D$15,CalculationsAndCharts!$A148+$A$11,IF($C$5,8,0),1,1))) -> 87.79 | F148: =IF(A148>$B$30,NA(),IF(A148>$A$8,"",OFFSET(InputPriceData!$E$15,CalculationsAndCharts!$A148+$A$11,IF($C$5,8,0),1,1))) -> 85.83 | G148: =IF(A148>$B$30,NA(),IF(A148>$A$8,"",OFFSET(InputPriceData!$F$15,CalculationsAndCharts!$A148+$A$11,IF($C$5,8,0),1,1))) -> 86.21 | I148: =IF($A148>$I$30,NA(),LINEST(OFFSET(G148,0,0,$A$19,1),OFFSET($H$33,0,0,$A$19,1))) -> 0.08244177671 | J148: 83.27033469 | K148: 87.39242353 | L148: 1.182423529 | M148: 0.07129411765 | N148: 7.509623529 | O148: 0.1493788928 | P148: 0.746894464 | Q148: 0.06850566525 | R148: 88.73098106 | S148: 86.34030431 | T148: 85 | U148: =IF($A148>$U$30,NA(),LINEST(OFFSET($G148,0,0,$D$19,1),OFFSET($T$33,0,0,$D$19,1))) -> 0.02900665267 | V148: 81.52728141 | W148: 87.32861194 | X148: 1.11861194 | Y148: 0.0339119403 | Z148: 10.9314791 | AA148: 0.09953597749 | AB148: 0.4976798875 | AC148: 0.01490228744 | AD148: 84.85989143 | AX148: 5846500
A149: 117 | B149: =IF(A149>$B$30,NA(),IF($A149>$A$8,"",OFFSET(InputPriceData!$B$15,$A149+$A$11,0,1,1))) -> 2022-01-20 | C149: =IF(A149>$B$30,NA(),IF($A149>$A$8,"",OFFSET(InputPriceData!$G$15,CalculationsAndCharts!$A149+$A$11,IF($C$5,8,0),1,1))) -> 5354700 | D149: =IF(A149>$B$30,NA(),IF(A149>$A$8,"",OFFSET(InputPriceData!$C$15,CalculationsAndCharts!$A149+$A$11,IF($C$5,8,0),1,1))) -> 88.93 | E149: =IF(A149>$B$30,NA(),IF(A149>$A$8,"",OFFSET(InputPriceData!$D$15,CalculationsAndCharts!$A149+$A$11,IF($C$5,8,0),1,1))) -> 89.79 | F149: =IF(A149>$B$30,NA(),IF(A149>$A$8,"",OFFSET(InputPriceData!$E$15,CalculationsAndCharts!$A149+$A$11,IF($C$5,8,0),1,1))) -> 87.24 | G149: =IF(A149>$B$30,NA(),IF(A149>$A$8,"",OFFSET(InputPriceData!$F$15,CalculationsAndCharts!$A149+$A$11,IF($C$5,8,0),1,1))) -> 87.35 | I149: =IF($A149>$I$30,NA(),LINEST(OFFSET(G149,0,0,$A$19,1),OFFSET($H$33,0,0,$A$19,1))) -> 0.07086770708 | J149: 83.62967347 | K149: 87.17305882 | L149: 0.1769411765 | M149: 0.07129411765 | N149: 7.509623529 | O149: 0.01420306267 | P149: 0.07101531337 | Q149: 0.04200060052 | R149: 88.91638367 | S149: 86.34562286 | T149: 84 | U149: =IF($A149>$U$30,NA(),LINEST(OFFSET($G149,0,0,$D$19,1),OFFSET($T$33,0,0,$D$19,1))) -> 0.03011368784 | V149: 81.36117437 | W149: 87.38391194 | X149: 0.0339119403 | Y149: 0.0339119403 | Z149: 10.9314791 | AA149: 0 | AB149: 0 | AC149: 0.009950248756 | AD149: 84.83946736 | AX149: 5354700
A150: 118 | B150: =IF(A150>$B$30,NA(),IF($A150>$A$8,"",OFFSET(InputPriceData!$B$15,$A150+$A$11,0,1,1))) -> 2022-01-19 | C150: =IF(A150>$B$30,NA(),IF($A150>$A$8,"",OFFSET(InputPriceData!$G$15,CalculationsAndCharts!$A150+$A$11,IF($C$5,8,0),1,1))) -> 4887800 | D150: =IF(A150>$B$30,NA(),IF(A150>$A$8,"",OFFSET(InputPriceData!$C$15,CalculationsAndCharts!$A150+$A$11,IF($C$5,8,0),1,1))) -> 89.69 | E150: =IF(A150>$B$30,NA(),IF(A150>$A$8,"",OFFSET(InputPriceData!$D$15,CalculationsAndCharts!$A150+$A$11,IF($C$5,8,0),1,1))) -> 90.3 | F150: =IF(A150>$B$30,NA(),IF(A150>$A$8,"",OFFSET(InputPriceData!$E$15,CalculationsAndCharts!$A150+$A$11,IF($C$5,8,0),1,1))) -> 88.56 | G150: =IF(A150>$B$30,NA(),IF(A150>$A$8,"",OFFSET(InputPriceData!$F$15,CalculationsAndCharts!$A150+$A$11,IF($C$5,8,0),1,1))) -> 88.67 | I150: =IF($A150>$I$30,NA(),LINEST(OFFSET(G150,0,0,$A$19,1),OFFSET($H$33,0,0,$A$19,1))) -> 0.05744537815 | J150: 84.00794286 | K150: 86.88021176 | L150: 1.789788235 | M150: 0.07129411765 | N150: 7.509623529 | O150: 0.2310322685 | P150: 1.155161342 | Q150: 0.08451613107 | R150: 88.98505705 | S150: 86.30462787 | T150: 83 | U150: =IF($A150>$U$30,NA(),LINEST(OFFSET($G150,0,0,$D$19,1),OFFSET($T$33,0,0,$D$19,1))) -> 0.03101449786 | V150: 81.21069296 | W150: 87.41359254 | X150: 1.256407463 | Y150: 0.06629552239 | Z150: 10.9314791 | AA150: 0.109534453 | AB150: 0.5476722649 | AC150: 0.01539972403 | AD150: 84.81423588 | AX150: 4887800
A151: 119 | B151: =IF(A151>$B$30,NA(),IF($A151>$A$8,"",OFFSET(InputPriceData!$B$15,$A151+$A$11,0,1,1))) -> 2022-01-18 | C151: =IF(A151>$B$30,NA(),IF($A151>$A$8,"",OFFSET(InputPriceData!$G$15,CalculationsAndCharts!$A151+$A$11,IF($C$5,8,0),1,1))) -> 6010200 | D151: =IF(A151>$B$30,NA(),IF(A151>$A$8,"",OFFSET(InputPriceData!$C$15,CalculationsAndCharts!$A151+$A$11,IF($C$5,8,0),1,1))) -> 90.29 | E151: =IF(A151>$B$30,NA(),IF(A151>$A$8,"",OFFSET(InputPriceData!$D$15,CalculationsAndCharts!$A151+$A$11,IF($C$5,8,0),1,1))) -> 90.85 | F151: =IF(A151>$B$30,NA(),IF(A151>$A$8,"",OFFSET(InputPriceData!$E$15,CalculationsAndCharts!$A151+$A$11,IF($C$5,8,0),1,1))) -> 89.25 | G151: =IF(A151>$B$30,NA(),IF(A151>$A$8,"",OFFSET(InputPriceData!$F$15,CalculationsAndCharts!$A151+$A$11,IF($C$5,8,0),1,1))) -> 89.71 | I151: =IF($A151>$I$30,NA(),LINEST(OFFSET(G151,0,0,$A$19,1),OFFSET($H$33,0,0,$A$19,1))) -> 0.03988091236 | J151: 84.47463673 | K151: 86.46868235 | L151: 3.241317647 | M151: 0.07129411765 | N151: 7.509623529 | O151: 0.4261741251 | P151: 2.130870626 | Q151: 0.1227792402 | R151: 89.01414266 | S151: 86.20808207 | T151: 82 | U151: =IF($A151>$U$30,NA(),LINEST(OFFSET($G151,0,0,$D$19,1),OFFSET($T$33,0,0,$D$19,1))) -> 0.03171176029 | V151: 81.07361809 | W151: 87.41597015 | X151: 2.294029851 | Y151: 0.06629552239 | Z151: 10.9314791 | AA151: 0.2050342096 | AB151: 1.025171048 | AC151: 0.0201509557 | AD151: 84.75392947 | AX151: 6010200
A152: 120 | B152: =IF(A152>$B$30,NA(),IF($A152>$A$8,"",OFFSET(InputPriceData!$B$15,$A152+$A$11,0,1,1))) -> 2022-01-14 | C152: =IF(A152>$B$30,NA(),IF($A152>$A$8,"",OFFSET(InputPriceData!$G$15,CalculationsAndCharts!$A152+$A$11,IF($C$5,8,0),1,1))) -> 4987400 | D152: =IF(A152>$B$30,NA(),IF(A152>$A$8,"",OFFSET(InputPriceData!$C$15,CalculationsAndCharts!$A152+$A$11,IF($C$5,8,0),1,1))) -> 90.01 | E152: =IF(A152>$B$30,NA(),IF(A152>$A$8,"",OFFSET(InputPriceData!$D$15,CalculationsAndCharts!$A152+$A$11,IF($C$5,8,0),1,1))) -> 91.42 | F152: =IF(A152>$B$30,NA(),IF(A152>$A$8,"",OFFSET(InputPriceData!$E$15,CalculationsAndCharts!$A152+$A$11,IF($C$5,8,0),1,1))) -> 89.68 | G152: =IF(A152>$B$30,NA(),IF(A152>$A$8,"",OFFSET(InputPriceData!$F$15,CalculationsAndCharts!$A152+$A$11,IF($C$5,8,0),1,1))) -> 91.27 | I152: =IF($A152>$I$30,NA(),LINEST(OFFSET(G152,0,0,$A$19,1),OFFSET($H$33,0,0,$A$19,1))) -> 0.02705978391 | J152: 84.73837551 | K152: 86.09136471 | L152: 5.178635294 | M152: 0.07129411765 | N152: 7.509623529 | O152: 0.6866247639 | P152: 3.43312382 | Q152: 0.1738479929 | R152: 88.91674775 | S152: 86.06514665 | T152: 81 | U152: =IF($A152>$U$30,NA(),LINEST(OFFSET($G152,0,0,$D$19,1),OFFSET($T$33,0,0,$D$19,1))) -> 0.03217392935 | V152: 80.9569201 | W152: 87.39170597 | X152: 3.87829403 | Y152: 0.06629552239 | Z152: 10.9314791 | AA152: 0.3508452921 | AB152: 1.75422646 | AC152: 0.02740523841 | AD152: 84.65200606 | AW152: 4987400
A153: 121 | B153: =IF(A153>$B$30,NA(),IF($A153>$A$8,"",OFFSET(InputPriceData!$B$15,$A153+$A$11,0,1,1))) -> 2022-01-13 | C153: =IF(A153>$B$30,NA(),IF($A153>$A$8,"",OFFSET(InputPriceData!$G$15,CalculationsAndCharts!$A153+$A$11,IF($C$5,8,0),1,1))) -> 5026300 | D153: =IF(A153>$B$30,NA(),IF(A153>$A$8,"",OFFSET(InputPriceData!$C$15,CalculationsAndCharts!$A153+$A$11,IF($C$5,8,0),1,1))) -> 90.34 | E153: =IF(A153>$B$30,NA(),IF(A153>$A$8,"",OFFSET(InputPriceData!$D$15,CalculationsAndCharts!$A153+$A$11,IF($C$5,8,0),1,1))) -> 91.4 | F153: =IF(A153>$B$30,NA(),IF(A153>$A$8,"",OFFSET(InputPriceData!$E$15,CalculationsAndCharts!$A153+$A$11,IF($C$5,8,0),1,1))) -> 89.92 | G153: =IF(A153>$B$30,NA(),IF(A153>$A$8,"",OFFSET(InputPriceData!$F$15,CalculationsAndCharts!$A153+$A$11,IF($C$5,8,0),1,1))) -> 90.51 | I153: =IF($A153>$I$30,NA(),LINEST(OFFSET(G153,0,0,$A$19,1),OFFSET($H$33,0,0,$A$19,1))) -> 0.008726530612 | J153: 85.12327347 | K153: 85.5596 | L153: 4.9504 | M153: 0.07129411765 | N153: 7.509623529 | O153: 0.6559410873 | P153: 3.279705437 | Q153: 0.1678315858 | R153: 88.42155052 | S153: 85.85270365 | T153: 80 | U153: =IF($A153>$U$30,NA(),LINEST(OFFSET($G153,0,0,$D$19,1),OFFSET($T$33,0,0,$D$19,1))) -> 0.03247089177 | V153: 80.84597538 | W153: 87.34015373 | X153: 3.169846269 | Y153: 0.06629552239 | Z153: 10.9314791 | AA153: 0.2856418139 | AB153: 1.428209069 | AC153: 0.02416128427 | AD153: 84.46552788 | AW153: 5026300
A154: 122 | B154: =IF(A154>$B$30,NA(),IF($A154>$A$8,"",OFFSET(InputPriceData!$B$15,$A154+$A$11,0,1,1))) -> 2022-01-12 | C154: =IF(A154>$B$30,NA(),IF($A154>$A$8,"",OFFSET(InputPriceData!$G$15,CalculationsAndCharts!$A154+$A$11,IF($C$5,8,0),1,1))) -> 4613100 | D154: =IF(A154>$B$30,NA(),IF(A154>$A$8,"",OFFSET(InputPriceData!$C$15,CalculationsAndCharts!$A154+$A$11,IF($C$5,8,0),1,1))) -> 89.96 | E154: =IF(A154>$B$30,NA(),IF(A154>$A$8,"",OFFSET(InputPriceData!$D$15,CalculationsAndCharts!$A154+$A$11,IF($C$5,8,0),1,1))) -> 90.5 | F154: =IF(A154>$B$30,NA(),IF(A154>$A$8,"",OFFSET(InputPriceData!$E$15,CalculationsAndCharts!$A154+$A$11,IF($C$5,8,0),1,1))) -> 89.8 | G154: =IF(A154>$B$30,NA(),IF(A154>$A$8,"",OFFSET(InputPriceData!$F$15,CalculationsAndCharts!$A154+$A$11,IF($C$5,8,0),1,1))) -> 90.03 | I154: =IF($A154>$I$30,NA(),LINEST(OFFSET(G154,0,0,$A$19,1),OFFSET($H$33,0,0,$A$19,1))) -> -0.006142136855 | J154: 85.41802449 | K154: 85.11091765 | L154: 4.919082353 | M154: 0.07129411765 | N154: 7.509623529 | O154: 0.6517307808 | P154: 3.258653904 | Q154: 0.1670060354 | R154: 88.00035238 | S154: 85.66260992 | T154: 79 | U154: =IF($A154>$U$30,NA(),LINEST(OFFSET($G154,0,0,$D$19,1),OFFSET($T$33,0,0,$D$19,1))) -> 0.03285958899 | V154: 80.72956131 | W154: 87.3014791 | X154: 2.728520896 | Y154: 0.06629552239 | Z154: 10.9314791 | AA154: 0.2450235059 | AB154: 1.225117529 | AC154: 0.02214047293 | AD154: 84.31586974 | AW154: 4613100
A155: 123 | B155: =IF(A155>$B$30,NA(),IF($A155>$A$8,"",OFFSET(InputPriceData!$B$15,$A155+$A$11,0,1,1))) -> 2022-01-11 | C155: =IF(A155>$B$30,NA(),IF($A155>$A$8,"",OFFSET(InputPriceData!$G$15,CalculationsAndCharts!$A155+$A$11,IF($C$5,8,0),1,1))) -> 4529800 | D155: =IF(A155>$B$30,NA(),IF(A155>$A$8,"",OFFSET(InputPriceData!$C$15,CalculationsAndCharts!$A155+$A$11,IF($C$5,8,0),1,1))) -> 88.71 | E155: =IF(A155>$B$30,NA(),IF(A155>$A$8,"",OFFSET(InputPriceData!$D$15,CalculationsAndCharts!$A155+$A$11,IF($C$5,8,0),1,1))) -> 89.8 | F155: =IF(A155>$B$30,NA(),IF(A155>$A$8,"",OFFSET(InputPriceData!$E$15,CalculationsAndCharts!$A155+$A$11,IF($C$5,8,0),1,1))) -> 88.25 | G155: =IF(A155>$B$30,NA(),IF(A155>$A$8,"",OFFSET(InputPriceData!$F$15,CalculationsAndCharts!$A155+$A$11,IF($C$5,8,0),1,1))) -> 89.68 | I155: =IF($A155>$I$30,NA(),LINEST(OFFSET(G155,0,0,$A$19,1),OFFSET($H$33,0,0,$A$19,1))) -> -0.0219817527 | J155: 85.76193469 | K155: 84.66284706 | L155: 5.017152941 | M155: 0.07129411765 | N155: 7.509623529 | O155: 0.6649152719 | P155: 3.32457636 | Q155: 0.1695912298 | R155: 87.59343058 | S155: 85.4843491 | T155: 78 | U155: =IF($A155>$U$30,NA(),LINEST(OFFSET($G155,0,0,$D$19,1),OFFSET($T$33,0,0,$D$19,1))) -> 0.03321833796 | V155: 80.62120704 | W155: 87.26487463 | X155: 2.415125373 | Y155: 0.06629552239 | Z155: 10.9314791 | AA155: 0.2161794905 | AB155: 1.080897452 | AC155: 0.02070544729 | AD155: 84.1864917 | AW155: 4529800
A156: 124 | B156: =IF(A156>$B$30,NA(),IF($A156>$A$8,"",OFFSET(InputPriceData!$B$15,$A156+$A$11,0,1,1))) -> 2022-01-10 | C156: =IF(A156>$B$30,NA(),IF($A156>$A$8,"",OFFSET(InputPriceData!$G$15,CalculationsAndCharts!$A156+$A$11,IF($C$5,8,0),1,1))) -> 4884200 | D156: =IF(A156>$B$30,NA(),IF(A156>$A$8,"",OFFSET(InputPriceData!$C$15,CalculationsAndCharts!$A156+$A$11,IF($C$5,8,0),1,1))) -> 89.64 | E156: =IF(A156>$B$30,NA(),IF(A156>$A$8,"",OFFSET(InputPriceData!$D$15,CalculationsAndCharts!$A156+$A$11,IF($C$5,8,0),1,1))) -> 89.75 | F156: =IF(A156>$B$30,NA(),IF(A156>$A$8,"",OFFSET(InputPriceData!$E$15,CalculationsAndCharts!$A156+$A$11,IF($C$5,8,0),1,1))) -> 88.22 | G156: =IF(A156>$B$30,NA(),IF(A156>$A$8,"",OFFSET(InputPriceData!$F$15,CalculationsAndCharts!$A156+$A$11,IF($C$5,8,0),1,1))) -> 88.7 | I156: =IF($A156>$I$30,NA(),LINEST(OFFSET(G156,0,0,$A$19,1),OFFSET($H$33,0,0,$A$19,1))) -> -0.03795822329 | J156: 86.12233469 | K156: 84.22442353 | L156: 4.475576471 | M156: 0.07129411765 | N156: 7.509623529 | O156: 0.5921063869 | P156: 2.960531935 | Q156: 0.1553149778 | R156: 87.16729844 | S156: 85.31309805 | T156: 77 | U156: =IF($A156>$U$30,NA(),LINEST(OFFSET($G156,0,0,$D$19,1),OFFSET($T$33,0,0,$D$19,1))) -> 0.03362905573 | V156: 80.5086799 | W156: 87.23449104 | X156: 1.465508955 | Y156: 0.06629552239 | Z156: 10.9314791 | AA156: 0.1287795482 | AB156: 0.643897741 | AC156: 0.01635719145 | AD156: 84.07034121 | AX156: 4884200
A157: 125 | B157: =IF(A157>$B$30,NA(),IF($A157>$A$8,"",OFFSET(InputPriceData!$B$15,$A157+$A$11,0,1,1))) -> 2022-01-07 | C157: =IF(A157>$B$30,NA(),IF($A157>$A$8,"",OFFSET(InputPriceData!$G$15,CalculationsAndCharts!$A157+$A$11,IF($C$5,8,0),1,1))) -> 4835300 | D157: =IF(A157>$B$30,NA(),IF(A157>$A$8,"",OFFSET(InputPriceData!$C$15,CalculationsAndCharts!$A157+$A$11,IF($C$5,8,0),1,1))) -> 89.23 | E157: =IF(A157>$B$30,NA(),IF(A157>$A$8,"",OFFSET(InputPriceData!$D$15,CalculationsAndCharts!$A157+$A$11,IF($C$5,8,0),1,1))) -> 90.33 | F157: =IF(A157>$B$30,NA(),IF(A157>$A$8,"",OFFSET(InputPriceData!$E$15,CalculationsAndCharts!$A157+$A$11,IF($C$5,8,0),1,1))) -> 89.06 | G157: =IF(A157>$B$30,NA(),IF(A157>$A$8,"",OFFSET(InputPriceData!$F$15,CalculationsAndCharts!$A157+$A$11,IF($C$5,8,0),1,1))) -> 89.41 | I157: =IF($A157>$I$30,NA(),LINEST(OFFSET(G157,0,0,$A$19,1),OFFSET($H$33,0,0,$A$19,1))) -> -0.05253685474 | J157: 86.4732898 | K157: 83.84644706 | L157: 5.563552941 | M157: 0.07129411765 | N157: 7.509623529 | O157: 0.7383726264 | P157: 3.691863132 | Q157: 0.1839946326 | R157: 86.88547562 | S157: 85.17485715 | T157: 76 | U157: =IF($A157>$U$30,NA(),LINEST(OFFSET($G157,0,0,$D$19,1),OFFSET($T$33,0,0,$D$19,1))) -> 0.03409449486 | V157: 80.39795327 | W157: 87.21685224 | X157: 2.193147761 | Y157: 0.06629552239 | Z157: 10.9314791 | AA157: 0.1957493146 | AB157: 0.9787465728 | AC157: 0.01968902063 | AD157: 83.99335369 | AW157: 4835300
A158: 126 | B158: =IF(A158>$B$30,NA(),IF($A158>$A$8,"",OFFSET(InputPriceData!$B$15,$A158+$A$11,0,1,1))) -> 2022-01-06 | C158: =IF(A158>$B$30,NA(),IF($A158>$A$8,"",OFFSET(InputPriceData!$G$15,CalculationsAndCharts!$A158+$A$11,IF($C$5,8,0),1,1))) -> 5559000 | D158: =IF(A158>$B$30,NA(),IF(A158>$A$8,"",OFFSET(InputPriceData!$C$15,CalculationsAndCharts!$A158+$A$11,IF($C$5,8,0),1,1))) -> 89.37 | E158: =IF(A158>$B$30,NA(),IF(A158>$A$8,"",OFFSET(InputPriceData!$D$15,CalculationsAndCharts!$A158+$A$11,IF($C$5,8,0),1,1))) -> 89.89 | F158: =IF(A158>$B$30,NA(),IF(A158>$A$8,"",OFFSET(InputPriceData!$E$15,CalculationsAndCharts!$A158+$A$11,IF($C$5,8,0),1,1))) -> 88.59 | G158: =IF(A158>$B$30,NA(),IF(A158>$A$8,"",OFFSET(InputPriceData!$F$15,CalculationsAndCharts!$A158+$A$11,IF($C$5,8,0),1,1))) -> 89.03 | I158: =IF($A158>$I$30,NA(),LINEST(OFFSET(G158,0,0,$A$19,1),OFFSET($H$33,0,0,$A$19,1))) -> -0.06888355342 | J158: 86.85453061 | K158: 83.41035294 | L158: 5.619647059 | M158: 0.07129411765 | N158: 7.509623529 | O158: 0.7459138516 | P158: 3.729569258 | Q158: 0.1854733042 | R158: 86.31624047 | S158: 85.00199418 | T158: 75 | U158: =IF($A158>$U$30,NA(),LINEST(OFFSET($G158,0,0,$D$19,1),OFFSET($T$33,0,0,$D$19,1))) -> 0.03452625066 | V158: 80.28396181 | W158: 87.18921194 | X158: 1.84078806 | Y158: 0.06629552239 | Z158: 10.9314791 | AA158: 0.1633191491 | AB158: 0.8165957454 | AC158: 0.01807557956 | AD158: 83.88456325 | AX158: 5559000
A159: 127 | B159: =IF(A159>$B$30,NA(),IF($A159>$A$8,"",OFFSET(InputPriceData!$B$15,$A159+$A$11,0,1,1))) -> 2022-01-05 | C159: =IF(A159>$B$30,NA(),IF($A159>$A$8,"",OFFSET(InputPriceData!$G$15,CalculationsAndCharts!$A159+$A$11,IF($C$5,8,0),1,1))) -> 6833600 | D159: =IF(A159>$B$30,NA(),IF(A159>$A$8,"",OFFSET(InputPriceData!$C$15,CalculationsAndCharts!$A159+$A$11,IF($C$5,8,0),1,1))) -> 89.17 | E159: =IF(A159>$B$30,NA(),IF(A159>$A$8,"",OFFSET(InputPriceData!$D$15,CalculationsAndCharts!$A159+$A$11,IF($C$5,8,0),1,1))) -> 90.48 | F159: =IF(A159>$B$30,NA(),IF(A159>$A$8,"",OFFSET(InputPriceData!$E$15,CalculationsAndCharts!$A159+$A$11,IF($C$5,8,0),1,1))) -> 88.38 | G159: =IF(A159>$B$30,NA(),IF(A159>$A$8,"",OFFSET(InputPriceData!$F$15,CalculationsAndCharts!$A159+$A$11,IF($C$5,8,0),1,1))) -> 88.55 | I159: =IF($A159>$I$30,NA(),LINEST(OFFSET(G159,0,0,$A$19,1),OFFSET($H$33,0,0,$A$19,1))) -> -0.08447058824 | J159: 87.224 | K159: 83.00047059 | L159: 5.549529412 | M159: 0.07129411765 | N159: 7.509623529 | O159: 0.73648732 | P159: 3.6824366 | Q159: 0.1836249647 | R159: 85.69829885 | S159: 84.83758578 | T159: 74 | U159: =IF($A159>$U$30,NA(),LINEST(OFFSET($G159,0,0,$D$19,1),OFFSET($T$33,0,0,$D$19,1))) -> 0.03528067952 | V159: 80.12984171 | W159: 87.18597761 | X159: 1.364022388 | Y159: 0.06629552239 | Z159: 10.9314791 | AA159: 0.1194390188 | AB159: 0.5971950938 | AC159: 0.0158924885 | AD159: 83.78984441 | AX159: 6833600
A160: 128 | B160: =IF(A160>$B$30,NA(),IF($A160>$A$8,"",OFFSET(InputPriceData!$B$15,$A160+$A$11,0,1,1))) -> 2022-01-04 | C160: =IF(A160>$B$30,NA(),IF($A160>$A$8,"",OFFSET(InputPriceData!$G$15,CalculationsAndCharts!$A160+$A$11,IF($C$5,8,0),1,1))) -> 6044200 | D160: =IF(A160>$B$30,NA(),IF(A160>$A$8,"",OFFSET(InputPriceData!$C$15,CalculationsAndCharts!$A160+$A$11,IF($C$5,8,0),1,1))) -> 86.87 | E160: =IF(A160>$B$30,NA(),IF(A160>$A$8,"",OFFSET(InputPriceData!$D$15,CalculationsAndCharts!$A160+$A$11,IF($C$5,8,0),1,1))) -> 89.04 | F160: =IF(A160>$B$30,NA(),IF(A160>$A$8,"",OFFSET(InputPriceData!$E$15,CalculationsAndCharts!$A160+$A$11,IF($C$5,8,0),1,1))) -> 86.7 | G160: =IF(A160>$B$30,NA(),IF(A160>$A$8,"",OFFSET(InputPriceData!$F$15,CalculationsAndCharts!$A160+$A$11,IF($C$5,8,0),1,1))) -> 88.99 | I160: =IF($A160>$I$30,NA(),LINEST(OFFSET(G160,0,0,$A$19,1),OFFSET($H$33,0,0,$A$19,1))) -> -0.1039577431 | J160: 87.74452245 | K160: 82.54663529 | L160: 6.443364706 | M160: 0.07129411765 | N160: 7.509623529 | O160: 0.8566534548 | P160: 4.283267274 | Q160: 0.2071869519 | R160: 85.05687365 | S160: 84.68605866 | T160: 73 | U160: =IF($A160>$U$30,NA(),LINEST(OFFSET($G160,0,0,$D$19,1),OFFSET($T$33,0,0,$D$19,1))) -> 0.03613771094 | V160: 79.96601005 | W160: 87.19355224 | X160: 1.796447761 | Y160: 0.06629552239 | Z160: 10.9314791 | AA160: 0.1592381966 | AB160: 0.7961909828 | AC160: 0.01787254709 | AD160: 83.71297199 | AW160: 6044200
A161: 129 | B161: =IF(A161>$B$30,NA(),IF($A161>$A$8,"",OFFSET(InputPriceData!$B$15,$A161+$A$11,0,1,1))) -> 2022-01-03 | C161: =IF(A161>$B$30,NA(),IF($A161>$A$8,"",OFFSET(InputPriceData!$G$15,CalculationsAndCharts!$A161+$A$11,IF($C$5,8,0),1,1))) -> 5169200 | D161: =IF(A161>$B$30,NA(),IF(A161>$A$8,"",OFFSET(InputPriceData!$C$15,CalculationsAndCharts!$A161+$A$11,IF($C$5,8,0),1,1))) -> 85.1 | E161: =IF(A161>$B$30,NA(),IF(A161>$A$8,"",OFFSET(InputPriceData!$D$15,CalculationsAndCharts!$A161+$A$11,IF($C$5,8,0),1,1))) -> 86.14 | F161: =IF(A161>$B$30,NA(),IF(A161>$A$8,"",OFFSET(InputPriceData!$E$15,CalculationsAndCharts!$A161+$A$11,IF($C$5,8,0),1,1))) -> 85.09 | G161: =IF(A161>$B$30,NA(),IF(A161>$A$8,"",OFFSET(InputPriceData!$F$15,CalculationsAndCharts!$A161+$A$11,IF($C$5,8,0),1,1))) -> 85.98 | I161: =IF($A161>$I$30,NA(),LINEST(OFFSET(G161,0,0,$A$19,1),OFFSET($H$33,0,0,$A$19,1))) -> -0.1257032413 | J161: 88.32483265 | K161: 82.03967059 | L161: 3.940329412 | M161: 0.07129411765 | N161: 7.509623529 | O161: 0.5201484204 | P161: 2.600742102 | Q161: 0.1412055726 | R161: 84.0290242 | S161: 84.51038759 | T161: 72 | U161: =IF($A161>$U$30,NA(),LINEST(OFFSET($G161,0,0,$D$19,1),OFFSET($T$33,0,0,$D$19,1))) -> 0.03665286132 | V161: 79.84278744 | W161: 87.1733597 | X161: 1.193359701 | Y161: 0.06629552239 | Z161: 10.9314791 | AA161: 0.1037317198 | AB161: 0.5186585991 | AC161: 0.01511103084 | AD161: 83.61694176 | AW161: =IF(G161>=D161,C161,NA()) -> 5169200 | AX161: =IF(G161<D161,C161,NA()) -> 
A162: 130 | B162: =IF(A162>$B$30,NA(),IF($A162>$A$8,"",OFFSET(InputPriceData!$B$15,$A162+$A$11,0,1,1))) -> 2021-12-31 | C162: =IF(A162>$B$30,NA(),IF($A162>$A$8,"",OFFSET(InputPriceData!$G$15,CalculationsAndCharts!$A162+$A$11,IF($C$5,8,0),1,1))) -> 2667700 | D162: =IF(A162>$B$30,NA(),IF(A162>$A$8,"",OFFSET(InputPriceData!$C$15,CalculationsAndCharts!$A162+$A$11,IF($C$5,8,0),1,1))) -> 84.75 | E162: =IF(A162>$B$30,NA(),IF(A162>$A$8,"",OFFSET(InputPriceData!$D$15,CalculationsAndCharts!$A162+$A$11,IF($C$5,8,0),1,1))) -> 85.34 | F162: =IF(A162>$B$30,NA(),IF(A162>$A$8,"",OFFSET(InputPriceData!$E$15,CalculationsAndCharts!$A162+$A$11,IF($C$5,8,0),1,1))) -> 84.52 | G162: =IF(A162>$B$30,NA(),IF(A162>$A$8,"",OFFSET(InputPriceData!$F$15,CalculationsAndCharts!$A162+$A$11,IF($C$5,8,0),1,1))) -> 85.08 | H162: =IF($A162>$A$19,NA(),$A$19+1-$A162) ->  | I162: =IF($A162>$I$30,NA(),LINEST(OFFSET(G162,0,0,$A$19,1),OFFSET($H$33,0,0,$A$19,1))) -> -0.1393651861 | J162: 88.75421224 | K162: =IF($A162>$I$30,NA(),I162*$H$33+J162) -> 81.78595294 | L162: =IF($A162>$I$30,NA(),ABS(K162-$G162)) -> 3.294047059 | M162: =IF($A162>$M$30,NA(),MIN(OFFSET($L162,0,0,$A$18,1))) -> 0.07129411765 | N162: =IF($A162>$M$30,NA(),MAX(OFFSET($L162,0,0,$A$18,1))) -> 7.509623529 | O162: =IF($A162>$M$30,NA(),(L162-M162)/(N162-M162)) -> 0.4332630034 | P162: =IF($A162>$M$30,NA(),O162*$A$20) -> 2.166315017 | Q162: =IF($A162>$M$30,NA(),$C$21*(1+P162)) -> 0.1241692164 | R162: =IF($A162>$M$30,NA(),IF($A162=$M$30,$G162,R163+Q162*($G162-R163))) -> 83.70823887 | S162: =IF($A162>$S$30,NA(),IF($A162=$S$30,AVERAGE(OFFSET($G162,0,0,$A$23,1)),S163+$C$23*($G162-S163))) -> 84.45040341 | T162: =IF($A162>$D$19,NA(),$D$19+1-$A162) -> 71 | U162: =IF($A162>$U$30,NA(),LINEST(OFFSET($G162,0,0,$D$19,1),OFFSET($T$33,0,0,$D$19,1))) -> 0.03739288232 | V162: 79.71896533 | W162: =IF($A162>$U$30,NA(),U162*$T$33+V162) -> 87.19754179 | X162: =IF($A162>$U$30,NA(),ABS(W162-$G162)) -> 2.117541791 | Y162: =IF($A162>$Y$30,NA(),MIN(OFFSET($X162,0,0,$D$18,1))) -> 0.06629552239 | Z162: =IF($A162>$Y$30,NA(),MAX(OFFSET($X162,0,0,$D$18,1))) -> 10.9314791 | AA162: =IF($A162>$Y$30,NA(),(X162-Y162)/(Z162-Y162)) -> 0.1887907602 | AB162: =IF($A162>$Y$30,NA(),AA162*$D$20) -> 0.9439538012 | AC162: =IF($A162>$Y$30,NA(),$F$21*(1+AB162)) -> 0.01934282389 | AD162: =IF($A162>$Y$30,NA(),IF($A162=$Y$30,$G162,AD163+AC162*($G162-AD163))) -> 83.58068564 | AW162: 2667700
A163: 131 | B163: =IF(A163>$B$30,NA(),IF($A163>$A$8,"",OFFSET(InputPriceData!$B$15,$A163+$A$11,0,1,1))) -> 2021-12-30 | C163: =IF(A163>$B$30,NA(),IF($A163>$A$8,"",OFFSET(InputPriceData!$G$15,CalculationsAndCharts!$A163+$A$11,IF($C$5,8,0),1,1))) -> 2459400 | D163: =IF(A163>$B$30,NA(),IF(A163>$A$8,"",OFFSET(InputPriceData!$C$15,CalculationsAndCharts!$A163+$A$11,IF($C$5,8,0),1,1))) -> 85.06 | E163: =IF(A163>$B$30,NA(),IF(A163>$A$8,"",OFFSET(InputPriceData!$D$15,CalculationsAndCharts!$A163+$A$11,IF($C$5,8,0),1,1))) -> 85.51 | F163: =IF(A163>$B$30,NA(),IF(A163>$A$8,"",OFFSET(InputPriceData!$E$15,CalculationsAndCharts!$A163+$A$11,IF($C$5,8,0),1,1))) -> 84.72 | G163: =IF(A163>$B$30,NA(),IF(A163>$A$8,"",OFFSET(InputPriceData!$F$15,CalculationsAndCharts!$A163+$A$11,IF($C$5,8,0),1,1))) -> 84.82 | I163: =IF($A163>$I$30,NA(),LINEST(OFFSET(G163,0,0,$A$19,1),OFFSET($H$33,0,0,$A$19,1))) -> -0.1505987995 | J163: 89.14106939 | K163: 81.61112941 | L163: 3.208870588 | M163: 0.07129411765 | N163: 7.509623529 | O163: 0.4218119818 | P163: 2.109059909 | Q163: 0.121923918 | R163: 83.51376008 | S163: 84.42470559 | T163: 70 | U163: =IF($A163>$U$30,NA(),LINEST(OFFSET($G163,0,0,$D$19,1),OFFSET($T$33,0,0,$D$19,1))) -> 0.03831344784 | V163: 79.57949849 | W163: 87.24218806 | X163: 2.42218806 | Y163: 0.06629552239 | Z163: 10.9314791 | AA163: 0.2168295197 | AB163: 1.084147598 | AC163: 0.02073778705 | AD163: 83.55111264 | AX163: 2459400
A164: 132 | B164: =IF(A164>$B$30,NA(),IF($A164>$A$8,"",OFFSET(InputPriceData!$B$15,$A164+$A$11,0,1,1))) -> 2021-12-29 | C164: =IF(A164>$B$30,NA(),IF($A164>$A$8,"",OFFSET(InputPriceData!$G$15,CalculationsAndCharts!$A164+$A$11,IF($C$5,8,0),1,1))) -> 2085300 | D164: =IF(A164>$B$30,NA(),IF(A164>$A$8,"",OFFSET(InputPriceData!$C$15,CalculationsAndCharts!$A164+$A$11,IF($C$5,8,0),1,1))) -> 84.6 | E164: =IF(A164>$B$30,NA(),IF(A164>$A$8,"",OFFSET(InputPriceData!$D$15,CalculationsAndCharts!$A164+$A$11,IF($C$5,8,0),1,1))) -> 85.09 | F164: =IF(A164>$B$30,NA(),IF(A164>$A$8,"",OFFSET(InputPriceData!$E$15,CalculationsAndCharts!$A164+$A$11,IF($C$5,8,0),1,1))) -> 84.25 | G164: =IF(A164>$B$30,NA(),IF(A164>$A$8,"",OFFSET(InputPriceData!$F$15,CalculationsAndCharts!$A164+$A$11,IF($C$5,8,0),1,1))) -> 84.91 | I164: =IF($A164>$I$30,NA(),LINEST(OFFSET(G164,0,0,$A$19,1),OFFSET($H$33,0,0,$A$19,1))) -> -0.1596782713 | J164: 89.46939592 | K164: 81.48548235 | L164: 3.424517647 | M164: 0.07129411765 | N164: 7.509623529 | O164: 0.4508033113 | P164: 2.254016557 | Q164: 0.1276084924 | R164: 83.33238413 | S164: 84.40857112 | T164: 69 | U164: =IF($A164>$U$30,NA(),LINEST(OFFSET($G164,0,0,$D$19,1),OFFSET($T$33,0,0,$D$19,1))) -> 0.03902479562 | V164: 79.47020804 | W164: 87.27516716 | X164: 2.365167164 | Y164: 0.06629552239 | Z164: 10.9314791 | AA164: 0.2115814818 | AB164: 1.057907409 | AC164: 0.02047669063 | AD164: 83.52424148 | AW164: 2085300
A165: 133 | B165: =IF(A165>$B$30,NA(),IF($A165>$A$8,"",OFFSET(InputPriceData!$B$15,$A165+$A$11,0,1,1))) -> 2021-12-28 | C165: =IF(A165>$B$30,NA(),IF($A165>$A$8,"",OFFSET(InputPriceData!$G$15,CalculationsAndCharts!$A165+$A$11,IF($C$5,8,0),1,1))) -> 3220100 | D165: =IF(A165>$B$30,NA(),IF(A165>$A$8,"",OFFSET(InputPriceData!$C$15,CalculationsAndCharts!$A165+$A$11,IF($C$5,8,0),1,1))) -> 84.1 | E165: =IF(A165>$B$30,NA(),IF(A165>$A$8,"",OFFSET(InputPriceData!$D$15,CalculationsAndCharts!$A165+$A$11,IF($C$5,8,0),1,1))) -> 85.36 | F165: =IF(A165>$B$30,NA(),IF(A165>$A$8,"",OFFSET(InputPriceData!$E$15,CalculationsAndCharts!$A165+$A$11,IF($C$5,8,0),1,1))) -> 83.81 | G165: =IF(A165>$B$30,NA(),IF(A165>$A$8,"",OFFSET(InputPriceData!$F$15,CalculationsAndCharts!$A165+$A$11,IF($C$5,8,0),1,1))) -> 85.04 | I165: =IF($A165>$I$30,NA(),LINEST(OFFSET(G165,0,0,$A$19,1),OFFSET($H$33,0,0,$A$19,1))) -> -0.16752509 | J165: 89.7560898 | K165: 81.37983529 | L165: 3.660164706 | M165: 0.07129411765 | N165: 7.509623529 | O165: 0.4824834166 | P165: 2.412417083 | Q165: 0.1338202778 | R165: 83.10161941 | S165: 84.38810464 | T165: 68 | U165: =IF($A165>$U$30,NA(),LINEST(OFFSET($G165,0,0,$D$19,1),OFFSET($T$33,0,0,$D$19,1))) -> 0.03990228006 | V165: 79.33737085 | W165: 87.31782687 | X165: 2.277826866 | Y165: 0.06629552239 | Z165: 10.9314791 | AA165: 0.2035429339 | AB165: 1.017714669 | AC165: 0.02007676288 | AD165: 83.49527254 | AW165: 3220100
A166: 134 | B166: =IF(A166>$B$30,NA(),IF($A166>$A$8,"",OFFSET(InputPriceData!$B$15,$A166+$A$11,0,1,1))) -> 2021-12-27 | C166: =IF(A166>$B$30,NA(),IF($A166>$A$8,"",OFFSET(InputPriceData!$G$15,CalculationsAndCharts!$A166+$A$11,IF($C$5,8,0),1,1))) -> 2743700 | D166: =IF(A166>$B$30,NA(),IF(A166>$A$8,"",OFFSET(InputPriceData!$C$15,CalculationsAndCharts!$A166+$A$11,IF($C$5,8,0),1,1))) -> 83.75 | E166: =IF(A166>$B$30,NA(),IF(A166>$A$8,"",OFFSET(InputPriceData!$D$15,CalculationsAndCharts!$A166+$A$11,IF($C$5,8,0),1,1))) -> 84.42 | F166: =IF(A166>$B$30,NA(),IF(A166>$A$8,"",OFFSET(InputPriceData!$E$15,CalculationsAndCharts!$A166+$A$11,IF($C$5,8,0),1,1))) -> 83.28 | G166: =IF(A166>$B$30,NA(),IF(A166>$A$8,"",OFFSET(InputPriceData!$F$15,CalculationsAndCharts!$A166+$A$11,IF($C$5,8,0),1,1))) -> 84.27 | I166: =IF($A166>$I$30,NA(),LINEST(OFFSET(G166,0,0,$A$19,1),OFFSET($H$33,0,0,$A$19,1))) -> -0.1755567827 | J166: 90.04729796 | K166: 81.26945882 | L166: 3.000541176 | M166: 0.07129411765 | N166: 7.509623529 | O166: 0.3938044279 | P166: 1.96902214 | Q166: 0.1164322408 | R166: 82.80214965 | S166: 84.36149667 | T166: 67 | U166: =IF($A166>$U$30,NA(),LINEST(OFFSET($G166,0,0,$D$19,1),OFFSET($T$33,0,0,$D$19,1))) -> 0.04055423386 | V166: 79.2329995 | W166: 87.34384627 | X166: 3.073846269 | Y166: 0.06629552239 | Z166: 10.9314791 | AA166: 0.2768062521 | AB166: 1.384031261 | AC166: 0.02372170409 | AD166: 83.46362402 | AW166: 2743700
A167: 135 | B167: =IF(A167>$B$30,NA(),IF($A167>$A$8,"",OFFSET(InputPriceData!$B$15,$A167+$A$11,0,1,1))) -> 2021-12-23 | C167: =IF(A167>$B$30,NA(),IF($A167>$A$8,"",OFFSET(InputPriceData!$G$15,CalculationsAndCharts!$A167+$A$11,IF($C$5,8,0),1,1))) -> 2650000 | D167: =IF(A167>$B$30,NA(),IF(A167>$A$8,"",OFFSET(InputPriceData!$C$15,CalculationsAndCharts!$A167+$A$11,IF($C$5,8,0),1,1))) -> 83.59 | E167: =IF(A167>$B$30,NA(),IF(A167>$A$8,"",OFFSET(InputPriceData!$D$15,CalculationsAndCharts!$A167+$A$11,IF($C$5,8,0),1,1))) -> 84.23 | F167: =IF(A167>$B$30,NA(),IF(A167>$A$8,"",OFFSET(InputPriceData!$E$15,CalculationsAndCharts!$A167+$A$11,IF($C$5,8,0),1,1))) -> 83.55 | G167: =IF(A167>$B$30,NA(),IF(A167>$A$8,"",OFFSET(InputPriceData!$F$15,CalculationsAndCharts!$A167+$A$11,IF($C$5,8,0),1,1))) -> 83.93 | I167: =IF($A167>$I$30,NA(),LINEST(OFFSET(G167,0,0,$A$19,1),OFFSET($H$33,0,0,$A$19,1))) -> -0.1772408163 | J167: 90.15764082 | K167: 81.2956 | L167: 2.6344 | M167: 0.07129411765 | N167: 7.509623529 | O167: 0.3445808515 | P167: 1.722904257 | Q167: 0.1067805591 | R167: 82.6087235 | S167: 84.36523122 | T167: 66 | U167: =IF($A167>$U$30,NA(),LINEST(OFFSET($G167,0,0,$D$19,1),OFFSET($T$33,0,0,$D$19,1))) -> 0.04146285157 | V167: 79.10158342 | W167: 87.39415373 | X167: 3.464153731 | Y167: 0.06629552239 | Z167: 10.9314791 | AA167: 0.3127290196 | AB167: 1.563645098 | AC167: 0.02550890645 | AD167: 83.44403062 | AW167: 2650000
A168: 136 | B168: =IF(A168>$B$30,NA(),IF($A168>$A$8,"",OFFSET(InputPriceData!$B$15,$A168+$A$11,0,1,1))) -> 2021-12-22 | C168: =IF(A168>$B$30,NA(),IF($A168>$A$8,"",OFFSET(InputPriceData!$G$15,CalculationsAndCharts!$A168+$A$11,IF($C$5,8,0),1,1))) -> 3852800 | D168: =IF(A168>$B$30,NA(),IF(A168>$A$8,"",OFFSET(InputPriceData!$C$15,CalculationsAndCharts!$A168+$A$11,IF($C$5,8,0),1,1))) -> 82.53 | E168: =IF(A168>$B$30,NA(),IF(A168>$A$8,"",OFFSET(InputPriceData!$D$15,CalculationsAndCharts!$A168+$A$11,IF($C$5,8,0),1,1))) -> 83.78 | F168: =IF(A168>$B$30,NA(),IF(A168>$A$8,"",OFFSET(InputPriceData!$E$15,CalculationsAndCharts!$A168+$A$11,IF($C$5,8,0),1,1))) -> 82.48 | G168: =IF(A168>$B$30,NA(),IF(A168>$A$8,"",OFFSET(InputPriceData!$F$15,CalculationsAndCharts!$A168+$A$11,IF($C$5,8,0),1,1))) -> 83.11 | I168: =IF($A168>$I$30,NA(),LINEST(OFFSET(G168,0,0,$A$19,1),OFFSET($H$33,0,0,$A$19,1))) -> -0.178945018 | J168: 90.28529796 | K168: 81.33804706 | L168: 1.771952941 | M168: 0.07129411765 | N168: 7.509623529 | O168: 0.2286345131 | P168: 1.143172566 | Q168: 0.08404598297 | R168: 82.45077056 | S168: 84.38299576 | T168: 65 | U168: =IF($A168>$U$30,NA(),LINEST(OFFSET($G168,0,0,$D$19,1),OFFSET($T$33,0,0,$D$19,1))) -> 0.0426241281 | V168: 78.93932513 | W168: 87.46415075 | X168: 4.354150746 | Y168: 0.06629552239 | Z168: 10.9314791 | AA168: 0.3946417648 | AB168: 1.973208824 | AC168: 0.0295841674 | AD168: 83.43130957 | AW168: 3852800
A169: 137 | B169: =IF(A169>$B$30,NA(),IF($A169>$A$8,"",OFFSET(InputPriceData!$B$15,$A169+$A$11,0,1,1))) -> 2021-12-21 | C169: =IF(A169>$B$30,NA(),IF($A169>$A$8,"",OFFSET(InputPriceData!$G$15,CalculationsAndCharts!$A169+$A$11,IF($C$5,8,0),1,1))) -> 7301900 | D169: =IF(A169>$B$30,NA(),IF(A169>$A$8,"",OFFSET(InputPriceData!$C$15,CalculationsAndCharts!$A169+$A$11,IF($C$5,8,0),1,1))) -> 80.74 | E169: =IF(A169>$B$30,NA(),IF(A169>$A$8,"",OFFSET(InputPriceData!$D$15,CalculationsAndCharts!$A169+$A$11,IF($C$5,8,0),1,1))) -> 82.96 | F169: =IF(A169>$B$30,NA(),IF(A169>$A$8,"",OFFSET(InputPriceData!$E$15,CalculationsAndCharts!$A169+$A$11,IF($C$5,8,0),1,1))) -> 80.74 | G169: =IF(A169>$B$30,NA(),IF(A169>$A$8,"",OFFSET(InputPriceData!$F$15,CalculationsAndCharts!$A169+$A$11,IF($C$5,8,0),1,1))) -> 82.72 | I169: =IF($A169>$I$30,NA(),LINEST(OFFSET(G169,0,0,$A$19,1),OFFSET($H$33,0,0,$A$19,1))) -> -0.1783308523 | J169: 90.37103673 | K169: 81.45449412 | L169: 1.265505882 | M169: 0.07129411765 | N169: 7.509623529 | O169: 0.1605483837 | P169: 0.8027419186 | Q169: 0.07069576152 | R169: 82.39028107 | S169: 84.43495477 | T169: 64 | U169: =IF($A169>$U$30,NA(),LINEST(OFFSET($G169,0,0,$D$19,1),OFFSET($T$33,0,0,$D$19,1))) -> 0.04396550664 | V169: 78.76071658 | W169: 87.55381791 | X169: 4.83381791 | Y169: 0.06629552239 | Z169: 10.9314791 | AA169: 0.4387889401 | AB169: 2.193944701 | AC169: 0.03178054428 | AD169: 83.44110503 | AW169: 7301900
A170: 138 | B170: =IF(A170>$B$30,NA(),IF($A170>$A$8,"",OFFSET(InputPriceData!$B$15,$A170+$A$11,0,1,1))) -> 2021-12-20 | C170: =IF(A170>$B$30,NA(),IF($A170>$A$8,"",OFFSET(InputPriceData!$G$15,CalculationsAndCharts!$A170+$A$11,IF($C$5,8,0),1,1))) -> 5828400 | D170: =IF(A170>$B$30,NA(),IF(A170>$A$8,"",OFFSET(InputPriceData!$C$15,CalculationsAndCharts!$A170+$A$11,IF($C$5,8,0),1,1))) -> 80.1 | E170: =IF(A170>$B$30,NA(),IF(A170>$A$8,"",OFFSET(InputPriceData!$D$15,CalculationsAndCharts!$A170+$A$11,IF($C$5,8,0),1,1))) -> 80.42 | F170: =IF(A170>$B$30,NA(),IF(A170>$A$8,"",OFFSET(InputPriceData!$E$15,CalculationsAndCharts!$A170+$A$11,IF($C$5,8,0),1,1))) -> 78.78 | G170: =IF(A170>$B$30,NA(),IF(A170>$A$8,"",OFFSET(InputPriceData!$F$15,CalculationsAndCharts!$A170+$A$11,IF($C$5,8,0),1,1))) -> 80.1 | I170: =IF($A170>$I$30,NA(),LINEST(OFFSET(G170,0,0,$A$19,1),OFFSET($H$33,0,0,$A$19,1))) -> -0.1766511405 | J170: 90.44060408 | K170: 81.60804706 | L170: 1.508047059 | M170: 0.07129411765 | N170: 7.509623529 | O170: 0.1931553258 | P170: 0.9657766292 | Q170: 0.07708927957 | R170: 82.36519808 | S170: 84.50495293 | T170: 63 | U170: =IF($A170>$U$30,NA(),LINEST(OFFSET($G170,0,0,$D$19,1),OFFSET($T$33,0,0,$D$19,1))) -> 0.04560328508 | V170: 78.54586985 | W170: 87.66652687 | X170: 7.566526866 | Y170: 0.06629552239 | Z170: 10.9314791 | AA170: 0.6902995505 | AB170: 3.451497753 | AC170: 0.04429350998 | AD170: 83.46477437 | AW170: 5828400
